Workbook

Sheet Notes-COPY ALL
A1: WORKBOOK NOTES

Sheet Instructions
L1: =CELL("filename",L3) -> https://gfnet.sharepoint.com/sites/CMH-63152/Shared Documents/63152/TO #12-10 GEA-422-14.90 Culvert Repl/F. Deliver/2021.04.06 Revised Tracings/[105821_OFFICE CALCS.xlsm]Instructions
A2: =CONCATENATE("HOW TO USE THIS WORKBOOK (", L6, ")") -> HOW TO USE THIS WORKBOOK (105821_OFFICE CALCS.xlsm) | L2: =FIND("[",L1) -> 145
A3: Opening the workbook | L3: =FIND("]",L1) -> 170
A4: 1 | B4: Select "Enable Macros" when you open this workbook (if security is set to Medium) | L4: =LEN(L1) -> 182
B5: a. | C5: If you are not asked about enabling macros when you open the workbook, you either have your security set on the highest or lowest setting. Set your security to "Medium" by the following steps: Tools >> Macro >> Security…. For this workbook to function, you must have Medium (recommended), or Low selected. If it was previously set on high, you must close this workbook and re-open it to ensure that the macros are enabled. | L5: =LEFT(CELL("filename",L3),L3-1) -> https://gfnet.sharepoint.com/sites/CMH-63152/Shared Documents/63152/TO #12-10 GEA-422-14.90 Culvert Repl/F. Deliver/2021.04.06 Revised Tracings/[105821_OFFICE CALCS.xlsm
L6: =RIGHT(L5,L3-L2-1) -> 105821_OFFICE CALCS.xlsm
A10: 2 | B10: Select "Update" when it asks about external links
A11: X | B11: Link to top
A12: Getting Started
A13: 1 | B13: Read the instructions in their entirety
A14: 2 | B14: Read the notes in their entirety
B15: a. | C15: If you do anything out of the ordinary in this workbook please note it in on the notes sheet to ensure that anyone who opens this workbook can decipher the methodology used.
B17: b. | C17: Create notes sorted by sheet names for quick retrieval of pertinent notes
A18: 3 | B18: BEWARE: Changing protected formulas and adding/deleting rows & columns could potentially disable the entire workbook, and therefore the entire system.
B20: b. | C20: Every effort has been made to make sure that all necessary privaliges to work with this workbook are already allowed. If there is some reason to change something not allowed because of the sheet protection, you may unprotect the sheet. You can do this by selecting "Tools >> Protection >> Unprotect sheet" (there is no password.) IF you do need to do this, make sure that the sheet is protected again before you exit the sheet (not the workbook)
A25: X | B25: Link to top
A26: Data Entry
A27: 1 | B27: All calculations and data entry is to be done solely on the "Calc##" sheets. The "Sub## sheets are a formatted copy of the "Calc##" sheets and are to be used for importing into Microstation
B29: a. | C29: The "Sub##" sheets are locked because no data is to be entered / deleted. Formating can still be done.
A30: 2 | B30: To begin entering data, select a "Calc##" sheet
A31: 3 | B31: Enter the Item Number of the item(s)
A32: 4 | B32: Enter the Item Extension of the item(s) - This information is seen on the General Summary and Estimate
A33: 5 | B33: Enter the Category Code of the item(s). This information is used to separate the items into their respective categories on both the General Summary and the Cost Estimate. The actual code is never seen on a printed document, but it is absolutely essential for this system to work.
B36: a. | C36: The "Category Codes" sheet has a listing of all of the necessary codes. These are a copy of the "official" category codes used in compiling the General Summary. When the General Summary is compiled, the "Category Codes" sheet from the "GENERAL SUMMARY.xls" workbook is referenced for placing titles on the General Summary sheet.
B40: b. | C40: The Category Codes are listed in the order ODOT wants to see them on the General Summary. If ODOT were to change the categories that they want to see on the General Summary, the descriptions on the "Category Codes" sheet of the "GENERAL SUMMARY.xls" workbook would have to change to reflect these changes.
B43: c. | C43: The "MISCELLANEOUS" Code (RR & RS) is used to denote Incidentals. These are items placed at the end of both the General Summary and Estimate. In the General Summary these items do not get a category title, but on the Estimate they get placed under the "Incidentals" section.
B46: d. | C46: The second set of codes is to denote an "Item Special" under the given ODOT category. Essentially, the first letter of the code denotes the category, and the second letter denotes whether or not it is an item special (although if it is not an item special, the two identical letters are still needed.)
A49: 6 | B49: Enter the specific details for each item (Ref, Sheet, Station, Side, ect. )
B50: a. | C50: These columns will be referred to as the INFO columns in the future….They include all columns that contain data that is not carried to the general summary
A52: 7 | B52: Enter the quantities of each item.
B53: a. | C53: Actual calculations can be performed in each quantity cell
B54: a. | C54: You do not need to worry about rounding, since that is automated by the "Sub##" sheets associated with each "Calc ##" sheet. Setting the rounding amounts is further explained in the "Formating Data" section
A56: 8 | B56: Repeat the above steps on as many "Calc##" sheets as it takes to facilitate the all pertinent quantities
A57: 9 | B57: To make this new information available to the Generals Summary, the "COMPILE" button must be pressed (upper left hand corner of the "Calc ##" sheets. THIS MUST BE DONE BEFORE YOU EXIT THE WORKBOOK.
B61: a. | C61: The compile button refreshes hidden pivot tables that consolidates all of the "Sub##" sheets into tables used to transfer data onto the "SUBSummary" sheet and the "General Summary.xls" workbook The button also brings you to the "Sub##" sheet associated with the "Calc##" sheet on which the button was pushed. After updating the pivot tables, the workbook is automatically saved.
A65: X | B65: Link to top
A66: Formating Data
A67: 1 | B67: After the calculations are made, the data must be rounded consistently. There are 4 rows at the bottom of each "Calc##" sheet that are used for this reason. It is also possible to add text to the ODOT description in this section.
B69: a. | C69: "Prepended Description" will add text to the beginning of the ODOT description. NOTE: The modification is only good for this sheet, it is required that only the ODOT description be present on the General Summary. This option is to be used sparingly.
B72: b. | C72: "Appended Description" will add text to the end of the ODOT description. NOTE: The modification is only good for this sheet, it is required that only the ODOT description be present on the General Summary. This option is to be used sparingly.
B75: c. | C75: "SubTotal Precision" will round all of the calculated values UP to the nearest multiple of this number. This will ensure that all of the calculations in the "Calc##" sheets are carried to the "Sub##" sheets with the same degree of precision, regardless of how precise they are on the "Calc##" sheets.
B78: d. | C78: "Summary Precision" will round the TOTALS lines UP to the nearest multiple of this number. ODOT items are to be rounded to a specific degree of precision on the General Summary. It is this "Summary Precision" that does this rounding automatically for us.
A81: 2 | B81: Any of the "Title" cells across the top of the "Sub##" sheets (with the exception of the Item No., Description, and Units) can be changed on the "Calc##" sheets, and the change will be reflected on the "Sub##" sheets.
A83: 3 | B83: Cells in the INFO columns may be merged to provide for section titles.
B84: a. | C84: When "Sub##" INFO cells are merged, the data that will be brought to the merged area corresponds to the same cell on the "Calc##" sheets as the upper-left most cell of the merged cells.
A86: 4 | B86: Rows and columns may be hidden (hidden rows/columns will not show up when referenced using Axiom), but UNDER NO CIRCUMSTANCES may rows and columns be deleted or inserted. There are many "static" and "indirect" cell references that will be lost, and therefore the system will be broken :-(
B89: a. | C89: One of the "TOTAL" lines at the bottom of the "Sub##" sheets needs to be hidden before importing the sheet into Microstation. The "TOTALS CARRIED TO GENERAL SUMMARY" line is a total quantity from the entire workbook, and is to be shown if only one "Sub##" sheet is used. The "TOTALS CARRIED TO SUBSUMMARY" line is to be shown when a SUBSummary sheet is used.
A93: X | B93: Link to top
A94: Using the SUBSummary
A95: 1 | B95: Since the General Summary has a limited number of possible columns for referenced SubSummaries, the "Sub##" sheets (calculation sheets) from this notebook need to be consolidated to a single SubSummary (if more than one "Sub##" sheet is used). This sheet is created automatically, and can be seen on the "SUBSummary" sheet.
B98: a. | C98: Like the "Sub##" sheets, the "SUBSummary" sheet allows for formatting (no merging of cells) and hiding of rows/columns.
B100: b. | C100: REMINDER: Will the "SUBSummary" sheet and last "Sub##" sheet fit on the same page of a Microstation drawing if you hide the unneccesary rows on both?
A102: 2 | B102: If the "SUBSummary" is to be used, each column must reference a calculation sheet. This is done on the "Combine" sheet. The sheets that need a page referenced will be displayed on the top blackened rows, and the cell that needs the page number placed in it will turn yellow and display "####"
B105: a. | C105: The "####" is displayed through a formula. The formula can be deleted and the page number entered in the same cell. NOTE: DO NOTE CHANGE ANY OTHER THINGS ON THIS PAGE, AS THIS IS THE PAGE THAT MAKES THE ENTIRE SYSTEM WORK!
A109: X | B109: Link to top
A110: Importing into Microstation
A111: 1 | B111: NOTE: HAVE THE SHEET READY TO GO IF USING THE SHARED RESOURCE PC. The shared resource PC is too slow to do all of the calculations and external links. When it asks, say "Disable Macros", and "Don't Update". If the button was pushed last time you left the workbook, the workbook should be up to date when you re-open it.
A114: 2 | B114: Load Axiom into Microstation (office.mdl)
B115: a. | C115: Select…Utilies >> MDL Applications from the Microstation menue
B116: b. | C116: Select "Browse" and load "S:\BENTLEY\Axiom\office\office.ma" - NOTE: this can only be loaded on the computer that has Axiom installed on it (Typicaly the Shared Resource PC.)
A118: 2 | B118: Load the "S:\BENTLEY\Axiom\office\QUANTITIES.ini" file to use for importing these spreadsheets.
A119: 3 | B119: Select the area of the sheet (in Excel) you wish to import to Microstation. Now envoke the copy command (in Excel) by either Edit >> Copy, or by holding the "Ctrl" key and pressing the "C" button
B121: a. | C121: NOTE/TIP: Include some extra "blank" area such that if more data is added to the Excel sheet it will automatically be placed on the sheet with an "Update", as opposed to having to completely re-insert the Excel Sheet. Rows/Columns that are hidden when the sheet is imported into Microstation will remain hidden in Microstation even if they are unhidden in Excel.
A125: 4 | B125: Paste the data into Microstation using the paste button on the Axiom toolbar.
A126: 5 | B126: Once all of the sheets are referenced into Microstation, they will remain the same size upon updates. The updates need to be done manually on the shared resources PC …by loading Axiom each time and selecting each item to be updated.
A129: X | B129: Link to top

Sheet Catagory Codes
A1: CODES FOR USE WITH EXCEL QUANTITIES (Used to sort items on General Summary Sheets)
A3: AA | B3: ROADWAY | C3: =A3 -> AA
A4: BB | B4: EROSION CONTROL | C4: BB
A5: CC | B5: DRAINAGE | C5: CC
A6: DD | B6: PAVEMENT | C6: DD
A7: EE | B7: WATER WORK | C7: EE
A8: FF | B8: SANITARY SEWER | C8: FF
A9: GG | B9: LIGHTING | C9: GG
A10: HH | B10: TRAFFIC SURVEILLANCE | C10: HH
A11: II | B11: TRAFFIC CONTROL | C11: II
A12: JJ | B12: TRAFFIC SIGNALS | C12: JJ
A13: KK | B13: LANDSCAPING | C13: KK
A14: LL | B14: RETAINING WALLS | C14: LL
A15: MM | B15: BUILDING DEMOLITION | C15: MM
A16: NN | B16: NOISE BARRIERS | C16: NN
A17: OO | B17: STRUCTURES (20' AND UNDER) | C17: OO
A18: PP | B18: STRUCTURES (OVER 20') | C18: PP
A19: QQ | B19: MAINTENANCE OF TRAFFIC | C19: QQ
A20: RR | B20: MISCELLANEOUS | C20: RR
A22: =CONCATENATE(LEFT(A3,1),"S") -> AS | B22: =CONCATENATE(B3," - SPECIAL") -> ROADWAY - SPECIAL | C22: =A22 -> AS
A23: BS | B23: EROSION CONTROL - SPECIAL | C23: BS
A24: CS | B24: DRAINAGE - SPECIAL | C24: CS
A25: DS | B25: PAVEMENT - SPECIAL | C25: DS
A26: ES | B26: WATER WORK - SPECIAL | C26: ES
A27: FS | B27: SANITARY SEWER - SPECIAL | C27: FS
A28: GS | B28: LIGHTING - SPECIAL | C28: GS
A29: HS | B29: TRAFFIC SURVEILLANCE - SPECIAL | C29: HS
A30: IS | B30: TRAFFIC CONTROL - SPECIAL | C30: IS
A31: JS | B31: TRAFFIC SIGNALS - SPECIAL | C31: JS
A32: KS | B32: LANDSCAPING - SPECIAL | C32: KS
A33: LS | B33: RETAINING WALLS - SPECIAL | C33: LS
A34: MS | B34: BUILDING DEMOLITION - SPECIAL | C34: MS
A35: NS | B35: NOISE BARRIERS - SPECIAL | C35: NS
A36: OS | B36: STRUCTURES (20' AND UNDER) - SPECIAL | C36: OS
A37: PS | B37: STRUCTURES (OVER 20') - SPECIAL | C37: PS
A38: QS | B38: MAINTENANCE OF TRAFFIC - SPECIAL | C38: QS
A39: RS | B39: MISCELLANEOUS - SPECIAL | C39: RS

Sheet SUBSummary
A1: SHEET NUMBER | U1: ITEM | V1: ITEM EXT. | W1: TOTAL | X1: UNIT | Y1: DESCRIPTION | Z1: SEE SHEET NO.
A2: =IF(#REF!<>"",#REF!,"") ->  | B2: =IF(#REF!<>"",#REF!,"") ->  | C2: =IF(#REF!<>"",#REF!,"") ->  | D2: =IF(#REF!<>"",#REF!,"") ->  | E2: =IF(#REF!<>"",#REF!,"") ->  | F2: =IF(#REF!<>"",#REF!,"") ->  | G2: =IF(#REF!<>"",#REF!,"") ->  | H2: =IF(#REF!<>"",#REF!,"") ->  | I2: =IF(#REF!<>"",#REF!,"") ->  | J2: =IF(#REF!<>"",#REF!,"") ->  | K2: =IF(#REF!<>"",#REF!,"") ->  | L2: =IF(#REF!<>"",#REF!,"") ->  | M2: =IF(#REF!<>"",#REF!,"") ->  | N2: =IF(#REF!<>"",#REF!,"") ->  | O2: =IF(#REF!<>"",#REF!,"") ->  | P2: =IF(#REF!<>"",#REF!,"") ->  | Q2: =IF(#REF!<>"",#REF!,"") ->  | R2: =IF(#REF!<>"",#REF!,"") ->  | S2: =IF(#REF!<>"",#REF!,"") ->  | T2: =IF(#REF!<>"",#REF!,"") ->  | AA2: line | AB2: remain | AC2: offset | AD2: UNIT
A3: =IF( $AC3 = 0, "", IF( OFFSET(#REF!, $AC3 - 1,0,1,1)<>0, IF(OR($AD3="LUMP", $AD3="LS"), "LUMP", OFFSET(#REF!, $AC3 - 1,0,1,1)),"")) ->  | B3: =IF( $AC3 = 0, "", IF( OFFSET(#REF!, $AC3 - 1,0,1,1)<>0, IF(OR($AD3="LUMP", $AD3="LS"), "LUMP", OFFSET(#REF!, $AC3 - 1,0,1,1)),"")) ->  | C3: =IF( $AC3 = 0, "", IF( OFFSET(#REF!, $AC3 - 1,0,1,1)<>0, IF(OR($AD3="LUMP", $AD3="LS"), "LUMP", OFFSET(#REF!, $AC3 - 1,0,1,1)),"")) ->  | D3: =IF( $AC3 = 0, "", IF( OFFSET(#REF!, $AC3 - 1,0,1,1)<>0, IF(OR($AD3="LUMP", $AD3="LS"), "LUMP", OFFSET(#REF!, $AC3 - 1,0,1,1)),"")) ->  | E3: =IF( $AC3 = 0, "", IF( OFFSET(#REF!, $AC3 - 1,0,1,1)<>0, IF(OR($AD3="LUMP", $AD3="LS"), "LUMP", OFFSET(#REF!, $AC3 - 1,0,1,1)),"")) ->  | F3: =IF( $AC3 = 0, "", IF( OFFSET(#REF!, $AC3 - 1,0,1,1)<>0, IF(OR($AD3="LUMP", $AD3="LS"), "LUMP", OFFSET(#REF!, $AC3 - 1,0,1,1)),"")) ->  | G3: =IF( $AC3 = 0, "", IF( OFFSET(#REF!, $AC3 - 1,0,1,1)<>0, IF(OR($AD3="LUMP", $AD3="LS"), "LUMP", OFFSET(#REF!, $AC3 - 1,0,1,1)),"")) ->  | H3: =IF( $AC3 = 0, "", IF( OFFSET(#REF!, $AC3 - 1,0,1,1)<>0, IF(OR($AD3="LUMP", $AD3="LS"), "LUMP", OFFSET(#REF!, $AC3 - 1,0,1,1)),"")) ->  | I3: =IF( $AC3 = 0, "", IF( OFFSET(#REF!, $AC3 - 1,0,1,1)<>0, IF(OR($AD3="LUMP", $AD3="LS"), "LUMP", OFFSET(#REF!, $AC3 - 1,0,1,1)),"")) ->  | J3: =IF( $AC3 = 0, "", IF( OFFSET(#REF!, $AC3 - 1,0,1,1)<>0, IF(OR($AD3="LUMP", $AD3="LS"), "LUMP", OFFSET(#REF!, $AC3 - 1,0,1,1)),"")) ->  | K3: =IF( $AC3 = 0, "", IF( OFFSET(#REF!, $AC3 - 1,0,1,1)<>0, IF(OR($AD3="LUMP", $AD3="LS"), "LUMP", OFFSET(#REF!, $AC3 - 1,0,1,1)),"")) ->  | L3: =IF( $AC3 = 0, "", IF( OFFSET(#REF!, $AC3 - 1,0,1,1)<>0, IF(OR($AD3="LUMP", $AD3="LS"), "LUMP", OFFSET(#REF!, $AC3 - 1,0,1,1)),"")) ->  | M3: =IF( $AC3 = 0, "", IF( OFFSET(#REF!, $AC3 - 1,0,1,1)<>0, IF(OR($AD3="LUMP", $AD3="LS"), "LUMP", OFFSET(#REF!, $AC3 - 1,0,1,1)),"")) ->  | N3: =IF( $AC3 = 0, "", IF( OFFSET(#REF!, $AC3 - 1,0,1,1)<>0, IF(OR($AD3="LUMP", $AD3="LS"), "LUMP", OFFSET(#REF!, $AC3 - 1,0,1,1)),"")) ->  | O3: =IF( $AC3 = 0, "", IF( OFFSET(#REF!, $AC3 - 1,0,1,1)<>0, IF(OR($AD3="LUMP", $AD3="LS"), "LUMP", OFFSET(#REF!, $AC3 - 1,0,1,1)),"")) ->  | P3: =IF( $AC3 = 0, "", IF( OFFSET(#REF!, $AC3 - 1,0,1,1)<>0, IF(OR($AD3="LUMP", $AD3="LS"), "LUMP", OFFSET(#REF!, $AC3 - 1,0,1,1)),"")) ->  | Q3: =IF( $AC3 = 0, "", IF( OFFSET(#REF!, $AC3 - 1,0,1,1)<>0, IF(OR($AD3="LUMP", $AD3="LS"), "LUMP", OFFSET(#REF!, $AC3 - 1,0,1,1)),"")) ->  | R3: =IF( $AC3 = 0, "", IF( OFFSET(#REF!, $AC3 - 1,0,1,1)<>0, IF(OR($AD3="LUMP", $AD3="LS"), "LUMP", OFFSET(#REF!, $AC3 - 1,0,1,1)),"")) ->  | S3: =IF( $AC3 = 0, "", IF( OFFSET(#REF!, $AC3 - 1,0,1,1)<>0, IF(OR($AD3="LUMP", $AD3="LS"), "LUMP", OFFSET(#REF!, $AC3 - 1,0,1,1)),"")) ->  | T3: =IF( $AC3 = 0, "", IF( OFFSET(#REF!, $AC3 - 1,0,1,1)<>0, IF(OR($AD3="LUMP", $AD3="LS"), "LUMP", OFFSET(#REF!, $AC3 - 1,0,1,1)),"")) ->  | U3: =IF( $AC3 = 0, "", IF( OFFSET(#REF!, $AC3 - 1,0,1,1)<>0, LEFT(OFFSET(#REF!, $AC3 - 1,0,1,1),3),"")) ->  | V3: =IF( $AC3 = 0, "", IF( OFFSET(#REF!, $AC3 - 1,0,1,1)<>0, IF(LEN(OFFSET(#REF!, $AC3 - 1,0,1,1))=9, RIGHT(OFFSET(#REF!, $AC3 - 1,0,1,1),5), LEFT(RIGHT(OFFSET(#REF!, $AC3 - 1,0,1,1),6), 5) ),"")) ->  | W3: =IF(SUM(A3:T3)<>0,SUM(A3:T3),IF(OR(AD3="LUMP", AD3="LS"), "LUMP", "")) ->  | X3: =IF( $AC3 = 0, "", IF( OFFSET(#REF!, $AC3 - 1,0,1,1)<>0,IF(OR(AD3="LUMP", AD3="LS"), "", AD3),"")) ->  | Y3: =IF( $AC3 = 0, "", IF( OFFSET(#REF!, $AC3 - 1,0,1,1)<>0, VLOOKUP( OFFSET(#REF!, $AC3 - 1,0,1,1),[1]Items!$A$2:$E$10001,4,0),"")) ->  | AA3: 1 | AB3: =INT(AA3/6) -> 0 | AC3: =IF( (AA3 - 6*AB3) = 0, 0, AA3 - AB3 ) -> 1 | AD3: =IF( $AC3 = 0, "", IF( OFFSET(#REF!, $AC3 - 1,0,1,1)<>0, VLOOKUP( OFFSET(#REF!, $AC3 - 1,0,1,1),[1]Items!$A$2:$E$10001,3,0),"")) -> 
A4: =IF( $AC4 = 0, "", IF( OFFSET(#REF!, $AC4 - 1,0,1,1)<>0, IF(OR($AD4="LUMP", $AD4="LS"), "LUMP", OFFSET(#REF!, $AC4 - 1,0,1,1)),"")) ->  | B4: =IF( $AC4 = 0, "", IF( OFFSET(#REF!, $AC4 - 1,0,1,1)<>0, IF(OR($AD4="LUMP", $AD4="LS"), "LUMP", OFFSET(#REF!, $AC4 - 1,0,1,1)),"")) ->  | C4: =IF( $AC4 = 0, "", IF( OFFSET(#REF!, $AC4 - 1,0,1,1)<>0, IF(OR($AD4="LUMP", $AD4="LS"), "LUMP", OFFSET(#REF!, $AC4 - 1,0,1,1)),"")) ->  | D4: =IF( $AC4 = 0, "", IF( OFFSET(#REF!, $AC4 - 1,0,1,1)<>0, IF(OR($AD4="LUMP", $AD4="LS"), "LUMP", OFFSET(#REF!, $AC4 - 1,0,1,1)),"")) ->  | E4: =IF( $AC4 = 0, "", IF( OFFSET(#REF!, $AC4 - 1,0,1,1)<>0, IF(OR($AD4="LUMP", $AD4="LS"), "LUMP", OFFSET(#REF!, $AC4 - 1,0,1,1)),"")) ->  | F4: =IF( $AC4 = 0, "", IF( OFFSET(#REF!, $AC4 - 1,0,1,1)<>0, IF(OR($AD4="LUMP", $AD4="LS"), "LUMP", OFFSET(#REF!, $AC4 - 1,0,1,1)),"")) ->  | G4: =IF( $AC4 = 0, "", IF( OFFSET(#REF!, $AC4 - 1,0,1,1)<>0, IF(OR($AD4="LUMP", $AD4="LS"), "LUMP", OFFSET(#REF!, $AC4 - 1,0,1,1)),"")) ->  | H4: =IF( $AC4 = 0, "", IF( OFFSET(#REF!, $AC4 - 1,0,1,1)<>0, IF(OR($AD4="LUMP", $AD4="LS"), "LUMP", OFFSET(#REF!, $AC4 - 1,0,1,1)),"")) ->  | I4: =IF( $AC4 = 0, "", IF( OFFSET(#REF!, $AC4 - 1,0,1,1)<>0, IF(OR($AD4="LUMP", $AD4="LS"), "LUMP", OFFSET(#REF!, $AC4 - 1,0,1,1)),"")) ->  | J4: =IF( $AC4 = 0, "", IF( OFFSET(#REF!, $AC4 - 1,0,1,1)<>0, IF(OR($AD4="LUMP", $AD4="LS"), "LUMP", OFFSET(#REF!, $AC4 - 1,0,1,1)),"")) ->  | K4: =IF( $AC4 = 0, "", IF( OFFSET(#REF!, $AC4 - 1,0,1,1)<>0, IF(OR($AD4="LUMP", $AD4="LS"), "LUMP", OFFSET(#REF!, $AC4 - 1,0,1,1)),"")) ->  | L4: =IF( $AC4 = 0, "", IF( OFFSET(#REF!, $AC4 - 1,0,1,1)<>0, IF(OR($AD4="LUMP", $AD4="LS"), "LUMP", OFFSET(#REF!, $AC4 - 1,0,1,1)),"")) ->  | M4: =IF( $AC4 = 0, "", IF( OFFSET(#REF!, $AC4 - 1,0,1,1)<>0, IF(OR($AD4="LUMP", $AD4="LS"), "LUMP", OFFSET(#REF!, $AC4 - 1,0,1,1)),"")) ->  | N4: =IF( $AC4 = 0, "", IF( OFFSET(#REF!, $AC4 - 1,0,1,1)<>0, IF(OR($AD4="LUMP", $AD4="LS"), "LUMP", OFFSET(#REF!, $AC4 - 1,0,1,1)),"")) ->  | O4: =IF( $AC4 = 0, "", IF( OFFSET(#REF!, $AC4 - 1,0,1,1)<>0, IF(OR($AD4="LUMP", $AD4="LS"), "LUMP", OFFSET(#REF!, $AC4 - 1,0,1,1)),"")) ->  | P4: =IF( $AC4 = 0, "", IF( OFFSET(#REF!, $AC4 - 1,0,1,1)<>0, IF(OR($AD4="LUMP", $AD4="LS"), "LUMP", OFFSET(#REF!, $AC4 - 1,0,1,1)),"")) ->  | Q4: =IF( $AC4 = 0, "", IF( OFFSET(#REF!, $AC4 - 1,0,1,1)<>0, IF(OR($AD4="LUMP", $AD4="LS"), "LUMP", OFFSET(#REF!, $AC4 - 1,0,1,1)),"")) ->  | R4: =IF( $AC4 = 0, "", IF( OFFSET(#REF!, $AC4 - 1,0,1,1)<>0, IF(OR($AD4="LUMP", $AD4="LS"), "LUMP", OFFSET(#REF!, $AC4 - 1,0,1,1)),"")) ->  | S4: =IF( $AC4 = 0, "", IF( OFFSET(#REF!, $AC4 - 1,0,1,1)<>0, IF(OR($AD4="LUMP", $AD4="LS"), "LUMP", OFFSET(#REF!, $AC4 - 1,0,1,1)),"")) ->  | T4: =IF( $AC4 = 0, "", IF( OFFSET(#REF!, $AC4 - 1,0,1,1)<>0, IF(OR($AD4="LUMP", $AD4="LS"), "LUMP", OFFSET(#REF!, $AC4 - 1,0,1,1)),"")) ->  | U4: =IF( $AC4 = 0, "", IF( OFFSET(#REF!, $AC4 - 1,0,1,1)<>0, LEFT(OFFSET(#REF!, $AC4 - 1,0,1,1),3),"")) ->  | V4: =IF( $AC4 = 0, "", IF( OFFSET(#REF!, $AC4 - 1,0,1,1)<>0, IF(LEN(OFFSET(#REF!, $AC4 - 1,0,1,1))=9, RIGHT(OFFSET(#REF!, $AC4 - 1,0,1,1),5), LEFT(RIGHT(OFFSET(#REF!, $AC4 - 1,0,1,1),6), 5) ),"")) ->  | W4: =IF(SUM(A4:T4)<>0,SUM(A4:T4),IF(OR(AD4="LUMP", AD4="LS"), "LUMP", "")) ->  | X4: =IF( $AC4 = 0, "", IF( OFFSET(#REF!, $AC4 - 1,0,1,1)<>0,IF(OR(AD4="LUMP", AD4="LS"), "", AD4),"")) ->  | Y4: =IF( $AC4 = 0, "", IF( OFFSET(#REF!, $AC4 - 1,0,1,1)<>0, VLOOKUP( OFFSET(#REF!, $AC4 - 1,0,1,1),[1]Items!$A$2:$E$10001,4,0),"")) ->  | AA4: =AA3+1 -> 2 | AB4: 0 | AC4: 2 | AD4: =IF( $AC4 = 0, "", IF( OFFSET(#REF!, $AC4 - 1,0,1,1)<>0, VLOOKUP( OFFSET(#REF!, $AC4 - 1,0,1,1),[1]Items!$A$2:$E$10001,3,0),"")) -> 
A5: =IF( $AC5 = 0, "", IF( OFFSET(#REF!, $AC5 - 1,0,1,1)<>0, IF(OR($AD5="LUMP", $AD5="LS"), "LUMP", OFFSET(#REF!, $AC5 - 1,0,1,1)),"")) ->  | B5: =IF( $AC5 = 0, "", IF( OFFSET(#REF!, $AC5 - 1,0,1,1)<>0, IF(OR($AD5="LUMP", $AD5="LS"), "LUMP", OFFSET(#REF!, $AC5 - 1,0,1,1)),"")) ->  | C5: =IF( $AC5 = 0, "", IF( OFFSET(#REF!, $AC5 - 1,0,1,1)<>0, IF(OR($AD5="LUMP", $AD5="LS"), "LUMP", OFFSET(#REF!, $AC5 - 1,0,1,1)),"")) ->  | D5: =IF( $AC5 = 0, "", IF( OFFSET(#REF!, $AC5 - 1,0,1,1)<>0, IF(OR($AD5="LUMP", $AD5="LS"), "LUMP", OFFSET(#REF!, $AC5 - 1,0,1,1)),"")) ->  | E5: =IF( $AC5 = 0, "", IF( OFFSET(#REF!, $AC5 - 1,0,1,1)<>0, IF(OR($AD5="LUMP", $AD5="LS"), "LUMP", OFFSET(#REF!, $AC5 - 1,0,1,1)),"")) ->  | F5: =IF( $AC5 = 0, "", IF( OFFSET(#REF!, $AC5 - 1,0,1,1)<>0, IF(OR($AD5="LUMP", $AD5="LS"), "LUMP", OFFSET(#REF!, $AC5 - 1,0,1,1)),"")) ->  | G5: =IF( $AC5 = 0, "", IF( OFFSET(#REF!, $AC5 - 1,0,1,1)<>0, IF(OR($AD5="LUMP", $AD5="LS"), "LUMP", OFFSET(#REF!, $AC5 - 1,0,1,1)),"")) ->  | H5: =IF( $AC5 = 0, "", IF( OFFSET(#REF!, $AC5 - 1,0,1,1)<>0, IF(OR($AD5="LUMP", $AD5="LS"), "LUMP", OFFSET(#REF!, $AC5 - 1,0,1,1)),"")) ->  | I5: =IF( $AC5 = 0, "", IF( OFFSET(#REF!, $AC5 - 1,0,1,1)<>0, IF(OR($AD5="LUMP", $AD5="LS"), "LUMP", OFFSET(#REF!, $AC5 - 1,0,1,1)),"")) ->  | J5: =IF( $AC5 = 0, "", IF( OFFSET(#REF!, $AC5 - 1,0,1,1)<>0, IF(OR($AD5="LUMP", $AD5="LS"), "LUMP", OFFSET(#REF!, $AC5 - 1,0,1,1)),"")) ->  | K5: =IF( $AC5 = 0, "", IF( OFFSET(#REF!, $AC5 - 1,0,1,1)<>0, IF(OR($AD5="LUMP", $AD5="LS"), "LUMP", OFFSET(#REF!, $AC5 - 1,0,1,1)),"")) ->  | L5: =IF( $AC5 = 0, "", IF( OFFSET(#REF!, $AC5 - 1,0,1,1)<>0, IF(OR($AD5="LUMP", $AD5="LS"), "LUMP", OFFSET(#REF!, $AC5 - 1,0,1,1)),"")) ->  | M5: =IF( $AC5 = 0, "", IF( OFFSET(#REF!, $AC5 - 1,0,1,1)<>0, IF(OR($AD5="LUMP", $AD5="LS"), "LUMP", OFFSET(#REF!, $AC5 - 1,0,1,1)),"")) ->  | N5: =IF( $AC5 = 0, "", IF( OFFSET(#REF!, $AC5 - 1,0,1,1)<>0, IF(OR($AD5="LUMP", $AD5="LS"), "LUMP", OFFSET(#REF!, $AC5 - 1,0,1,1)),"")) ->  | O5: =IF( $AC5 = 0, "", IF( OFFSET(#REF!, $AC5 - 1,0,1,1)<>0, IF(OR($AD5="LUMP", $AD5="LS"), "LUMP", OFFSET(#REF!, $AC5 - 1,0,1,1)),"")) ->  | P5: =IF( $AC5 = 0, "", IF( OFFSET(#REF!, $AC5 - 1,0,1,1)<>0, IF(OR($AD5="LUMP", $AD5="LS"), "LUMP", OFFSET(#REF!, $AC5 - 1,0,1,1)),"")) ->  | Q5: =IF( $AC5 = 0, "", IF( OFFSET(#REF!, $AC5 - 1,0,1,1)<>0, IF(OR($AD5="LUMP", $AD5="LS"), "LUMP", OFFSET(#REF!, $AC5 - 1,0,1,1)),"")) ->  | R5: =IF( $AC5 = 0, "", IF( OFFSET(#REF!, $AC5 - 1,0,1,1)<>0, IF(OR($AD5="LUMP", $AD5="LS"), "LUMP", OFFSET(#REF!, $AC5 - 1,0,1,1)),"")) ->  | S5: =IF( $AC5 = 0, "", IF( OFFSET(#REF!, $AC5 - 1,0,1,1)<>0, IF(OR($AD5="LUMP", $AD5="LS"), "LUMP", OFFSET(#REF!, $AC5 - 1,0,1,1)),"")) ->  | T5: =IF( $AC5 = 0, "", IF( OFFSET(#REF!, $AC5 - 1,0,1,1)<>0, IF(OR($AD5="LUMP", $AD5="LS"), "LUMP", OFFSET(#REF!, $AC5 - 1,0,1,1)),"")) ->  | U5: =IF( $AC5 = 0, "", IF( OFFSET(#REF!, $AC5 - 1,0,1,1)<>0, LEFT(OFFSET(#REF!, $AC5 - 1,0,1,1),3),"")) ->  | V5: =IF( $AC5 = 0, "", IF( OFFSET(#REF!, $AC5 - 1,0,1,1)<>0, IF(LEN(OFFSET(#REF!, $AC5 - 1,0,1,1))=9, RIGHT(OFFSET(#REF!, $AC5 - 1,0,1,1),5), LEFT(RIGHT(OFFSET(#REF!, $AC5 - 1,0,1,1),6), 5) ),"")) ->  | W5: =IF(SUM(A5:T5)<>0,SUM(A5:T5),IF(OR(AD5="LUMP", AD5="LS"), "LUMP", "")) ->  | X5: =IF( $AC5 = 0, "", IF( OFFSET(#REF!, $AC5 - 1,0,1,1)<>0,IF(OR(AD5="LUMP", AD5="LS"), "", AD5),"")) ->  | Y5: =IF( $AC5 = 0, "", IF( OFFSET(#REF!, $AC5 - 1,0,1,1)<>0, VLOOKUP( OFFSET(#REF!, $AC5 - 1,0,1,1),[1]Items!$A$2:$E$10001,4,0),"")) ->  | AA5: 3 | AB5: 0 | AC5: 3 | AD5: =IF( $AC5 = 0, "", IF( OFFSET(#REF!, $AC5 - 1,0,1,1)<>0, VLOOKUP( OFFSET(#REF!, $AC5 - 1,0,1,1),[1]Items!$A$2:$E$10001,3,0),"")) -> 
A6: =IF( $AC6 = 0, "", IF( OFFSET(#REF!, $AC6 - 1,0,1,1)<>0, IF(OR($AD6="LUMP", $AD6="LS"), "LUMP", OFFSET(#REF!, $AC6 - 1,0,1,1)),"")) ->  | B6: =IF( $AC6 = 0, "", IF( OFFSET(#REF!, $AC6 - 1,0,1,1)<>0, IF(OR($AD6="LUMP", $AD6="LS"), "LUMP", OFFSET(#REF!, $AC6 - 1,0,1,1)),"")) ->  | C6: =IF( $AC6 = 0, "", IF( OFFSET(#REF!, $AC6 - 1,0,1,1)<>0, IF(OR($AD6="LUMP", $AD6="LS"), "LUMP", OFFSET(#REF!, $AC6 - 1,0,1,1)),"")) ->  | D6: =IF( $AC6 = 0, "", IF( OFFSET(#REF!, $AC6 - 1,0,1,1)<>0, IF(OR($AD6="LUMP", $AD6="LS"), "LUMP", OFFSET(#REF!, $AC6 - 1,0,1,1)),"")) ->  | E6: =IF( $AC6 = 0, "", IF( OFFSET(#REF!, $AC6 - 1,0,1,1)<>0, IF(OR($AD6="LUMP", $AD6="LS"), "LUMP", OFFSET(#REF!, $AC6 - 1,0,1,1)),"")) ->  | F6: =IF( $AC6 = 0, "", IF( OFFSET(#REF!, $AC6 - 1,0,1,1)<>0, IF(OR($AD6="LUMP", $AD6="LS"), "LUMP", OFFSET(#REF!, $AC6 - 1,0,1,1)),"")) ->  | G6: =IF( $AC6 = 0, "", IF( OFFSET(#REF!, $AC6 - 1,0,1,1)<>0, IF(OR($AD6="LUMP", $AD6="LS"), "LUMP", OFFSET(#REF!, $AC6 - 1,0,1,1)),"")) ->  | H6: =IF( $AC6 = 0, "", IF( OFFSET(#REF!, $AC6 - 1,0,1,1)<>0, IF(OR($AD6="LUMP", $AD6="LS"), "LUMP", OFFSET(#REF!, $AC6 - 1,0,1,1)),"")) ->  | I6: =IF( $AC6 = 0, "", IF( OFFSET(#REF!, $AC6 - 1,0,1,1)<>0, IF(OR($AD6="LUMP", $AD6="LS"), "LUMP", OFFSET(#REF!, $AC6 - 1,0,1,1)),"")) ->  | J6: =IF( $AC6 = 0, "", IF( OFFSET(#REF!, $AC6 - 1,0,1,1)<>0, IF(OR($AD6="LUMP", $AD6="LS"), "LUMP", OFFSET(#REF!, $AC6 - 1,0,1,1)),"")) ->  | K6: =IF( $AC6 = 0, "", IF( OFFSET(#REF!, $AC6 - 1,0,1,1)<>0, IF(OR($AD6="LUMP", $AD6="LS"), "LUMP", OFFSET(#REF!, $AC6 - 1,0,1,1)),"")) ->  | L6: =IF( $AC6 = 0, "", IF( OFFSET(#REF!, $AC6 - 1,0,1,1)<>0, IF(OR($AD6="LUMP", $AD6="LS"), "LUMP", OFFSET(#REF!, $AC6 - 1,0,1,1)),"")) ->  | M6: =IF( $AC6 = 0, "", IF( OFFSET(#REF!, $AC6 - 1,0,1,1)<>0, IF(OR($AD6="LUMP", $AD6="LS"), "LUMP", OFFSET(#REF!, $AC6 - 1,0,1,1)),"")) ->  | N6: =IF( $AC6 = 0, "", IF( OFFSET(#REF!, $AC6 - 1,0,1,1)<>0, IF(OR($AD6="LUMP", $AD6="LS"), "LUMP", OFFSET(#REF!, $AC6 - 1,0,1,1)),"")) ->  | O6: =IF( $AC6 = 0, "", IF( OFFSET(#REF!, $AC6 - 1,0,1,1)<>0, IF(OR($AD6="LUMP", $AD6="LS"), "LUMP", OFFSET(#REF!, $AC6 - 1,0,1,1)),"")) ->  | P6: =IF( $AC6 = 0, "", IF( OFFSET(#REF!, $AC6 - 1,0,1,1)<>0, IF(OR($AD6="LUMP", $AD6="LS"), "LUMP", OFFSET(#REF!, $AC6 - 1,0,1,1)),"")) ->  | Q6: =IF( $AC6 = 0, "", IF( OFFSET(#REF!, $AC6 - 1,0,1,1)<>0, IF(OR($AD6="LUMP", $AD6="LS"), "LUMP", OFFSET(#REF!, $AC6 - 1,0,1,1)),"")) ->  | R6: =IF( $AC6 = 0, "", IF( OFFSET(#REF!, $AC6 - 1,0,1,1)<>0, IF(OR($AD6="LUMP", $AD6="LS"), "LUMP", OFFSET(#REF!, $AC6 - 1,0,1,1)),"")) ->  | S6: =IF( $AC6 = 0, "", IF( OFFSET(#REF!, $AC6 - 1,0,1,1)<>0, IF(OR($AD6="LUMP", $AD6="LS"), "LUMP", OFFSET(#REF!, $AC6 - 1,0,1,1)),"")) ->  | T6: =IF( $AC6 = 0, "", IF( OFFSET(#REF!, $AC6 - 1,0,1,1)<>0, IF(OR($AD6="LUMP", $AD6="LS"), "LUMP", OFFSET(#REF!, $AC6 - 1,0,1,1)),"")) ->  | U6: =IF( $AC6 = 0, "", IF( OFFSET(#REF!, $AC6 - 1,0,1,1)<>0, LEFT(OFFSET(#REF!, $AC6 - 1,0,1,1),3),"")) ->  | V6: =IF( $AC6 = 0, "", IF( OFFSET(#REF!, $AC6 - 1,0,1,1)<>0, IF(LEN(OFFSET(#REF!, $AC6 - 1,0,1,1))=9, RIGHT(OFFSET(#REF!, $AC6 - 1,0,1,1),5), LEFT(RIGHT(OFFSET(#REF!, $AC6 - 1,0,1,1),6), 5) ),"")) ->  | W6: =IF(SUM(A6:T6)<>0,SUM(A6:T6),IF(OR(AD6="LUMP", AD6="LS"), "LUMP", "")) ->  | X6: =IF( $AC6 = 0, "", IF( OFFSET(#REF!, $AC6 - 1,0,1,1)<>0,IF(OR(AD6="LUMP", AD6="LS"), "", AD6),"")) ->  | Y6: =IF( $AC6 = 0, "", IF( OFFSET(#REF!, $AC6 - 1,0,1,1)<>0, VLOOKUP( OFFSET(#REF!, $AC6 - 1,0,1,1),[1]Items!$A$2:$E$10001,4,0),"")) ->  | AA6: 4 | AB6: 0 | AC6: 4 | AD6: =IF( $AC6 = 0, "", IF( OFFSET(#REF!, $AC6 - 1,0,1,1)<>0, VLOOKUP( OFFSET(#REF!, $AC6 - 1,0,1,1),[1]Items!$A$2:$E$10001,3,0),"")) -> 
A7: =IF( $AC7 = 0, "", IF( OFFSET(#REF!, $AC7 - 1,0,1,1)<>0, IF(OR($AD7="LUMP", $AD7="LS"), "LUMP", OFFSET(#REF!, $AC7 - 1,0,1,1)),"")) ->  | B7: =IF( $AC7 = 0, "", IF( OFFSET(#REF!, $AC7 - 1,0,1,1)<>0, IF(OR($AD7="LUMP", $AD7="LS"), "LUMP", OFFSET(#REF!, $AC7 - 1,0,1,1)),"")) ->  | C7: =IF( $AC7 = 0, "", IF( OFFSET(#REF!, $AC7 - 1,0,1,1)<>0, IF(OR($AD7="LUMP", $AD7="LS"), "LUMP", OFFSET(#REF!, $AC7 - 1,0,1,1)),"")) ->  | D7: =IF( $AC7 = 0, "", IF( OFFSET(#REF!, $AC7 - 1,0,1,1)<>0, IF(OR($AD7="LUMP", $AD7="LS"), "LUMP", OFFSET(#REF!, $AC7 - 1,0,1,1)),"")) ->  | E7: =IF( $AC7 = 0, "", IF( OFFSET(#REF!, $AC7 - 1,0,1,1)<>0, IF(OR($AD7="LUMP", $AD7="LS"), "LUMP", OFFSET(#REF!, $AC7 - 1,0,1,1)),"")) ->  | F7: =IF( $AC7 = 0, "", IF( OFFSET(#REF!, $AC7 - 1,0,1,1)<>0, IF(OR($AD7="LUMP", $AD7="LS"), "LUMP", OFFSET(#REF!, $AC7 - 1,0,1,1)),"")) ->  | G7: =IF( $AC7 = 0, "", IF( OFFSET(#REF!, $AC7 - 1,0,1,1)<>0, IF(OR($AD7="LUMP", $AD7="LS"), "LUMP", OFFSET(#REF!, $AC7 - 1,0,1,1)),"")) ->  | H7: =IF( $AC7 = 0, "", IF( OFFSET(#REF!, $AC7 - 1,0,1,1)<>0, IF(OR($AD7="LUMP", $AD7="LS"), "LUMP", OFFSET(#REF!, $AC7 - 1,0,1,1)),"")) ->  | I7: =IF( $AC7 = 0, "", IF( OFFSET(#REF!, $AC7 - 1,0,1,1)<>0, IF(OR($AD7="LUMP", $AD7="LS"), "LUMP", OFFSET(#REF!, $AC7 - 1,0,1,1)),"")) ->  | J7: =IF( $AC7 = 0, "", IF( OFFSET(#REF!, $AC7 - 1,0,1,1)<>0, IF(OR($AD7="LUMP", $AD7="LS"), "LUMP", OFFSET(#REF!, $AC7 - 1,0,1,1)),"")) ->  | K7: =IF( $AC7 = 0, "", IF( OFFSET(#REF!, $AC7 - 1,0,1,1)<>0, IF(OR($AD7="LUMP", $AD7="LS"), "LUMP", OFFSET(#REF!, $AC7 - 1,0,1,1)),"")) ->  | L7: =IF( $AC7 = 0, "", IF( OFFSET(#REF!, $AC7 - 1,0,1,1)<>0, IF(OR($AD7="LUMP", $AD7="LS"), "LUMP", OFFSET(#REF!, $AC7 - 1,0,1,1)),"")) ->  | M7: =IF( $AC7 = 0, "", IF( OFFSET(#REF!, $AC7 - 1,0,1,1)<>0, IF(OR($AD7="LUMP", $AD7="LS"), "LUMP", OFFSET(#REF!, $AC7 - 1,0,1,1)),"")) ->  | N7: =IF( $AC7 = 0, "", IF( OFFSET(#REF!, $AC7 - 1,0,1,1)<>0, IF(OR($AD7="LUMP", $AD7="LS"), "LUMP", OFFSET(#REF!, $AC7 - 1,0,1,1)),"")) ->  | O7: =IF( $AC7 = 0, "", IF( OFFSET(#REF!, $AC7 - 1,0,1,1)<>0, IF(OR($AD7="LUMP", $AD7="LS"), "LUMP", OFFSET(#REF!, $AC7 - 1,0,1,1)),"")) ->  | P7: =IF( $AC7 = 0, "", IF( OFFSET(#REF!, $AC7 - 1,0,1,1)<>0, IF(OR($AD7="LUMP", $AD7="LS"), "LUMP", OFFSET(#REF!, $AC7 - 1,0,1,1)),"")) ->  | Q7: =IF( $AC7 = 0, "", IF( OFFSET(#REF!, $AC7 - 1,0,1,1)<>0, IF(OR($AD7="LUMP", $AD7="LS"), "LUMP", OFFSET(#REF!, $AC7 - 1,0,1,1)),"")) ->  | R7: =IF( $AC7 = 0, "", IF( OFFSET(#REF!, $AC7 - 1,0,1,1)<>0, IF(OR($AD7="LUMP", $AD7="LS"), "LUMP", OFFSET(#REF!, $AC7 - 1,0,1,1)),"")) ->  | S7: =IF( $AC7 = 0, "", IF( OFFSET(#REF!, $AC7 - 1,0,1,1)<>0, IF(OR($AD7="LUMP", $AD7="LS"), "LUMP", OFFSET(#REF!, $AC7 - 1,0,1,1)),"")) ->  | T7: =IF( $AC7 = 0, "", IF( OFFSET(#REF!, $AC7 - 1,0,1,1)<>0, IF(OR($AD7="LUMP", $AD7="LS"), "LUMP", OFFSET(#REF!, $AC7 - 1,0,1,1)),"")) ->  | U7: =IF( $AC7 = 0, "", IF( OFFSET(#REF!, $AC7 - 1,0,1,1)<>0, LEFT(OFFSET(#REF!, $AC7 - 1,0,1,1),3),"")) ->  | V7: =IF( $AC7 = 0, "", IF( OFFSET(#REF!, $AC7 - 1,0,1,1)<>0, IF(LEN(OFFSET(#REF!, $AC7 - 1,0,1,1))=9, RIGHT(OFFSET(#REF!, $AC7 - 1,0,1,1),5), LEFT(RIGHT(OFFSET(#REF!, $AC7 - 1,0,1,1),6), 5) ),"")) ->  | X7: =IF( $AC7 = 0, "", IF( OFFSET(#REF!, $AC7 - 1,0,1,1)<>0,IF(OR(AD7="LUMP", AD7="LS"), "", AD7),"")) ->  | Y7: =IF( $AC7 = 0, "", IF( OFFSET(#REF!, $AC7 - 1,0,1,1)<>0, VLOOKUP( OFFSET(#REF!, $AC7 - 1,0,1,1),[1]Items!$A$2:$E$10001,4,0),"")) ->  | AA7: 5 | AB7: 0 | AC7: 5 | AD7: =IF( $AC7 = 0, "", IF( OFFSET(#REF!, $AC7 - 1,0,1,1)<>0, VLOOKUP( OFFSET(#REF!, $AC7 - 1,0,1,1),[1]Items!$A$2:$E$10001,3,0),"")) -> 
A8: =IF( $AC8 = 0, "", IF( OFFSET(#REF!, $AC8 - 1,0,1,1)<>0, IF(OR($AD8="LUMP", $AD8="LS"), "LUMP", OFFSET(#REF!, $AC8 - 1,0,1,1)),"")) ->  | B8: =IF( $AC8 = 0, "", IF( OFFSET(#REF!, $AC8 - 1,0,1,1)<>0, IF(OR($AD8="LUMP", $AD8="LS"), "LUMP", OFFSET(#REF!, $AC8 - 1,0,1,1)),"")) ->  | C8: =IF( $AC8 = 0, "", IF( OFFSET(#REF!, $AC8 - 1,0,1,1)<>0, IF(OR($AD8="LUMP", $AD8="LS"), "LUMP", OFFSET(#REF!, $AC8 - 1,0,1,1)),"")) ->  | D8: =IF( $AC8 = 0, "", IF( OFFSET(#REF!, $AC8 - 1,0,1,1)<>0, IF(OR($AD8="LUMP", $AD8="LS"), "LUMP", OFFSET(#REF!, $AC8 - 1,0,1,1)),"")) ->  | E8: =IF( $AC8 = 0, "", IF( OFFSET(#REF!, $AC8 - 1,0,1,1)<>0, IF(OR($AD8="LUMP", $AD8="LS"), "LUMP", OFFSET(#REF!, $AC8 - 1,0,1,1)),"")) ->  | F8: =IF( $AC8 = 0, "", IF( OFFSET(#REF!, $AC8 - 1,0,1,1)<>0, IF(OR($AD8="LUMP", $AD8="LS"), "LUMP", OFFSET(#REF!, $AC8 - 1,0,1,1)),"")) ->  | G8: =IF( $AC8 = 0, "", IF( OFFSET(#REF!, $AC8 - 1,0,1,1)<>0, IF(OR($AD8="LUMP", $AD8="LS"), "LUMP", OFFSET(#REF!, $AC8 - 1,0,1,1)),"")) ->  | H8: =IF( $AC8 = 0, "", IF( OFFSET(#REF!, $AC8 - 1,0,1,1)<>0, IF(OR($AD8="LUMP", $AD8="LS"), "LUMP", OFFSET(#REF!, $AC8 - 1,0,1,1)),"")) ->  | I8: =IF( $AC8 = 0, "", IF( OFFSET(#REF!, $AC8 - 1,0,1,1)<>0, IF(OR($AD8="LUMP", $AD8="LS"), "LUMP", OFFSET(#REF!, $AC8 - 1,0,1,1)),"")) ->  | J8: =IF( $AC8 = 0, "", IF( OFFSET(#REF!, $AC8 - 1,0,1,1)<>0, IF(OR($AD8="LUMP", $AD8="LS"), "LUMP", OFFSET(#REF!, $AC8 - 1,0,1,1)),"")) ->  | K8: =IF( $AC8 = 0, "", IF( OFFSET(#REF!, $AC8 - 1,0,1,1)<>0, IF(OR($AD8="LUMP", $AD8="LS"), "LUMP", OFFSET(#REF!, $AC8 - 1,0,1,1)),"")) ->  | L8: =IF( $AC8 = 0, "", IF( OFFSET(#REF!, $AC8 - 1,0,1,1)<>0, IF(OR($AD8="LUMP", $AD8="LS"), "LUMP", OFFSET(#REF!, $AC8 - 1,0,1,1)),"")) ->  | M8: =IF( $AC8 = 0, "", IF( OFFSET(#REF!, $AC8 - 1,0,1,1)<>0, IF(OR($AD8="LUMP", $AD8="LS"), "LUMP", OFFSET(#REF!, $AC8 - 1,0,1,1)),"")) ->  | N8: =IF( $AC8 = 0, "", IF( OFFSET(#REF!, $AC8 - 1,0,1,1)<>0, IF(OR($AD8="LUMP", $AD8="LS"), "LUMP", OFFSET(#REF!, $AC8 - 1,0,1,1)),"")) ->  | O8: =IF( $AC8 = 0, "", IF( OFFSET(#REF!, $AC8 - 1,0,1,1)<>0, IF(OR($AD8="LUMP", $AD8="LS"), "LUMP", OFFSET(#REF!, $AC8 - 1,0,1,1)),"")) ->  | P8: =IF( $AC8 = 0, "", IF( OFFSET(#REF!, $AC8 - 1,0,1,1)<>0, IF(OR($AD8="LUMP", $AD8="LS"), "LUMP", OFFSET(#REF!, $AC8 - 1,0,1,1)),"")) ->  | Q8: =IF( $AC8 = 0, "", IF( OFFSET(#REF!, $AC8 - 1,0,1,1)<>0, IF(OR($AD8="LUMP", $AD8="LS"), "LUMP", OFFSET(#REF!, $AC8 - 1,0,1,1)),"")) ->  | R8: =IF( $AC8 = 0, "", IF( OFFSET(#REF!, $AC8 - 1,0,1,1)<>0, IF(OR($AD8="LUMP", $AD8="LS"), "LUMP", OFFSET(#REF!, $AC8 - 1,0,1,1)),"")) ->  | S8: =IF( $AC8 = 0, "", IF( OFFSET(#REF!, $AC8 - 1,0,1,1)<>0, IF(OR($AD8="LUMP", $AD8="LS"), "LUMP", OFFSET(#REF!, $AC8 - 1,0,1,1)),"")) ->  | T8: =IF( $AC8 = 0, "", IF( OFFSET(#REF!, $AC8 - 1,0,1,1)<>0, IF(OR($AD8="LUMP", $AD8="LS"), "LUMP", OFFSET(#REF!, $AC8 - 1,0,1,1)),"")) ->  | U8: =IF( $AC8 = 0, "", IF( OFFSET(#REF!, $AC8 - 1,0,1,1)<>0, LEFT(OFFSET(#REF!, $AC8 - 1,0,1,1),3),"")) ->  | V8: =IF( $AC8 = 0, "", IF( OFFSET(#REF!, $AC8 - 1,0,1,1)<>0, IF(LEN(OFFSET(#REF!, $AC8 - 1,0,1,1))=9, RIGHT(OFFSET(#REF!, $AC8 - 1,0,1,1),5), LEFT(RIGHT(OFFSET(#REF!, $AC8 - 1,0,1,1),6), 5) ),"")) ->  | X8: =IF( $AC8 = 0, "", IF( OFFSET(#REF!, $AC8 - 1,0,1,1)<>0,IF(OR(AD8="LUMP", AD8="LS"), "", AD8),"")) ->  | Y8: =IF( $AC8 = 0, "", IF( OFFSET(#REF!, $AC8 - 1,0,1,1)<>0, VLOOKUP( OFFSET(#REF!, $AC8 - 1,0,1,1),[1]Items!$A$2:$E$10001,4,0),"")) ->  | AA8: 6 | AB8: 1 | AC8: 0 | AD8: =IF( $AC8 = 0, "", IF( OFFSET(#REF!, $AC8 - 1,0,1,1)<>0, VLOOKUP( OFFSET(#REF!, $AC8 - 1,0,1,1),[1]Items!$A$2:$E$10001,3,0),"")) -> 
A9: =IF( $AC9 = 0, "", IF( OFFSET(#REF!, $AC9 - 1,0,1,1)<>0, IF(OR($AD9="LUMP", $AD9="LS"), "LUMP", OFFSET(#REF!, $AC9 - 1,0,1,1)),"")) ->  | B9: =IF( $AC9 = 0, "", IF( OFFSET(#REF!, $AC9 - 1,0,1,1)<>0, IF(OR($AD9="LUMP", $AD9="LS"), "LUMP", OFFSET(#REF!, $AC9 - 1,0,1,1)),"")) ->  | C9: =IF( $AC9 = 0, "", IF( OFFSET(#REF!, $AC9 - 1,0,1,1)<>0, IF(OR($AD9="LUMP", $AD9="LS"), "LUMP", OFFSET(#REF!, $AC9 - 1,0,1,1)),"")) ->  | D9: =IF( $AC9 = 0, "", IF( OFFSET(#REF!, $AC9 - 1,0,1,1)<>0, IF(OR($AD9="LUMP", $AD9="LS"), "LUMP", OFFSET(#REF!, $AC9 - 1,0,1,1)),"")) ->  | E9: =IF( $AC9 = 0, "", IF( OFFSET(#REF!, $AC9 - 1,0,1,1)<>0, IF(OR($AD9="LUMP", $AD9="LS"), "LUMP", OFFSET(#REF!, $AC9 - 1,0,1,1)),"")) ->  | F9: =IF( $AC9 = 0, "", IF( OFFSET(#REF!, $AC9 - 1,0,1,1)<>0, IF(OR($AD9="LUMP", $AD9="LS"), "LUMP", OFFSET(#REF!, $AC9 - 1,0,1,1)),"")) ->  | G9: =IF( $AC9 = 0, "", IF( OFFSET(#REF!, $AC9 - 1,0,1,1)<>0, IF(OR($AD9="LUMP", $AD9="LS"), "LUMP", OFFSET(#REF!, $AC9 - 1,0,1,1)),"")) ->  | H9: =IF( $AC9 = 0, "", IF( OFFSET(#REF!, $AC9 - 1,0,1,1)<>0, IF(OR($AD9="LUMP", $AD9="LS"), "LUMP", OFFSET(#REF!, $AC9 - 1,0,1,1)),"")) ->  | I9: =IF( $AC9 = 0, "", IF( OFFSET(#REF!, $AC9 - 1,0,1,1)<>0, IF(OR($AD9="LUMP", $AD9="LS"), "LUMP", OFFSET(#REF!, $AC9 - 1,0,1,1)),"")) ->  | J9: =IF( $AC9 = 0, "", IF( OFFSET(#REF!, $AC9 - 1,0,1,1)<>0, IF(OR($AD9="LUMP", $AD9="LS"), "LUMP", OFFSET(#REF!, $AC9 - 1,0,1,1)),"")) ->  | K9: =IF( $AC9 = 0, "", IF( OFFSET(#REF!, $AC9 - 1,0,1,1)<>0, IF(OR($AD9="LUMP", $AD9="LS"), "LUMP", OFFSET(#REF!, $AC9 - 1,0,1,1)),"")) ->  | L9: =IF( $AC9 = 0, "", IF( OFFSET(#REF!, $AC9 - 1,0,1,1)<>0, IF(OR($AD9="LUMP", $AD9="LS"), "LUMP", OFFSET(#REF!, $AC9 - 1,0,1,1)),"")) ->  | M9: =IF( $AC9 = 0, "", IF( OFFSET(#REF!, $AC9 - 1,0,1,1)<>0, IF(OR($AD9="LUMP", $AD9="LS"), "LUMP", OFFSET(#REF!, $AC9 - 1,0,1,1)),"")) ->  | N9: =IF( $AC9 = 0, "", IF( OFFSET(#REF!, $AC9 - 1,0,1,1)<>0, IF(OR($AD9="LUMP", $AD9="LS"), "LUMP", OFFSET(#REF!, $AC9 - 1,0,1,1)),"")) ->  | O9: =IF( $AC9 = 0, "", IF( OFFSET(#REF!, $AC9 - 1,0,1,1)<>0, IF(OR($AD9="LUMP", $AD9="LS"), "LUMP", OFFSET(#REF!, $AC9 - 1,0,1,1)),"")) ->  | P9: =IF( $AC9 = 0, "", IF( OFFSET(#REF!, $AC9 - 1,0,1,1)<>0, IF(OR($AD9="LUMP", $AD9="LS"), "LUMP", OFFSET(#REF!, $AC9 - 1,0,1,1)),"")) ->  | Q9: =IF( $AC9 = 0, "", IF( OFFSET(#REF!, $AC9 - 1,0,1,1)<>0, IF(OR($AD9="LUMP", $AD9="LS"), "LUMP", OFFSET(#REF!, $AC9 - 1,0,1,1)),"")) ->  | R9: =IF( $AC9 = 0, "", IF( OFFSET(#REF!, $AC9 - 1,0,1,1)<>0, IF(OR($AD9="LUMP", $AD9="LS"), "LUMP", OFFSET(#REF!, $AC9 - 1,0,1,1)),"")) ->  | S9: =IF( $AC9 = 0, "", IF( OFFSET(#REF!, $AC9 - 1,0,1,1)<>0, IF(OR($AD9="LUMP", $AD9="LS"), "LUMP", OFFSET(#REF!, $AC9 - 1,0,1,1)),"")) ->  | T9: =IF( $AC9 = 0, "", IF( OFFSET(#REF!, $AC9 - 1,0,1,1)<>0, IF(OR($AD9="LUMP", $AD9="LS"), "LUMP", OFFSET(#REF!, $AC9 - 1,0,1,1)),"")) ->  | U9: =IF( $AC9 = 0, "", IF( OFFSET(#REF!, $AC9 - 1,0,1,1)<>0, LEFT(OFFSET(#REF!, $AC9 - 1,0,1,1),3),"")) ->  | V9: =IF( $AC9 = 0, "", IF( OFFSET(#REF!, $AC9 - 1,0,1,1)<>0, IF(LEN(OFFSET(#REF!, $AC9 - 1,0,1,1))=9, RIGHT(OFFSET(#REF!, $AC9 - 1,0,1,1),5), LEFT(RIGHT(OFFSET(#REF!, $AC9 - 1,0,1,1),6), 5) ),"")) ->  | X9: =IF( $AC9 = 0, "", IF( OFFSET(#REF!, $AC9 - 1,0,1,1)<>0,IF(OR(AD9="LUMP", AD9="LS"), "", AD9),"")) ->  | Y9: =IF( $AC9 = 0, "", IF( OFFSET(#REF!, $AC9 - 1,0,1,1)<>0, VLOOKUP( OFFSET(#REF!, $AC9 - 1,0,1,1),[1]Items!$A$2:$E$10001,4,0),"")) ->  | AA9: 7 | AB9: 1 | AC9: 6 | AD9: =IF( $AC9 = 0, "", IF( OFFSET(#REF!, $AC9 - 1,0,1,1)<>0, VLOOKUP( OFFSET(#REF!, $AC9 - 1,0,1,1),[1]Items!$A$2:$E$10001,3,0),"")) -> 
A10: =IF( $AC10 = 0, "", IF( OFFSET(#REF!, $AC10 - 1,0,1,1)<>0, IF(OR($AD10="LUMP", $AD10="LS"), "LUMP", OFFSET(#REF!, $AC10 - 1,0,1,1)),"")) ->  | B10: =IF( $AC10 = 0, "", IF( OFFSET(#REF!, $AC10 - 1,0,1,1)<>0, IF(OR($AD10="LUMP", $AD10="LS"), "LUMP", OFFSET(#REF!, $AC10 - 1,0,1,1)),"")) ->  | C10: =IF( $AC10 = 0, "", IF( OFFSET(#REF!, $AC10 - 1,0,1,1)<>0, IF(OR($AD10="LUMP", $AD10="LS"), "LUMP", OFFSET(#REF!, $AC10 - 1,0,1,1)),"")) ->  | D10: =IF( $AC10 = 0, "", IF( OFFSET(#REF!, $AC10 - 1,0,1,1)<>0, IF(OR($AD10="LUMP", $AD10="LS"), "LUMP", OFFSET(#REF!, $AC10 - 1,0,1,1)),"")) ->  | E10: =IF( $AC10 = 0, "", IF( OFFSET(#REF!, $AC10 - 1,0,1,1)<>0, IF(OR($AD10="LUMP", $AD10="LS"), "LUMP", OFFSET(#REF!, $AC10 - 1,0,1,1)),"")) ->  | F10: =IF( $AC10 = 0, "", IF( OFFSET(#REF!, $AC10 - 1,0,1,1)<>0, IF(OR($AD10="LUMP", $AD10="LS"), "LUMP", OFFSET(#REF!, $AC10 - 1,0,1,1)),"")) ->  | G10: =IF( $AC10 = 0, "", IF( OFFSET(#REF!, $AC10 - 1,0,1,1)<>0, IF(OR($AD10="LUMP", $AD10="LS"), "LUMP", OFFSET(#REF!, $AC10 - 1,0,1,1)),"")) ->  | H10: =IF( $AC10 = 0, "", IF( OFFSET(#REF!, $AC10 - 1,0,1,1)<>0, IF(OR($AD10="LUMP", $AD10="LS"), "LUMP", OFFSET(#REF!, $AC10 - 1,0,1,1)),"")) ->  | I10: =IF( $AC10 = 0, "", IF( OFFSET(#REF!, $AC10 - 1,0,1,1)<>0, IF(OR($AD10="LUMP", $AD10="LS"), "LUMP", OFFSET(#REF!, $AC10 - 1,0,1,1)),"")) ->  | J10: =IF( $AC10 = 0, "", IF( OFFSET(#REF!, $AC10 - 1,0,1,1)<>0, IF(OR($AD10="LUMP", $AD10="LS"), "LUMP", OFFSET(#REF!, $AC10 - 1,0,1,1)),"")) ->  | K10: =IF( $AC10 = 0, "", IF( OFFSET(#REF!, $AC10 - 1,0,1,1)<>0, IF(OR($AD10="LUMP", $AD10="LS"), "LUMP", OFFSET(#REF!, $AC10 - 1,0,1,1)),"")) ->  | L10: =IF( $AC10 = 0, "", IF( OFFSET(#REF!, $AC10 - 1,0,1,1)<>0, IF(OR($AD10="LUMP", $AD10="LS"), "LUMP", OFFSET(#REF!, $AC10 - 1,0,1,1)),"")) ->  | M10: =IF( $AC10 = 0, "", IF( OFFSET(#REF!, $AC10 - 1,0,1,1)<>0, IF(OR($AD10="LUMP", $AD10="LS"), "LUMP", OFFSET(#REF!, $AC10 - 1,0,1,1)),"")) ->  | N10: =IF( $AC10 = 0, "", IF( OFFSET(#REF!, $AC10 - 1,0,1,1)<>0, IF(OR($AD10="LUMP", $AD10="LS"), "LUMP", OFFSET(#REF!, $AC10 - 1,0,1,1)),"")) ->  | O10: =IF( $AC10 = 0, "", IF( OFFSET(#REF!, $AC10 - 1,0,1,1)<>0, IF(OR($AD10="LUMP", $AD10="LS"), "LUMP", OFFSET(#REF!, $AC10 - 1,0,1,1)),"")) ->  | P10: =IF( $AC10 = 0, "", IF( OFFSET(#REF!, $AC10 - 1,0,1,1)<>0, IF(OR($AD10="LUMP", $AD10="LS"), "LUMP", OFFSET(#REF!, $AC10 - 1,0,1,1)),"")) ->  | Q10: =IF( $AC10 = 0, "", IF( OFFSET(#REF!, $AC10 - 1,0,1,1)<>0, IF(OR($AD10="LUMP", $AD10="LS"), "LUMP", OFFSET(#REF!, $AC10 - 1,0,1,1)),"")) ->  | R10: =IF( $AC10 = 0, "", IF( OFFSET(#REF!, $AC10 - 1,0,1,1)<>0, IF(OR($AD10="LUMP", $AD10="LS"), "LUMP", OFFSET(#REF!, $AC10 - 1,0,1,1)),"")) ->  | S10: =IF( $AC10 = 0, "", IF( OFFSET(#REF!, $AC10 - 1,0,1,1)<>0, IF(OR($AD10="LUMP", $AD10="LS"), "LUMP", OFFSET(#REF!, $AC10 - 1,0,1,1)),"")) ->  | T10: =IF( $AC10 = 0, "", IF( OFFSET(#REF!, $AC10 - 1,0,1,1)<>0, IF(OR($AD10="LUMP", $AD10="LS"), "LUMP", OFFSET(#REF!, $AC10 - 1,0,1,1)),"")) ->  | U10: =IF( $AC10 = 0, "", IF( OFFSET(#REF!, $AC10 - 1,0,1,1)<>0, LEFT(OFFSET(#REF!, $AC10 - 1,0,1,1),3),"")) ->  | V10: =IF( $AC10 = 0, "", IF( OFFSET(#REF!, $AC10 - 1,0,1,1)<>0, IF(LEN(OFFSET(#REF!, $AC10 - 1,0,1,1))=9, RIGHT(OFFSET(#REF!, $AC10 - 1,0,1,1),5), LEFT(RIGHT(OFFSET(#REF!, $AC10 - 1,0,1,1),6), 5) ),"")) ->  | X10: =IF( $AC10 = 0, "", IF( OFFSET(#REF!, $AC10 - 1,0,1,1)<>0,IF(OR(AD10="LUMP", AD10="LS"), "", AD10),"")) ->  | Y10: =IF( $AC10 = 0, "", IF( OFFSET(#REF!, $AC10 - 1,0,1,1)<>0, VLOOKUP( OFFSET(#REF!, $AC10 - 1,0,1,1),[1]Items!$A$2:$E$10001,4,0),"")) ->  | AA10: 8 | AB10: 1 | AC10: 7 | AD10: =IF( $AC10 = 0, "", IF( OFFSET(#REF!, $AC10 - 1,0,1,1)<>0, VLOOKUP( OFFSET(#REF!, $AC10 - 1,0,1,1),[1]Items!$A$2:$E$10001,3,0),"")) -> 
A11: =IF( $AC11 = 0, "", IF( OFFSET(#REF!, $AC11 - 1,0,1,1)<>0, IF(OR($AD11="LUMP", $AD11="LS"), "LUMP", OFFSET(#REF!, $AC11 - 1,0,1,1)),"")) ->  | B11: =IF( $AC11 = 0, "", IF( OFFSET(#REF!, $AC11 - 1,0,1,1)<>0, IF(OR($AD11="LUMP", $AD11="LS"), "LUMP", OFFSET(#REF!, $AC11 - 1,0,1,1)),"")) ->  | C11: =IF( $AC11 = 0, "", IF( OFFSET(#REF!, $AC11 - 1,0,1,1)<>0, IF(OR($AD11="LUMP", $AD11="LS"), "LUMP", OFFSET(#REF!, $AC11 - 1,0,1,1)),"")) ->  | D11: =IF( $AC11 = 0, "", IF( OFFSET(#REF!, $AC11 - 1,0,1,1)<>0, IF(OR($AD11="LUMP", $AD11="LS"), "LUMP", OFFSET(#REF!, $AC11 - 1,0,1,1)),"")) ->  | E11: =IF( $AC11 = 0, "", IF( OFFSET(#REF!, $AC11 - 1,0,1,1)<>0, IF(OR($AD11="LUMP", $AD11="LS"), "LUMP", OFFSET(#REF!, $AC11 - 1,0,1,1)),"")) ->  | F11: =IF( $AC11 = 0, "", IF( OFFSET(#REF!, $AC11 - 1,0,1,1)<>0, IF(OR($AD11="LUMP", $AD11="LS"), "LUMP", OFFSET(#REF!, $AC11 - 1,0,1,1)),"")) ->  | G11: =IF( $AC11 = 0, "", IF( OFFSET(#REF!, $AC11 - 1,0,1,1)<>0, IF(OR($AD11="LUMP", $AD11="LS"), "LUMP", OFFSET(#REF!, $AC11 - 1,0,1,1)),"")) ->  | H11: =IF( $AC11 = 0, "", IF( OFFSET(#REF!, $AC11 - 1,0,1,1)<>0, IF(OR($AD11="LUMP", $AD11="LS"), "LUMP", OFFSET(#REF!, $AC11 - 1,0,1,1)),"")) ->  | I11: =IF( $AC11 = 0, "", IF( OFFSET(#REF!, $AC11 - 1,0,1,1)<>0, IF(OR($AD11="LUMP", $AD11="LS"), "LUMP", OFFSET(#REF!, $AC11 - 1,0,1,1)),"")) ->  | J11: =IF( $AC11 = 0, "", IF( OFFSET(#REF!, $AC11 - 1,0,1,1)<>0, IF(OR($AD11="LUMP", $AD11="LS"), "LUMP", OFFSET(#REF!, $AC11 - 1,0,1,1)),"")) ->  | K11: =IF( $AC11 = 0, "", IF( OFFSET(#REF!, $AC11 - 1,0,1,1)<>0, IF(OR($AD11="LUMP", $AD11="LS"), "LUMP", OFFSET(#REF!, $AC11 - 1,0,1,1)),"")) ->  | L11: =IF( $AC11 = 0, "", IF( OFFSET(#REF!, $AC11 - 1,0,1,1)<>0, IF(OR($AD11="LUMP", $AD11="LS"), "LUMP", OFFSET(#REF!, $AC11 - 1,0,1,1)),"")) ->  | M11: =IF( $AC11 = 0, "", IF( OFFSET(#REF!, $AC11 - 1,0,1,1)<>0, IF(OR($AD11="LUMP", $AD11="LS"), "LUMP", OFFSET(#REF!, $AC11 - 1,0,1,1)),"")) ->  | N11: =IF( $AC11 = 0, "", IF( OFFSET(#REF!, $AC11 - 1,0,1,1)<>0, IF(OR($AD11="LUMP", $AD11="LS"), "LUMP", OFFSET(#REF!, $AC11 - 1,0,1,1)),"")) ->  | O11: =IF( $AC11 = 0, "", IF( OFFSET(#REF!, $AC11 - 1,0,1,1)<>0, IF(OR($AD11="LUMP", $AD11="LS"), "LUMP", OFFSET(#REF!, $AC11 - 1,0,1,1)),"")) ->  | P11: =IF( $AC11 = 0, "", IF( OFFSET(#REF!, $AC11 - 1,0,1,1)<>0, IF(OR($AD11="LUMP", $AD11="LS"), "LUMP", OFFSET(#REF!, $AC11 - 1,0,1,1)),"")) ->  | Q11: =IF( $AC11 = 0, "", IF( OFFSET(#REF!, $AC11 - 1,0,1,1)<>0, IF(OR($AD11="LUMP", $AD11="LS"), "LUMP", OFFSET(#REF!, $AC11 - 1,0,1,1)),"")) ->  | R11: =IF( $AC11 = 0, "", IF( OFFSET(#REF!, $AC11 - 1,0,1,1)<>0, IF(OR($AD11="LUMP", $AD11="LS"), "LUMP", OFFSET(#REF!, $AC11 - 1,0,1,1)),"")) ->  | S11: =IF( $AC11 = 0, "", IF( OFFSET(#REF!, $AC11 - 1,0,1,1)<>0, IF(OR($AD11="LUMP", $AD11="LS"), "LUMP", OFFSET(#REF!, $AC11 - 1,0,1,1)),"")) ->  | T11: =IF( $AC11 = 0, "", IF( OFFSET(#REF!, $AC11 - 1,0,1,1)<>0, IF(OR($AD11="LUMP", $AD11="LS"), "LUMP", OFFSET(#REF!, $AC11 - 1,0,1,1)),"")) ->  | U11: =IF( $AC11 = 0, "", IF( OFFSET(#REF!, $AC11 - 1,0,1,1)<>0, LEFT(OFFSET(#REF!, $AC11 - 1,0,1,1),3),"")) ->  | V11: =IF( $AC11 = 0, "", IF( OFFSET(#REF!, $AC11 - 1,0,1,1)<>0, IF(LEN(OFFSET(#REF!, $AC11 - 1,0,1,1))=9, RIGHT(OFFSET(#REF!, $AC11 - 1,0,1,1),5), LEFT(RIGHT(OFFSET(#REF!, $AC11 - 1,0,1,1),6), 5) ),"")) ->  | X11: =IF( $AC11 = 0, "", IF( OFFSET(#REF!, $AC11 - 1,0,1,1)<>0,IF(OR(AD11="LUMP", AD11="LS"), "", AD11),"")) ->  | Y11: =IF( $AC11 = 0, "", IF( OFFSET(#REF!, $AC11 - 1,0,1,1)<>0, VLOOKUP( OFFSET(#REF!, $AC11 - 1,0,1,1),[1]Items!$A$2:$E$10001,4,0),"")) ->  | AA11: 9 | AB11: 1 | AC11: 8 | AD11: =IF( $AC11 = 0, "", IF( OFFSET(#REF!, $AC11 - 1,0,1,1)<>0, VLOOKUP( OFFSET(#REF!, $AC11 - 1,0,1,1),[1]Items!$A$2:$E$10001,3,0),"")) -> 
A12: =IF( $AC12 = 0, "", IF( OFFSET(#REF!, $AC12 - 1,0,1,1)<>0, IF(OR($AD12="LUMP", $AD12="LS"), "LUMP", OFFSET(#REF!, $AC12 - 1,0,1,1)),"")) ->  | B12: =IF( $AC12 = 0, "", IF( OFFSET(#REF!, $AC12 - 1,0,1,1)<>0, IF(OR($AD12="LUMP", $AD12="LS"), "LUMP", OFFSET(#REF!, $AC12 - 1,0,1,1)),"")) ->  | C12: =IF( $AC12 = 0, "", IF( OFFSET(#REF!, $AC12 - 1,0,1,1)<>0, IF(OR($AD12="LUMP", $AD12="LS"), "LUMP", OFFSET(#REF!, $AC12 - 1,0,1,1)),"")) ->  | D12: =IF( $AC12 = 0, "", IF( OFFSET(#REF!, $AC12 - 1,0,1,1)<>0, IF(OR($AD12="LUMP", $AD12="LS"), "LUMP", OFFSET(#REF!, $AC12 - 1,0,1,1)),"")) ->  | E12: =IF( $AC12 = 0, "", IF( OFFSET(#REF!, $AC12 - 1,0,1,1)<>0, IF(OR($AD12="LUMP", $AD12="LS"), "LUMP", OFFSET(#REF!, $AC12 - 1,0,1,1)),"")) ->  | F12: =IF( $AC12 = 0, "", IF( OFFSET(#REF!, $AC12 - 1,0,1,1)<>0, IF(OR($AD12="LUMP", $AD12="LS"), "LUMP", OFFSET(#REF!, $AC12 - 1,0,1,1)),"")) ->  | G12: =IF( $AC12 = 0, "", IF( OFFSET(#REF!, $AC12 - 1,0,1,1)<>0, IF(OR($AD12="LUMP", $AD12="LS"), "LUMP", OFFSET(#REF!, $AC12 - 1,0,1,1)),"")) ->  | H12: =IF( $AC12 = 0, "", IF( OFFSET(#REF!, $AC12 - 1,0,1,1)<>0, IF(OR($AD12="LUMP", $AD12="LS"), "LUMP", OFFSET(#REF!, $AC12 - 1,0,1,1)),"")) ->  | I12: =IF( $AC12 = 0, "", IF( OFFSET(#REF!, $AC12 - 1,0,1,1)<>0, IF(OR($AD12="LUMP", $AD12="LS"), "LUMP", OFFSET(#REF!, $AC12 - 1,0,1,1)),"")) ->  | J12: =IF( $AC12 = 0, "", IF( OFFSET(#REF!, $AC12 - 1,0,1,1)<>0, IF(OR($AD12="LUMP", $AD12="LS"), "LUMP", OFFSET(#REF!, $AC12 - 1,0,1,1)),"")) ->  | K12: =IF( $AC12 = 0, "", IF( OFFSET(#REF!, $AC12 - 1,0,1,1)<>0, IF(OR($AD12="LUMP", $AD12="LS"), "LUMP", OFFSET(#REF!, $AC12 - 1,0,1,1)),"")) ->  | L12: =IF( $AC12 = 0, "", IF( OFFSET(#REF!, $AC12 - 1,0,1,1)<>0, IF(OR($AD12="LUMP", $AD12="LS"), "LUMP", OFFSET(#REF!, $AC12 - 1,0,1,1)),"")) ->  | M12: =IF( $AC12 = 0, "", IF( OFFSET(#REF!, $AC12 - 1,0,1,1)<>0, IF(OR($AD12="LUMP", $AD12="LS"), "LUMP", OFFSET(#REF!, $AC12 - 1,0,1,1)),"")) ->  | N12: =IF( $AC12 = 0, "", IF( OFFSET(#REF!, $AC12 - 1,0,1,1)<>0, IF(OR($AD12="LUMP", $AD12="LS"), "LUMP", OFFSET(#REF!, $AC12 - 1,0,1,1)),"")) ->  | O12: =IF( $AC12 = 0, "", IF( OFFSET(#REF!, $AC12 - 1,0,1,1)<>0, IF(OR($AD12="LUMP", $AD12="LS"), "LUMP", OFFSET(#REF!, $AC12 - 1,0,1,1)),"")) ->  | P12: =IF( $AC12 = 0, "", IF( OFFSET(#REF!, $AC12 - 1,0,1,1)<>0, IF(OR($AD12="LUMP", $AD12="LS"), "LUMP", OFFSET(#REF!, $AC12 - 1,0,1,1)),"")) ->  | Q12: =IF( $AC12 = 0, "", IF( OFFSET(#REF!, $AC12 - 1,0,1,1)<>0, IF(OR($AD12="LUMP", $AD12="LS"), "LUMP", OFFSET(#REF!, $AC12 - 1,0,1,1)),"")) ->  | R12: =IF( $AC12 = 0, "", IF( OFFSET(#REF!, $AC12 - 1,0,1,1)<>0, IF(OR($AD12="LUMP", $AD12="LS"), "LUMP", OFFSET(#REF!, $AC12 - 1,0,1,1)),"")) ->  | S12: =IF( $AC12 = 0, "", IF( OFFSET(#REF!, $AC12 - 1,0,1,1)<>0, IF(OR($AD12="LUMP", $AD12="LS"), "LUMP", OFFSET(#REF!, $AC12 - 1,0,1,1)),"")) ->  | T12: =IF( $AC12 = 0, "", IF( OFFSET(#REF!, $AC12 - 1,0,1,1)<>0, IF(OR($AD12="LUMP", $AD12="LS"), "LUMP", OFFSET(#REF!, $AC12 - 1,0,1,1)),"")) ->  | U12: =IF( $AC12 = 0, "", IF( OFFSET(#REF!, $AC12 - 1,0,1,1)<>0, LEFT(OFFSET(#REF!, $AC12 - 1,0,1,1),3),"")) ->  | V12: =IF( $AC12 = 0, "", IF( OFFSET(#REF!, $AC12 - 1,0,1,1)<>0, IF(LEN(OFFSET(#REF!, $AC12 - 1,0,1,1))=9, RIGHT(OFFSET(#REF!, $AC12 - 1,0,1,1),5), LEFT(RIGHT(OFFSET(#REF!, $AC12 - 1,0,1,1),6), 5) ),"")) ->  | X12: =IF( $AC12 = 0, "", IF( OFFSET(#REF!, $AC12 - 1,0,1,1)<>0,IF(OR(AD12="LUMP", AD12="LS"), "", AD12),"")) ->  | Y12: =IF( $AC12 = 0, "", IF( OFFSET(#REF!, $AC12 - 1,0,1,1)<>0, VLOOKUP( OFFSET(#REF!, $AC12 - 1,0,1,1),[1]Items!$A$2:$E$10001,4,0),"")) ->  | AA12: 10 | AB12: 1 | AC12: 9 | AD12: =IF( $AC12 = 0, "", IF( OFFSET(#REF!, $AC12 - 1,0,1,1)<>0, VLOOKUP( OFFSET(#REF!, $AC12 - 1,0,1,1),[1]Items!$A$2:$E$10001,3,0),"")) -> 
A13: =IF( $AC13 = 0, "", IF( OFFSET(#REF!, $AC13 - 1,0,1,1)<>0, IF(OR($AD13="LUMP", $AD13="LS"), "LUMP", OFFSET(#REF!, $AC13 - 1,0,1,1)),"")) ->  | B13: =IF( $AC13 = 0, "", IF( OFFSET(#REF!, $AC13 - 1,0,1,1)<>0, IF(OR($AD13="LUMP", $AD13="LS"), "LUMP", OFFSET(#REF!, $AC13 - 1,0,1,1)),"")) ->  | C13: =IF( $AC13 = 0, "", IF( OFFSET(#REF!, $AC13 - 1,0,1,1)<>0, IF(OR($AD13="LUMP", $AD13="LS"), "LUMP", OFFSET(#REF!, $AC13 - 1,0,1,1)),"")) ->  | D13: =IF( $AC13 = 0, "", IF( OFFSET(#REF!, $AC13 - 1,0,1,1)<>0, IF(OR($AD13="LUMP", $AD13="LS"), "LUMP", OFFSET(#REF!, $AC13 - 1,0,1,1)),"")) ->  | E13: =IF( $AC13 = 0, "", IF( OFFSET(#REF!, $AC13 - 1,0,1,1)<>0, IF(OR($AD13="LUMP", $AD13="LS"), "LUMP", OFFSET(#REF!, $AC13 - 1,0,1,1)),"")) ->  | F13: =IF( $AC13 = 0, "", IF( OFFSET(#REF!, $AC13 - 1,0,1,1)<>0, IF(OR($AD13="LUMP", $AD13="LS"), "LUMP", OFFSET(#REF!, $AC13 - 1,0,1,1)),"")) ->  | G13: =IF( $AC13 = 0, "", IF( OFFSET(#REF!, $AC13 - 1,0,1,1)<>0, IF(OR($AD13="LUMP", $AD13="LS"), "LUMP", OFFSET(#REF!, $AC13 - 1,0,1,1)),"")) ->  | H13: =IF( $AC13 = 0, "", IF( OFFSET(#REF!, $AC13 - 1,0,1,1)<>0, IF(OR($AD13="LUMP", $AD13="LS"), "LUMP", OFFSET(#REF!, $AC13 - 1,0,1,1)),"")) ->  | I13: =IF( $AC13 = 0, "", IF( OFFSET(#REF!, $AC13 - 1,0,1,1)<>0, IF(OR($AD13="LUMP", $AD13="LS"), "LUMP", OFFSET(#REF!, $AC13 - 1,0,1,1)),"")) ->  | J13: =IF( $AC13 = 0, "", IF( OFFSET(#REF!, $AC13 - 1,0,1,1)<>0, IF(OR($AD13="LUMP", $AD13="LS"), "LUMP", OFFSET(#REF!, $AC13 - 1,0,1,1)),"")) ->  | K13: =IF( $AC13 = 0, "", IF( OFFSET(#REF!, $AC13 - 1,0,1,1)<>0, IF(OR($AD13="LUMP", $AD13="LS"), "LUMP", OFFSET(#REF!, $AC13 - 1,0,1,1)),"")) ->  | L13: =IF( $AC13 = 0, "", IF( OFFSET(#REF!, $AC13 - 1,0,1,1)<>0, IF(OR($AD13="LUMP", $AD13="LS"), "LUMP", OFFSET(#REF!, $AC13 - 1,0,1,1)),"")) ->  | M13: =IF( $AC13 = 0, "", IF( OFFSET(#REF!, $AC13 - 1,0,1,1)<>0, IF(OR($AD13="LUMP", $AD13="LS"), "LUMP", OFFSET(#REF!, $AC13 - 1,0,1,1)),"")) ->  | N13: =IF( $AC13 = 0, "", IF( OFFSET(#REF!, $AC13 - 1,0,1,1)<>0, IF(OR($AD13="LUMP", $AD13="LS"), "LUMP", OFFSET(#REF!, $AC13 - 1,0,1,1)),"")) ->  | O13: =IF( $AC13 = 0, "", IF( OFFSET(#REF!, $AC13 - 1,0,1,1)<>0, IF(OR($AD13="LUMP", $AD13="LS"), "LUMP", OFFSET(#REF!, $AC13 - 1,0,1,1)),"")) ->  | P13: =IF( $AC13 = 0, "", IF( OFFSET(#REF!, $AC13 - 1,0,1,1)<>0, IF(OR($AD13="LUMP", $AD13="LS"), "LUMP", OFFSET(#REF!, $AC13 - 1,0,1,1)),"")) ->  | Q13: =IF( $AC13 = 0, "", IF( OFFSET(#REF!, $AC13 - 1,0,1,1)<>0, IF(OR($AD13="LUMP", $AD13="LS"), "LUMP", OFFSET(#REF!, $AC13 - 1,0,1,1)),"")) ->  | R13: =IF( $AC13 = 0, "", IF( OFFSET(#REF!, $AC13 - 1,0,1,1)<>0, IF(OR($AD13="LUMP", $AD13="LS"), "LUMP", OFFSET(#REF!, $AC13 - 1,0,1,1)),"")) ->  | S13: =IF( $AC13 = 0, "", IF( OFFSET(#REF!, $AC13 - 1,0,1,1)<>0, IF(OR($AD13="LUMP", $AD13="LS"), "LUMP", OFFSET(#REF!, $AC13 - 1,0,1,1)),"")) ->  | T13: =IF( $AC13 = 0, "", IF( OFFSET(#REF!, $AC13 - 1,0,1,1)<>0, IF(OR($AD13="LUMP", $AD13="LS"), "LUMP", OFFSET(#REF!, $AC13 - 1,0,1,1)),"")) ->  | U13: =IF( $AC13 = 0, "", IF( OFFSET(#REF!, $AC13 - 1,0,1,1)<>0, LEFT(OFFSET(#REF!, $AC13 - 1,0,1,1),3),"")) ->  | V13: =IF( $AC13 = 0, "", IF( OFFSET(#REF!, $AC13 - 1,0,1,1)<>0, IF(LEN(OFFSET(#REF!, $AC13 - 1,0,1,1))=9, RIGHT(OFFSET(#REF!, $AC13 - 1,0,1,1),5), LEFT(RIGHT(OFFSET(#REF!, $AC13 - 1,0,1,1),6), 5) ),"")) ->  | X13: =IF( $AC13 = 0, "", IF( OFFSET(#REF!, $AC13 - 1,0,1,1)<>0,IF(OR(AD13="LUMP", AD13="LS"), "", AD13),"")) ->  | Y13: =IF( $AC13 = 0, "", IF( OFFSET(#REF!, $AC13 - 1,0,1,1)<>0, VLOOKUP( OFFSET(#REF!, $AC13 - 1,0,1,1),[1]Items!$A$2:$E$10001,4,0),"")) ->  | AA13: 11 | AB13: 1 | AC13: 10 | AD13: =IF( $AC13 = 0, "", IF( OFFSET(#REF!, $AC13 - 1,0,1,1)<>0, VLOOKUP( OFFSET(#REF!, $AC13 - 1,0,1,1),[1]Items!$A$2:$E$10001,3,0),"")) -> 
A14: =IF( $AC14 = 0, "", IF( OFFSET(#REF!, $AC14 - 1,0,1,1)<>0, IF(OR($AD14="LUMP", $AD14="LS"), "LUMP", OFFSET(#REF!, $AC14 - 1,0,1,1)),"")) ->  | B14: =IF( $AC14 = 0, "", IF( OFFSET(#REF!, $AC14 - 1,0,1,1)<>0, IF(OR($AD14="LUMP", $AD14="LS"), "LUMP", OFFSET(#REF!, $AC14 - 1,0,1,1)),"")) ->  | C14: =IF( $AC14 = 0, "", IF( OFFSET(#REF!, $AC14 - 1,0,1,1)<>0, IF(OR($AD14="LUMP", $AD14="LS"), "LUMP", OFFSET(#REF!, $AC14 - 1,0,1,1)),"")) ->  | D14: =IF( $AC14 = 0, "", IF( OFFSET(#REF!, $AC14 - 1,0,1,1)<>0, IF(OR($AD14="LUMP", $AD14="LS"), "LUMP", OFFSET(#REF!, $AC14 - 1,0,1,1)),"")) ->  | E14: =IF( $AC14 = 0, "", IF( OFFSET(#REF!, $AC14 - 1,0,1,1)<>0, IF(OR($AD14="LUMP", $AD14="LS"), "LUMP", OFFSET(#REF!, $AC14 - 1,0,1,1)),"")) ->  | F14: =IF( $AC14 = 0, "", IF( OFFSET(#REF!, $AC14 - 1,0,1,1)<>0, IF(OR($AD14="LUMP", $AD14="LS"), "LUMP", OFFSET(#REF!, $AC14 - 1,0,1,1)),"")) ->  | G14: =IF( $AC14 = 0, "", IF( OFFSET(#REF!, $AC14 - 1,0,1,1)<>0, IF(OR($AD14="LUMP", $AD14="LS"), "LUMP", OFFSET(#REF!, $AC14 - 1,0,1,1)),"")) ->  | H14: =IF( $AC14 = 0, "", IF( OFFSET(#REF!, $AC14 - 1,0,1,1)<>0, IF(OR($AD14="LUMP", $AD14="LS"), "LUMP", OFFSET(#REF!, $AC14 - 1,0,1,1)),"")) ->  | I14: =IF( $AC14 = 0, "", IF( OFFSET(#REF!, $AC14 - 1,0,1,1)<>0, IF(OR($AD14="LUMP", $AD14="LS"), "LUMP", OFFSET(#REF!, $AC14 - 1,0,1,1)),"")) ->  | J14: =IF( $AC14 = 0, "", IF( OFFSET(#REF!, $AC14 - 1,0,1,1)<>0, IF(OR($AD14="LUMP", $AD14="LS"), "LUMP", OFFSET(#REF!, $AC14 - 1,0,1,1)),"")) ->  | K14: =IF( $AC14 = 0, "", IF( OFFSET(#REF!, $AC14 - 1,0,1,1)<>0, IF(OR($AD14="LUMP", $AD14="LS"), "LUMP", OFFSET(#REF!, $AC14 - 1,0,1,1)),"")) ->  | L14: =IF( $AC14 = 0, "", IF( OFFSET(#REF!, $AC14 - 1,0,1,1)<>0, IF(OR($AD14="LUMP", $AD14="LS"), "LUMP", OFFSET(#REF!, $AC14 - 1,0,1,1)),"")) ->  | M14: =IF( $AC14 = 0, "", IF( OFFSET(#REF!, $AC14 - 1,0,1,1)<>0, IF(OR($AD14="LUMP", $AD14="LS"), "LUMP", OFFSET(#REF!, $AC14 - 1,0,1,1)),"")) ->  | N14: =IF( $AC14 = 0, "", IF( OFFSET(#REF!, $AC14 - 1,0,1,1)<>0, IF(OR($AD14="LUMP", $AD14="LS"), "LUMP", OFFSET(#REF!, $AC14 - 1,0,1,1)),"")) ->  | O14: =IF( $AC14 = 0, "", IF( OFFSET(#REF!, $AC14 - 1,0,1,1)<>0, IF(OR($AD14="LUMP", $AD14="LS"), "LUMP", OFFSET(#REF!, $AC14 - 1,0,1,1)),"")) ->  | P14: =IF( $AC14 = 0, "", IF( OFFSET(#REF!, $AC14 - 1,0,1,1)<>0, IF(OR($AD14="LUMP", $AD14="LS"), "LUMP", OFFSET(#REF!, $AC14 - 1,0,1,1)),"")) ->  | Q14: =IF( $AC14 = 0, "", IF( OFFSET(#REF!, $AC14 - 1,0,1,1)<>0, IF(OR($AD14="LUMP", $AD14="LS"), "LUMP", OFFSET(#REF!, $AC14 - 1,0,1,1)),"")) ->  | R14: =IF( $AC14 = 0, "", IF( OFFSET(#REF!, $AC14 - 1,0,1,1)<>0, IF(OR($AD14="LUMP", $AD14="LS"), "LUMP", OFFSET(#REF!, $AC14 - 1,0,1,1)),"")) ->  | S14: =IF( $AC14 = 0, "", IF( OFFSET(#REF!, $AC14 - 1,0,1,1)<>0, IF(OR($AD14="LUMP", $AD14="LS"), "LUMP", OFFSET(#REF!, $AC14 - 1,0,1,1)),"")) ->  | T14: =IF( $AC14 = 0, "", IF( OFFSET(#REF!, $AC14 - 1,0,1,1)<>0, IF(OR($AD14="LUMP", $AD14="LS"), "LUMP", OFFSET(#REF!, $AC14 - 1,0,1,1)),"")) ->  | U14: =IF( $AC14 = 0, "", IF( OFFSET(#REF!, $AC14 - 1,0,1,1)<>0, LEFT(OFFSET(#REF!, $AC14 - 1,0,1,1),3),"")) ->  | V14: =IF( $AC14 = 0, "", IF( OFFSET(#REF!, $AC14 - 1,0,1,1)<>0, IF(LEN(OFFSET(#REF!, $AC14 - 1,0,1,1))=9, RIGHT(OFFSET(#REF!, $AC14 - 1,0,1,1),5), LEFT(RIGHT(OFFSET(#REF!, $AC14 - 1,0,1,1),6), 5) ),"")) ->  | X14: =IF( $AC14 = 0, "", IF( OFFSET(#REF!, $AC14 - 1,0,1,1)<>0,IF(OR(AD14="LUMP", AD14="LS"), "", AD14),"")) ->  | Y14: =IF( $AC14 = 0, "", IF( OFFSET(#REF!, $AC14 - 1,0,1,1)<>0, VLOOKUP( OFFSET(#REF!, $AC14 - 1,0,1,1),[1]Items!$A$2:$E$10001,4,0),"")) ->  | AA14: 12 | AB14: 2 | AC14: 0 | AD14: =IF( $AC14 = 0, "", IF( OFFSET(#REF!, $AC14 - 1,0,1,1)<>0, VLOOKUP( OFFSET(#REF!, $AC14 - 1,0,1,1),[1]Items!$A$2:$E$10001,3,0),"")) -> 
A15: =IF( $AC15 = 0, "", IF( OFFSET(#REF!, $AC15 - 1,0,1,1)<>0, IF(OR($AD15="LUMP", $AD15="LS"), "LUMP", OFFSET(#REF!, $AC15 - 1,0,1,1)),"")) ->  | B15: =IF( $AC15 = 0, "", IF( OFFSET(#REF!, $AC15 - 1,0,1,1)<>0, IF(OR($AD15="LUMP", $AD15="LS"), "LUMP", OFFSET(#REF!, $AC15 - 1,0,1,1)),"")) ->  | C15: =IF( $AC15 = 0, "", IF( OFFSET(#REF!, $AC15 - 1,0,1,1)<>0, IF(OR($AD15="LUMP", $AD15="LS"), "LUMP", OFFSET(#REF!, $AC15 - 1,0,1,1)),"")) ->  | D15: =IF( $AC15 = 0, "", IF( OFFSET(#REF!, $AC15 - 1,0,1,1)<>0, IF(OR($AD15="LUMP", $AD15="LS"), "LUMP", OFFSET(#REF!, $AC15 - 1,0,1,1)),"")) ->  | E15: =IF( $AC15 = 0, "", IF( OFFSET(#REF!, $AC15 - 1,0,1,1)<>0, IF(OR($AD15="LUMP", $AD15="LS"), "LUMP", OFFSET(#REF!, $AC15 - 1,0,1,1)),"")) ->  | F15: =IF( $AC15 = 0, "", IF( OFFSET(#REF!, $AC15 - 1,0,1,1)<>0, IF(OR($AD15="LUMP", $AD15="LS"), "LUMP", OFFSET(#REF!, $AC15 - 1,0,1,1)),"")) ->  | G15: =IF( $AC15 = 0, "", IF( OFFSET(#REF!, $AC15 - 1,0,1,1)<>0, IF(OR($AD15="LUMP", $AD15="LS"), "LUMP", OFFSET(#REF!, $AC15 - 1,0,1,1)),"")) ->  | H15: =IF( $AC15 = 0, "", IF( OFFSET(#REF!, $AC15 - 1,0,1,1)<>0, IF(OR($AD15="LUMP", $AD15="LS"), "LUMP", OFFSET(#REF!, $AC15 - 1,0,1,1)),"")) ->  | I15: =IF( $AC15 = 0, "", IF( OFFSET(#REF!, $AC15 - 1,0,1,1)<>0, IF(OR($AD15="LUMP", $AD15="LS"), "LUMP", OFFSET(#REF!, $AC15 - 1,0,1,1)),"")) ->  | J15: =IF( $AC15 = 0, "", IF( OFFSET(#REF!, $AC15 - 1,0,1,1)<>0, IF(OR($AD15="LUMP", $AD15="LS"), "LUMP", OFFSET(#REF!, $AC15 - 1,0,1,1)),"")) ->  | K15: =IF( $AC15 = 0, "", IF( OFFSET(#REF!, $AC15 - 1,0,1,1)<>0, IF(OR($AD15="LUMP", $AD15="LS"), "LUMP", OFFSET(#REF!, $AC15 - 1,0,1,1)),"")) ->  | L15: =IF( $AC15 = 0, "", IF( OFFSET(#REF!, $AC15 - 1,0,1,1)<>0, IF(OR($AD15="LUMP", $AD15="LS"), "LUMP", OFFSET(#REF!, $AC15 - 1,0,1,1)),"")) ->  | M15: =IF( $AC15 = 0, "", IF( OFFSET(#REF!, $AC15 - 1,0,1,1)<>0, IF(OR($AD15="LUMP", $AD15="LS"), "LUMP", OFFSET(#REF!, $AC15 - 1,0,1,1)),"")) ->  | N15: =IF( $AC15 = 0, "", IF( OFFSET(#REF!, $AC15 - 1,0,1,1)<>0, IF(OR($AD15="LUMP", $AD15="LS"), "LUMP", OFFSET(#REF!, $AC15 - 1,0,1,1)),"")) ->  | O15: =IF( $AC15 = 0, "", IF( OFFSET(#REF!, $AC15 - 1,0,1,1)<>0, IF(OR($AD15="LUMP", $AD15="LS"), "LUMP", OFFSET(#REF!, $AC15 - 1,0,1,1)),"")) ->  | P15: =IF( $AC15 = 0, "", IF( OFFSET(#REF!, $AC15 - 1,0,1,1)<>0, IF(OR($AD15="LUMP", $AD15="LS"), "LUMP", OFFSET(#REF!, $AC15 - 1,0,1,1)),"")) ->  | Q15: =IF( $AC15 = 0, "", IF( OFFSET(#REF!, $AC15 - 1,0,1,1)<>0, IF(OR($AD15="LUMP", $AD15="LS"), "LUMP", OFFSET(#REF!, $AC15 - 1,0,1,1)),"")) ->  | R15: =IF( $AC15 = 0, "", IF( OFFSET(#REF!, $AC15 - 1,0,1,1)<>0, IF(OR($AD15="LUMP", $AD15="LS"), "LUMP", OFFSET(#REF!, $AC15 - 1,0,1,1)),"")) ->  | S15: =IF( $AC15 = 0, "", IF( OFFSET(#REF!, $AC15 - 1,0,1,1)<>0, IF(OR($AD15="LUMP", $AD15="LS"), "LUMP", OFFSET(#REF!, $AC15 - 1,0,1,1)),"")) ->  | T15: =IF( $AC15 = 0, "", IF( OFFSET(#REF!, $AC15 - 1,0,1,1)<>0, IF(OR($AD15="LUMP", $AD15="LS"), "LUMP", OFFSET(#REF!, $AC15 - 1,0,1,1)),"")) ->  | U15: =IF( $AC15 = 0, "", IF( OFFSET(#REF!, $AC15 - 1,0,1,1)<>0, LEFT(OFFSET(#REF!, $AC15 - 1,0,1,1),3),"")) ->  | V15: =IF( $AC15 = 0, "", IF( OFFSET(#REF!, $AC15 - 1,0,1,1)<>0, IF(LEN(OFFSET(#REF!, $AC15 - 1,0,1,1))=9, RIGHT(OFFSET(#REF!, $AC15 - 1,0,1,1),5), LEFT(RIGHT(OFFSET(#REF!, $AC15 - 1,0,1,1),6), 5) ),"")) ->  | X15: =IF( $AC15 = 0, "", IF( OFFSET(#REF!, $AC15 - 1,0,1,1)<>0,IF(OR(AD15="LUMP", AD15="LS"), "", AD15),"")) ->  | Y15: =IF( $AC15 = 0, "", IF( OFFSET(#REF!, $AC15 - 1,0,1,1)<>0, VLOOKUP( OFFSET(#REF!, $AC15 - 1,0,1,1),[1]Items!$A$2:$E$10001,4,0),"")) ->  | AA15: 13 | AB15: 2 | AC15: 11 | AD15: =IF( $AC15 = 0, "", IF( OFFSET(#REF!, $AC15 - 1,0,1,1)<>0, VLOOKUP( OFFSET(#REF!, $AC15 - 1,0,1,1),[1]Items!$A$2:$E$10001,3,0),"")) -> 
A16: =IF( $AC16 = 0, "", IF( OFFSET(#REF!, $AC16 - 1,0,1,1)<>0, IF(OR($AD16="LUMP", $AD16="LS"), "LUMP", OFFSET(#REF!, $AC16 - 1,0,1,1)),"")) ->  | B16: =IF( $AC16 = 0, "", IF( OFFSET(#REF!, $AC16 - 1,0,1,1)<>0, IF(OR($AD16="LUMP", $AD16="LS"), "LUMP", OFFSET(#REF!, $AC16 - 1,0,1,1)),"")) ->  | C16: =IF( $AC16 = 0, "", IF( OFFSET(#REF!, $AC16 - 1,0,1,1)<>0, IF(OR($AD16="LUMP", $AD16="LS"), "LUMP", OFFSET(#REF!, $AC16 - 1,0,1,1)),"")) ->  | D16: =IF( $AC16 = 0, "", IF( OFFSET(#REF!, $AC16 - 1,0,1,1)<>0, IF(OR($AD16="LUMP", $AD16="LS"), "LUMP", OFFSET(#REF!, $AC16 - 1,0,1,1)),"")) ->  | E16: =IF( $AC16 = 0, "", IF( OFFSET(#REF!, $AC16 - 1,0,1,1)<>0, IF(OR($AD16="LUMP", $AD16="LS"), "LUMP", OFFSET(#REF!, $AC16 - 1,0,1,1)),"")) ->  | F16: =IF( $AC16 = 0, "", IF( OFFSET(#REF!, $AC16 - 1,0,1,1)<>0, IF(OR($AD16="LUMP", $AD16="LS"), "LUMP", OFFSET(#REF!, $AC16 - 1,0,1,1)),"")) ->  | G16: =IF( $AC16 = 0, "", IF( OFFSET(#REF!, $AC16 - 1,0,1,1)<>0, IF(OR($AD16="LUMP", $AD16="LS"), "LUMP", OFFSET(#REF!, $AC16 - 1,0,1,1)),"")) ->  | H16: =IF( $AC16 = 0, "", IF( OFFSET(#REF!, $AC16 - 1,0,1,1)<>0, IF(OR($AD16="LUMP", $AD16="LS"), "LUMP", OFFSET(#REF!, $AC16 - 1,0,1,1)),"")) ->  | I16: =IF( $AC16 = 0, "", IF( OFFSET(#REF!, $AC16 - 1,0,1,1)<>0, IF(OR($AD16="LUMP", $AD16="LS"), "LUMP", OFFSET(#REF!, $AC16 - 1,0,1,1)),"")) ->  | J16: =IF( $AC16 = 0, "", IF( OFFSET(#REF!, $AC16 - 1,0,1,1)<>0, IF(OR($AD16="LUMP", $AD16="LS"), "LUMP", OFFSET(#REF!, $AC16 - 1,0,1,1)),"")) ->  | K16: =IF( $AC16 = 0, "", IF( OFFSET(#REF!, $AC16 - 1,0,1,1)<>0, IF(OR($AD16="LUMP", $AD16="LS"), "LUMP", OFFSET(#REF!, $AC16 - 1,0,1,1)),"")) ->  | L16: =IF( $AC16 = 0, "", IF( OFFSET(#REF!, $AC16 - 1,0,1,1)<>0, IF(OR($AD16="LUMP", $AD16="LS"), "LUMP", OFFSET(#REF!, $AC16 - 1,0,1,1)),"")) ->  | M16: =IF( $AC16 = 0, "", IF( OFFSET(#REF!, $AC16 - 1,0,1,1)<>0, IF(OR($AD16="LUMP", $AD16="LS"), "LUMP", OFFSET(#REF!, $AC16 - 1,0,1,1)),"")) ->  | N16: =IF( $AC16 = 0, "", IF( OFFSET(#REF!, $AC16 - 1,0,1,1)<>0, IF(OR($AD16="LUMP", $AD16="LS"), "LUMP", OFFSET(#REF!, $AC16 - 1,0,1,1)),"")) ->  | O16: =IF( $AC16 = 0, "", IF( OFFSET(#REF!, $AC16 - 1,0,1,1)<>0, IF(OR($AD16="LUMP", $AD16="LS"), "LUMP", OFFSET(#REF!, $AC16 - 1,0,1,1)),"")) ->  | P16: =IF( $AC16 = 0, "", IF( OFFSET(#REF!, $AC16 - 1,0,1,1)<>0, IF(OR($AD16="LUMP", $AD16="LS"), "LUMP", OFFSET(#REF!, $AC16 - 1,0,1,1)),"")) ->  | Q16: =IF( $AC16 = 0, "", IF( OFFSET(#REF!, $AC16 - 1,0,1,1)<>0, IF(OR($AD16="LUMP", $AD16="LS"), "LUMP", OFFSET(#REF!, $AC16 - 1,0,1,1)),"")) ->  | R16: =IF( $AC16 = 0, "", IF( OFFSET(#REF!, $AC16 - 1,0,1,1)<>0, IF(OR($AD16="LUMP", $AD16="LS"), "LUMP", OFFSET(#REF!, $AC16 - 1,0,1,1)),"")) ->  | S16: =IF( $AC16 = 0, "", IF( OFFSET(#REF!, $AC16 - 1,0,1,1)<>0, IF(OR($AD16="LUMP", $AD16="LS"), "LUMP", OFFSET(#REF!, $AC16 - 1,0,1,1)),"")) ->  | T16: =IF( $AC16 = 0, "", IF( OFFSET(#REF!, $AC16 - 1,0,1,1)<>0, IF(OR($AD16="LUMP", $AD16="LS"), "LUMP", OFFSET(#REF!, $AC16 - 1,0,1,1)),"")) ->  | U16: =IF( $AC16 = 0, "", IF( OFFSET(#REF!, $AC16 - 1,0,1,1)<>0, LEFT(OFFSET(#REF!, $AC16 - 1,0,1,1),3),"")) ->  | V16: =IF( $AC16 = 0, "", IF( OFFSET(#REF!, $AC16 - 1,0,1,1)<>0, IF(LEN(OFFSET(#REF!, $AC16 - 1,0,1,1))=9, RIGHT(OFFSET(#REF!, $AC16 - 1,0,1,1),5), LEFT(RIGHT(OFFSET(#REF!, $AC16 - 1,0,1,1),6), 5) ),"")) ->  | X16: =IF( $AC16 = 0, "", IF( OFFSET(#REF!, $AC16 - 1,0,1,1)<>0,IF(OR(AD16="LUMP", AD16="LS"), "", AD16),"")) ->  | Y16: =IF( $AC16 = 0, "", IF( OFFSET(#REF!, $AC16 - 1,0,1,1)<>0, VLOOKUP( OFFSET(#REF!, $AC16 - 1,0,1,1),[1]Items!$A$2:$E$10001,4,0),"")) ->  | AA16: 14 | AB16: 2 | AC16: 12 | AD16: =IF( $AC16 = 0, "", IF( OFFSET(#REF!, $AC16 - 1,0,1,1)<>0, VLOOKUP( OFFSET(#REF!, $AC16 - 1,0,1,1),[1]Items!$A$2:$E$10001,3,0),"")) -> 
A17: =IF( $AC17 = 0, "", IF( OFFSET(#REF!, $AC17 - 1,0,1,1)<>0, IF(OR($AD17="LUMP", $AD17="LS"), "LUMP", OFFSET(#REF!, $AC17 - 1,0,1,1)),"")) ->  | B17: =IF( $AC17 = 0, "", IF( OFFSET(#REF!, $AC17 - 1,0,1,1)<>0, IF(OR($AD17="LUMP", $AD17="LS"), "LUMP", OFFSET(#REF!, $AC17 - 1,0,1,1)),"")) ->  | C17: =IF( $AC17 = 0, "", IF( OFFSET(#REF!, $AC17 - 1,0,1,1)<>0, IF(OR($AD17="LUMP", $AD17="LS"), "LUMP", OFFSET(#REF!, $AC17 - 1,0,1,1)),"")) ->  | D17: =IF( $AC17 = 0, "", IF( OFFSET(#REF!, $AC17 - 1,0,1,1)<>0, IF(OR($AD17="LUMP", $AD17="LS"), "LUMP", OFFSET(#REF!, $AC17 - 1,0,1,1)),"")) ->  | E17: =IF( $AC17 = 0, "", IF( OFFSET(#REF!, $AC17 - 1,0,1,1)<>0, IF(OR($AD17="LUMP", $AD17="LS"), "LUMP", OFFSET(#REF!, $AC17 - 1,0,1,1)),"")) ->  | F17: =IF( $AC17 = 0, "", IF( OFFSET(#REF!, $AC17 - 1,0,1,1)<>0, IF(OR($AD17="LUMP", $AD17="LS"), "LUMP", OFFSET(#REF!, $AC17 - 1,0,1,1)),"")) ->  | G17: =IF( $AC17 = 0, "", IF( OFFSET(#REF!, $AC17 - 1,0,1,1)<>0, IF(OR($AD17="LUMP", $AD17="LS"), "LUMP", OFFSET(#REF!, $AC17 - 1,0,1,1)),"")) ->  | H17: =IF( $AC17 = 0, "", IF( OFFSET(#REF!, $AC17 - 1,0,1,1)<>0, IF(OR($AD17="LUMP", $AD17="LS"), "LUMP", OFFSET(#REF!, $AC17 - 1,0,1,1)),"")) ->  | I17: =IF( $AC17 = 0, "", IF( OFFSET(#REF!, $AC17 - 1,0,1,1)<>0, IF(OR($AD17="LUMP", $AD17="LS"), "LUMP", OFFSET(#REF!, $AC17 - 1,0,1,1)),"")) ->  | J17: =IF( $AC17 = 0, "", IF( OFFSET(#REF!, $AC17 - 1,0,1,1)<>0, IF(OR($AD17="LUMP", $AD17="LS"), "LUMP", OFFSET(#REF!, $AC17 - 1,0,1,1)),"")) ->  | K17: =IF( $AC17 = 0, "", IF( OFFSET(#REF!, $AC17 - 1,0,1,1)<>0, IF(OR($AD17="LUMP", $AD17="LS"), "LUMP", OFFSET(#REF!, $AC17 - 1,0,1,1)),"")) ->  | L17: =IF( $AC17 = 0, "", IF( OFFSET(#REF!, $AC17 - 1,0,1,1)<>0, IF(OR($AD17="LUMP", $AD17="LS"), "LUMP", OFFSET(#REF!, $AC17 - 1,0,1,1)),"")) ->  | M17: =IF( $AC17 = 0, "", IF( OFFSET(#REF!, $AC17 - 1,0,1,1)<>0, IF(OR($AD17="LUMP", $AD17="LS"), "LUMP", OFFSET(#REF!, $AC17 - 1,0,1,1)),"")) ->  | N17: =IF( $AC17 = 0, "", IF( OFFSET(#REF!, $AC17 - 1,0,1,1)<>0, IF(OR($AD17="LUMP", $AD17="LS"), "LUMP", OFFSET(#REF!, $AC17 - 1,0,1,1)),"")) ->  | O17: =IF( $AC17 = 0, "", IF( OFFSET(#REF!, $AC17 - 1,0,1,1)<>0, IF(OR($AD17="LUMP", $AD17="LS"), "LUMP", OFFSET(#REF!, $AC17 - 1,0,1,1)),"")) ->  | P17: =IF( $AC17 = 0, "", IF( OFFSET(#REF!, $AC17 - 1,0,1,1)<>0, IF(OR($AD17="LUMP", $AD17="LS"), "LUMP", OFFSET(#REF!, $AC17 - 1,0,1,1)),"")) ->  | Q17: =IF( $AC17 = 0, "", IF( OFFSET(#REF!, $AC17 - 1,0,1,1)<>0, IF(OR($AD17="LUMP", $AD17="LS"), "LUMP", OFFSET(#REF!, $AC17 - 1,0,1,1)),"")) ->  | R17: =IF( $AC17 = 0, "", IF( OFFSET(#REF!, $AC17 - 1,0,1,1)<>0, IF(OR($AD17="LUMP", $AD17="LS"), "LUMP", OFFSET(#REF!, $AC17 - 1,0,1,1)),"")) ->  | S17: =IF( $AC17 = 0, "", IF( OFFSET(#REF!, $AC17 - 1,0,1,1)<>0, IF(OR($AD17="LUMP", $AD17="LS"), "LUMP", OFFSET(#REF!, $AC17 - 1,0,1,1)),"")) ->  | T17: =IF( $AC17 = 0, "", IF( OFFSET(#REF!, $AC17 - 1,0,1,1)<>0, IF(OR($AD17="LUMP", $AD17="LS"), "LUMP", OFFSET(#REF!, $AC17 - 1,0,1,1)),"")) ->  | U17: =IF( $AC17 = 0, "", IF( OFFSET(#REF!, $AC17 - 1,0,1,1)<>0, LEFT(OFFSET(#REF!, $AC17 - 1,0,1,1),3),"")) ->  | V17: =IF( $AC17 = 0, "", IF( OFFSET(#REF!, $AC17 - 1,0,1,1)<>0, IF(LEN(OFFSET(#REF!, $AC17 - 1,0,1,1))=9, RIGHT(OFFSET(#REF!, $AC17 - 1,0,1,1),5), LEFT(RIGHT(OFFSET(#REF!, $AC17 - 1,0,1,1),6), 5) ),"")) ->  | X17: =IF( $AC17 = 0, "", IF( OFFSET(#REF!, $AC17 - 1,0,1,1)<>0,IF(OR(AD17="LUMP", AD17="LS"), "", AD17),"")) ->  | Y17: =IF( $AC17 = 0, "", IF( OFFSET(#REF!, $AC17 - 1,0,1,1)<>0, VLOOKUP( OFFSET(#REF!, $AC17 - 1,0,1,1),[1]Items!$A$2:$E$10001,4,0),"")) ->  | AA17: 15 | AB17: 2 | AC17: 13 | AD17: =IF( $AC17 = 0, "", IF( OFFSET(#REF!, $AC17 - 1,0,1,1)<>0, VLOOKUP( OFFSET(#REF!, $AC17 - 1,0,1,1),[1]Items!$A$2:$E$10001,3,0),"")) -> 
A18: =IF( $AC18 = 0, "", IF( OFFSET(#REF!, $AC18 - 1,0,1,1)<>0, IF(OR($AD18="LUMP", $AD18="LS"), "LUMP", OFFSET(#REF!, $AC18 - 1,0,1,1)),"")) ->  | B18: =IF( $AC18 = 0, "", IF( OFFSET(#REF!, $AC18 - 1,0,1,1)<>0, IF(OR($AD18="LUMP", $AD18="LS"), "LUMP", OFFSET(#REF!, $AC18 - 1,0,1,1)),"")) ->  | C18: =IF( $AC18 = 0, "", IF( OFFSET(#REF!, $AC18 - 1,0,1,1)<>0, IF(OR($AD18="LUMP", $AD18="LS"), "LUMP", OFFSET(#REF!, $AC18 - 1,0,1,1)),"")) ->  | D18: =IF( $AC18 = 0, "", IF( OFFSET(#REF!, $AC18 - 1,0,1,1)<>0, IF(OR($AD18="LUMP", $AD18="LS"), "LUMP", OFFSET(#REF!, $AC18 - 1,0,1,1)),"")) ->  | E18: =IF( $AC18 = 0, "", IF( OFFSET(#REF!, $AC18 - 1,0,1,1)<>0, IF(OR($AD18="LUMP", $AD18="LS"), "LUMP", OFFSET(#REF!, $AC18 - 1,0,1,1)),"")) ->  | F18: =IF( $AC18 = 0, "", IF( OFFSET(#REF!, $AC18 - 1,0,1,1)<>0, IF(OR($AD18="LUMP", $AD18="LS"), "LUMP", OFFSET(#REF!, $AC18 - 1,0,1,1)),"")) ->  | G18: =IF( $AC18 = 0, "", IF( OFFSET(#REF!, $AC18 - 1,0,1,1)<>0, IF(OR($AD18="LUMP", $AD18="LS"), "LUMP", OFFSET(#REF!, $AC18 - 1,0,1,1)),"")) ->  | H18: =IF( $AC18 = 0, "", IF( OFFSET(#REF!, $AC18 - 1,0,1,1)<>0, IF(OR($AD18="LUMP", $AD18="LS"), "LUMP", OFFSET(#REF!, $AC18 - 1,0,1,1)),"")) ->  | I18: =IF( $AC18 = 0, "", IF( OFFSET(#REF!, $AC18 - 1,0,1,1)<>0, IF(OR($AD18="LUMP", $AD18="LS"), "LUMP", OFFSET(#REF!, $AC18 - 1,0,1,1)),"")) ->  | J18: =IF( $AC18 = 0, "", IF( OFFSET(#REF!, $AC18 - 1,0,1,1)<>0, IF(OR($AD18="LUMP", $AD18="LS"), "LUMP", OFFSET(#REF!, $AC18 - 1,0,1,1)),"")) ->  | K18: =IF( $AC18 = 0, "", IF( OFFSET(#REF!, $AC18 - 1,0,1,1)<>0, IF(OR($AD18="LUMP", $AD18="LS"), "LUMP", OFFSET(#REF!, $AC18 - 1,0,1,1)),"")) ->  | L18: =IF( $AC18 = 0, "", IF( OFFSET(#REF!, $AC18 - 1,0,1,1)<>0, IF(OR($AD18="LUMP", $AD18="LS"), "LUMP", OFFSET(#REF!, $AC18 - 1,0,1,1)),"")) ->  | M18: =IF( $AC18 = 0, "", IF( OFFSET(#REF!, $AC18 - 1,0,1,1)<>0, IF(OR($AD18="LUMP", $AD18="LS"), "LUMP", OFFSET(#REF!, $AC18 - 1,0,1,1)),"")) ->  | N18: =IF( $AC18 = 0, "", IF( OFFSET(#REF!, $AC18 - 1,0,1,1)<>0, IF(OR($AD18="LUMP", $AD18="LS"), "LUMP", OFFSET(#REF!, $AC18 - 1,0,1,1)),"")) ->  | O18: =IF( $AC18 = 0, "", IF( OFFSET(#REF!, $AC18 - 1,0,1,1)<>0, IF(OR($AD18="LUMP", $AD18="LS"), "LUMP", OFFSET(#REF!, $AC18 - 1,0,1,1)),"")) ->  | P18: =IF( $AC18 = 0, "", IF( OFFSET(#REF!, $AC18 - 1,0,1,1)<>0, IF(OR($AD18="LUMP", $AD18="LS"), "LUMP", OFFSET(#REF!, $AC18 - 1,0,1,1)),"")) ->  | Q18: =IF( $AC18 = 0, "", IF( OFFSET(#REF!, $AC18 - 1,0,1,1)<>0, IF(OR($AD18="LUMP", $AD18="LS"), "LUMP", OFFSET(#REF!, $AC18 - 1,0,1,1)),"")) ->  | R18: =IF( $AC18 = 0, "", IF( OFFSET(#REF!, $AC18 - 1,0,1,1)<>0, IF(OR($AD18="LUMP", $AD18="LS"), "LUMP", OFFSET(#REF!, $AC18 - 1,0,1,1)),"")) ->  | S18: =IF( $AC18 = 0, "", IF( OFFSET(#REF!, $AC18 - 1,0,1,1)<>0, IF(OR($AD18="LUMP", $AD18="LS"), "LUMP", OFFSET(#REF!, $AC18 - 1,0,1,1)),"")) ->  | T18: =IF( $AC18 = 0, "", IF( OFFSET(#REF!, $AC18 - 1,0,1,1)<>0, IF(OR($AD18="LUMP", $AD18="LS"), "LUMP", OFFSET(#REF!, $AC18 - 1,0,1,1)),"")) ->  | U18: =IF( $AC18 = 0, "", IF( OFFSET(#REF!, $AC18 - 1,0,1,1)<>0, LEFT(OFFSET(#REF!, $AC18 - 1,0,1,1),3),"")) ->  | V18: =IF( $AC18 = 0, "", IF( OFFSET(#REF!, $AC18 - 1,0,1,1)<>0, IF(LEN(OFFSET(#REF!, $AC18 - 1,0,1,1))=9, RIGHT(OFFSET(#REF!, $AC18 - 1,0,1,1),5), LEFT(RIGHT(OFFSET(#REF!, $AC18 - 1,0,1,1),6), 5) ),"")) ->  | X18: =IF( $AC18 = 0, "", IF( OFFSET(#REF!, $AC18 - 1,0,1,1)<>0,IF(OR(AD18="LUMP", AD18="LS"), "", AD18),"")) ->  | Y18: =IF( $AC18 = 0, "", IF( OFFSET(#REF!, $AC18 - 1,0,1,1)<>0, VLOOKUP( OFFSET(#REF!, $AC18 - 1,0,1,1),[1]Items!$A$2:$E$10001,4,0),"")) ->  | AA18: 16 | AB18: 2 | AC18: 14 | AD18: =IF( $AC18 = 0, "", IF( OFFSET(#REF!, $AC18 - 1,0,1,1)<>0, VLOOKUP( OFFSET(#REF!, $AC18 - 1,0,1,1),[1]Items!$A$2:$E$10001,3,0),"")) -> 
A19: =IF( $AC19 = 0, "", IF( OFFSET(#REF!, $AC19 - 1,0,1,1)<>0, IF(OR($AD19="LUMP", $AD19="LS"), "LUMP", OFFSET(#REF!, $AC19 - 1,0,1,1)),"")) ->  | B19: =IF( $AC19 = 0, "", IF( OFFSET(#REF!, $AC19 - 1,0,1,1)<>0, IF(OR($AD19="LUMP", $AD19="LS"), "LUMP", OFFSET(#REF!, $AC19 - 1,0,1,1)),"")) ->  | C19: =IF( $AC19 = 0, "", IF( OFFSET(#REF!, $AC19 - 1,0,1,1)<>0, IF(OR($AD19="LUMP", $AD19="LS"), "LUMP", OFFSET(#REF!, $AC19 - 1,0,1,1)),"")) ->  | D19: =IF( $AC19 = 0, "", IF( OFFSET(#REF!, $AC19 - 1,0,1,1)<>0, IF(OR($AD19="LUMP", $AD19="LS"), "LUMP", OFFSET(#REF!, $AC19 - 1,0,1,1)),"")) ->  | E19: =IF( $AC19 = 0, "", IF( OFFSET(#REF!, $AC19 - 1,0,1,1)<>0, IF(OR($AD19="LUMP", $AD19="LS"), "LUMP", OFFSET(#REF!, $AC19 - 1,0,1,1)),"")) ->  | F19: =IF( $AC19 = 0, "", IF( OFFSET(#REF!, $AC19 - 1,0,1,1)<>0, IF(OR($AD19="LUMP", $AD19="LS"), "LUMP", OFFSET(#REF!, $AC19 - 1,0,1,1)),"")) ->  | G19: =IF( $AC19 = 0, "", IF( OFFSET(#REF!, $AC19 - 1,0,1,1)<>0, IF(OR($AD19="LUMP", $AD19="LS"), "LUMP", OFFSET(#REF!, $AC19 - 1,0,1,1)),"")) ->  | H19: =IF( $AC19 = 0, "", IF( OFFSET(#REF!, $AC19 - 1,0,1,1)<>0, IF(OR($AD19="LUMP", $AD19="LS"), "LUMP", OFFSET(#REF!, $AC19 - 1,0,1,1)),"")) ->  | I19: =IF( $AC19 = 0, "", IF( OFFSET(#REF!, $AC19 - 1,0,1,1)<>0, IF(OR($AD19="LUMP", $AD19="LS"), "LUMP", OFFSET(#REF!, $AC19 - 1,0,1,1)),"")) ->  | J19: =IF( $AC19 = 0, "", IF( OFFSET(#REF!, $AC19 - 1,0,1,1)<>0, IF(OR($AD19="LUMP", $AD19="LS"), "LUMP", OFFSET(#REF!, $AC19 - 1,0,1,1)),"")) ->  | K19: =IF( $AC19 = 0, "", IF( OFFSET(#REF!, $AC19 - 1,0,1,1)<>0, IF(OR($AD19="LUMP", $AD19="LS"), "LUMP", OFFSET(#REF!, $AC19 - 1,0,1,1)),"")) ->  | L19: =IF( $AC19 = 0, "", IF( OFFSET(#REF!, $AC19 - 1,0,1,1)<>0, IF(OR($AD19="LUMP", $AD19="LS"), "LUMP", OFFSET(#REF!, $AC19 - 1,0,1,1)),"")) ->  | M19: =IF( $AC19 = 0, "", IF( OFFSET(#REF!, $AC19 - 1,0,1,1)<>0, IF(OR($AD19="LUMP", $AD19="LS"), "LUMP", OFFSET(#REF!, $AC19 - 1,0,1,1)),"")) ->  | N19: =IF( $AC19 = 0, "", IF( OFFSET(#REF!, $AC19 - 1,0,1,1)<>0, IF(OR($AD19="LUMP", $AD19="LS"), "LUMP", OFFSET(#REF!, $AC19 - 1,0,1,1)),"")) ->  | O19: =IF( $AC19 = 0, "", IF( OFFSET(#REF!, $AC19 - 1,0,1,1)<>0, IF(OR($AD19="LUMP", $AD19="LS"), "LUMP", OFFSET(#REF!, $AC19 - 1,0,1,1)),"")) ->  | P19: =IF( $AC19 = 0, "", IF( OFFSET(#REF!, $AC19 - 1,0,1,1)<>0, IF(OR($AD19="LUMP", $AD19="LS"), "LUMP", OFFSET(#REF!, $AC19 - 1,0,1,1)),"")) ->  | Q19: =IF( $AC19 = 0, "", IF( OFFSET(#REF!, $AC19 - 1,0,1,1)<>0, IF(OR($AD19="LUMP", $AD19="LS"), "LUMP", OFFSET(#REF!, $AC19 - 1,0,1,1)),"")) ->  | R19: =IF( $AC19 = 0, "", IF( OFFSET(#REF!, $AC19 - 1,0,1,1)<>0, IF(OR($AD19="LUMP", $AD19="LS"), "LUMP", OFFSET(#REF!, $AC19 - 1,0,1,1)),"")) ->  | S19: =IF( $AC19 = 0, "", IF( OFFSET(#REF!, $AC19 - 1,0,1,1)<>0, IF(OR($AD19="LUMP", $AD19="LS"), "LUMP", OFFSET(#REF!, $AC19 - 1,0,1,1)),"")) ->  | T19: =IF( $AC19 = 0, "", IF( OFFSET(#REF!, $AC19 - 1,0,1,1)<>0, IF(OR($AD19="LUMP", $AD19="LS"), "LUMP", OFFSET(#REF!, $AC19 - 1,0,1,1)),"")) ->  | U19: =IF( $AC19 = 0, "", IF( OFFSET(#REF!, $AC19 - 1,0,1,1)<>0, LEFT(OFFSET(#REF!, $AC19 - 1,0,1,1),3),"")) ->  | V19: =IF( $AC19 = 0, "", IF( OFFSET(#REF!, $AC19 - 1,0,1,1)<>0, IF(LEN(OFFSET(#REF!, $AC19 - 1,0,1,1))=9, RIGHT(OFFSET(#REF!, $AC19 - 1,0,1,1),5), LEFT(RIGHT(OFFSET(#REF!, $AC19 - 1,0,1,1),6), 5) ),"")) ->  | X19: =IF( $AC19 = 0, "", IF( OFFSET(#REF!, $AC19 - 1,0,1,1)<>0,IF(OR(AD19="LUMP", AD19="LS"), "", AD19),"")) ->  | Y19: =IF( $AC19 = 0, "", IF( OFFSET(#REF!, $AC19 - 1,0,1,1)<>0, VLOOKUP( OFFSET(#REF!, $AC19 - 1,0,1,1),[1]Items!$A$2:$E$10001,4,0),"")) ->  | AA19: 17 | AB19: 2 | AC19: 15 | AD19: =IF( $AC19 = 0, "", IF( OFFSET(#REF!, $AC19 - 1,0,1,1)<>0, VLOOKUP( OFFSET(#REF!, $AC19 - 1,0,1,1),[1]Items!$A$2:$E$10001,3,0),"")) -> 
A20: =IF( $AC20 = 0, "", IF( OFFSET(#REF!, $AC20 - 1,0,1,1)<>0, IF(OR($AD20="LUMP", $AD20="LS"), "LUMP", OFFSET(#REF!, $AC20 - 1,0,1,1)),"")) ->  | B20: =IF( $AC20 = 0, "", IF( OFFSET(#REF!, $AC20 - 1,0,1,1)<>0, IF(OR($AD20="LUMP", $AD20="LS"), "LUMP", OFFSET(#REF!, $AC20 - 1,0,1,1)),"")) ->  | C20: =IF( $AC20 = 0, "", IF( OFFSET(#REF!, $AC20 - 1,0,1,1)<>0, IF(OR($AD20="LUMP", $AD20="LS"), "LUMP", OFFSET(#REF!, $AC20 - 1,0,1,1)),"")) ->  | D20: =IF( $AC20 = 0, "", IF( OFFSET(#REF!, $AC20 - 1,0,1,1)<>0, IF(OR($AD20="LUMP", $AD20="LS"), "LUMP", OFFSET(#REF!, $AC20 - 1,0,1,1)),"")) ->  | E20: =IF( $AC20 = 0, "", IF( OFFSET(#REF!, $AC20 - 1,0,1,1)<>0, IF(OR($AD20="LUMP", $AD20="LS"), "LUMP", OFFSET(#REF!, $AC20 - 1,0,1,1)),"")) ->  | F20: =IF( $AC20 = 0, "", IF( OFFSET(#REF!, $AC20 - 1,0,1,1)<>0, IF(OR($AD20="LUMP", $AD20="LS"), "LUMP", OFFSET(#REF!, $AC20 - 1,0,1,1)),"")) ->  | G20: =IF( $AC20 = 0, "", IF( OFFSET(#REF!, $AC20 - 1,0,1,1)<>0, IF(OR($AD20="LUMP", $AD20="LS"), "LUMP", OFFSET(#REF!, $AC20 - 1,0,1,1)),"")) ->  | H20: =IF( $AC20 = 0, "", IF( OFFSET(#REF!, $AC20 - 1,0,1,1)<>0, IF(OR($AD20="LUMP", $AD20="LS"), "LUMP", OFFSET(#REF!, $AC20 - 1,0,1,1)),"")) ->  | I20: =IF( $AC20 = 0, "", IF( OFFSET(#REF!, $AC20 - 1,0,1,1)<>0, IF(OR($AD20="LUMP", $AD20="LS"), "LUMP", OFFSET(#REF!, $AC20 - 1,0,1,1)),"")) ->  | J20: =IF( $AC20 = 0, "", IF( OFFSET(#REF!, $AC20 - 1,0,1,1)<>0, IF(OR($AD20="LUMP", $AD20="LS"), "LUMP", OFFSET(#REF!, $AC20 - 1,0,1,1)),"")) ->  | K20: =IF( $AC20 = 0, "", IF( OFFSET(#REF!, $AC20 - 1,0,1,1)<>0, IF(OR($AD20="LUMP", $AD20="LS"), "LUMP", OFFSET(#REF!, $AC20 - 1,0,1,1)),"")) ->  | L20: =IF( $AC20 = 0, "", IF( OFFSET(#REF!, $AC20 - 1,0,1,1)<>0, IF(OR($AD20="LUMP", $AD20="LS"), "LUMP", OFFSET(#REF!, $AC20 - 1,0,1,1)),"")) ->  | M20: =IF( $AC20 = 0, "", IF( OFFSET(#REF!, $AC20 - 1,0,1,1)<>0, IF(OR($AD20="LUMP", $AD20="LS"), "LUMP", OFFSET(#REF!, $AC20 - 1,0,1,1)),"")) ->  | N20: =IF( $AC20 = 0, "", IF( OFFSET(#REF!, $AC20 - 1,0,1,1)<>0, IF(OR($AD20="LUMP", $AD20="LS"), "LUMP", OFFSET(#REF!, $AC20 - 1,0,1,1)),"")) ->  | O20: =IF( $AC20 = 0, "", IF( OFFSET(#REF!, $AC20 - 1,0,1,1)<>0, IF(OR($AD20="LUMP", $AD20="LS"), "LUMP", OFFSET(#REF!, $AC20 - 1,0,1,1)),"")) ->  | P20: =IF( $AC20 = 0, "", IF( OFFSET(#REF!, $AC20 - 1,0,1,1)<>0, IF(OR($AD20="LUMP", $AD20="LS"), "LUMP", OFFSET(#REF!, $AC20 - 1,0,1,1)),"")) ->  | Q20: =IF( $AC20 = 0, "", IF( OFFSET(#REF!, $AC20 - 1,0,1,1)<>0, IF(OR($AD20="LUMP", $AD20="LS"), "LUMP", OFFSET(#REF!, $AC20 - 1,0,1,1)),"")) ->  | R20: =IF( $AC20 = 0, "", IF( OFFSET(#REF!, $AC20 - 1,0,1,1)<>0, IF(OR($AD20="LUMP", $AD20="LS"), "LUMP", OFFSET(#REF!, $AC20 - 1,0,1,1)),"")) ->  | S20: =IF( $AC20 = 0, "", IF( OFFSET(#REF!, $AC20 - 1,0,1,1)<>0, IF(OR($AD20="LUMP", $AD20="LS"), "LUMP", OFFSET(#REF!, $AC20 - 1,0,1,1)),"")) ->  | T20: =IF( $AC20 = 0, "", IF( OFFSET(#REF!, $AC20 - 1,0,1,1)<>0, IF(OR($AD20="LUMP", $AD20="LS"), "LUMP", OFFSET(#REF!, $AC20 - 1,0,1,1)),"")) ->  | U20: =IF( $AC20 = 0, "", IF( OFFSET(#REF!, $AC20 - 1,0,1,1)<>0, LEFT(OFFSET(#REF!, $AC20 - 1,0,1,1),3),"")) ->  | V20: =IF( $AC20 = 0, "", IF( OFFSET(#REF!, $AC20 - 1,0,1,1)<>0, IF(LEN(OFFSET(#REF!, $AC20 - 1,0,1,1))=9, RIGHT(OFFSET(#REF!, $AC20 - 1,0,1,1),5), LEFT(RIGHT(OFFSET(#REF!, $AC20 - 1,0,1,1),6), 5) ),"")) ->  | X20: =IF( $AC20 = 0, "", IF( OFFSET(#REF!, $AC20 - 1,0,1,1)<>0,IF(OR(AD20="LUMP", AD20="LS"), "", AD20),"")) ->  | Y20: =IF( $AC20 = 0, "", IF( OFFSET(#REF!, $AC20 - 1,0,1,1)<>0, VLOOKUP( OFFSET(#REF!, $AC20 - 1,0,1,1),[1]Items!$A$2:$E$10001,4,0),"")) ->  | AA20: 18 | AB20: 3 | AC20: 0 | AD20: =IF( $AC20 = 0, "", IF( OFFSET(#REF!, $AC20 - 1,0,1,1)<>0, VLOOKUP( OFFSET(#REF!, $AC20 - 1,0,1,1),[1]Items!$A$2:$E$10001,3,0),"")) -> 
A21: =IF( $AC21 = 0, "", IF( OFFSET(#REF!, $AC21 - 1,0,1,1)<>0, IF(OR($AD21="LUMP", $AD21="LS"), "LUMP", OFFSET(#REF!, $AC21 - 1,0,1,1)),"")) ->  | B21: =IF( $AC21 = 0, "", IF( OFFSET(#REF!, $AC21 - 1,0,1,1)<>0, IF(OR($AD21="LUMP", $AD21="LS"), "LUMP", OFFSET(#REF!, $AC21 - 1,0,1,1)),"")) ->  | C21: =IF( $AC21 = 0, "", IF( OFFSET(#REF!, $AC21 - 1,0,1,1)<>0, IF(OR($AD21="LUMP", $AD21="LS"), "LUMP", OFFSET(#REF!, $AC21 - 1,0,1,1)),"")) ->  | D21: =IF( $AC21 = 0, "", IF( OFFSET(#REF!, $AC21 - 1,0,1,1)<>0, IF(OR($AD21="LUMP", $AD21="LS"), "LUMP", OFFSET(#REF!, $AC21 - 1,0,1,1)),"")) ->  | E21: =IF( $AC21 = 0, "", IF( OFFSET(#REF!, $AC21 - 1,0,1,1)<>0, IF(OR($AD21="LUMP", $AD21="LS"), "LUMP", OFFSET(#REF!, $AC21 - 1,0,1,1)),"")) ->  | F21: =IF( $AC21 = 0, "", IF( OFFSET(#REF!, $AC21 - 1,0,1,1)<>0, IF(OR($AD21="LUMP", $AD21="LS"), "LUMP", OFFSET(#REF!, $AC21 - 1,0,1,1)),"")) ->  | G21: =IF( $AC21 = 0, "", IF( OFFSET(#REF!, $AC21 - 1,0,1,1)<>0, IF(OR($AD21="LUMP", $AD21="LS"), "LUMP", OFFSET(#REF!, $AC21 - 1,0,1,1)),"")) ->  | H21: =IF( $AC21 = 0, "", IF( OFFSET(#REF!, $AC21 - 1,0,1,1)<>0, IF(OR($AD21="LUMP", $AD21="LS"), "LUMP", OFFSET(#REF!, $AC21 - 1,0,1,1)),"")) ->  | I21: =IF( $AC21 = 0, "", IF( OFFSET(#REF!, $AC21 - 1,0,1,1)<>0, IF(OR($AD21="LUMP", $AD21="LS"), "LUMP", OFFSET(#REF!, $AC21 - 1,0,1,1)),"")) ->  | J21: =IF( $AC21 = 0, "", IF( OFFSET(#REF!, $AC21 - 1,0,1,1)<>0, IF(OR($AD21="LUMP", $AD21="LS"), "LUMP", OFFSET(#REF!, $AC21 - 1,0,1,1)),"")) ->  | K21: =IF( $AC21 = 0, "", IF( OFFSET(#REF!, $AC21 - 1,0,1,1)<>0, IF(OR($AD21="LUMP", $AD21="LS"), "LUMP", OFFSET(#REF!, $AC21 - 1,0,1,1)),"")) ->  | L21: =IF( $AC21 = 0, "", IF( OFFSET(#REF!, $AC21 - 1,0,1,1)<>0, IF(OR($AD21="LUMP", $AD21="LS"), "LUMP", OFFSET(#REF!, $AC21 - 1,0,1,1)),"")) ->  | M21: =IF( $AC21 = 0, "", IF( OFFSET(#REF!, $AC21 - 1,0,1,1)<>0, IF(OR($AD21="LUMP", $AD21="LS"), "LUMP", OFFSET(#REF!, $AC21 - 1,0,1,1)),"")) ->  | N21: =IF( $AC21 = 0, "", IF( OFFSET(#REF!, $AC21 - 1,0,1,1)<>0, IF(OR($AD21="LUMP", $AD21="LS"), "LUMP", OFFSET(#REF!, $AC21 - 1,0,1,1)),"")) ->  | O21: =IF( $AC21 = 0, "", IF( OFFSET(#REF!, $AC21 - 1,0,1,1)<>0, IF(OR($AD21="LUMP", $AD21="LS"), "LUMP", OFFSET(#REF!, $AC21 - 1,0,1,1)),"")) ->  | P21: =IF( $AC21 = 0, "", IF( OFFSET(#REF!, $AC21 - 1,0,1,1)<>0, IF(OR($AD21="LUMP", $AD21="LS"), "LUMP", OFFSET(#REF!, $AC21 - 1,0,1,1)),"")) ->  | Q21: =IF( $AC21 = 0, "", IF( OFFSET(#REF!, $AC21 - 1,0,1,1)<>0, IF(OR($AD21="LUMP", $AD21="LS"), "LUMP", OFFSET(#REF!, $AC21 - 1,0,1,1)),"")) ->  | R21: =IF( $AC21 = 0, "", IF( OFFSET(#REF!, $AC21 - 1,0,1,1)<>0, IF(OR($AD21="LUMP", $AD21="LS"), "LUMP", OFFSET(#REF!, $AC21 - 1,0,1,1)),"")) ->  | S21: =IF( $AC21 = 0, "", IF( OFFSET(#REF!, $AC21 - 1,0,1,1)<>0, IF(OR($AD21="LUMP", $AD21="LS"), "LUMP", OFFSET(#REF!, $AC21 - 1,0,1,1)),"")) ->  | T21: =IF( $AC21 = 0, "", IF( OFFSET(#REF!, $AC21 - 1,0,1,1)<>0, IF(OR($AD21="LUMP", $AD21="LS"), "LUMP", OFFSET(#REF!, $AC21 - 1,0,1,1)),"")) ->  | U21: =IF( $AC21 = 0, "", IF( OFFSET(#REF!, $AC21 - 1,0,1,1)<>0, LEFT(OFFSET(#REF!, $AC21 - 1,0,1,1),3),"")) ->  | V21: =IF( $AC21 = 0, "", IF( OFFSET(#REF!, $AC21 - 1,0,1,1)<>0, IF(LEN(OFFSET(#REF!, $AC21 - 1,0,1,1))=9, RIGHT(OFFSET(#REF!, $AC21 - 1,0,1,1),5), LEFT(RIGHT(OFFSET(#REF!, $AC21 - 1,0,1,1),6), 5) ),"")) ->  | X21: =IF( $AC21 = 0, "", IF( OFFSET(#REF!, $AC21 - 1,0,1,1)<>0,IF(OR(AD21="LUMP", AD21="LS"), "", AD21),"")) ->  | Y21: =IF( $AC21 = 0, "", IF( OFFSET(#REF!, $AC21 - 1,0,1,1)<>0, VLOOKUP( OFFSET(#REF!, $AC21 - 1,0,1,1),[1]Items!$A$2:$E$10001,4,0),"")) ->  | AA21: 19 | AB21: 3 | AC21: 16 | AD21: =IF( $AC21 = 0, "", IF( OFFSET(#REF!, $AC21 - 1,0,1,1)<>0, VLOOKUP( OFFSET(#REF!, $AC21 - 1,0,1,1),[1]Items!$A$2:$E$10001,3,0),"")) -> 
A22: =IF( $AC22 = 0, "", IF( OFFSET(#REF!, $AC22 - 1,0,1,1)<>0, IF(OR($AD22="LUMP", $AD22="LS"), "LUMP", OFFSET(#REF!, $AC22 - 1,0,1,1)),"")) ->  | B22: =IF( $AC22 = 0, "", IF( OFFSET(#REF!, $AC22 - 1,0,1,1)<>0, IF(OR($AD22="LUMP", $AD22="LS"), "LUMP", OFFSET(#REF!, $AC22 - 1,0,1,1)),"")) ->  | C22: =IF( $AC22 = 0, "", IF( OFFSET(#REF!, $AC22 - 1,0,1,1)<>0, IF(OR($AD22="LUMP", $AD22="LS"), "LUMP", OFFSET(#REF!, $AC22 - 1,0,1,1)),"")) ->  | D22: =IF( $AC22 = 0, "", IF( OFFSET(#REF!, $AC22 - 1,0,1,1)<>0, IF(OR($AD22="LUMP", $AD22="LS"), "LUMP", OFFSET(#REF!, $AC22 - 1,0,1,1)),"")) ->  | E22: =IF( $AC22 = 0, "", IF( OFFSET(#REF!, $AC22 - 1,0,1,1)<>0, IF(OR($AD22="LUMP", $AD22="LS"), "LUMP", OFFSET(#REF!, $AC22 - 1,0,1,1)),"")) ->  | F22: =IF( $AC22 = 0, "", IF( OFFSET(#REF!, $AC22 - 1,0,1,1)<>0, IF(OR($AD22="LUMP", $AD22="LS"), "LUMP", OFFSET(#REF!, $AC22 - 1,0,1,1)),"")) ->  | G22: =IF( $AC22 = 0, "", IF( OFFSET(#REF!, $AC22 - 1,0,1,1)<>0, IF(OR($AD22="LUMP", $AD22="LS"), "LUMP", OFFSET(#REF!, $AC22 - 1,0,1,1)),"")) ->  | H22: =IF( $AC22 = 0, "", IF( OFFSET(#REF!, $AC22 - 1,0,1,1)<>0, IF(OR($AD22="LUMP", $AD22="LS"), "LUMP", OFFSET(#REF!, $AC22 - 1,0,1,1)),"")) ->  | I22: =IF( $AC22 = 0, "", IF( OFFSET(#REF!, $AC22 - 1,0,1,1)<>0, IF(OR($AD22="LUMP", $AD22="LS"), "LUMP", OFFSET(#REF!, $AC22 - 1,0,1,1)),"")) ->  | J22: =IF( $AC22 = 0, "", IF( OFFSET(#REF!, $AC22 - 1,0,1,1)<>0, IF(OR($AD22="LUMP", $AD22="LS"), "LUMP", OFFSET(#REF!, $AC22 - 1,0,1,1)),"")) ->  | K22: =IF( $AC22 = 0, "", IF( OFFSET(#REF!, $AC22 - 1,0,1,1)<>0, IF(OR($AD22="LUMP", $AD22="LS"), "LUMP", OFFSET(#REF!, $AC22 - 1,0,1,1)),"")) ->  | L22: =IF( $AC22 = 0, "", IF( OFFSET(#REF!, $AC22 - 1,0,1,1)<>0, IF(OR($AD22="LUMP", $AD22="LS"), "LUMP", OFFSET(#REF!, $AC22 - 1,0,1,1)),"")) ->  | M22: =IF( $AC22 = 0, "", IF( OFFSET(#REF!, $AC22 - 1,0,1,1)<>0, IF(OR($AD22="LUMP", $AD22="LS"), "LUMP", OFFSET(#REF!, $AC22 - 1,0,1,1)),"")) ->  | N22: =IF( $AC22 = 0, "", IF( OFFSET(#REF!, $AC22 - 1,0,1,1)<>0, IF(OR($AD22="LUMP", $AD22="LS"), "LUMP", OFFSET(#REF!, $AC22 - 1,0,1,1)),"")) ->  | O22: =IF( $AC22 = 0, "", IF( OFFSET(#REF!, $AC22 - 1,0,1,1)<>0, IF(OR($AD22="LUMP", $AD22="LS"), "LUMP", OFFSET(#REF!, $AC22 - 1,0,1,1)),"")) ->  | P22: =IF( $AC22 = 0, "", IF( OFFSET(#REF!, $AC22 - 1,0,1,1)<>0, IF(OR($AD22="LUMP", $AD22="LS"), "LUMP", OFFSET(#REF!, $AC22 - 1,0,1,1)),"")) ->  | Q22: =IF( $AC22 = 0, "", IF( OFFSET(#REF!, $AC22 - 1,0,1,1)<>0, IF(OR($AD22="LUMP", $AD22="LS"), "LUMP", OFFSET(#REF!, $AC22 - 1,0,1,1)),"")) ->  | R22: =IF( $AC22 = 0, "", IF( OFFSET(#REF!, $AC22 - 1,0,1,1)<>0, IF(OR($AD22="LUMP", $AD22="LS"), "LUMP", OFFSET(#REF!, $AC22 - 1,0,1,1)),"")) ->  | S22: =IF( $AC22 = 0, "", IF( OFFSET(#REF!, $AC22 - 1,0,1,1)<>0, IF(OR($AD22="LUMP", $AD22="LS"), "LUMP", OFFSET(#REF!, $AC22 - 1,0,1,1)),"")) ->  | T22: =IF( $AC22 = 0, "", IF( OFFSET(#REF!, $AC22 - 1,0,1,1)<>0, IF(OR($AD22="LUMP", $AD22="LS"), "LUMP", OFFSET(#REF!, $AC22 - 1,0,1,1)),"")) ->  | U22: =IF( $AC22 = 0, "", IF( OFFSET(#REF!, $AC22 - 1,0,1,1)<>0, LEFT(OFFSET(#REF!, $AC22 - 1,0,1,1),3),"")) ->  | V22: =IF( $AC22 = 0, "", IF( OFFSET(#REF!, $AC22 - 1,0,1,1)<>0, IF(LEN(OFFSET(#REF!, $AC22 - 1,0,1,1))=9, RIGHT(OFFSET(#REF!, $AC22 - 1,0,1,1),5), LEFT(RIGHT(OFFSET(#REF!, $AC22 - 1,0,1,1),6), 5) ),"")) ->  | X22: =IF( $AC22 = 0, "", IF( OFFSET(#REF!, $AC22 - 1,0,1,1)<>0,IF(OR(AD22="LUMP", AD22="LS"), "", AD22),"")) ->  | Y22: =IF( $AC22 = 0, "", IF( OFFSET(#REF!, $AC22 - 1,0,1,1)<>0, VLOOKUP( OFFSET(#REF!, $AC22 - 1,0,1,1),[1]Items!$A$2:$E$10001,4,0),"")) ->  | AA22: 20 | AB22: 3 | AC22: 17 | AD22: =IF( $AC22 = 0, "", IF( OFFSET(#REF!, $AC22 - 1,0,1,1)<>0, VLOOKUP( OFFSET(#REF!, $AC22 - 1,0,1,1),[1]Items!$A$2:$E$10001,3,0),"")) -> 
A23: =IF( $AC23 = 0, "", IF( OFFSET(#REF!, $AC23 - 1,0,1,1)<>0, IF(OR($AD23="LUMP", $AD23="LS"), "LUMP", OFFSET(#REF!, $AC23 - 1,0,1,1)),"")) ->  | B23: =IF( $AC23 = 0, "", IF( OFFSET(#REF!, $AC23 - 1,0,1,1)<>0, IF(OR($AD23="LUMP", $AD23="LS"), "LUMP", OFFSET(#REF!, $AC23 - 1,0,1,1)),"")) ->  | C23: =IF( $AC23 = 0, "", IF( OFFSET(#REF!, $AC23 - 1,0,1,1)<>0, IF(OR($AD23="LUMP", $AD23="LS"), "LUMP", OFFSET(#REF!, $AC23 - 1,0,1,1)),"")) ->  | D23: =IF( $AC23 = 0, "", IF( OFFSET(#REF!, $AC23 - 1,0,1,1)<>0, IF(OR($AD23="LUMP", $AD23="LS"), "LUMP", OFFSET(#REF!, $AC23 - 1,0,1,1)),"")) ->  | E23: =IF( $AC23 = 0, "", IF( OFFSET(#REF!, $AC23 - 1,0,1,1)<>0, IF(OR($AD23="LUMP", $AD23="LS"), "LUMP", OFFSET(#REF!, $AC23 - 1,0,1,1)),"")) ->  | F23: =IF( $AC23 = 0, "", IF( OFFSET(#REF!, $AC23 - 1,0,1,1)<>0, IF(OR($AD23="LUMP", $AD23="LS"), "LUMP", OFFSET(#REF!, $AC23 - 1,0,1,1)),"")) ->  | G23: =IF( $AC23 = 0, "", IF( OFFSET(#REF!, $AC23 - 1,0,1,1)<>0, IF(OR($AD23="LUMP", $AD23="LS"), "LUMP", OFFSET(#REF!, $AC23 - 1,0,1,1)),"")) ->  | H23: =IF( $AC23 = 0, "", IF( OFFSET(#REF!, $AC23 - 1,0,1,1)<>0, IF(OR($AD23="LUMP", $AD23="LS"), "LUMP", OFFSET(#REF!, $AC23 - 1,0,1,1)),"")) ->  | I23: =IF( $AC23 = 0, "", IF( OFFSET(#REF!, $AC23 - 1,0,1,1)<>0, IF(OR($AD23="LUMP", $AD23="LS"), "LUMP", OFFSET(#REF!, $AC23 - 1,0,1,1)),"")) ->  | J23: =IF( $AC23 = 0, "", IF( OFFSET(#REF!, $AC23 - 1,0,1,1)<>0, IF(OR($AD23="LUMP", $AD23="LS"), "LUMP", OFFSET(#REF!, $AC23 - 1,0,1,1)),"")) ->  | K23: =IF( $AC23 = 0, "", IF( OFFSET(#REF!, $AC23 - 1,0,1,1)<>0, IF(OR($AD23="LUMP", $AD23="LS"), "LUMP", OFFSET(#REF!, $AC23 - 1,0,1,1)),"")) ->  | L23: =IF( $AC23 = 0, "", IF( OFFSET(#REF!, $AC23 - 1,0,1,1)<>0, IF(OR($AD23="LUMP", $AD23="LS"), "LUMP", OFFSET(#REF!, $AC23 - 1,0,1,1)),"")) ->  | M23: =IF( $AC23 = 0, "", IF( OFFSET(#REF!, $AC23 - 1,0,1,1)<>0, IF(OR($AD23="LUMP", $AD23="LS"), "LUMP", OFFSET(#REF!, $AC23 - 1,0,1,1)),"")) ->  | N23: =IF( $AC23 = 0, "", IF( OFFSET(#REF!, $AC23 - 1,0,1,1)<>0, IF(OR($AD23="LUMP", $AD23="LS"), "LUMP", OFFSET(#REF!, $AC23 - 1,0,1,1)),"")) ->  | O23: =IF( $AC23 = 0, "", IF( OFFSET(#REF!, $AC23 - 1,0,1,1)<>0, IF(OR($AD23="LUMP", $AD23="LS"), "LUMP", OFFSET(#REF!, $AC23 - 1,0,1,1)),"")) ->  | P23: =IF( $AC23 = 0, "", IF( OFFSET(#REF!, $AC23 - 1,0,1,1)<>0, IF(OR($AD23="LUMP", $AD23="LS"), "LUMP", OFFSET(#REF!, $AC23 - 1,0,1,1)),"")) ->  | Q23: =IF( $AC23 = 0, "", IF( OFFSET(#REF!, $AC23 - 1,0,1,1)<>0, IF(OR($AD23="LUMP", $AD23="LS"), "LUMP", OFFSET(#REF!, $AC23 - 1,0,1,1)),"")) ->  | R23: =IF( $AC23 = 0, "", IF( OFFSET(#REF!, $AC23 - 1,0,1,1)<>0, IF(OR($AD23="LUMP", $AD23="LS"), "LUMP", OFFSET(#REF!, $AC23 - 1,0,1,1)),"")) ->  | S23: =IF( $AC23 = 0, "", IF( OFFSET(#REF!, $AC23 - 1,0,1,1)<>0, IF(OR($AD23="LUMP", $AD23="LS"), "LUMP", OFFSET(#REF!, $AC23 - 1,0,1,1)),"")) ->  | T23: =IF( $AC23 = 0, "", IF( OFFSET(#REF!, $AC23 - 1,0,1,1)<>0, IF(OR($AD23="LUMP", $AD23="LS"), "LUMP", OFFSET(#REF!, $AC23 - 1,0,1,1)),"")) ->  | U23: =IF( $AC23 = 0, "", IF( OFFSET(#REF!, $AC23 - 1,0,1,1)<>0, LEFT(OFFSET(#REF!, $AC23 - 1,0,1,1),3),"")) ->  | V23: =IF( $AC23 = 0, "", IF( OFFSET(#REF!, $AC23 - 1,0,1,1)<>0, IF(LEN(OFFSET(#REF!, $AC23 - 1,0,1,1))=9, RIGHT(OFFSET(#REF!, $AC23 - 1,0,1,1),5), LEFT(RIGHT(OFFSET(#REF!, $AC23 - 1,0,1,1),6), 5) ),"")) ->  | X23: =IF( $AC23 = 0, "", IF( OFFSET(#REF!, $AC23 - 1,0,1,1)<>0,IF(OR(AD23="LUMP", AD23="LS"), "", AD23),"")) ->  | Y23: =IF( $AC23 = 0, "", IF( OFFSET(#REF!, $AC23 - 1,0,1,1)<>0, VLOOKUP( OFFSET(#REF!, $AC23 - 1,0,1,1),[1]Items!$A$2:$E$10001,4,0),"")) ->  | AA23: 21 | AB23: 3 | AC23: 18 | AD23: =IF( $AC23 = 0, "", IF( OFFSET(#REF!, $AC23 - 1,0,1,1)<>0, VLOOKUP( OFFSET(#REF!, $AC23 - 1,0,1,1),[1]Items!$A$2:$E$10001,3,0),"")) -> 
A24: =IF( $AC24 = 0, "", IF( OFFSET(#REF!, $AC24 - 1,0,1,1)<>0, IF(OR($AD24="LUMP", $AD24="LS"), "LUMP", OFFSET(#REF!, $AC24 - 1,0,1,1)),"")) ->  | B24: =IF( $AC24 = 0, "", IF( OFFSET(#REF!, $AC24 - 1,0,1,1)<>0, IF(OR($AD24="LUMP", $AD24="LS"), "LUMP", OFFSET(#REF!, $AC24 - 1,0,1,1)),"")) ->  | C24: =IF( $AC24 = 0, "", IF( OFFSET(#REF!, $AC24 - 1,0,1,1)<>0, IF(OR($AD24="LUMP", $AD24="LS"), "LUMP", OFFSET(#REF!, $AC24 - 1,0,1,1)),"")) ->  | D24: =IF( $AC24 = 0, "", IF( OFFSET(#REF!, $AC24 - 1,0,1,1)<>0, IF(OR($AD24="LUMP", $AD24="LS"), "LUMP", OFFSET(#REF!, $AC24 - 1,0,1,1)),"")) ->  | E24: =IF( $AC24 = 0, "", IF( OFFSET(#REF!, $AC24 - 1,0,1,1)<>0, IF(OR($AD24="LUMP", $AD24="LS"), "LUMP", OFFSET(#REF!, $AC24 - 1,0,1,1)),"")) ->  | F24: =IF( $AC24 = 0, "", IF( OFFSET(#REF!, $AC24 - 1,0,1,1)<>0, IF(OR($AD24="LUMP", $AD24="LS"), "LUMP", OFFSET(#REF!, $AC24 - 1,0,1,1)),"")) ->  | G24: =IF( $AC24 = 0, "", IF( OFFSET(#REF!, $AC24 - 1,0,1,1)<>0, IF(OR($AD24="LUMP", $AD24="LS"), "LUMP", OFFSET(#REF!, $AC24 - 1,0,1,1)),"")) ->  | H24: =IF( $AC24 = 0, "", IF( OFFSET(#REF!, $AC24 - 1,0,1,1)<>0, IF(OR($AD24="LUMP", $AD24="LS"), "LUMP", OFFSET(#REF!, $AC24 - 1,0,1,1)),"")) ->  | I24: =IF( $AC24 = 0, "", IF( OFFSET(#REF!, $AC24 - 1,0,1,1)<>0, IF(OR($AD24="LUMP", $AD24="LS"), "LUMP", OFFSET(#REF!, $AC24 - 1,0,1,1)),"")) ->  | J24: =IF( $AC24 = 0, "", IF( OFFSET(#REF!, $AC24 - 1,0,1,1)<>0, IF(OR($AD24="LUMP", $AD24="LS"), "LUMP", OFFSET(#REF!, $AC24 - 1,0,1,1)),"")) ->  | K24: =IF( $AC24 = 0, "", IF( OFFSET(#REF!, $AC24 - 1,0,1,1)<>0, IF(OR($AD24="LUMP", $AD24="LS"), "LUMP", OFFSET(#REF!, $AC24 - 1,0,1,1)),"")) ->  | L24: =IF( $AC24 = 0, "", IF( OFFSET(#REF!, $AC24 - 1,0,1,1)<>0, IF(OR($AD24="LUMP", $AD24="LS"), "LUMP", OFFSET(#REF!, $AC24 - 1,0,1,1)),"")) ->  | M24: =IF( $AC24 = 0, "", IF( OFFSET(#REF!, $AC24 - 1,0,1,1)<>0, IF(OR($AD24="LUMP", $AD24="LS"), "LUMP", OFFSET(#REF!, $AC24 - 1,0,1,1)),"")) ->  | N24: =IF( $AC24 = 0, "", IF( OFFSET(#REF!, $AC24 - 1,0,1,1)<>0, IF(OR($AD24="LUMP", $AD24="LS"), "LUMP", OFFSET(#REF!, $AC24 - 1,0,1,1)),"")) ->  | O24: =IF( $AC24 = 0, "", IF( OFFSET(#REF!, $AC24 - 1,0,1,1)<>0, IF(OR($AD24="LUMP", $AD24="LS"), "LUMP", OFFSET(#REF!, $AC24 - 1,0,1,1)),"")) ->  | P24: =IF( $AC24 = 0, "", IF( OFFSET(#REF!, $AC24 - 1,0,1,1)<>0, IF(OR($AD24="LUMP", $AD24="LS"), "LUMP", OFFSET(#REF!, $AC24 - 1,0,1,1)),"")) ->  | Q24: =IF( $AC24 = 0, "", IF( OFFSET(#REF!, $AC24 - 1,0,1,1)<>0, IF(OR($AD24="LUMP", $AD24="LS"), "LUMP", OFFSET(#REF!, $AC24 - 1,0,1,1)),"")) ->  | R24: =IF( $AC24 = 0, "", IF( OFFSET(#REF!, $AC24 - 1,0,1,1)<>0, IF(OR($AD24="LUMP", $AD24="LS"), "LUMP", OFFSET(#REF!, $AC24 - 1,0,1,1)),"")) ->  | S24: =IF( $AC24 = 0, "", IF( OFFSET(#REF!, $AC24 - 1,0,1,1)<>0, IF(OR($AD24="LUMP", $AD24="LS"), "LUMP", OFFSET(#REF!, $AC24 - 1,0,1,1)),"")) ->  | T24: =IF( $AC24 = 0, "", IF( OFFSET(#REF!, $AC24 - 1,0,1,1)<>0, IF(OR($AD24="LUMP", $AD24="LS"), "LUMP", OFFSET(#REF!, $AC24 - 1,0,1,1)),"")) ->  | U24: =IF( $AC24 = 0, "", IF( OFFSET(#REF!, $AC24 - 1,0,1,1)<>0, LEFT(OFFSET(#REF!, $AC24 - 1,0,1,1),3),"")) ->  | V24: =IF( $AC24 = 0, "", IF( OFFSET(#REF!, $AC24 - 1,0,1,1)<>0, IF(LEN(OFFSET(#REF!, $AC24 - 1,0,1,1))=9, RIGHT(OFFSET(#REF!, $AC24 - 1,0,1,1),5), LEFT(RIGHT(OFFSET(#REF!, $AC24 - 1,0,1,1),6), 5) ),"")) ->  | X24: =IF( $AC24 = 0, "", IF( OFFSET(#REF!, $AC24 - 1,0,1,1)<>0,IF(OR(AD24="LUMP", AD24="LS"), "", AD24),"")) ->  | Y24: =IF( $AC24 = 0, "", IF( OFFSET(#REF!, $AC24 - 1,0,1,1)<>0, VLOOKUP( OFFSET(#REF!, $AC24 - 1,0,1,1),[1]Items!$A$2:$E$10001,4,0),"")) ->  | AA24: 22 | AB24: 3 | AC24: 19 | AD24: =IF( $AC24 = 0, "", IF( OFFSET(#REF!, $AC24 - 1,0,1,1)<>0, VLOOKUP( OFFSET(#REF!, $AC24 - 1,0,1,1),[1]Items!$A$2:$E$10001,3,0),"")) -> 
A25: =IF( $AC25 = 0, "", IF( OFFSET(#REF!, $AC25 - 1,0,1,1)<>0, IF(OR($AD25="LUMP", $AD25="LS"), "LUMP", OFFSET(#REF!, $AC25 - 1,0,1,1)),"")) ->  | B25: =IF( $AC25 = 0, "", IF( OFFSET(#REF!, $AC25 - 1,0,1,1)<>0, IF(OR($AD25="LUMP", $AD25="LS"), "LUMP", OFFSET(#REF!, $AC25 - 1,0,1,1)),"")) ->  | C25: =IF( $AC25 = 0, "", IF( OFFSET(#REF!, $AC25 - 1,0,1,1)<>0, IF(OR($AD25="LUMP", $AD25="LS"), "LUMP", OFFSET(#REF!, $AC25 - 1,0,1,1)),"")) ->  | D25: =IF( $AC25 = 0, "", IF( OFFSET(#REF!, $AC25 - 1,0,1,1)<>0, IF(OR($AD25="LUMP", $AD25="LS"), "LUMP", OFFSET(#REF!, $AC25 - 1,0,1,1)),"")) ->  | E25: =IF( $AC25 = 0, "", IF( OFFSET(#REF!, $AC25 - 1,0,1,1)<>0, IF(OR($AD25="LUMP", $AD25="LS"), "LUMP", OFFSET(#REF!, $AC25 - 1,0,1,1)),"")) ->  | F25: =IF( $AC25 = 0, "", IF( OFFSET(#REF!, $AC25 - 1,0,1,1)<>0, IF(OR($AD25="LUMP", $AD25="LS"), "LUMP", OFFSET(#REF!, $AC25 - 1,0,1,1)),"")) ->  | G25: =IF( $AC25 = 0, "", IF( OFFSET(#REF!, $AC25 - 1,0,1,1)<>0, IF(OR($AD25="LUMP", $AD25="LS"), "LUMP", OFFSET(#REF!, $AC25 - 1,0,1,1)),"")) ->  | H25: =IF( $AC25 = 0, "", IF( OFFSET(#REF!, $AC25 - 1,0,1,1)<>0, IF(OR($AD25="LUMP", $AD25="LS"), "LUMP", OFFSET(#REF!, $AC25 - 1,0,1,1)),"")) ->  | I25: =IF( $AC25 = 0, "", IF( OFFSET(#REF!, $AC25 - 1,0,1,1)<>0, IF(OR($AD25="LUMP", $AD25="LS"), "LUMP", OFFSET(#REF!, $AC25 - 1,0,1,1)),"")) ->  | J25: =IF( $AC25 = 0, "", IF( OFFSET(#REF!, $AC25 - 1,0,1,1)<>0, IF(OR($AD25="LUMP", $AD25="LS"), "LUMP", OFFSET(#REF!, $AC25 - 1,0,1,1)),"")) ->  | K25: =IF( $AC25 = 0, "", IF( OFFSET(#REF!, $AC25 - 1,0,1,1)<>0, IF(OR($AD25="LUMP", $AD25="LS"), "LUMP", OFFSET(#REF!, $AC25 - 1,0,1,1)),"")) ->  | L25: =IF( $AC25 = 0, "", IF( OFFSET(#REF!, $AC25 - 1,0,1,1)<>0, IF(OR($AD25="LUMP", $AD25="LS"), "LUMP", OFFSET(#REF!, $AC25 - 1,0,1,1)),"")) ->  | M25: =IF( $AC25 = 0, "", IF( OFFSET(#REF!, $AC25 - 1,0,1,1)<>0, IF(OR($AD25="LUMP", $AD25="LS"), "LUMP", OFFSET(#REF!, $AC25 - 1,0,1,1)),"")) ->  | N25: =IF( $AC25 = 0, "", IF( OFFSET(#REF!, $AC25 - 1,0,1,1)<>0, IF(OR($AD25="LUMP", $AD25="LS"), "LUMP", OFFSET(#REF!, $AC25 - 1,0,1,1)),"")) ->  | O25: =IF( $AC25 = 0, "", IF( OFFSET(#REF!, $AC25 - 1,0,1,1)<>0, IF(OR($AD25="LUMP", $AD25="LS"), "LUMP", OFFSET(#REF!, $AC25 - 1,0,1,1)),"")) ->  | P25: =IF( $AC25 = 0, "", IF( OFFSET(#REF!, $AC25 - 1,0,1,1)<>0, IF(OR($AD25="LUMP", $AD25="LS"), "LUMP", OFFSET(#REF!, $AC25 - 1,0,1,1)),"")) ->  | Q25: =IF( $AC25 = 0, "", IF( OFFSET(#REF!, $AC25 - 1,0,1,1)<>0, IF(OR($AD25="LUMP", $AD25="LS"), "LUMP", OFFSET(#REF!, $AC25 - 1,0,1,1)),"")) ->  | R25: =IF( $AC25 = 0, "", IF( OFFSET(#REF!, $AC25 - 1,0,1,1)<>0, IF(OR($AD25="LUMP", $AD25="LS"), "LUMP", OFFSET(#REF!, $AC25 - 1,0,1,1)),"")) ->  | S25: =IF( $AC25 = 0, "", IF( OFFSET(#REF!, $AC25 - 1,0,1,1)<>0, IF(OR($AD25="LUMP", $AD25="LS"), "LUMP", OFFSET(#REF!, $AC25 - 1,0,1,1)),"")) ->  | T25: =IF( $AC25 = 0, "", IF( OFFSET(#REF!, $AC25 - 1,0,1,1)<>0, IF(OR($AD25="LUMP", $AD25="LS"), "LUMP", OFFSET(#REF!, $AC25 - 1,0,1,1)),"")) ->  | U25: =IF( $AC25 = 0, "", IF( OFFSET(#REF!, $AC25 - 1,0,1,1)<>0, LEFT(OFFSET(#REF!, $AC25 - 1,0,1,1),3),"")) ->  | V25: =IF( $AC25 = 0, "", IF( OFFSET(#REF!, $AC25 - 1,0,1,1)<>0, IF(LEN(OFFSET(#REF!, $AC25 - 1,0,1,1))=9, RIGHT(OFFSET(#REF!, $AC25 - 1,0,1,1),5), LEFT(RIGHT(OFFSET(#REF!, $AC25 - 1,0,1,1),6), 5) ),"")) ->  | X25: =IF( $AC25 = 0, "", IF( OFFSET(#REF!, $AC25 - 1,0,1,1)<>0,IF(OR(AD25="LUMP", AD25="LS"), "", AD25),"")) ->  | Y25: =IF( $AC25 = 0, "", IF( OFFSET(#REF!, $AC25 - 1,0,1,1)<>0, VLOOKUP( OFFSET(#REF!, $AC25 - 1,0,1,1),[1]Items!$A$2:$E$10001,4,0),"")) ->  | AA25: 23 | AB25: 3 | AC25: 20 | AD25: =IF( $AC25 = 0, "", IF( OFFSET(#REF!, $AC25 - 1,0,1,1)<>0, VLOOKUP( OFFSET(#REF!, $AC25 - 1,0,1,1),[1]Items!$A$2:$E$10001,3,0),"")) -> 
A26: =IF( $AC26 = 0, "", IF( OFFSET(#REF!, $AC26 - 1,0,1,1)<>0, IF(OR($AD26="LUMP", $AD26="LS"), "LUMP", OFFSET(#REF!, $AC26 - 1,0,1,1)),"")) ->  | B26: =IF( $AC26 = 0, "", IF( OFFSET(#REF!, $AC26 - 1,0,1,1)<>0, IF(OR($AD26="LUMP", $AD26="LS"), "LUMP", OFFSET(#REF!, $AC26 - 1,0,1,1)),"")) ->  | C26: =IF( $AC26 = 0, "", IF( OFFSET(#REF!, $AC26 - 1,0,1,1)<>0, IF(OR($AD26="LUMP", $AD26="LS"), "LUMP", OFFSET(#REF!, $AC26 - 1,0,1,1)),"")) ->  | D26: =IF( $AC26 = 0, "", IF( OFFSET(#REF!, $AC26 - 1,0,1,1)<>0, IF(OR($AD26="LUMP", $AD26="LS"), "LUMP", OFFSET(#REF!, $AC26 - 1,0,1,1)),"")) ->  | E26: =IF( $AC26 = 0, "", IF( OFFSET(#REF!, $AC26 - 1,0,1,1)<>0, IF(OR($AD26="LUMP", $AD26="LS"), "LUMP", OFFSET(#REF!, $AC26 - 1,0,1,1)),"")) ->  | F26: =IF( $AC26 = 0, "", IF( OFFSET(#REF!, $AC26 - 1,0,1,1)<>0, IF(OR($AD26="LUMP", $AD26="LS"), "LUMP", OFFSET(#REF!, $AC26 - 1,0,1,1)),"")) ->  | G26: =IF( $AC26 = 0, "", IF( OFFSET(#REF!, $AC26 - 1,0,1,1)<>0, IF(OR($AD26="LUMP", $AD26="LS"), "LUMP", OFFSET(#REF!, $AC26 - 1,0,1,1)),"")) ->  | H26: =IF( $AC26 = 0, "", IF( OFFSET(#REF!, $AC26 - 1,0,1,1)<>0, IF(OR($AD26="LUMP", $AD26="LS"), "LUMP", OFFSET(#REF!, $AC26 - 1,0,1,1)),"")) ->  | I26: =IF( $AC26 = 0, "", IF( OFFSET(#REF!, $AC26 - 1,0,1,1)<>0, IF(OR($AD26="LUMP", $AD26="LS"), "LUMP", OFFSET(#REF!, $AC26 - 1,0,1,1)),"")) ->  | J26: =IF( $AC26 = 0, "", IF( OFFSET(#REF!, $AC26 - 1,0,1,1)<>0, IF(OR($AD26="LUMP", $AD26="LS"), "LUMP", OFFSET(#REF!, $AC26 - 1,0,1,1)),"")) ->  | K26: =IF( $AC26 = 0, "", IF( OFFSET(#REF!, $AC26 - 1,0,1,1)<>0, IF(OR($AD26="LUMP", $AD26="LS"), "LUMP", OFFSET(#REF!, $AC26 - 1,0,1,1)),"")) ->  | L26: =IF( $AC26 = 0, "", IF( OFFSET(#REF!, $AC26 - 1,0,1,1)<>0, IF(OR($AD26="LUMP", $AD26="LS"), "LUMP", OFFSET(#REF!, $AC26 - 1,0,1,1)),"")) ->  | M26: =IF( $AC26 = 0, "", IF( OFFSET(#REF!, $AC26 - 1,0,1,1)<>0, IF(OR($AD26="LUMP", $AD26="LS"), "LUMP", OFFSET(#REF!, $AC26 - 1,0,1,1)),"")) ->  | N26: =IF( $AC26 = 0, "", IF( OFFSET(#REF!, $AC26 - 1,0,1,1)<>0, IF(OR($AD26="LUMP", $AD26="LS"), "LUMP", OFFSET(#REF!, $AC26 - 1,0,1,1)),"")) ->  | O26: =IF( $AC26 = 0, "", IF( OFFSET(#REF!, $AC26 - 1,0,1,1)<>0, IF(OR($AD26="LUMP", $AD26="LS"), "LUMP", OFFSET(#REF!, $AC26 - 1,0,1,1)),"")) ->  | P26: =IF( $AC26 = 0, "", IF( OFFSET(#REF!, $AC26 - 1,0,1,1)<>0, IF(OR($AD26="LUMP", $AD26="LS"), "LUMP", OFFSET(#REF!, $AC26 - 1,0,1,1)),"")) ->  | Q26: =IF( $AC26 = 0, "", IF( OFFSET(#REF!, $AC26 - 1,0,1,1)<>0, IF(OR($AD26="LUMP", $AD26="LS"), "LUMP", OFFSET(#REF!, $AC26 - 1,0,1,1)),"")) ->  | R26: =IF( $AC26 = 0, "", IF( OFFSET(#REF!, $AC26 - 1,0,1,1)<>0, IF(OR($AD26="LUMP", $AD26="LS"), "LUMP", OFFSET(#REF!, $AC26 - 1,0,1,1)),"")) ->  | S26: =IF( $AC26 = 0, "", IF( OFFSET(#REF!, $AC26 - 1,0,1,1)<>0, IF(OR($AD26="LUMP", $AD26="LS"), "LUMP", OFFSET(#REF!, $AC26 - 1,0,1,1)),"")) ->  | T26: =IF( $AC26 = 0, "", IF( OFFSET(#REF!, $AC26 - 1,0,1,1)<>0, IF(OR($AD26="LUMP", $AD26="LS"), "LUMP", OFFSET(#REF!, $AC26 - 1,0,1,1)),"")) ->  | U26: =IF( $AC26 = 0, "", IF( OFFSET(#REF!, $AC26 - 1,0,1,1)<>0, LEFT(OFFSET(#REF!, $AC26 - 1,0,1,1),3),"")) ->  | V26: =IF( $AC26 = 0, "", IF( OFFSET(#REF!, $AC26 - 1,0,1,1)<>0, IF(LEN(OFFSET(#REF!, $AC26 - 1,0,1,1))=9, RIGHT(OFFSET(#REF!, $AC26 - 1,0,1,1),5), LEFT(RIGHT(OFFSET(#REF!, $AC26 - 1,0,1,1),6), 5) ),"")) ->  | X26: =IF( $AC26 = 0, "", IF( OFFSET(#REF!, $AC26 - 1,0,1,1)<>0,IF(OR(AD26="LUMP", AD26="LS"), "", AD26),"")) ->  | Y26: =IF( $AC26 = 0, "", IF( OFFSET(#REF!, $AC26 - 1,0,1,1)<>0, VLOOKUP( OFFSET(#REF!, $AC26 - 1,0,1,1),[1]Items!$A$2:$E$10001,4,0),"")) ->  | AA26: 24 | AB26: 4 | AC26: 0 | AD26: =IF( $AC26 = 0, "", IF( OFFSET(#REF!, $AC26 - 1,0,1,1)<>0, VLOOKUP( OFFSET(#REF!, $AC26 - 1,0,1,1),[1]Items!$A$2:$E$10001,3,0),"")) -> 
A27: =IF( $AC27 = 0, "", IF( OFFSET(#REF!, $AC27 - 1,0,1,1)<>0, IF(OR($AD27="LUMP", $AD27="LS"), "LUMP", OFFSET(#REF!, $AC27 - 1,0,1,1)),"")) ->  | B27: =IF( $AC27 = 0, "", IF( OFFSET(#REF!, $AC27 - 1,0,1,1)<>0, IF(OR($AD27="LUMP", $AD27="LS"), "LUMP", OFFSET(#REF!, $AC27 - 1,0,1,1)),"")) ->  | C27: =IF( $AC27 = 0, "", IF( OFFSET(#REF!, $AC27 - 1,0,1,1)<>0, IF(OR($AD27="LUMP", $AD27="LS"), "LUMP", OFFSET(#REF!, $AC27 - 1,0,1,1)),"")) ->  | D27: =IF( $AC27 = 0, "", IF( OFFSET(#REF!, $AC27 - 1,0,1,1)<>0, IF(OR($AD27="LUMP", $AD27="LS"), "LUMP", OFFSET(#REF!, $AC27 - 1,0,1,1)),"")) ->  | E27: =IF( $AC27 = 0, "", IF( OFFSET(#REF!, $AC27 - 1,0,1,1)<>0, IF(OR($AD27="LUMP", $AD27="LS"), "LUMP", OFFSET(#REF!, $AC27 - 1,0,1,1)),"")) ->  | F27: =IF( $AC27 = 0, "", IF( OFFSET(#REF!, $AC27 - 1,0,1,1)<>0, IF(OR($AD27="LUMP", $AD27="LS"), "LUMP", OFFSET(#REF!, $AC27 - 1,0,1,1)),"")) ->  | G27: =IF( $AC27 = 0, "", IF( OFFSET(#REF!, $AC27 - 1,0,1,1)<>0, IF(OR($AD27="LUMP", $AD27="LS"), "LUMP", OFFSET(#REF!, $AC27 - 1,0,1,1)),"")) ->  | H27: =IF( $AC27 = 0, "", IF( OFFSET(#REF!, $AC27 - 1,0,1,1)<>0, IF(OR($AD27="LUMP", $AD27="LS"), "LUMP", OFFSET(#REF!, $AC27 - 1,0,1,1)),"")) ->  | I27: =IF( $AC27 = 0, "", IF( OFFSET(#REF!, $AC27 - 1,0,1,1)<>0, IF(OR($AD27="LUMP", $AD27="LS"), "LUMP", OFFSET(#REF!, $AC27 - 1,0,1,1)),"")) ->  | J27: =IF( $AC27 = 0, "", IF( OFFSET(#REF!, $AC27 - 1,0,1,1)<>0, IF(OR($AD27="LUMP", $AD27="LS"), "LUMP", OFFSET(#REF!, $AC27 - 1,0,1,1)),"")) ->  | K27: =IF( $AC27 = 0, "", IF( OFFSET(#REF!, $AC27 - 1,0,1,1)<>0, IF(OR($AD27="LUMP", $AD27="LS"), "LUMP", OFFSET(#REF!, $AC27 - 1,0,1,1)),"")) ->  | L27: =IF( $AC27 = 0, "", IF( OFFSET(#REF!, $AC27 - 1,0,1,1)<>0, IF(OR($AD27="LUMP", $AD27="LS"), "LUMP", OFFSET(#REF!, $AC27 - 1,0,1,1)),"")) ->  | M27: =IF( $AC27 = 0, "", IF( OFFSET(#REF!, $AC27 - 1,0,1,1)<>0, IF(OR($AD27="LUMP", $AD27="LS"), "LUMP", OFFSET(#REF!, $AC27 - 1,0,1,1)),"")) ->  | N27: =IF( $AC27 = 0, "", IF( OFFSET(#REF!, $AC27 - 1,0,1,1)<>0, IF(OR($AD27="LUMP", $AD27="LS"), "LUMP", OFFSET(#REF!, $AC27 - 1,0,1,1)),"")) ->  | O27: =IF( $AC27 = 0, "", IF( OFFSET(#REF!, $AC27 - 1,0,1,1)<>0, IF(OR($AD27="LUMP", $AD27="LS"), "LUMP", OFFSET(#REF!, $AC27 - 1,0,1,1)),"")) ->  | P27: =IF( $AC27 = 0, "", IF( OFFSET(#REF!, $AC27 - 1,0,1,1)<>0, IF(OR($AD27="LUMP", $AD27="LS"), "LUMP", OFFSET(#REF!, $AC27 - 1,0,1,1)),"")) ->  | Q27: =IF( $AC27 = 0, "", IF( OFFSET(#REF!, $AC27 - 1,0,1,1)<>0, IF(OR($AD27="LUMP", $AD27="LS"), "LUMP", OFFSET(#REF!, $AC27 - 1,0,1,1)),"")) ->  | R27: =IF( $AC27 = 0, "", IF( OFFSET(#REF!, $AC27 - 1,0,1,1)<>0, IF(OR($AD27="LUMP", $AD27="LS"), "LUMP", OFFSET(#REF!, $AC27 - 1,0,1,1)),"")) ->  | S27: =IF( $AC27 = 0, "", IF( OFFSET(#REF!, $AC27 - 1,0,1,1)<>0, IF(OR($AD27="LUMP", $AD27="LS"), "LUMP", OFFSET(#REF!, $AC27 - 1,0,1,1)),"")) ->  | T27: =IF( $AC27 = 0, "", IF( OFFSET(#REF!, $AC27 - 1,0,1,1)<>0, IF(OR($AD27="LUMP", $AD27="LS"), "LUMP", OFFSET(#REF!, $AC27 - 1,0,1,1)),"")) ->  | U27: =IF( $AC27 = 0, "", IF( OFFSET(#REF!, $AC27 - 1,0,1,1)<>0, LEFT(OFFSET(#REF!, $AC27 - 1,0,1,1),3),"")) ->  | V27: =IF( $AC27 = 0, "", IF( OFFSET(#REF!, $AC27 - 1,0,1,1)<>0, IF(LEN(OFFSET(#REF!, $AC27 - 1,0,1,1))=9, RIGHT(OFFSET(#REF!, $AC27 - 1,0,1,1),5), LEFT(RIGHT(OFFSET(#REF!, $AC27 - 1,0,1,1),6), 5) ),"")) ->  | X27: =IF( $AC27 = 0, "", IF( OFFSET(#REF!, $AC27 - 1,0,1,1)<>0,IF(OR(AD27="LUMP", AD27="LS"), "", AD27),"")) ->  | Y27: =IF( $AC27 = 0, "", IF( OFFSET(#REF!, $AC27 - 1,0,1,1)<>0, VLOOKUP( OFFSET(#REF!, $AC27 - 1,0,1,1),[1]Items!$A$2:$E$10001,4,0),"")) ->  | AA27: 25 | AB27: 4 | AC27: 21 | AD27: =IF( $AC27 = 0, "", IF( OFFSET(#REF!, $AC27 - 1,0,1,1)<>0, VLOOKUP( OFFSET(#REF!, $AC27 - 1,0,1,1),[1]Items!$A$2:$E$10001,3,0),"")) -> 
A28: =IF( $AC28 = 0, "", IF( OFFSET(#REF!, $AC28 - 1,0,1,1)<>0, IF(OR($AD28="LUMP", $AD28="LS"), "LUMP", OFFSET(#REF!, $AC28 - 1,0,1,1)),"")) ->  | B28: =IF( $AC28 = 0, "", IF( OFFSET(#REF!, $AC28 - 1,0,1,1)<>0, IF(OR($AD28="LUMP", $AD28="LS"), "LUMP", OFFSET(#REF!, $AC28 - 1,0,1,1)),"")) ->  | C28: =IF( $AC28 = 0, "", IF( OFFSET(#REF!, $AC28 - 1,0,1,1)<>0, IF(OR($AD28="LUMP", $AD28="LS"), "LUMP", OFFSET(#REF!, $AC28 - 1,0,1,1)),"")) ->  | D28: =IF( $AC28 = 0, "", IF( OFFSET(#REF!, $AC28 - 1,0,1,1)<>0, IF(OR($AD28="LUMP", $AD28="LS"), "LUMP", OFFSET(#REF!, $AC28 - 1,0,1,1)),"")) ->  | E28: =IF( $AC28 = 0, "", IF( OFFSET(#REF!, $AC28 - 1,0,1,1)<>0, IF(OR($AD28="LUMP", $AD28="LS"), "LUMP", OFFSET(#REF!, $AC28 - 1,0,1,1)),"")) ->  | F28: =IF( $AC28 = 0, "", IF( OFFSET(#REF!, $AC28 - 1,0,1,1)<>0, IF(OR($AD28="LUMP", $AD28="LS"), "LUMP", OFFSET(#REF!, $AC28 - 1,0,1,1)),"")) ->  | G28: =IF( $AC28 = 0, "", IF( OFFSET(#REF!, $AC28 - 1,0,1,1)<>0, IF(OR($AD28="LUMP", $AD28="LS"), "LUMP", OFFSET(#REF!, $AC28 - 1,0,1,1)),"")) ->  | H28: =IF( $AC28 = 0, "", IF( OFFSET(#REF!, $AC28 - 1,0,1,1)<>0, IF(OR($AD28="LUMP", $AD28="LS"), "LUMP", OFFSET(#REF!, $AC28 - 1,0,1,1)),"")) ->  | I28: =IF( $AC28 = 0, "", IF( OFFSET(#REF!, $AC28 - 1,0,1,1)<>0, IF(OR($AD28="LUMP", $AD28="LS"), "LUMP", OFFSET(#REF!, $AC28 - 1,0,1,1)),"")) ->  | J28: =IF( $AC28 = 0, "", IF( OFFSET(#REF!, $AC28 - 1,0,1,1)<>0, IF(OR($AD28="LUMP", $AD28="LS"), "LUMP", OFFSET(#REF!, $AC28 - 1,0,1,1)),"")) ->  | K28: =IF( $AC28 = 0, "", IF( OFFSET(#REF!, $AC28 - 1,0,1,1)<>0, IF(OR($AD28="LUMP", $AD28="LS"), "LUMP", OFFSET(#REF!, $AC28 - 1,0,1,1)),"")) ->  | L28: =IF( $AC28 = 0, "", IF( OFFSET(#REF!, $AC28 - 1,0,1,1)<>0, IF(OR($AD28="LUMP", $AD28="LS"), "LUMP", OFFSET(#REF!, $AC28 - 1,0,1,1)),"")) ->  | M28: =IF( $AC28 = 0, "", IF( OFFSET(#REF!, $AC28 - 1,0,1,1)<>0, IF(OR($AD28="LUMP", $AD28="LS"), "LUMP", OFFSET(#REF!, $AC28 - 1,0,1,1)),"")) ->  | N28: =IF( $AC28 = 0, "", IF( OFFSET(#REF!, $AC28 - 1,0,1,1)<>0, IF(OR($AD28="LUMP", $AD28="LS"), "LUMP", OFFSET(#REF!, $AC28 - 1,0,1,1)),"")) ->  | O28: =IF( $AC28 = 0, "", IF( OFFSET(#REF!, $AC28 - 1,0,1,1)<>0, IF(OR($AD28="LUMP", $AD28="LS"), "LUMP", OFFSET(#REF!, $AC28 - 1,0,1,1)),"")) ->  | P28: =IF( $AC28 = 0, "", IF( OFFSET(#REF!, $AC28 - 1,0,1,1)<>0, IF(OR($AD28="LUMP", $AD28="LS"), "LUMP", OFFSET(#REF!, $AC28 - 1,0,1,1)),"")) ->  | Q28: =IF( $AC28 = 0, "", IF( OFFSET(#REF!, $AC28 - 1,0,1,1)<>0, IF(OR($AD28="LUMP", $AD28="LS"), "LUMP", OFFSET(#REF!, $AC28 - 1,0,1,1)),"")) ->  | R28: =IF( $AC28 = 0, "", IF( OFFSET(#REF!, $AC28 - 1,0,1,1)<>0, IF(OR($AD28="LUMP", $AD28="LS"), "LUMP", OFFSET(#REF!, $AC28 - 1,0,1,1)),"")) ->  | S28: =IF( $AC28 = 0, "", IF( OFFSET(#REF!, $AC28 - 1,0,1,1)<>0, IF(OR($AD28="LUMP", $AD28="LS"), "LUMP", OFFSET(#REF!, $AC28 - 1,0,1,1)),"")) ->  | T28: =IF( $AC28 = 0, "", IF( OFFSET(#REF!, $AC28 - 1,0,1,1)<>0, IF(OR($AD28="LUMP", $AD28="LS"), "LUMP", OFFSET(#REF!, $AC28 - 1,0,1,1)),"")) ->  | U28: =IF( $AC28 = 0, "", IF( OFFSET(#REF!, $AC28 - 1,0,1,1)<>0, LEFT(OFFSET(#REF!, $AC28 - 1,0,1,1),3),"")) ->  | V28: =IF( $AC28 = 0, "", IF( OFFSET(#REF!, $AC28 - 1,0,1,1)<>0, IF(LEN(OFFSET(#REF!, $AC28 - 1,0,1,1))=9, RIGHT(OFFSET(#REF!, $AC28 - 1,0,1,1),5), LEFT(RIGHT(OFFSET(#REF!, $AC28 - 1,0,1,1),6), 5) ),"")) ->  | X28: =IF( $AC28 = 0, "", IF( OFFSET(#REF!, $AC28 - 1,0,1,1)<>0,IF(OR(AD28="LUMP", AD28="LS"), "", AD28),"")) ->  | Y28: =IF( $AC28 = 0, "", IF( OFFSET(#REF!, $AC28 - 1,0,1,1)<>0, VLOOKUP( OFFSET(#REF!, $AC28 - 1,0,1,1),[1]Items!$A$2:$E$10001,4,0),"")) ->  | AA28: 26 | AB28: 4 | AC28: 22 | AD28: =IF( $AC28 = 0, "", IF( OFFSET(#REF!, $AC28 - 1,0,1,1)<>0, VLOOKUP( OFFSET(#REF!, $AC28 - 1,0,1,1),[1]Items!$A$2:$E$10001,3,0),"")) -> 
A29: =IF( $AC29 = 0, "", IF( OFFSET(#REF!, $AC29 - 1,0,1,1)<>0, IF(OR($AD29="LUMP", $AD29="LS"), "LUMP", OFFSET(#REF!, $AC29 - 1,0,1,1)),"")) ->  | B29: =IF( $AC29 = 0, "", IF( OFFSET(#REF!, $AC29 - 1,0,1,1)<>0, IF(OR($AD29="LUMP", $AD29="LS"), "LUMP", OFFSET(#REF!, $AC29 - 1,0,1,1)),"")) ->  | C29: =IF( $AC29 = 0, "", IF( OFFSET(#REF!, $AC29 - 1,0,1,1)<>0, IF(OR($AD29="LUMP", $AD29="LS"), "LUMP", OFFSET(#REF!, $AC29 - 1,0,1,1)),"")) ->  | D29: =IF( $AC29 = 0, "", IF( OFFSET(#REF!, $AC29 - 1,0,1,1)<>0, IF(OR($AD29="LUMP", $AD29="LS"), "LUMP", OFFSET(#REF!, $AC29 - 1,0,1,1)),"")) ->  | E29: =IF( $AC29 = 0, "", IF( OFFSET(#REF!, $AC29 - 1,0,1,1)<>0, IF(OR($AD29="LUMP", $AD29="LS"), "LUMP", OFFSET(#REF!, $AC29 - 1,0,1,1)),"")) ->  | F29: =IF( $AC29 = 0, "", IF( OFFSET(#REF!, $AC29 - 1,0,1,1)<>0, IF(OR($AD29="LUMP", $AD29="LS"), "LUMP", OFFSET(#REF!, $AC29 - 1,0,1,1)),"")) ->  | G29: =IF( $AC29 = 0, "", IF( OFFSET(#REF!, $AC29 - 1,0,1,1)<>0, IF(OR($AD29="LUMP", $AD29="LS"), "LUMP", OFFSET(#REF!, $AC29 - 1,0,1,1)),"")) ->  | H29: =IF( $AC29 = 0, "", IF( OFFSET(#REF!, $AC29 - 1,0,1,1)<>0, IF(OR($AD29="LUMP", $AD29="LS"), "LUMP", OFFSET(#REF!, $AC29 - 1,0,1,1)),"")) ->  | I29: =IF( $AC29 = 0, "", IF( OFFSET(#REF!, $AC29 - 1,0,1,1)<>0, IF(OR($AD29="LUMP", $AD29="LS"), "LUMP", OFFSET(#REF!, $AC29 - 1,0,1,1)),"")) ->  | J29: =IF( $AC29 = 0, "", IF( OFFSET(#REF!, $AC29 - 1,0,1,1)<>0, IF(OR($AD29="LUMP", $AD29="LS"), "LUMP", OFFSET(#REF!, $AC29 - 1,0,1,1)),"")) ->  | K29: =IF( $AC29 = 0, "", IF( OFFSET(#REF!, $AC29 - 1,0,1,1)<>0, IF(OR($AD29="LUMP", $AD29="LS"), "LUMP", OFFSET(#REF!, $AC29 - 1,0,1,1)),"")) ->  | L29: =IF( $AC29 = 0, "", IF( OFFSET(#REF!, $AC29 - 1,0,1,1)<>0, IF(OR($AD29="LUMP", $AD29="LS"), "LUMP", OFFSET(#REF!, $AC29 - 1,0,1,1)),"")) ->  | M29: =IF( $AC29 = 0, "", IF( OFFSET(#REF!, $AC29 - 1,0,1,1)<>0, IF(OR($AD29="LUMP", $AD29="LS"), "LUMP", OFFSET(#REF!, $AC29 - 1,0,1,1)),"")) ->  | N29: =IF( $AC29 = 0, "", IF( OFFSET(#REF!, $AC29 - 1,0,1,1)<>0, IF(OR($AD29="LUMP", $AD29="LS"), "LUMP", OFFSET(#REF!, $AC29 - 1,0,1,1)),"")) ->  | O29: =IF( $AC29 = 0, "", IF( OFFSET(#REF!, $AC29 - 1,0,1,1)<>0, IF(OR($AD29="LUMP", $AD29="LS"), "LUMP", OFFSET(#REF!, $AC29 - 1,0,1,1)),"")) ->  | P29: =IF( $AC29 = 0, "", IF( OFFSET(#REF!, $AC29 - 1,0,1,1)<>0, IF(OR($AD29="LUMP", $AD29="LS"), "LUMP", OFFSET(#REF!, $AC29 - 1,0,1,1)),"")) ->  | Q29: =IF( $AC29 = 0, "", IF( OFFSET(#REF!, $AC29 - 1,0,1,1)<>0, IF(OR($AD29="LUMP", $AD29="LS"), "LUMP", OFFSET(#REF!, $AC29 - 1,0,1,1)),"")) ->  | R29: =IF( $AC29 = 0, "", IF( OFFSET(#REF!, $AC29 - 1,0,1,1)<>0, IF(OR($AD29="LUMP", $AD29="LS"), "LUMP", OFFSET(#REF!, $AC29 - 1,0,1,1)),"")) ->  | S29: =IF( $AC29 = 0, "", IF( OFFSET(#REF!, $AC29 - 1,0,1,1)<>0, IF(OR($AD29="LUMP", $AD29="LS"), "LUMP", OFFSET(#REF!, $AC29 - 1,0,1,1)),"")) ->  | T29: =IF( $AC29 = 0, "", IF( OFFSET(#REF!, $AC29 - 1,0,1,1)<>0, IF(OR($AD29="LUMP", $AD29="LS"), "LUMP", OFFSET(#REF!, $AC29 - 1,0,1,1)),"")) ->  | U29: =IF( $AC29 = 0, "", IF( OFFSET(#REF!, $AC29 - 1,0,1,1)<>0, LEFT(OFFSET(#REF!, $AC29 - 1,0,1,1),3),"")) ->  | V29: =IF( $AC29 = 0, "", IF( OFFSET(#REF!, $AC29 - 1,0,1,1)<>0, IF(LEN(OFFSET(#REF!, $AC29 - 1,0,1,1))=9, RIGHT(OFFSET(#REF!, $AC29 - 1,0,1,1),5), LEFT(RIGHT(OFFSET(#REF!, $AC29 - 1,0,1,1),6), 5) ),"")) ->  | X29: =IF( $AC29 = 0, "", IF( OFFSET(#REF!, $AC29 - 1,0,1,1)<>0,IF(OR(AD29="LUMP", AD29="LS"), "", AD29),"")) ->  | Y29: =IF( $AC29 = 0, "", IF( OFFSET(#REF!, $AC29 - 1,0,1,1)<>0, VLOOKUP( OFFSET(#REF!, $AC29 - 1,0,1,1),[1]Items!$A$2:$E$10001,4,0),"")) ->  | AA29: 27 | AB29: 4 | AC29: 23 | AD29: =IF( $AC29 = 0, "", IF( OFFSET(#REF!, $AC29 - 1,0,1,1)<>0, VLOOKUP( OFFSET(#REF!, $AC29 - 1,0,1,1),[1]Items!$A$2:$E$10001,3,0),"")) -> 
A30: =IF( $AC30 = 0, "", IF( OFFSET(#REF!, $AC30 - 1,0,1,1)<>0, IF(OR($AD30="LUMP", $AD30="LS"), "LUMP", OFFSET(#REF!, $AC30 - 1,0,1,1)),"")) ->  | B30: =IF( $AC30 = 0, "", IF( OFFSET(#REF!, $AC30 - 1,0,1,1)<>0, IF(OR($AD30="LUMP", $AD30="LS"), "LUMP", OFFSET(#REF!, $AC30 - 1,0,1,1)),"")) ->  | C30: =IF( $AC30 = 0, "", IF( OFFSET(#REF!, $AC30 - 1,0,1,1)<>0, IF(OR($AD30="LUMP", $AD30="LS"), "LUMP", OFFSET(#REF!, $AC30 - 1,0,1,1)),"")) ->  | D30: =IF( $AC30 = 0, "", IF( OFFSET(#REF!, $AC30 - 1,0,1,1)<>0, IF(OR($AD30="LUMP", $AD30="LS"), "LUMP", OFFSET(#REF!, $AC30 - 1,0,1,1)),"")) ->  | E30: =IF( $AC30 = 0, "", IF( OFFSET(#REF!, $AC30 - 1,0,1,1)<>0, IF(OR($AD30="LUMP", $AD30="LS"), "LUMP", OFFSET(#REF!, $AC30 - 1,0,1,1)),"")) ->  | F30: =IF( $AC30 = 0, "", IF( OFFSET(#REF!, $AC30 - 1,0,1,1)<>0, IF(OR($AD30="LUMP", $AD30="LS"), "LUMP", OFFSET(#REF!, $AC30 - 1,0,1,1)),"")) ->  | G30: =IF( $AC30 = 0, "", IF( OFFSET(#REF!, $AC30 - 1,0,1,1)<>0, IF(OR($AD30="LUMP", $AD30="LS"), "LUMP", OFFSET(#REF!, $AC30 - 1,0,1,1)),"")) ->  | H30: =IF( $AC30 = 0, "", IF( OFFSET(#REF!, $AC30 - 1,0,1,1)<>0, IF(OR($AD30="LUMP", $AD30="LS"), "LUMP", OFFSET(#REF!, $AC30 - 1,0,1,1)),"")) ->  | I30: =IF( $AC30 = 0, "", IF( OFFSET(#REF!, $AC30 - 1,0,1,1)<>0, IF(OR($AD30="LUMP", $AD30="LS"), "LUMP", OFFSET(#REF!, $AC30 - 1,0,1,1)),"")) ->  | J30: =IF( $AC30 = 0, "", IF( OFFSET(#REF!, $AC30 - 1,0,1,1)<>0, IF(OR($AD30="LUMP", $AD30="LS"), "LUMP", OFFSET(#REF!, $AC30 - 1,0,1,1)),"")) ->  | K30: =IF( $AC30 = 0, "", IF( OFFSET(#REF!, $AC30 - 1,0,1,1)<>0, IF(OR($AD30="LUMP", $AD30="LS"), "LUMP", OFFSET(#REF!, $AC30 - 1,0,1,1)),"")) ->  | L30: =IF( $AC30 = 0, "", IF( OFFSET(#REF!, $AC30 - 1,0,1,1)<>0, IF(OR($AD30="LUMP", $AD30="LS"), "LUMP", OFFSET(#REF!, $AC30 - 1,0,1,1)),"")) ->  | M30: =IF( $AC30 = 0, "", IF( OFFSET(#REF!, $AC30 - 1,0,1,1)<>0, IF(OR($AD30="LUMP", $AD30="LS"), "LUMP", OFFSET(#REF!, $AC30 - 1,0,1,1)),"")) ->  | N30: =IF( $AC30 = 0, "", IF( OFFSET(#REF!, $AC30 - 1,0,1,1)<>0, IF(OR($AD30="LUMP", $AD30="LS"), "LUMP", OFFSET(#REF!, $AC30 - 1,0,1,1)),"")) ->  | O30: =IF( $AC30 = 0, "", IF( OFFSET(#REF!, $AC30 - 1,0,1,1)<>0, IF(OR($AD30="LUMP", $AD30="LS"), "LUMP", OFFSET(#REF!, $AC30 - 1,0,1,1)),"")) ->  | P30: =IF( $AC30 = 0, "", IF( OFFSET(#REF!, $AC30 - 1,0,1,1)<>0, IF(OR($AD30="LUMP", $AD30="LS"), "LUMP", OFFSET(#REF!, $AC30 - 1,0,1,1)),"")) ->  | Q30: =IF( $AC30 = 0, "", IF( OFFSET(#REF!, $AC30 - 1,0,1,1)<>0, IF(OR($AD30="LUMP", $AD30="LS"), "LUMP", OFFSET(#REF!, $AC30 - 1,0,1,1)),"")) ->  | R30: =IF( $AC30 = 0, "", IF( OFFSET(#REF!, $AC30 - 1,0,1,1)<>0, IF(OR($AD30="LUMP", $AD30="LS"), "LUMP", OFFSET(#REF!, $AC30 - 1,0,1,1)),"")) ->  | S30: =IF( $AC30 = 0, "", IF( OFFSET(#REF!, $AC30 - 1,0,1,1)<>0, IF(OR($AD30="LUMP", $AD30="LS"), "LUMP", OFFSET(#REF!, $AC30 - 1,0,1,1)),"")) ->  | T30: =IF( $AC30 = 0, "", IF( OFFSET(#REF!, $AC30 - 1,0,1,1)<>0, IF(OR($AD30="LUMP", $AD30="LS"), "LUMP", OFFSET(#REF!, $AC30 - 1,0,1,1)),"")) ->  | U30: =IF( $AC30 = 0, "", IF( OFFSET(#REF!, $AC30 - 1,0,1,1)<>0, LEFT(OFFSET(#REF!, $AC30 - 1,0,1,1),3),"")) ->  | V30: =IF( $AC30 = 0, "", IF( OFFSET(#REF!, $AC30 - 1,0,1,1)<>0, IF(LEN(OFFSET(#REF!, $AC30 - 1,0,1,1))=9, RIGHT(OFFSET(#REF!, $AC30 - 1,0,1,1),5), LEFT(RIGHT(OFFSET(#REF!, $AC30 - 1,0,1,1),6), 5) ),"")) ->  | X30: =IF( $AC30 = 0, "", IF( OFFSET(#REF!, $AC30 - 1,0,1,1)<>0,IF(OR(AD30="LUMP", AD30="LS"), "", AD30),"")) ->  | Y30: =IF( $AC30 = 0, "", IF( OFFSET(#REF!, $AC30 - 1,0,1,1)<>0, VLOOKUP( OFFSET(#REF!, $AC30 - 1,0,1,1),[1]Items!$A$2:$E$10001,4,0),"")) ->  | AA30: 28 | AB30: 4 | AC30: 24 | AD30: =IF( $AC30 = 0, "", IF( OFFSET(#REF!, $AC30 - 1,0,1,1)<>0, VLOOKUP( OFFSET(#REF!, $AC30 - 1,0,1,1),[1]Items!$A$2:$E$10001,3,0),"")) -> 
A31: =IF( $AC31 = 0, "", IF( OFFSET(#REF!, $AC31 - 1,0,1,1)<>0, IF(OR($AD31="LUMP", $AD31="LS"), "LUMP", OFFSET(#REF!, $AC31 - 1,0,1,1)),"")) ->  | B31: =IF( $AC31 = 0, "", IF( OFFSET(#REF!, $AC31 - 1,0,1,1)<>0, IF(OR($AD31="LUMP", $AD31="LS"), "LUMP", OFFSET(#REF!, $AC31 - 1,0,1,1)),"")) ->  | C31: =IF( $AC31 = 0, "", IF( OFFSET(#REF!, $AC31 - 1,0,1,1)<>0, IF(OR($AD31="LUMP", $AD31="LS"), "LUMP", OFFSET(#REF!, $AC31 - 1,0,1,1)),"")) ->  | D31: =IF( $AC31 = 0, "", IF( OFFSET(#REF!, $AC31 - 1,0,1,1)<>0, IF(OR($AD31="LUMP", $AD31="LS"), "LUMP", OFFSET(#REF!, $AC31 - 1,0,1,1)),"")) ->  | E31: =IF( $AC31 = 0, "", IF( OFFSET(#REF!, $AC31 - 1,0,1,1)<>0, IF(OR($AD31="LUMP", $AD31="LS"), "LUMP", OFFSET(#REF!, $AC31 - 1,0,1,1)),"")) ->  | F31: =IF( $AC31 = 0, "", IF( OFFSET(#REF!, $AC31 - 1,0,1,1)<>0, IF(OR($AD31="LUMP", $AD31="LS"), "LUMP", OFFSET(#REF!, $AC31 - 1,0,1,1)),"")) ->  | G31: =IF( $AC31 = 0, "", IF( OFFSET(#REF!, $AC31 - 1,0,1,1)<>0, IF(OR($AD31="LUMP", $AD31="LS"), "LUMP", OFFSET(#REF!, $AC31 - 1,0,1,1)),"")) ->  | H31: =IF( $AC31 = 0, "", IF( OFFSET(#REF!, $AC31 - 1,0,1,1)<>0, IF(OR($AD31="LUMP", $AD31="LS"), "LUMP", OFFSET(#REF!, $AC31 - 1,0,1,1)),"")) ->  | I31: =IF( $AC31 = 0, "", IF( OFFSET(#REF!, $AC31 - 1,0,1,1)<>0, IF(OR($AD31="LUMP", $AD31="LS"), "LUMP", OFFSET(#REF!, $AC31 - 1,0,1,1)),"")) ->  | J31: =IF( $AC31 = 0, "", IF( OFFSET(#REF!, $AC31 - 1,0,1,1)<>0, IF(OR($AD31="LUMP", $AD31="LS"), "LUMP", OFFSET(#REF!, $AC31 - 1,0,1,1)),"")) ->  | K31: =IF( $AC31 = 0, "", IF( OFFSET(#REF!, $AC31 - 1,0,1,1)<>0, IF(OR($AD31="LUMP", $AD31="LS"), "LUMP", OFFSET(#REF!, $AC31 - 1,0,1,1)),"")) ->  | L31: =IF( $AC31 = 0, "", IF( OFFSET(#REF!, $AC31 - 1,0,1,1)<>0, IF(OR($AD31="LUMP", $AD31="LS"), "LUMP", OFFSET(#REF!, $AC31 - 1,0,1,1)),"")) ->  | M31: =IF( $AC31 = 0, "", IF( OFFSET(#REF!, $AC31 - 1,0,1,1)<>0, IF(OR($AD31="LUMP", $AD31="LS"), "LUMP", OFFSET(#REF!, $AC31 - 1,0,1,1)),"")) ->  | N31: =IF( $AC31 = 0, "", IF( OFFSET(#REF!, $AC31 - 1,0,1,1)<>0, IF(OR($AD31="LUMP", $AD31="LS"), "LUMP", OFFSET(#REF!, $AC31 - 1,0,1,1)),"")) ->  | O31: =IF( $AC31 = 0, "", IF( OFFSET(#REF!, $AC31 - 1,0,1,1)<>0, IF(OR($AD31="LUMP", $AD31="LS"), "LUMP", OFFSET(#REF!, $AC31 - 1,0,1,1)),"")) ->  | P31: =IF( $AC31 = 0, "", IF( OFFSET(#REF!, $AC31 - 1,0,1,1)<>0, IF(OR($AD31="LUMP", $AD31="LS"), "LUMP", OFFSET(#REF!, $AC31 - 1,0,1,1)),"")) ->  | Q31: =IF( $AC31 = 0, "", IF( OFFSET(#REF!, $AC31 - 1,0,1,1)<>0, IF(OR($AD31="LUMP", $AD31="LS"), "LUMP", OFFSET(#REF!, $AC31 - 1,0,1,1)),"")) ->  | R31: =IF( $AC31 = 0, "", IF( OFFSET(#REF!, $AC31 - 1,0,1,1)<>0, IF(OR($AD31="LUMP", $AD31="LS"), "LUMP", OFFSET(#REF!, $AC31 - 1,0,1,1)),"")) ->  | S31: =IF( $AC31 = 0, "", IF( OFFSET(#REF!, $AC31 - 1,0,1,1)<>0, IF(OR($AD31="LUMP", $AD31="LS"), "LUMP", OFFSET(#REF!, $AC31 - 1,0,1,1)),"")) ->  | T31: =IF( $AC31 = 0, "", IF( OFFSET(#REF!, $AC31 - 1,0,1,1)<>0, IF(OR($AD31="LUMP", $AD31="LS"), "LUMP", OFFSET(#REF!, $AC31 - 1,0,1,1)),"")) ->  | U31: =IF( $AC31 = 0, "", IF( OFFSET(#REF!, $AC31 - 1,0,1,1)<>0, LEFT(OFFSET(#REF!, $AC31 - 1,0,1,1),3),"")) ->  | V31: =IF( $AC31 = 0, "", IF( OFFSET(#REF!, $AC31 - 1,0,1,1)<>0, IF(LEN(OFFSET(#REF!, $AC31 - 1,0,1,1))=9, RIGHT(OFFSET(#REF!, $AC31 - 1,0,1,1),5), LEFT(RIGHT(OFFSET(#REF!, $AC31 - 1,0,1,1),6), 5) ),"")) ->  | X31: =IF( $AC31 = 0, "", IF( OFFSET(#REF!, $AC31 - 1,0,1,1)<>0,IF(OR(AD31="LUMP", AD31="LS"), "", AD31),"")) ->  | Y31: =IF( $AC31 = 0, "", IF( OFFSET(#REF!, $AC31 - 1,0,1,1)<>0, VLOOKUP( OFFSET(#REF!, $AC31 - 1,0,1,1),[1]Items!$A$2:$E$10001,4,0),"")) ->  | AA31: 29 | AB31: 4 | AC31: 25 | AD31: =IF( $AC31 = 0, "", IF( OFFSET(#REF!, $AC31 - 1,0,1,1)<>0, VLOOKUP( OFFSET(#REF!, $AC31 - 1,0,1,1),[1]Items!$A$2:$E$10001,3,0),"")) -> 
A32: =IF( $AC32 = 0, "", IF( OFFSET(#REF!, $AC32 - 1,0,1,1)<>0, IF(OR($AD32="LUMP", $AD32="LS"), "LUMP", OFFSET(#REF!, $AC32 - 1,0,1,1)),"")) ->  | B32: =IF( $AC32 = 0, "", IF( OFFSET(#REF!, $AC32 - 1,0,1,1)<>0, IF(OR($AD32="LUMP", $AD32="LS"), "LUMP", OFFSET(#REF!, $AC32 - 1,0,1,1)),"")) ->  | C32: =IF( $AC32 = 0, "", IF( OFFSET(#REF!, $AC32 - 1,0,1,1)<>0, IF(OR($AD32="LUMP", $AD32="LS"), "LUMP", OFFSET(#REF!, $AC32 - 1,0,1,1)),"")) ->  | D32: =IF( $AC32 = 0, "", IF( OFFSET(#REF!, $AC32 - 1,0,1,1)<>0, IF(OR($AD32="LUMP", $AD32="LS"), "LUMP", OFFSET(#REF!, $AC32 - 1,0,1,1)),"")) ->  | E32: =IF( $AC32 = 0, "", IF( OFFSET(#REF!, $AC32 - 1,0,1,1)<>0, IF(OR($AD32="LUMP", $AD32="LS"), "LUMP", OFFSET(#REF!, $AC32 - 1,0,1,1)),"")) ->  | F32: =IF( $AC32 = 0, "", IF( OFFSET(#REF!, $AC32 - 1,0,1,1)<>0, IF(OR($AD32="LUMP", $AD32="LS"), "LUMP", OFFSET(#REF!, $AC32 - 1,0,1,1)),"")) ->  | G32: =IF( $AC32 = 0, "", IF( OFFSET(#REF!, $AC32 - 1,0,1,1)<>0, IF(OR($AD32="LUMP", $AD32="LS"), "LUMP", OFFSET(#REF!, $AC32 - 1,0,1,1)),"")) ->  | H32: =IF( $AC32 = 0, "", IF( OFFSET(#REF!, $AC32 - 1,0,1,1)<>0, IF(OR($AD32="LUMP", $AD32="LS"), "LUMP", OFFSET(#REF!, $AC32 - 1,0,1,1)),"")) ->  | I32: =IF( $AC32 = 0, "", IF( OFFSET(#REF!, $AC32 - 1,0,1,1)<>0, IF(OR($AD32="LUMP", $AD32="LS"), "LUMP", OFFSET(#REF!, $AC32 - 1,0,1,1)),"")) ->  | J32: =IF( $AC32 = 0, "", IF( OFFSET(#REF!, $AC32 - 1,0,1,1)<>0, IF(OR($AD32="LUMP", $AD32="LS"), "LUMP", OFFSET(#REF!, $AC32 - 1,0,1,1)),"")) ->  | K32: =IF( $AC32 = 0, "", IF( OFFSET(#REF!, $AC32 - 1,0,1,1)<>0, IF(OR($AD32="LUMP", $AD32="LS"), "LUMP", OFFSET(#REF!, $AC32 - 1,0,1,1)),"")) ->  | L32: =IF( $AC32 = 0, "", IF( OFFSET(#REF!, $AC32 - 1,0,1,1)<>0, IF(OR($AD32="LUMP", $AD32="LS"), "LUMP", OFFSET(#REF!, $AC32 - 1,0,1,1)),"")) ->  | M32: =IF( $AC32 = 0, "", IF( OFFSET(#REF!, $AC32 - 1,0,1,1)<>0, IF(OR($AD32="LUMP", $AD32="LS"), "LUMP", OFFSET(#REF!, $AC32 - 1,0,1,1)),"")) ->  | N32: =IF( $AC32 = 0, "", IF( OFFSET(#REF!, $AC32 - 1,0,1,1)<>0, IF(OR($AD32="LUMP", $AD32="LS"), "LUMP", OFFSET(#REF!, $AC32 - 1,0,1,1)),"")) ->  | O32: =IF( $AC32 = 0, "", IF( OFFSET(#REF!, $AC32 - 1,0,1,1)<>0, IF(OR($AD32="LUMP", $AD32="LS"), "LUMP", OFFSET(#REF!, $AC32 - 1,0,1,1)),"")) ->  | P32: =IF( $AC32 = 0, "", IF( OFFSET(#REF!, $AC32 - 1,0,1,1)<>0, IF(OR($AD32="LUMP", $AD32="LS"), "LUMP", OFFSET(#REF!, $AC32 - 1,0,1,1)),"")) ->  | Q32: =IF( $AC32 = 0, "", IF( OFFSET(#REF!, $AC32 - 1,0,1,1)<>0, IF(OR($AD32="LUMP", $AD32="LS"), "LUMP", OFFSET(#REF!, $AC32 - 1,0,1,1)),"")) ->  | R32: =IF( $AC32 = 0, "", IF( OFFSET(#REF!, $AC32 - 1,0,1,1)<>0, IF(OR($AD32="LUMP", $AD32="LS"), "LUMP", OFFSET(#REF!, $AC32 - 1,0,1,1)),"")) ->  | S32: =IF( $AC32 = 0, "", IF( OFFSET(#REF!, $AC32 - 1,0,1,1)<>0, IF(OR($AD32="LUMP", $AD32="LS"), "LUMP", OFFSET(#REF!, $AC32 - 1,0,1,1)),"")) ->  | T32: =IF( $AC32 = 0, "", IF( OFFSET(#REF!, $AC32 - 1,0,1,1)<>0, IF(OR($AD32="LUMP", $AD32="LS"), "LUMP", OFFSET(#REF!, $AC32 - 1,0,1,1)),"")) ->  | U32: =IF( $AC32 = 0, "", IF( OFFSET(#REF!, $AC32 - 1,0,1,1)<>0, LEFT(OFFSET(#REF!, $AC32 - 1,0,1,1),3),"")) ->  | V32: =IF( $AC32 = 0, "", IF( OFFSET(#REF!, $AC32 - 1,0,1,1)<>0, IF(LEN(OFFSET(#REF!, $AC32 - 1,0,1,1))=9, RIGHT(OFFSET(#REF!, $AC32 - 1,0,1,1),5), LEFT(RIGHT(OFFSET(#REF!, $AC32 - 1,0,1,1),6), 5) ),"")) ->  | X32: =IF( $AC32 = 0, "", IF( OFFSET(#REF!, $AC32 - 1,0,1,1)<>0,IF(OR(AD32="LUMP", AD32="LS"), "", AD32),"")) ->  | Y32: =IF( $AC32 = 0, "", IF( OFFSET(#REF!, $AC32 - 1,0,1,1)<>0, VLOOKUP( OFFSET(#REF!, $AC32 - 1,0,1,1),[1]Items!$A$2:$E$10001,4,0),"")) ->  | AA32: 30 | AB32: 5 | AC32: 0 | AD32: =IF( $AC32 = 0, "", IF( OFFSET(#REF!, $AC32 - 1,0,1,1)<>0, VLOOKUP( OFFSET(#REF!, $AC32 - 1,0,1,1),[1]Items!$A$2:$E$10001,3,0),"")) -> 
A33: =IF( $AC33 = 0, "", IF( OFFSET(#REF!, $AC33 - 1,0,1,1)<>0, IF(OR($AD33="LUMP", $AD33="LS"), "LUMP", OFFSET(#REF!, $AC33 - 1,0,1,1)),"")) ->  | B33: =IF( $AC33 = 0, "", IF( OFFSET(#REF!, $AC33 - 1,0,1,1)<>0, IF(OR($AD33="LUMP", $AD33="LS"), "LUMP", OFFSET(#REF!, $AC33 - 1,0,1,1)),"")) ->  | C33: =IF( $AC33 = 0, "", IF( OFFSET(#REF!, $AC33 - 1,0,1,1)<>0, IF(OR($AD33="LUMP", $AD33="LS"), "LUMP", OFFSET(#REF!, $AC33 - 1,0,1,1)),"")) ->  | D33: =IF( $AC33 = 0, "", IF( OFFSET(#REF!, $AC33 - 1,0,1,1)<>0, IF(OR($AD33="LUMP", $AD33="LS"), "LUMP", OFFSET(#REF!, $AC33 - 1,0,1,1)),"")) ->  | E33: =IF( $AC33 = 0, "", IF( OFFSET(#REF!, $AC33 - 1,0,1,1)<>0, IF(OR($AD33="LUMP", $AD33="LS"), "LUMP", OFFSET(#REF!, $AC33 - 1,0,1,1)),"")) ->  | F33: =IF( $AC33 = 0, "", IF( OFFSET(#REF!, $AC33 - 1,0,1,1)<>0, IF(OR($AD33="LUMP", $AD33="LS"), "LUMP", OFFSET(#REF!, $AC33 - 1,0,1,1)),"")) ->  | G33: =IF( $AC33 = 0, "", IF( OFFSET(#REF!, $AC33 - 1,0,1,1)<>0, IF(OR($AD33="LUMP", $AD33="LS"), "LUMP", OFFSET(#REF!, $AC33 - 1,0,1,1)),"")) ->  | H33: =IF( $AC33 = 0, "", IF( OFFSET(#REF!, $AC33 - 1,0,1,1)<>0, IF(OR($AD33="LUMP", $AD33="LS"), "LUMP", OFFSET(#REF!, $AC33 - 1,0,1,1)),"")) ->  | I33: =IF( $AC33 = 0, "", IF( OFFSET(#REF!, $AC33 - 1,0,1,1)<>0, IF(OR($AD33="LUMP", $AD33="LS"), "LUMP", OFFSET(#REF!, $AC33 - 1,0,1,1)),"")) ->  | J33: =IF( $AC33 = 0, "", IF( OFFSET(#REF!, $AC33 - 1,0,1,1)<>0, IF(OR($AD33="LUMP", $AD33="LS"), "LUMP", OFFSET(#REF!, $AC33 - 1,0,1,1)),"")) ->  | K33: =IF( $AC33 = 0, "", IF( OFFSET(#REF!, $AC33 - 1,0,1,1)<>0, IF(OR($AD33="LUMP", $AD33="LS"), "LUMP", OFFSET(#REF!, $AC33 - 1,0,1,1)),"")) ->  | L33: =IF( $AC33 = 0, "", IF( OFFSET(#REF!, $AC33 - 1,0,1,1)<>0, IF(OR($AD33="LUMP", $AD33="LS"), "LUMP", OFFSET(#REF!, $AC33 - 1,0,1,1)),"")) ->  | M33: =IF( $AC33 = 0, "", IF( OFFSET(#REF!, $AC33 - 1,0,1,1)<>0, IF(OR($AD33="LUMP", $AD33="LS"), "LUMP", OFFSET(#REF!, $AC33 - 1,0,1,1)),"")) ->  | N33: =IF( $AC33 = 0, "", IF( OFFSET(#REF!, $AC33 - 1,0,1,1)<>0, IF(OR($AD33="LUMP", $AD33="LS"), "LUMP", OFFSET(#REF!, $AC33 - 1,0,1,1)),"")) ->  | O33: =IF( $AC33 = 0, "", IF( OFFSET(#REF!, $AC33 - 1,0,1,1)<>0, IF(OR($AD33="LUMP", $AD33="LS"), "LUMP", OFFSET(#REF!, $AC33 - 1,0,1,1)),"")) ->  | P33: =IF( $AC33 = 0, "", IF( OFFSET(#REF!, $AC33 - 1,0,1,1)<>0, IF(OR($AD33="LUMP", $AD33="LS"), "LUMP", OFFSET(#REF!, $AC33 - 1,0,1,1)),"")) ->  | Q33: =IF( $AC33 = 0, "", IF( OFFSET(#REF!, $AC33 - 1,0,1,1)<>0, IF(OR($AD33="LUMP", $AD33="LS"), "LUMP", OFFSET(#REF!, $AC33 - 1,0,1,1)),"")) ->  | R33: =IF( $AC33 = 0, "", IF( OFFSET(#REF!, $AC33 - 1,0,1,1)<>0, IF(OR($AD33="LUMP", $AD33="LS"), "LUMP", OFFSET(#REF!, $AC33 - 1,0,1,1)),"")) ->  | S33: =IF( $AC33 = 0, "", IF( OFFSET(#REF!, $AC33 - 1,0,1,1)<>0, IF(OR($AD33="LUMP", $AD33="LS"), "LUMP", OFFSET(#REF!, $AC33 - 1,0,1,1)),"")) ->  | T33: =IF( $AC33 = 0, "", IF( OFFSET(#REF!, $AC33 - 1,0,1,1)<>0, IF(OR($AD33="LUMP", $AD33="LS"), "LUMP", OFFSET(#REF!, $AC33 - 1,0,1,1)),"")) ->  | U33: =IF( $AC33 = 0, "", IF( OFFSET(#REF!, $AC33 - 1,0,1,1)<>0, LEFT(OFFSET(#REF!, $AC33 - 1,0,1,1),3),"")) ->  | V33: =IF( $AC33 = 0, "", IF( OFFSET(#REF!, $AC33 - 1,0,1,1)<>0, IF(LEN(OFFSET(#REF!, $AC33 - 1,0,1,1))=9, RIGHT(OFFSET(#REF!, $AC33 - 1,0,1,1),5), LEFT(RIGHT(OFFSET(#REF!, $AC33 - 1,0,1,1),6), 5) ),"")) ->  | X33: =IF( $AC33 = 0, "", IF( OFFSET(#REF!, $AC33 - 1,0,1,1)<>0,IF(OR(AD33="LUMP", AD33="LS"), "", AD33),"")) ->  | Y33: =IF( $AC33 = 0, "", IF( OFFSET(#REF!, $AC33 - 1,0,1,1)<>0, VLOOKUP( OFFSET(#REF!, $AC33 - 1,0,1,1),[1]Items!$A$2:$E$10001,4,0),"")) ->  | AA33: 31 | AB33: 5 | AC33: 26 | AD33: =IF( $AC33 = 0, "", IF( OFFSET(#REF!, $AC33 - 1,0,1,1)<>0, VLOOKUP( OFFSET(#REF!, $AC33 - 1,0,1,1),[1]Items!$A$2:$E$10001,3,0),"")) -> 
A34: =IF( $AC34 = 0, "", IF( OFFSET(#REF!, $AC34 - 1,0,1,1)<>0, IF(OR($AD34="LUMP", $AD34="LS"), "LUMP", OFFSET(#REF!, $AC34 - 1,0,1,1)),"")) ->  | B34: =IF( $AC34 = 0, "", IF( OFFSET(#REF!, $AC34 - 1,0,1,1)<>0, IF(OR($AD34="LUMP", $AD34="LS"), "LUMP", OFFSET(#REF!, $AC34 - 1,0,1,1)),"")) ->  | C34: =IF( $AC34 = 0, "", IF( OFFSET(#REF!, $AC34 - 1,0,1,1)<>0, IF(OR($AD34="LUMP", $AD34="LS"), "LUMP", OFFSET(#REF!, $AC34 - 1,0,1,1)),"")) ->  | D34: =IF( $AC34 = 0, "", IF( OFFSET(#REF!, $AC34 - 1,0,1,1)<>0, IF(OR($AD34="LUMP", $AD34="LS"), "LUMP", OFFSET(#REF!, $AC34 - 1,0,1,1)),"")) ->  | E34: =IF( $AC34 = 0, "", IF( OFFSET(#REF!, $AC34 - 1,0,1,1)<>0, IF(OR($AD34="LUMP", $AD34="LS"), "LUMP", OFFSET(#REF!, $AC34 - 1,0,1,1)),"")) ->  | F34: =IF( $AC34 = 0, "", IF( OFFSET(#REF!, $AC34 - 1,0,1,1)<>0, IF(OR($AD34="LUMP", $AD34="LS"), "LUMP", OFFSET(#REF!, $AC34 - 1,0,1,1)),"")) ->  | G34: =IF( $AC34 = 0, "", IF( OFFSET(#REF!, $AC34 - 1,0,1,1)<>0, IF(OR($AD34="LUMP", $AD34="LS"), "LUMP", OFFSET(#REF!, $AC34 - 1,0,1,1)),"")) ->  | H34: =IF( $AC34 = 0, "", IF( OFFSET(#REF!, $AC34 - 1,0,1,1)<>0, IF(OR($AD34="LUMP", $AD34="LS"), "LUMP", OFFSET(#REF!, $AC34 - 1,0,1,1)),"")) ->  | I34: =IF( $AC34 = 0, "", IF( OFFSET(#REF!, $AC34 - 1,0,1,1)<>0, IF(OR($AD34="LUMP", $AD34="LS"), "LUMP", OFFSET(#REF!, $AC34 - 1,0,1,1)),"")) ->  | J34: =IF( $AC34 = 0, "", IF( OFFSET(#REF!, $AC34 - 1,0,1,1)<>0, IF(OR($AD34="LUMP", $AD34="LS"), "LUMP", OFFSET(#REF!, $AC34 - 1,0,1,1)),"")) ->  | K34: =IF( $AC34 = 0, "", IF( OFFSET(#REF!, $AC34 - 1,0,1,1)<>0, IF(OR($AD34="LUMP", $AD34="LS"), "LUMP", OFFSET(#REF!, $AC34 - 1,0,1,1)),"")) ->  | L34: =IF( $AC34 = 0, "", IF( OFFSET(#REF!, $AC34 - 1,0,1,1)<>0, IF(OR($AD34="LUMP", $AD34="LS"), "LUMP", OFFSET(#REF!, $AC34 - 1,0,1,1)),"")) ->  | M34: =IF( $AC34 = 0, "", IF( OFFSET(#REF!, $AC34 - 1,0,1,1)<>0, IF(OR($AD34="LUMP", $AD34="LS"), "LUMP", OFFSET(#REF!, $AC34 - 1,0,1,1)),"")) ->  | N34: =IF( $AC34 = 0, "", IF( OFFSET(#REF!, $AC34 - 1,0,1,1)<>0, IF(OR($AD34="LUMP", $AD34="LS"), "LUMP", OFFSET(#REF!, $AC34 - 1,0,1,1)),"")) ->  | O34: =IF( $AC34 = 0, "", IF( OFFSET(#REF!, $AC34 - 1,0,1,1)<>0, IF(OR($AD34="LUMP", $AD34="LS"), "LUMP", OFFSET(#REF!, $AC34 - 1,0,1,1)),"")) ->  | P34: =IF( $AC34 = 0, "", IF( OFFSET(#REF!, $AC34 - 1,0,1,1)<>0, IF(OR($AD34="LUMP", $AD34="LS"), "LUMP", OFFSET(#REF!, $AC34 - 1,0,1,1)),"")) ->  | Q34: =IF( $AC34 = 0, "", IF( OFFSET(#REF!, $AC34 - 1,0,1,1)<>0, IF(OR($AD34="LUMP", $AD34="LS"), "LUMP", OFFSET(#REF!, $AC34 - 1,0,1,1)),"")) ->  | R34: =IF( $AC34 = 0, "", IF( OFFSET(#REF!, $AC34 - 1,0,1,1)<>0, IF(OR($AD34="LUMP", $AD34="LS"), "LUMP", OFFSET(#REF!, $AC34 - 1,0,1,1)),"")) ->  | S34: =IF( $AC34 = 0, "", IF( OFFSET(#REF!, $AC34 - 1,0,1,1)<>0, IF(OR($AD34="LUMP", $AD34="LS"), "LUMP", OFFSET(#REF!, $AC34 - 1,0,1,1)),"")) ->  | T34: =IF( $AC34 = 0, "", IF( OFFSET(#REF!, $AC34 - 1,0,1,1)<>0, IF(OR($AD34="LUMP", $AD34="LS"), "LUMP", OFFSET(#REF!, $AC34 - 1,0,1,1)),"")) ->  | U34: =IF( $AC34 = 0, "", IF( OFFSET(#REF!, $AC34 - 1,0,1,1)<>0, LEFT(OFFSET(#REF!, $AC34 - 1,0,1,1),3),"")) ->  | V34: =IF( $AC34 = 0, "", IF( OFFSET(#REF!, $AC34 - 1,0,1,1)<>0, IF(LEN(OFFSET(#REF!, $AC34 - 1,0,1,1))=9, RIGHT(OFFSET(#REF!, $AC34 - 1,0,1,1),5), LEFT(RIGHT(OFFSET(#REF!, $AC34 - 1,0,1,1),6), 5) ),"")) ->  | X34: =IF( $AC34 = 0, "", IF( OFFSET(#REF!, $AC34 - 1,0,1,1)<>0,IF(OR(AD34="LUMP", AD34="LS"), "", AD34),"")) ->  | Y34: =IF( $AC34 = 0, "", IF( OFFSET(#REF!, $AC34 - 1,0,1,1)<>0, VLOOKUP( OFFSET(#REF!, $AC34 - 1,0,1,1),[1]Items!$A$2:$E$10001,4,0),"")) ->  | AA34: 32 | AB34: 5 | AC34: 27 | AD34: =IF( $AC34 = 0, "", IF( OFFSET(#REF!, $AC34 - 1,0,1,1)<>0, VLOOKUP( OFFSET(#REF!, $AC34 - 1,0,1,1),[1]Items!$A$2:$E$10001,3,0),"")) -> 
A35: =IF( $AC35 = 0, "", IF( OFFSET(#REF!, $AC35 - 1,0,1,1)<>0, IF(OR($AD35="LUMP", $AD35="LS"), "LUMP", OFFSET(#REF!, $AC35 - 1,0,1,1)),"")) ->  | B35: =IF( $AC35 = 0, "", IF( OFFSET(#REF!, $AC35 - 1,0,1,1)<>0, IF(OR($AD35="LUMP", $AD35="LS"), "LUMP", OFFSET(#REF!, $AC35 - 1,0,1,1)),"")) ->  | C35: =IF( $AC35 = 0, "", IF( OFFSET(#REF!, $AC35 - 1,0,1,1)<>0, IF(OR($AD35="LUMP", $AD35="LS"), "LUMP", OFFSET(#REF!, $AC35 - 1,0,1,1)),"")) ->  | D35: =IF( $AC35 = 0, "", IF( OFFSET(#REF!, $AC35 - 1,0,1,1)<>0, IF(OR($AD35="LUMP", $AD35="LS"), "LUMP", OFFSET(#REF!, $AC35 - 1,0,1,1)),"")) ->  | E35: =IF( $AC35 = 0, "", IF( OFFSET(#REF!, $AC35 - 1,0,1,1)<>0, IF(OR($AD35="LUMP", $AD35="LS"), "LUMP", OFFSET(#REF!, $AC35 - 1,0,1,1)),"")) ->  | F35: =IF( $AC35 = 0, "", IF( OFFSET(#REF!, $AC35 - 1,0,1,1)<>0, IF(OR($AD35="LUMP", $AD35="LS"), "LUMP", OFFSET(#REF!, $AC35 - 1,0,1,1)),"")) ->  | G35: =IF( $AC35 = 0, "", IF( OFFSET(#REF!, $AC35 - 1,0,1,1)<>0, IF(OR($AD35="LUMP", $AD35="LS"), "LUMP", OFFSET(#REF!, $AC35 - 1,0,1,1)),"")) ->  | H35: =IF( $AC35 = 0, "", IF( OFFSET(#REF!, $AC35 - 1,0,1,1)<>0, IF(OR($AD35="LUMP", $AD35="LS"), "LUMP", OFFSET(#REF!, $AC35 - 1,0,1,1)),"")) ->  | I35: =IF( $AC35 = 0, "", IF( OFFSET(#REF!, $AC35 - 1,0,1,1)<>0, IF(OR($AD35="LUMP", $AD35="LS"), "LUMP", OFFSET(#REF!, $AC35 - 1,0,1,1)),"")) ->  | J35: =IF( $AC35 = 0, "", IF( OFFSET(#REF!, $AC35 - 1,0,1,1)<>0, IF(OR($AD35="LUMP", $AD35="LS"), "LUMP", OFFSET(#REF!, $AC35 - 1,0,1,1)),"")) ->  | K35: =IF( $AC35 = 0, "", IF( OFFSET(#REF!, $AC35 - 1,0,1,1)<>0, IF(OR($AD35="LUMP", $AD35="LS"), "LUMP", OFFSET(#REF!, $AC35 - 1,0,1,1)),"")) ->  | L35: =IF( $AC35 = 0, "", IF( OFFSET(#REF!, $AC35 - 1,0,1,1)<>0, IF(OR($AD35="LUMP", $AD35="LS"), "LUMP", OFFSET(#REF!, $AC35 - 1,0,1,1)),"")) ->  | M35: =IF( $AC35 = 0, "", IF( OFFSET(#REF!, $AC35 - 1,0,1,1)<>0, IF(OR($AD35="LUMP", $AD35="LS"), "LUMP", OFFSET(#REF!, $AC35 - 1,0,1,1)),"")) ->  | N35: =IF( $AC35 = 0, "", IF( OFFSET(#REF!, $AC35 - 1,0,1,1)<>0, IF(OR($AD35="LUMP", $AD35="LS"), "LUMP", OFFSET(#REF!, $AC35 - 1,0,1,1)),"")) ->  | O35: =IF( $AC35 = 0, "", IF( OFFSET(#REF!, $AC35 - 1,0,1,1)<>0, IF(OR($AD35="LUMP", $AD35="LS"), "LUMP", OFFSET(#REF!, $AC35 - 1,0,1,1)),"")) ->  | P35: =IF( $AC35 = 0, "", IF( OFFSET(#REF!, $AC35 - 1,0,1,1)<>0, IF(OR($AD35="LUMP", $AD35="LS"), "LUMP", OFFSET(#REF!, $AC35 - 1,0,1,1)),"")) ->  | Q35: =IF( $AC35 = 0, "", IF( OFFSET(#REF!, $AC35 - 1,0,1,1)<>0, IF(OR($AD35="LUMP", $AD35="LS"), "LUMP", OFFSET(#REF!, $AC35 - 1,0,1,1)),"")) ->  | R35: =IF( $AC35 = 0, "", IF( OFFSET(#REF!, $AC35 - 1,0,1,1)<>0, IF(OR($AD35="LUMP", $AD35="LS"), "LUMP", OFFSET(#REF!, $AC35 - 1,0,1,1)),"")) ->  | S35: =IF( $AC35 = 0, "", IF( OFFSET(#REF!, $AC35 - 1,0,1,1)<>0, IF(OR($AD35="LUMP", $AD35="LS"), "LUMP", OFFSET(#REF!, $AC35 - 1,0,1,1)),"")) ->  | T35: =IF( $AC35 = 0, "", IF( OFFSET(#REF!, $AC35 - 1,0,1,1)<>0, IF(OR($AD35="LUMP", $AD35="LS"), "LUMP", OFFSET(#REF!, $AC35 - 1,0,1,1)),"")) ->  | U35: =IF( $AC35 = 0, "", IF( OFFSET(#REF!, $AC35 - 1,0,1,1)<>0, LEFT(OFFSET(#REF!, $AC35 - 1,0,1,1),3),"")) ->  | V35: =IF( $AC35 = 0, "", IF( OFFSET(#REF!, $AC35 - 1,0,1,1)<>0, IF(LEN(OFFSET(#REF!, $AC35 - 1,0,1,1))=9, RIGHT(OFFSET(#REF!, $AC35 - 1,0,1,1),5), LEFT(RIGHT(OFFSET(#REF!, $AC35 - 1,0,1,1),6), 5) ),"")) ->  | X35: =IF( $AC35 = 0, "", IF( OFFSET(#REF!, $AC35 - 1,0,1,1)<>0,IF(OR(AD35="LUMP", AD35="LS"), "", AD35),"")) ->  | Y35: =IF( $AC35 = 0, "", IF( OFFSET(#REF!, $AC35 - 1,0,1,1)<>0, VLOOKUP( OFFSET(#REF!, $AC35 - 1,0,1,1),[1]Items!$A$2:$E$10001,4,0),"")) ->  | AA35: 33 | AB35: =INT(AA35/6) -> 5 | AC35: =IF( (AA35 - 6*AB35) = 0, 0, AA35 - AB35 ) -> 28 | AD35: =IF( $AC35 = 0, "", IF( OFFSET(#REF!, $AC35 - 1,0,1,1)<>0, VLOOKUP( OFFSET(#REF!, $AC35 - 1,0,1,1),[1]Items!$A$2:$E$10001,3,0),"")) -> 
A36: =IF( $AC36 = 0, "", IF( OFFSET(#REF!, $AC36 - 1,0,1,1)<>0, IF(OR($AD36="LUMP", $AD36="LS"), "LUMP", OFFSET(#REF!, $AC36 - 1,0,1,1)),"")) ->  | B36: =IF( $AC36 = 0, "", IF( OFFSET(#REF!, $AC36 - 1,0,1,1)<>0, IF(OR($AD36="LUMP", $AD36="LS"), "LUMP", OFFSET(#REF!, $AC36 - 1,0,1,1)),"")) ->  | C36: =IF( $AC36 = 0, "", IF( OFFSET(#REF!, $AC36 - 1,0,1,1)<>0, IF(OR($AD36="LUMP", $AD36="LS"), "LUMP", OFFSET(#REF!, $AC36 - 1,0,1,1)),"")) ->  | D36: =IF( $AC36 = 0, "", IF( OFFSET(#REF!, $AC36 - 1,0,1,1)<>0, IF(OR($AD36="LUMP", $AD36="LS"), "LUMP", OFFSET(#REF!, $AC36 - 1,0,1,1)),"")) ->  | E36: =IF( $AC36 = 0, "", IF( OFFSET(#REF!, $AC36 - 1,0,1,1)<>0, IF(OR($AD36="LUMP", $AD36="LS"), "LUMP", OFFSET(#REF!, $AC36 - 1,0,1,1)),"")) ->  | F36: =IF( $AC36 = 0, "", IF( OFFSET(#REF!, $AC36 - 1,0,1,1)<>0, IF(OR($AD36="LUMP", $AD36="LS"), "LUMP", OFFSET(#REF!, $AC36 - 1,0,1,1)),"")) ->  | G36: =IF( $AC36 = 0, "", IF( OFFSET(#REF!, $AC36 - 1,0,1,1)<>0, IF(OR($AD36="LUMP", $AD36="LS"), "LUMP", OFFSET(#REF!, $AC36 - 1,0,1,1)),"")) ->  | H36: =IF( $AC36 = 0, "", IF( OFFSET(#REF!, $AC36 - 1,0,1,1)<>0, IF(OR($AD36="LUMP", $AD36="LS"), "LUMP", OFFSET(#REF!, $AC36 - 1,0,1,1)),"")) ->  | I36: =IF( $AC36 = 0, "", IF( OFFSET(#REF!, $AC36 - 1,0,1,1)<>0, IF(OR($AD36="LUMP", $AD36="LS"), "LUMP", OFFSET(#REF!, $AC36 - 1,0,1,1)),"")) ->  | J36: =IF( $AC36 = 0, "", IF( OFFSET(#REF!, $AC36 - 1,0,1,1)<>0, IF(OR($AD36="LUMP", $AD36="LS"), "LUMP", OFFSET(#REF!, $AC36 - 1,0,1,1)),"")) ->  | K36: =IF( $AC36 = 0, "", IF( OFFSET(#REF!, $AC36 - 1,0,1,1)<>0, IF(OR($AD36="LUMP", $AD36="LS"), "LUMP", OFFSET(#REF!, $AC36 - 1,0,1,1)),"")) ->  | L36: =IF( $AC36 = 0, "", IF( OFFSET(#REF!, $AC36 - 1,0,1,1)<>0, IF(OR($AD36="LUMP", $AD36="LS"), "LUMP", OFFSET(#REF!, $AC36 - 1,0,1,1)),"")) ->  | M36: =IF( $AC36 = 0, "", IF( OFFSET(#REF!, $AC36 - 1,0,1,1)<>0, IF(OR($AD36="LUMP", $AD36="LS"), "LUMP", OFFSET(#REF!, $AC36 - 1,0,1,1)),"")) ->  | N36: =IF( $AC36 = 0, "", IF( OFFSET(#REF!, $AC36 - 1,0,1,1)<>0, IF(OR($AD36="LUMP", $AD36="LS"), "LUMP", OFFSET(#REF!, $AC36 - 1,0,1,1)),"")) ->  | O36: =IF( $AC36 = 0, "", IF( OFFSET(#REF!, $AC36 - 1,0,1,1)<>0, IF(OR($AD36="LUMP", $AD36="LS"), "LUMP", OFFSET(#REF!, $AC36 - 1,0,1,1)),"")) ->  | P36: =IF( $AC36 = 0, "", IF( OFFSET(#REF!, $AC36 - 1,0,1,1)<>0, IF(OR($AD36="LUMP", $AD36="LS"), "LUMP", OFFSET(#REF!, $AC36 - 1,0,1,1)),"")) ->  | Q36: =IF( $AC36 = 0, "", IF( OFFSET(#REF!, $AC36 - 1,0,1,1)<>0, IF(OR($AD36="LUMP", $AD36="LS"), "LUMP", OFFSET(#REF!, $AC36 - 1,0,1,1)),"")) ->  | R36: =IF( $AC36 = 0, "", IF( OFFSET(#REF!, $AC36 - 1,0,1,1)<>0, IF(OR($AD36="LUMP", $AD36="LS"), "LUMP", OFFSET(#REF!, $AC36 - 1,0,1,1)),"")) ->  | S36: =IF( $AC36 = 0, "", IF( OFFSET(#REF!, $AC36 - 1,0,1,1)<>0, IF(OR($AD36="LUMP", $AD36="LS"), "LUMP", OFFSET(#REF!, $AC36 - 1,0,1,1)),"")) ->  | T36: =IF( $AC36 = 0, "", IF( OFFSET(#REF!, $AC36 - 1,0,1,1)<>0, IF(OR($AD36="LUMP", $AD36="LS"), "LUMP", OFFSET(#REF!, $AC36 - 1,0,1,1)),"")) ->  | U36: =IF( $AC36 = 0, "", IF( OFFSET(#REF!, $AC36 - 1,0,1,1)<>0, LEFT(OFFSET(#REF!, $AC36 - 1,0,1,1),3),"")) ->  | V36: =IF( $AC36 = 0, "", IF( OFFSET(#REF!, $AC36 - 1,0,1,1)<>0, IF(LEN(OFFSET(#REF!, $AC36 - 1,0,1,1))=9, RIGHT(OFFSET(#REF!, $AC36 - 1,0,1,1),5), LEFT(RIGHT(OFFSET(#REF!, $AC36 - 1,0,1,1),6), 5) ),"")) ->  | X36: =IF( $AC36 = 0, "", IF( OFFSET(#REF!, $AC36 - 1,0,1,1)<>0,IF(OR(AD36="LUMP", AD36="LS"), "", AD36),"")) ->  | Y36: =IF( $AC36 = 0, "", IF( OFFSET(#REF!, $AC36 - 1,0,1,1)<>0, VLOOKUP( OFFSET(#REF!, $AC36 - 1,0,1,1),[1]Items!$A$2:$E$10001,4,0),"")) ->  | AA36: =AA35+1 -> 34 | AB36: 5 | AC36: 29 | AD36: =IF( $AC36 = 0, "", IF( OFFSET(#REF!, $AC36 - 1,0,1,1)<>0, VLOOKUP( OFFSET(#REF!, $AC36 - 1,0,1,1),[1]Items!$A$2:$E$10001,3,0),"")) -> 
A37: =IF( $AC37 = 0, "", IF( OFFSET(#REF!, $AC37 - 1,0,1,1)<>0, IF(OR($AD37="LUMP", $AD37="LS"), "LUMP", OFFSET(#REF!, $AC37 - 1,0,1,1)),"")) ->  | B37: =IF( $AC37 = 0, "", IF( OFFSET(#REF!, $AC37 - 1,0,1,1)<>0, IF(OR($AD37="LUMP", $AD37="LS"), "LUMP", OFFSET(#REF!, $AC37 - 1,0,1,1)),"")) ->  | C37: =IF( $AC37 = 0, "", IF( OFFSET(#REF!, $AC37 - 1,0,1,1)<>0, IF(OR($AD37="LUMP", $AD37="LS"), "LUMP", OFFSET(#REF!, $AC37 - 1,0,1,1)),"")) ->  | D37: =IF( $AC37 = 0, "", IF( OFFSET(#REF!, $AC37 - 1,0,1,1)<>0, IF(OR($AD37="LUMP", $AD37="LS"), "LUMP", OFFSET(#REF!, $AC37 - 1,0,1,1)),"")) ->  | E37: =IF( $AC37 = 0, "", IF( OFFSET(#REF!, $AC37 - 1,0,1,1)<>0, IF(OR($AD37="LUMP", $AD37="LS"), "LUMP", OFFSET(#REF!, $AC37 - 1,0,1,1)),"")) ->  | F37: =IF( $AC37 = 0, "", IF( OFFSET(#REF!, $AC37 - 1,0,1,1)<>0, IF(OR($AD37="LUMP", $AD37="LS"), "LUMP", OFFSET(#REF!, $AC37 - 1,0,1,1)),"")) ->  | G37: =IF( $AC37 = 0, "", IF( OFFSET(#REF!, $AC37 - 1,0,1,1)<>0, IF(OR($AD37="LUMP", $AD37="LS"), "LUMP", OFFSET(#REF!, $AC37 - 1,0,1,1)),"")) ->  | H37: =IF( $AC37 = 0, "", IF( OFFSET(#REF!, $AC37 - 1,0,1,1)<>0, IF(OR($AD37="LUMP", $AD37="LS"), "LUMP", OFFSET(#REF!, $AC37 - 1,0,1,1)),"")) ->  | I37: =IF( $AC37 = 0, "", IF( OFFSET(#REF!, $AC37 - 1,0,1,1)<>0, IF(OR($AD37="LUMP", $AD37="LS"), "LUMP", OFFSET(#REF!, $AC37 - 1,0,1,1)),"")) ->  | J37: =IF( $AC37 = 0, "", IF( OFFSET(#REF!, $AC37 - 1,0,1,1)<>0, IF(OR($AD37="LUMP", $AD37="LS"), "LUMP", OFFSET(#REF!, $AC37 - 1,0,1,1)),"")) ->  | K37: =IF( $AC37 = 0, "", IF( OFFSET(#REF!, $AC37 - 1,0,1,1)<>0, IF(OR($AD37="LUMP", $AD37="LS"), "LUMP", OFFSET(#REF!, $AC37 - 1,0,1,1)),"")) ->  | L37: =IF( $AC37 = 0, "", IF( OFFSET(#REF!, $AC37 - 1,0,1,1)<>0, IF(OR($AD37="LUMP", $AD37="LS"), "LUMP", OFFSET(#REF!, $AC37 - 1,0,1,1)),"")) ->  | M37: =IF( $AC37 = 0, "", IF( OFFSET(#REF!, $AC37 - 1,0,1,1)<>0, IF(OR($AD37="LUMP", $AD37="LS"), "LUMP", OFFSET(#REF!, $AC37 - 1,0,1,1)),"")) ->  | N37: =IF( $AC37 = 0, "", IF( OFFSET(#REF!, $AC37 - 1,0,1,1)<>0, IF(OR($AD37="LUMP", $AD37="LS"), "LUMP", OFFSET(#REF!, $AC37 - 1,0,1,1)),"")) ->  | O37: =IF( $AC37 = 0, "", IF( OFFSET(#REF!, $AC37 - 1,0,1,1)<>0, IF(OR($AD37="LUMP", $AD37="LS"), "LUMP", OFFSET(#REF!, $AC37 - 1,0,1,1)),"")) ->  | P37: =IF( $AC37 = 0, "", IF( OFFSET(#REF!, $AC37 - 1,0,1,1)<>0, IF(OR($AD37="LUMP", $AD37="LS"), "LUMP", OFFSET(#REF!, $AC37 - 1,0,1,1)),"")) ->  | Q37: =IF( $AC37 = 0, "", IF( OFFSET(#REF!, $AC37 - 1,0,1,1)<>0, IF(OR($AD37="LUMP", $AD37="LS"), "LUMP", OFFSET(#REF!, $AC37 - 1,0,1,1)),"")) ->  | R37: =IF( $AC37 = 0, "", IF( OFFSET(#REF!, $AC37 - 1,0,1,1)<>0, IF(OR($AD37="LUMP", $AD37="LS"), "LUMP", OFFSET(#REF!, $AC37 - 1,0,1,1)),"")) ->  | S37: =IF( $AC37 = 0, "", IF( OFFSET(#REF!, $AC37 - 1,0,1,1)<>0, IF(OR($AD37="LUMP", $AD37="LS"), "LUMP", OFFSET(#REF!, $AC37 - 1,0,1,1)),"")) ->  | T37: =IF( $AC37 = 0, "", IF( OFFSET(#REF!, $AC37 - 1,0,1,1)<>0, IF(OR($AD37="LUMP", $AD37="LS"), "LUMP", OFFSET(#REF!, $AC37 - 1,0,1,1)),"")) ->  | U37: =IF( $AC37 = 0, "", IF( OFFSET(#REF!, $AC37 - 1,0,1,1)<>0, LEFT(OFFSET(#REF!, $AC37 - 1,0,1,1),3),"")) ->  | V37: =IF( $AC37 = 0, "", IF( OFFSET(#REF!, $AC37 - 1,0,1,1)<>0, IF(LEN(OFFSET(#REF!, $AC37 - 1,0,1,1))=9, RIGHT(OFFSET(#REF!, $AC37 - 1,0,1,1),5), LEFT(RIGHT(OFFSET(#REF!, $AC37 - 1,0,1,1),6), 5) ),"")) ->  | X37: =IF( $AC37 = 0, "", IF( OFFSET(#REF!, $AC37 - 1,0,1,1)<>0,IF(OR(AD37="LUMP", AD37="LS"), "", AD37),"")) ->  | Y37: =IF( $AC37 = 0, "", IF( OFFSET(#REF!, $AC37 - 1,0,1,1)<>0, VLOOKUP( OFFSET(#REF!, $AC37 - 1,0,1,1),[1]Items!$A$2:$E$10001,4,0),"")) ->  | AA37: 35 | AB37: 5 | AC37: 30 | AD37: =IF( $AC37 = 0, "", IF( OFFSET(#REF!, $AC37 - 1,0,1,1)<>0, VLOOKUP( OFFSET(#REF!, $AC37 - 1,0,1,1),[1]Items!$A$2:$E$10001,3,0),"")) -> 
A38: =IF( $AC38 = 0, "", IF( OFFSET(#REF!, $AC38 - 1,0,1,1)<>0, IF(OR($AD38="LUMP", $AD38="LS"), "LUMP", OFFSET(#REF!, $AC38 - 1,0,1,1)),"")) ->  | B38: =IF( $AC38 = 0, "", IF( OFFSET(#REF!, $AC38 - 1,0,1,1)<>0, IF(OR($AD38="LUMP", $AD38="LS"), "LUMP", OFFSET(#REF!, $AC38 - 1,0,1,1)),"")) ->  | C38: =IF( $AC38 = 0, "", IF( OFFSET(#REF!, $AC38 - 1,0,1,1)<>0, IF(OR($AD38="LUMP", $AD38="LS"), "LUMP", OFFSET(#REF!, $AC38 - 1,0,1,1)),"")) ->  | D38: =IF( $AC38 = 0, "", IF( OFFSET(#REF!, $AC38 - 1,0,1,1)<>0, IF(OR($AD38="LUMP", $AD38="LS"), "LUMP", OFFSET(#REF!, $AC38 - 1,0,1,1)),"")) ->  | E38: =IF( $AC38 = 0, "", IF( OFFSET(#REF!, $AC38 - 1,0,1,1)<>0, IF(OR($AD38="LUMP", $AD38="LS"), "LUMP", OFFSET(#REF!, $AC38 - 1,0,1,1)),"")) ->  | F38: =IF( $AC38 = 0, "", IF( OFFSET(#REF!, $AC38 - 1,0,1,1)<>0, IF(OR($AD38="LUMP", $AD38="LS"), "LUMP", OFFSET(#REF!, $AC38 - 1,0,1,1)),"")) ->  | G38: =IF( $AC38 = 0, "", IF( OFFSET(#REF!, $AC38 - 1,0,1,1)<>0, IF(OR($AD38="LUMP", $AD38="LS"), "LUMP", OFFSET(#REF!, $AC38 - 1,0,1,1)),"")) ->  | H38: =IF( $AC38 = 0, "", IF( OFFSET(#REF!, $AC38 - 1,0,1,1)<>0, IF(OR($AD38="LUMP", $AD38="LS"), "LUMP", OFFSET(#REF!, $AC38 - 1,0,1,1)),"")) ->  | I38: =IF( $AC38 = 0, "", IF( OFFSET(#REF!, $AC38 - 1,0,1,1)<>0, IF(OR($AD38="LUMP", $AD38="LS"), "LUMP", OFFSET(#REF!, $AC38 - 1,0,1,1)),"")) ->  | J38: =IF( $AC38 = 0, "", IF( OFFSET(#REF!, $AC38 - 1,0,1,1)<>0, IF(OR($AD38="LUMP", $AD38="LS"), "LUMP", OFFSET(#REF!, $AC38 - 1,0,1,1)),"")) ->  | K38: =IF( $AC38 = 0, "", IF( OFFSET(#REF!, $AC38 - 1,0,1,1)<>0, IF(OR($AD38="LUMP", $AD38="LS"), "LUMP", OFFSET(#REF!, $AC38 - 1,0,1,1)),"")) ->  | L38: =IF( $AC38 = 0, "", IF( OFFSET(#REF!, $AC38 - 1,0,1,1)<>0, IF(OR($AD38="LUMP", $AD38="LS"), "LUMP", OFFSET(#REF!, $AC38 - 1,0,1,1)),"")) ->  | M38: =IF( $AC38 = 0, "", IF( OFFSET(#REF!, $AC38 - 1,0,1,1)<>0, IF(OR($AD38="LUMP", $AD38="LS"), "LUMP", OFFSET(#REF!, $AC38 - 1,0,1,1)),"")) ->  | N38: =IF( $AC38 = 0, "", IF( OFFSET(#REF!, $AC38 - 1,0,1,1)<>0, IF(OR($AD38="LUMP", $AD38="LS"), "LUMP", OFFSET(#REF!, $AC38 - 1,0,1,1)),"")) ->  | O38: =IF( $AC38 = 0, "", IF( OFFSET(#REF!, $AC38 - 1,0,1,1)<>0, IF(OR($AD38="LUMP", $AD38="LS"), "LUMP", OFFSET(#REF!, $AC38 - 1,0,1,1)),"")) ->  | P38: =IF( $AC38 = 0, "", IF( OFFSET(#REF!, $AC38 - 1,0,1,1)<>0, IF(OR($AD38="LUMP", $AD38="LS"), "LUMP", OFFSET(#REF!, $AC38 - 1,0,1,1)),"")) ->  | Q38: =IF( $AC38 = 0, "", IF( OFFSET(#REF!, $AC38 - 1,0,1,1)<>0, IF(OR($AD38="LUMP", $AD38="LS"), "LUMP", OFFSET(#REF!, $AC38 - 1,0,1,1)),"")) ->  | R38: =IF( $AC38 = 0, "", IF( OFFSET(#REF!, $AC38 - 1,0,1,1)<>0, IF(OR($AD38="LUMP", $AD38="LS"), "LUMP", OFFSET(#REF!, $AC38 - 1,0,1,1)),"")) ->  | S38: =IF( $AC38 = 0, "", IF( OFFSET(#REF!, $AC38 - 1,0,1,1)<>0, IF(OR($AD38="LUMP", $AD38="LS"), "LUMP", OFFSET(#REF!, $AC38 - 1,0,1,1)),"")) ->  | T38: =IF( $AC38 = 0, "", IF( OFFSET(#REF!, $AC38 - 1,0,1,1)<>0, IF(OR($AD38="LUMP", $AD38="LS"), "LUMP", OFFSET(#REF!, $AC38 - 1,0,1,1)),"")) ->  | U38: =IF( $AC38 = 0, "", IF( OFFSET(#REF!, $AC38 - 1,0,1,1)<>0, LEFT(OFFSET(#REF!, $AC38 - 1,0,1,1),3),"")) ->  | V38: =IF( $AC38 = 0, "", IF( OFFSET(#REF!, $AC38 - 1,0,1,1)<>0, IF(LEN(OFFSET(#REF!, $AC38 - 1,0,1,1))=9, RIGHT(OFFSET(#REF!, $AC38 - 1,0,1,1),5), LEFT(RIGHT(OFFSET(#REF!, $AC38 - 1,0,1,1),6), 5) ),"")) ->  | X38: =IF( $AC38 = 0, "", IF( OFFSET(#REF!, $AC38 - 1,0,1,1)<>0,IF(OR(AD38="LUMP", AD38="LS"), "", AD38),"")) ->  | Y38: =IF( $AC38 = 0, "", IF( OFFSET(#REF!, $AC38 - 1,0,1,1)<>0, VLOOKUP( OFFSET(#REF!, $AC38 - 1,0,1,1),[1]Items!$A$2:$E$10001,4,0),"")) ->  | AA38: 36 | AB38: 6 | AC38: 0 | AD38: =IF( $AC38 = 0, "", IF( OFFSET(#REF!, $AC38 - 1,0,1,1)<>0, VLOOKUP( OFFSET(#REF!, $AC38 - 1,0,1,1),[1]Items!$A$2:$E$10001,3,0),"")) -> 
A39: =IF( $AC39 = 0, "", IF( OFFSET(#REF!, $AC39 - 1,0,1,1)<>0, IF(OR($AD39="LUMP", $AD39="LS"), "LUMP", OFFSET(#REF!, $AC39 - 1,0,1,1)),"")) ->  | B39: =IF( $AC39 = 0, "", IF( OFFSET(#REF!, $AC39 - 1,0,1,1)<>0, IF(OR($AD39="LUMP", $AD39="LS"), "LUMP", OFFSET(#REF!, $AC39 - 1,0,1,1)),"")) ->  | C39: =IF( $AC39 = 0, "", IF( OFFSET(#REF!, $AC39 - 1,0,1,1)<>0, IF(OR($AD39="LUMP", $AD39="LS"), "LUMP", OFFSET(#REF!, $AC39 - 1,0,1,1)),"")) ->  | D39: =IF( $AC39 = 0, "", IF( OFFSET(#REF!, $AC39 - 1,0,1,1)<>0, IF(OR($AD39="LUMP", $AD39="LS"), "LUMP", OFFSET(#REF!, $AC39 - 1,0,1,1)),"")) ->  | E39: =IF( $AC39 = 0, "", IF( OFFSET(#REF!, $AC39 - 1,0,1,1)<>0, IF(OR($AD39="LUMP", $AD39="LS"), "LUMP", OFFSET(#REF!, $AC39 - 1,0,1,1)),"")) ->  | F39: =IF( $AC39 = 0, "", IF( OFFSET(#REF!, $AC39 - 1,0,1,1)<>0, IF(OR($AD39="LUMP", $AD39="LS"), "LUMP", OFFSET(#REF!, $AC39 - 1,0,1,1)),"")) ->  | G39: =IF( $AC39 = 0, "", IF( OFFSET(#REF!, $AC39 - 1,0,1,1)<>0, IF(OR($AD39="LUMP", $AD39="LS"), "LUMP", OFFSET(#REF!, $AC39 - 1,0,1,1)),"")) ->  | H39: =IF( $AC39 = 0, "", IF( OFFSET(#REF!, $AC39 - 1,0,1,1)<>0, IF(OR($AD39="LUMP", $AD39="LS"), "LUMP", OFFSET(#REF!, $AC39 - 1,0,1,1)),"")) ->  | I39: =IF( $AC39 = 0, "", IF( OFFSET(#REF!, $AC39 - 1,0,1,1)<>0, IF(OR($AD39="LUMP", $AD39="LS"), "LUMP", OFFSET(#REF!, $AC39 - 1,0,1,1)),"")) ->  | J39: =IF( $AC39 = 0, "", IF( OFFSET(#REF!, $AC39 - 1,0,1,1)<>0, IF(OR($AD39="LUMP", $AD39="LS"), "LUMP", OFFSET(#REF!, $AC39 - 1,0,1,1)),"")) ->  | K39: =IF( $AC39 = 0, "", IF( OFFSET(#REF!, $AC39 - 1,0,1,1)<>0, IF(OR($AD39="LUMP", $AD39="LS"), "LUMP", OFFSET(#REF!, $AC39 - 1,0,1,1)),"")) ->  | L39: =IF( $AC39 = 0, "", IF( OFFSET(#REF!, $AC39 - 1,0,1,1)<>0, IF(OR($AD39="LUMP", $AD39="LS"), "LUMP", OFFSET(#REF!, $AC39 - 1,0,1,1)),"")) ->  | M39: =IF( $AC39 = 0, "", IF( OFFSET(#REF!, $AC39 - 1,0,1,1)<>0, IF(OR($AD39="LUMP", $AD39="LS"), "LUMP", OFFSET(#REF!, $AC39 - 1,0,1,1)),"")) ->  | N39: =IF( $AC39 = 0, "", IF( OFFSET(#REF!, $AC39 - 1,0,1,1)<>0, IF(OR($AD39="LUMP", $AD39="LS"), "LUMP", OFFSET(#REF!, $AC39 - 1,0,1,1)),"")) ->  | O39: =IF( $AC39 = 0, "", IF( OFFSET(#REF!, $AC39 - 1,0,1,1)<>0, IF(OR($AD39="LUMP", $AD39="LS"), "LUMP", OFFSET(#REF!, $AC39 - 1,0,1,1)),"")) ->  | P39: =IF( $AC39 = 0, "", IF( OFFSET(#REF!, $AC39 - 1,0,1,1)<>0, IF(OR($AD39="LUMP", $AD39="LS"), "LUMP", OFFSET(#REF!, $AC39 - 1,0,1,1)),"")) ->  | Q39: =IF( $AC39 = 0, "", IF( OFFSET(#REF!, $AC39 - 1,0,1,1)<>0, IF(OR($AD39="LUMP", $AD39="LS"), "LUMP", OFFSET(#REF!, $AC39 - 1,0,1,1)),"")) ->  | R39: =IF( $AC39 = 0, "", IF( OFFSET(#REF!, $AC39 - 1,0,1,1)<>0, IF(OR($AD39="LUMP", $AD39="LS"), "LUMP", OFFSET(#REF!, $AC39 - 1,0,1,1)),"")) ->  | S39: =IF( $AC39 = 0, "", IF( OFFSET(#REF!, $AC39 - 1,0,1,1)<>0, IF(OR($AD39="LUMP", $AD39="LS"), "LUMP", OFFSET(#REF!, $AC39 - 1,0,1,1)),"")) ->  | T39: =IF( $AC39 = 0, "", IF( OFFSET(#REF!, $AC39 - 1,0,1,1)<>0, IF(OR($AD39="LUMP", $AD39="LS"), "LUMP", OFFSET(#REF!, $AC39 - 1,0,1,1)),"")) ->  | U39: =IF( $AC39 = 0, "", IF( OFFSET(#REF!, $AC39 - 1,0,1,1)<>0, LEFT(OFFSET(#REF!, $AC39 - 1,0,1,1),3),"")) ->  | V39: =IF( $AC39 = 0, "", IF( OFFSET(#REF!, $AC39 - 1,0,1,1)<>0, IF(LEN(OFFSET(#REF!, $AC39 - 1,0,1,1))=9, RIGHT(OFFSET(#REF!, $AC39 - 1,0,1,1),5), LEFT(RIGHT(OFFSET(#REF!, $AC39 - 1,0,1,1),6), 5) ),"")) ->  | X39: =IF( $AC39 = 0, "", IF( OFFSET(#REF!, $AC39 - 1,0,1,1)<>0,IF(OR(AD39="LUMP", AD39="LS"), "", AD39),"")) ->  | Y39: =IF( $AC39 = 0, "", IF( OFFSET(#REF!, $AC39 - 1,0,1,1)<>0, VLOOKUP( OFFSET(#REF!, $AC39 - 1,0,1,1),[1]Items!$A$2:$E$10001,4,0),"")) ->  | AA39: 37 | AB39: 6 | AC39: 31 | AD39: =IF( $AC39 = 0, "", IF( OFFSET(#REF!, $AC39 - 1,0,1,1)<>0, VLOOKUP( OFFSET(#REF!, $AC39 - 1,0,1,1),[1]Items!$A$2:$E$10001,3,0),"")) -> 
A40: =IF( $AC40 = 0, "", IF( OFFSET(#REF!, $AC40 - 1,0,1,1)<>0, IF(OR($AD40="LUMP", $AD40="LS"), "LUMP", OFFSET(#REF!, $AC40 - 1,0,1,1)),"")) ->  | B40: =IF( $AC40 = 0, "", IF( OFFSET(#REF!, $AC40 - 1,0,1,1)<>0, IF(OR($AD40="LUMP", $AD40="LS"), "LUMP", OFFSET(#REF!, $AC40 - 1,0,1,1)),"")) ->  | C40: =IF( $AC40 = 0, "", IF( OFFSET(#REF!, $AC40 - 1,0,1,1)<>0, IF(OR($AD40="LUMP", $AD40="LS"), "LUMP", OFFSET(#REF!, $AC40 - 1,0,1,1)),"")) ->  | D40: =IF( $AC40 = 0, "", IF( OFFSET(#REF!, $AC40 - 1,0,1,1)<>0, IF(OR($AD40="LUMP", $AD40="LS"), "LUMP", OFFSET(#REF!, $AC40 - 1,0,1,1)),"")) ->  | E40: =IF( $AC40 = 0, "", IF( OFFSET(#REF!, $AC40 - 1,0,1,1)<>0, IF(OR($AD40="LUMP", $AD40="LS"), "LUMP", OFFSET(#REF!, $AC40 - 1,0,1,1)),"")) ->  | F40: =IF( $AC40 = 0, "", IF( OFFSET(#REF!, $AC40 - 1,0,1,1)<>0, IF(OR($AD40="LUMP", $AD40="LS"), "LUMP", OFFSET(#REF!, $AC40 - 1,0,1,1)),"")) ->  | G40: =IF( $AC40 = 0, "", IF( OFFSET(#REF!, $AC40 - 1,0,1,1)<>0, IF(OR($AD40="LUMP", $AD40="LS"), "LUMP", OFFSET(#REF!, $AC40 - 1,0,1,1)),"")) ->  | H40: =IF( $AC40 = 0, "", IF( OFFSET(#REF!, $AC40 - 1,0,1,1)<>0, IF(OR($AD40="LUMP", $AD40="LS"), "LUMP", OFFSET(#REF!, $AC40 - 1,0,1,1)),"")) ->  | I40: =IF( $AC40 = 0, "", IF( OFFSET(#REF!, $AC40 - 1,0,1,1)<>0, IF(OR($AD40="LUMP", $AD40="LS"), "LUMP", OFFSET(#REF!, $AC40 - 1,0,1,1)),"")) ->  | J40: =IF( $AC40 = 0, "", IF( OFFSET(#REF!, $AC40 - 1,0,1,1)<>0, IF(OR($AD40="LUMP", $AD40="LS"), "LUMP", OFFSET(#REF!, $AC40 - 1,0,1,1)),"")) ->  | K40: =IF( $AC40 = 0, "", IF( OFFSET(#REF!, $AC40 - 1,0,1,1)<>0, IF(OR($AD40="LUMP", $AD40="LS"), "LUMP", OFFSET(#REF!, $AC40 - 1,0,1,1)),"")) ->  | L40: =IF( $AC40 = 0, "", IF( OFFSET(#REF!, $AC40 - 1,0,1,1)<>0, IF(OR($AD40="LUMP", $AD40="LS"), "LUMP", OFFSET(#REF!, $AC40 - 1,0,1,1)),"")) ->  | M40: =IF( $AC40 = 0, "", IF( OFFSET(#REF!, $AC40 - 1,0,1,1)<>0, IF(OR($AD40="LUMP", $AD40="LS"), "LUMP", OFFSET(#REF!, $AC40 - 1,0,1,1)),"")) ->  | N40: =IF( $AC40 = 0, "", IF( OFFSET(#REF!, $AC40 - 1,0,1,1)<>0, IF(OR($AD40="LUMP", $AD40="LS"), "LUMP", OFFSET(#REF!, $AC40 - 1,0,1,1)),"")) ->  | O40: =IF( $AC40 = 0, "", IF( OFFSET(#REF!, $AC40 - 1,0,1,1)<>0, IF(OR($AD40="LUMP", $AD40="LS"), "LUMP", OFFSET(#REF!, $AC40 - 1,0,1,1)),"")) ->  | P40: =IF( $AC40 = 0, "", IF( OFFSET(#REF!, $AC40 - 1,0,1,1)<>0, IF(OR($AD40="LUMP", $AD40="LS"), "LUMP", OFFSET(#REF!, $AC40 - 1,0,1,1)),"")) ->  | Q40: =IF( $AC40 = 0, "", IF( OFFSET(#REF!, $AC40 - 1,0,1,1)<>0, IF(OR($AD40="LUMP", $AD40="LS"), "LUMP", OFFSET(#REF!, $AC40 - 1,0,1,1)),"")) ->  | R40: =IF( $AC40 = 0, "", IF( OFFSET(#REF!, $AC40 - 1,0,1,1)<>0, IF(OR($AD40="LUMP", $AD40="LS"), "LUMP", OFFSET(#REF!, $AC40 - 1,0,1,1)),"")) ->  | S40: =IF( $AC40 = 0, "", IF( OFFSET(#REF!, $AC40 - 1,0,1,1)<>0, IF(OR($AD40="LUMP", $AD40="LS"), "LUMP", OFFSET(#REF!, $AC40 - 1,0,1,1)),"")) ->  | T40: =IF( $AC40 = 0, "", IF( OFFSET(#REF!, $AC40 - 1,0,1,1)<>0, IF(OR($AD40="LUMP", $AD40="LS"), "LUMP", OFFSET(#REF!, $AC40 - 1,0,1,1)),"")) ->  | U40: =IF( $AC40 = 0, "", IF( OFFSET(#REF!, $AC40 - 1,0,1,1)<>0, LEFT(OFFSET(#REF!, $AC40 - 1,0,1,1),3),"")) ->  | V40: =IF( $AC40 = 0, "", IF( OFFSET(#REF!, $AC40 - 1,0,1,1)<>0, IF(LEN(OFFSET(#REF!, $AC40 - 1,0,1,1))=9, RIGHT(OFFSET(#REF!, $AC40 - 1,0,1,1),5), LEFT(RIGHT(OFFSET(#REF!, $AC40 - 1,0,1,1),6), 5) ),"")) ->  | X40: =IF( $AC40 = 0, "", IF( OFFSET(#REF!, $AC40 - 1,0,1,1)<>0,IF(OR(AD40="LUMP", AD40="LS"), "", AD40),"")) ->  | Y40: =IF( $AC40 = 0, "", IF( OFFSET(#REF!, $AC40 - 1,0,1,1)<>0, VLOOKUP( OFFSET(#REF!, $AC40 - 1,0,1,1),[1]Items!$A$2:$E$10001,4,0),"")) ->  | AA40: 38 | AB40: 6 | AC40: 32 | AD40: =IF( $AC40 = 0, "", IF( OFFSET(#REF!, $AC40 - 1,0,1,1)<>0, VLOOKUP( OFFSET(#REF!, $AC40 - 1,0,1,1),[1]Items!$A$2:$E$10001,3,0),"")) -> 
A41: =IF( $AC41 = 0, "", IF( OFFSET(#REF!, $AC41 - 1,0,1,1)<>0, IF(OR($AD41="LUMP", $AD41="LS"), "LUMP", OFFSET(#REF!, $AC41 - 1,0,1,1)),"")) ->  | B41: =IF( $AC41 = 0, "", IF( OFFSET(#REF!, $AC41 - 1,0,1,1)<>0, IF(OR($AD41="LUMP", $AD41="LS"), "LUMP", OFFSET(#REF!, $AC41 - 1,0,1,1)),"")) ->  | C41: =IF( $AC41 = 0, "", IF( OFFSET(#REF!, $AC41 - 1,0,1,1)<>0, IF(OR($AD41="LUMP", $AD41="LS"), "LUMP", OFFSET(#REF!, $AC41 - 1,0,1,1)),"")) ->  | D41: =IF( $AC41 = 0, "", IF( OFFSET(#REF!, $AC41 - 1,0,1,1)<>0, IF(OR($AD41="LUMP", $AD41="LS"), "LUMP", OFFSET(#REF!, $AC41 - 1,0,1,1)),"")) ->  | E41: =IF( $AC41 = 0, "", IF( OFFSET(#REF!, $AC41 - 1,0,1,1)<>0, IF(OR($AD41="LUMP", $AD41="LS"), "LUMP", OFFSET(#REF!, $AC41 - 1,0,1,1)),"")) ->  | F41: =IF( $AC41 = 0, "", IF( OFFSET(#REF!, $AC41 - 1,0,1,1)<>0, IF(OR($AD41="LUMP", $AD41="LS"), "LUMP", OFFSET(#REF!, $AC41 - 1,0,1,1)),"")) ->  | G41: =IF( $AC41 = 0, "", IF( OFFSET(#REF!, $AC41 - 1,0,1,1)<>0, IF(OR($AD41="LUMP", $AD41="LS"), "LUMP", OFFSET(#REF!, $AC41 - 1,0,1,1)),"")) ->  | H41: =IF( $AC41 = 0, "", IF( OFFSET(#REF!, $AC41 - 1,0,1,1)<>0, IF(OR($AD41="LUMP", $AD41="LS"), "LUMP", OFFSET(#REF!, $AC41 - 1,0,1,1)),"")) ->  | I41: =IF( $AC41 = 0, "", IF( OFFSET(#REF!, $AC41 - 1,0,1,1)<>0, IF(OR($AD41="LUMP", $AD41="LS"), "LUMP", OFFSET(#REF!, $AC41 - 1,0,1,1)),"")) ->  | J41: =IF( $AC41 = 0, "", IF( OFFSET(#REF!, $AC41 - 1,0,1,1)<>0, IF(OR($AD41="LUMP", $AD41="LS"), "LUMP", OFFSET(#REF!, $AC41 - 1,0,1,1)),"")) ->  | K41: =IF( $AC41 = 0, "", IF( OFFSET(#REF!, $AC41 - 1,0,1,1)<>0, IF(OR($AD41="LUMP", $AD41="LS"), "LUMP", OFFSET(#REF!, $AC41 - 1,0,1,1)),"")) ->  | L41: =IF( $AC41 = 0, "", IF( OFFSET(#REF!, $AC41 - 1,0,1,1)<>0, IF(OR($AD41="LUMP", $AD41="LS"), "LUMP", OFFSET(#REF!, $AC41 - 1,0,1,1)),"")) ->  | M41: =IF( $AC41 = 0, "", IF( OFFSET(#REF!, $AC41 - 1,0,1,1)<>0, IF(OR($AD41="LUMP", $AD41="LS"), "LUMP", OFFSET(#REF!, $AC41 - 1,0,1,1)),"")) ->  | N41: =IF( $AC41 = 0, "", IF( OFFSET(#REF!, $AC41 - 1,0,1,1)<>0, IF(OR($AD41="LUMP", $AD41="LS"), "LUMP", OFFSET(#REF!, $AC41 - 1,0,1,1)),"")) ->  | O41: =IF( $AC41 = 0, "", IF( OFFSET(#REF!, $AC41 - 1,0,1,1)<>0, IF(OR($AD41="LUMP", $AD41="LS"), "LUMP", OFFSET(#REF!, $AC41 - 1,0,1,1)),"")) ->  | P41: =IF( $AC41 = 0, "", IF( OFFSET(#REF!, $AC41 - 1,0,1,1)<>0, IF(OR($AD41="LUMP", $AD41="LS"), "LUMP", OFFSET(#REF!, $AC41 - 1,0,1,1)),"")) ->  | Q41: =IF( $AC41 = 0, "", IF( OFFSET(#REF!, $AC41 - 1,0,1,1)<>0, IF(OR($AD41="LUMP", $AD41="LS"), "LUMP", OFFSET(#REF!, $AC41 - 1,0,1,1)),"")) ->  | R41: =IF( $AC41 = 0, "", IF( OFFSET(#REF!, $AC41 - 1,0,1,1)<>0, IF(OR($AD41="LUMP", $AD41="LS"), "LUMP", OFFSET(#REF!, $AC41 - 1,0,1,1)),"")) ->  | S41: =IF( $AC41 = 0, "", IF( OFFSET(#REF!, $AC41 - 1,0,1,1)<>0, IF(OR($AD41="LUMP", $AD41="LS"), "LUMP", OFFSET(#REF!, $AC41 - 1,0,1,1)),"")) ->  | T41: =IF( $AC41 = 0, "", IF( OFFSET(#REF!, $AC41 - 1,0,1,1)<>0, IF(OR($AD41="LUMP", $AD41="LS"), "LUMP", OFFSET(#REF!, $AC41 - 1,0,1,1)),"")) ->  | U41: =IF( $AC41 = 0, "", IF( OFFSET(#REF!, $AC41 - 1,0,1,1)<>0, LEFT(OFFSET(#REF!, $AC41 - 1,0,1,1),3),"")) ->  | V41: =IF( $AC41 = 0, "", IF( OFFSET(#REF!, $AC41 - 1,0,1,1)<>0, IF(LEN(OFFSET(#REF!, $AC41 - 1,0,1,1))=9, RIGHT(OFFSET(#REF!, $AC41 - 1,0,1,1),5), LEFT(RIGHT(OFFSET(#REF!, $AC41 - 1,0,1,1),6), 5) ),"")) ->  | X41: =IF( $AC41 = 0, "", IF( OFFSET(#REF!, $AC41 - 1,0,1,1)<>0,IF(OR(AD41="LUMP", AD41="LS"), "", AD41),"")) ->  | Y41: =IF( $AC41 = 0, "", IF( OFFSET(#REF!, $AC41 - 1,0,1,1)<>0, VLOOKUP( OFFSET(#REF!, $AC41 - 1,0,1,1),[1]Items!$A$2:$E$10001,4,0),"")) ->  | AA41: 39 | AB41: 6 | AC41: 33 | AD41: =IF( $AC41 = 0, "", IF( OFFSET(#REF!, $AC41 - 1,0,1,1)<>0, VLOOKUP( OFFSET(#REF!, $AC41 - 1,0,1,1),[1]Items!$A$2:$E$10001,3,0),"")) -> 
A42: =IF( $AC42 = 0, "", IF( OFFSET(#REF!, $AC42 - 1,0,1,1)<>0, IF(OR($AD42="LUMP", $AD42="LS"), "LUMP", OFFSET(#REF!, $AC42 - 1,0,1,1)),"")) ->  | B42: =IF( $AC42 = 0, "", IF( OFFSET(#REF!, $AC42 - 1,0,1,1)<>0, IF(OR($AD42="LUMP", $AD42="LS"), "LUMP", OFFSET(#REF!, $AC42 - 1,0,1,1)),"")) ->  | C42: =IF( $AC42 = 0, "", IF( OFFSET(#REF!, $AC42 - 1,0,1,1)<>0, IF(OR($AD42="LUMP", $AD42="LS"), "LUMP", OFFSET(#REF!, $AC42 - 1,0,1,1)),"")) ->  | D42: =IF( $AC42 = 0, "", IF( OFFSET(#REF!, $AC42 - 1,0,1,1)<>0, IF(OR($AD42="LUMP", $AD42="LS"), "LUMP", OFFSET(#REF!, $AC42 - 1,0,1,1)),"")) ->  | E42: =IF( $AC42 = 0, "", IF( OFFSET(#REF!, $AC42 - 1,0,1,1)<>0, IF(OR($AD42="LUMP", $AD42="LS"), "LUMP", OFFSET(#REF!, $AC42 - 1,0,1,1)),"")) ->  | F42: =IF( $AC42 = 0, "", IF( OFFSET(#REF!, $AC42 - 1,0,1,1)<>0, IF(OR($AD42="LUMP", $AD42="LS"), "LUMP", OFFSET(#REF!, $AC42 - 1,0,1,1)),"")) ->  | G42: =IF( $AC42 = 0, "", IF( OFFSET(#REF!, $AC42 - 1,0,1,1)<>0, IF(OR($AD42="LUMP", $AD42="LS"), "LUMP", OFFSET(#REF!, $AC42 - 1,0,1,1)),"")) ->  | H42: =IF( $AC42 = 0, "", IF( OFFSET(#REF!, $AC42 - 1,0,1,1)<>0, IF(OR($AD42="LUMP", $AD42="LS"), "LUMP", OFFSET(#REF!, $AC42 - 1,0,1,1)),"")) ->  | I42: =IF( $AC42 = 0, "", IF( OFFSET(#REF!, $AC42 - 1,0,1,1)<>0, IF(OR($AD42="LUMP", $AD42="LS"), "LUMP", OFFSET(#REF!, $AC42 - 1,0,1,1)),"")) ->  | J42: =IF( $AC42 = 0, "", IF( OFFSET(#REF!, $AC42 - 1,0,1,1)<>0, IF(OR($AD42="LUMP", $AD42="LS"), "LUMP", OFFSET(#REF!, $AC42 - 1,0,1,1)),"")) ->  | K42: =IF( $AC42 = 0, "", IF( OFFSET(#REF!, $AC42 - 1,0,1,1)<>0, IF(OR($AD42="LUMP", $AD42="LS"), "LUMP", OFFSET(#REF!, $AC42 - 1,0,1,1)),"")) ->  | L42: =IF( $AC42 = 0, "", IF( OFFSET(#REF!, $AC42 - 1,0,1,1)<>0, IF(OR($AD42="LUMP", $AD42="LS"), "LUMP", OFFSET(#REF!, $AC42 - 1,0,1,1)),"")) ->  | M42: =IF( $AC42 = 0, "", IF( OFFSET(#REF!, $AC42 - 1,0,1,1)<>0, IF(OR($AD42="LUMP", $AD42="LS"), "LUMP", OFFSET(#REF!, $AC42 - 1,0,1,1)),"")) ->  | N42: =IF( $AC42 = 0, "", IF( OFFSET(#REF!, $AC42 - 1,0,1,1)<>0, IF(OR($AD42="LUMP", $AD42="LS"), "LUMP", OFFSET(#REF!, $AC42 - 1,0,1,1)),"")) ->  | O42: =IF( $AC42 = 0, "", IF( OFFSET(#REF!, $AC42 - 1,0,1,1)<>0, IF(OR($AD42="LUMP", $AD42="LS"), "LUMP", OFFSET(#REF!, $AC42 - 1,0,1,1)),"")) ->  | P42: =IF( $AC42 = 0, "", IF( OFFSET(#REF!, $AC42 - 1,0,1,1)<>0, IF(OR($AD42="LUMP", $AD42="LS"), "LUMP", OFFSET(#REF!, $AC42 - 1,0,1,1)),"")) ->  | Q42: =IF( $AC42 = 0, "", IF( OFFSET(#REF!, $AC42 - 1,0,1,1)<>0, IF(OR($AD42="LUMP", $AD42="LS"), "LUMP", OFFSET(#REF!, $AC42 - 1,0,1,1)),"")) ->  | R42: =IF( $AC42 = 0, "", IF( OFFSET(#REF!, $AC42 - 1,0,1,1)<>0, IF(OR($AD42="LUMP", $AD42="LS"), "LUMP", OFFSET(#REF!, $AC42 - 1,0,1,1)),"")) ->  | S42: =IF( $AC42 = 0, "", IF( OFFSET(#REF!, $AC42 - 1,0,1,1)<>0, IF(OR($AD42="LUMP", $AD42="LS"), "LUMP", OFFSET(#REF!, $AC42 - 1,0,1,1)),"")) ->  | T42: =IF( $AC42 = 0, "", IF( OFFSET(#REF!, $AC42 - 1,0,1,1)<>0, IF(OR($AD42="LUMP", $AD42="LS"), "LUMP", OFFSET(#REF!, $AC42 - 1,0,1,1)),"")) ->  | U42: =IF( $AC42 = 0, "", IF( OFFSET(#REF!, $AC42 - 1,0,1,1)<>0, LEFT(OFFSET(#REF!, $AC42 - 1,0,1,1),3),"")) ->  | V42: =IF( $AC42 = 0, "", IF( OFFSET(#REF!, $AC42 - 1,0,1,1)<>0, IF(LEN(OFFSET(#REF!, $AC42 - 1,0,1,1))=9, RIGHT(OFFSET(#REF!, $AC42 - 1,0,1,1),5), LEFT(RIGHT(OFFSET(#REF!, $AC42 - 1,0,1,1),6), 5) ),"")) ->  | X42: =IF( $AC42 = 0, "", IF( OFFSET(#REF!, $AC42 - 1,0,1,1)<>0,IF(OR(AD42="LUMP", AD42="LS"), "", AD42),"")) ->  | Y42: =IF( $AC42 = 0, "", IF( OFFSET(#REF!, $AC42 - 1,0,1,1)<>0, VLOOKUP( OFFSET(#REF!, $AC42 - 1,0,1,1),[1]Items!$A$2:$E$10001,4,0),"")) ->  | AA42: 40 | AB42: 6 | AC42: 34 | AD42: =IF( $AC42 = 0, "", IF( OFFSET(#REF!, $AC42 - 1,0,1,1)<>0, VLOOKUP( OFFSET(#REF!, $AC42 - 1,0,1,1),[1]Items!$A$2:$E$10001,3,0),"")) -> 
A43: =IF( $AC43 = 0, "", IF( OFFSET(#REF!, $AC43 - 1,0,1,1)<>0, IF(OR($AD43="LUMP", $AD43="LS"), "LUMP", OFFSET(#REF!, $AC43 - 1,0,1,1)),"")) ->  | B43: =IF( $AC43 = 0, "", IF( OFFSET(#REF!, $AC43 - 1,0,1,1)<>0, IF(OR($AD43="LUMP", $AD43="LS"), "LUMP", OFFSET(#REF!, $AC43 - 1,0,1,1)),"")) ->  | C43: =IF( $AC43 = 0, "", IF( OFFSET(#REF!, $AC43 - 1,0,1,1)<>0, IF(OR($AD43="LUMP", $AD43="LS"), "LUMP", OFFSET(#REF!, $AC43 - 1,0,1,1)),"")) ->  | D43: =IF( $AC43 = 0, "", IF( OFFSET(#REF!, $AC43 - 1,0,1,1)<>0, IF(OR($AD43="LUMP", $AD43="LS"), "LUMP", OFFSET(#REF!, $AC43 - 1,0,1,1)),"")) ->  | E43: =IF( $AC43 = 0, "", IF( OFFSET(#REF!, $AC43 - 1,0,1,1)<>0, IF(OR($AD43="LUMP", $AD43="LS"), "LUMP", OFFSET(#REF!, $AC43 - 1,0,1,1)),"")) ->  | F43: =IF( $AC43 = 0, "", IF( OFFSET(#REF!, $AC43 - 1,0,1,1)<>0, IF(OR($AD43="LUMP", $AD43="LS"), "LUMP", OFFSET(#REF!, $AC43 - 1,0,1,1)),"")) ->  | G43: =IF( $AC43 = 0, "", IF( OFFSET(#REF!, $AC43 - 1,0,1,1)<>0, IF(OR($AD43="LUMP", $AD43="LS"), "LUMP", OFFSET(#REF!, $AC43 - 1,0,1,1)),"")) ->  | H43: =IF( $AC43 = 0, "", IF( OFFSET(#REF!, $AC43 - 1,0,1,1)<>0, IF(OR($AD43="LUMP", $AD43="LS"), "LUMP", OFFSET(#REF!, $AC43 - 1,0,1,1)),"")) ->  | I43: =IF( $AC43 = 0, "", IF( OFFSET(#REF!, $AC43 - 1,0,1,1)<>0, IF(OR($AD43="LUMP", $AD43="LS"), "LUMP", OFFSET(#REF!, $AC43 - 1,0,1,1)),"")) ->  | J43: =IF( $AC43 = 0, "", IF( OFFSET(#REF!, $AC43 - 1,0,1,1)<>0, IF(OR($AD43="LUMP", $AD43="LS"), "LUMP", OFFSET(#REF!, $AC43 - 1,0,1,1)),"")) ->  | K43: =IF( $AC43 = 0, "", IF( OFFSET(#REF!, $AC43 - 1,0,1,1)<>0, IF(OR($AD43="LUMP", $AD43="LS"), "LUMP", OFFSET(#REF!, $AC43 - 1,0,1,1)),"")) ->  | L43: =IF( $AC43 = 0, "", IF( OFFSET(#REF!, $AC43 - 1,0,1,1)<>0, IF(OR($AD43="LUMP", $AD43="LS"), "LUMP", OFFSET(#REF!, $AC43 - 1,0,1,1)),"")) ->  | M43: =IF( $AC43 = 0, "", IF( OFFSET(#REF!, $AC43 - 1,0,1,1)<>0, IF(OR($AD43="LUMP", $AD43="LS"), "LUMP", OFFSET(#REF!, $AC43 - 1,0,1,1)),"")) ->  | N43: =IF( $AC43 = 0, "", IF( OFFSET(#REF!, $AC43 - 1,0,1,1)<>0, IF(OR($AD43="LUMP", $AD43="LS"), "LUMP", OFFSET(#REF!, $AC43 - 1,0,1,1)),"")) ->  | O43: =IF( $AC43 = 0, "", IF( OFFSET(#REF!, $AC43 - 1,0,1,1)<>0, IF(OR($AD43="LUMP", $AD43="LS"), "LUMP", OFFSET(#REF!, $AC43 - 1,0,1,1)),"")) ->  | P43: =IF( $AC43 = 0, "", IF( OFFSET(#REF!, $AC43 - 1,0,1,1)<>0, IF(OR($AD43="LUMP", $AD43="LS"), "LUMP", OFFSET(#REF!, $AC43 - 1,0,1,1)),"")) ->  | Q43: =IF( $AC43 = 0, "", IF( OFFSET(#REF!, $AC43 - 1,0,1,1)<>0, IF(OR($AD43="LUMP", $AD43="LS"), "LUMP", OFFSET(#REF!, $AC43 - 1,0,1,1)),"")) ->  | R43: =IF( $AC43 = 0, "", IF( OFFSET(#REF!, $AC43 - 1,0,1,1)<>0, IF(OR($AD43="LUMP", $AD43="LS"), "LUMP", OFFSET(#REF!, $AC43 - 1,0,1,1)),"")) ->  | S43: =IF( $AC43 = 0, "", IF( OFFSET(#REF!, $AC43 - 1,0,1,1)<>0, IF(OR($AD43="LUMP", $AD43="LS"), "LUMP", OFFSET(#REF!, $AC43 - 1,0,1,1)),"")) ->  | T43: =IF( $AC43 = 0, "", IF( OFFSET(#REF!, $AC43 - 1,0,1,1)<>0, IF(OR($AD43="LUMP", $AD43="LS"), "LUMP", OFFSET(#REF!, $AC43 - 1,0,1,1)),"")) ->  | U43: =IF( $AC43 = 0, "", IF( OFFSET(#REF!, $AC43 - 1,0,1,1)<>0, LEFT(OFFSET(#REF!, $AC43 - 1,0,1,1),3),"")) ->  | V43: =IF( $AC43 = 0, "", IF( OFFSET(#REF!, $AC43 - 1,0,1,1)<>0, IF(LEN(OFFSET(#REF!, $AC43 - 1,0,1,1))=9, RIGHT(OFFSET(#REF!, $AC43 - 1,0,1,1),5), LEFT(RIGHT(OFFSET(#REF!, $AC43 - 1,0,1,1),6), 5) ),"")) ->  | X43: =IF( $AC43 = 0, "", IF( OFFSET(#REF!, $AC43 - 1,0,1,1)<>0,IF(OR(AD43="LUMP", AD43="LS"), "", AD43),"")) ->  | Y43: =IF( $AC43 = 0, "", IF( OFFSET(#REF!, $AC43 - 1,0,1,1)<>0, VLOOKUP( OFFSET(#REF!, $AC43 - 1,0,1,1),[1]Items!$A$2:$E$10001,4,0),"")) ->  | AA43: 41 | AB43: 6 | AC43: 35 | AD43: =IF( $AC43 = 0, "", IF( OFFSET(#REF!, $AC43 - 1,0,1,1)<>0, VLOOKUP( OFFSET(#REF!, $AC43 - 1,0,1,1),[1]Items!$A$2:$E$10001,3,0),"")) -> 
A44: =IF( $AC44 = 0, "", IF( OFFSET(#REF!, $AC44 - 1,0,1,1)<>0, IF(OR($AD44="LUMP", $AD44="LS"), "LUMP", OFFSET(#REF!, $AC44 - 1,0,1,1)),"")) ->  | B44: =IF( $AC44 = 0, "", IF( OFFSET(#REF!, $AC44 - 1,0,1,1)<>0, IF(OR($AD44="LUMP", $AD44="LS"), "LUMP", OFFSET(#REF!, $AC44 - 1,0,1,1)),"")) ->  | C44: =IF( $AC44 = 0, "", IF( OFFSET(#REF!, $AC44 - 1,0,1,1)<>0, IF(OR($AD44="LUMP", $AD44="LS"), "LUMP", OFFSET(#REF!, $AC44 - 1,0,1,1)),"")) ->  | D44: =IF( $AC44 = 0, "", IF( OFFSET(#REF!, $AC44 - 1,0,1,1)<>0, IF(OR($AD44="LUMP", $AD44="LS"), "LUMP", OFFSET(#REF!, $AC44 - 1,0,1,1)),"")) ->  | E44: =IF( $AC44 = 0, "", IF( OFFSET(#REF!, $AC44 - 1,0,1,1)<>0, IF(OR($AD44="LUMP", $AD44="LS"), "LUMP", OFFSET(#REF!, $AC44 - 1,0,1,1)),"")) ->  | F44: =IF( $AC44 = 0, "", IF( OFFSET(#REF!, $AC44 - 1,0,1,1)<>0, IF(OR($AD44="LUMP", $AD44="LS"), "LUMP", OFFSET(#REF!, $AC44 - 1,0,1,1)),"")) ->  | G44: =IF( $AC44 = 0, "", IF( OFFSET(#REF!, $AC44 - 1,0,1,1)<>0, IF(OR($AD44="LUMP", $AD44="LS"), "LUMP", OFFSET(#REF!, $AC44 - 1,0,1,1)),"")) ->  | H44: =IF( $AC44 = 0, "", IF( OFFSET(#REF!, $AC44 - 1,0,1,1)<>0, IF(OR($AD44="LUMP", $AD44="LS"), "LUMP", OFFSET(#REF!, $AC44 - 1,0,1,1)),"")) ->  | I44: =IF( $AC44 = 0, "", IF( OFFSET(#REF!, $AC44 - 1,0,1,1)<>0, IF(OR($AD44="LUMP", $AD44="LS"), "LUMP", OFFSET(#REF!, $AC44 - 1,0,1,1)),"")) ->  | J44: =IF( $AC44 = 0, "", IF( OFFSET(#REF!, $AC44 - 1,0,1,1)<>0, IF(OR($AD44="LUMP", $AD44="LS"), "LUMP", OFFSET(#REF!, $AC44 - 1,0,1,1)),"")) ->  | K44: =IF( $AC44 = 0, "", IF( OFFSET(#REF!, $AC44 - 1,0,1,1)<>0, IF(OR($AD44="LUMP", $AD44="LS"), "LUMP", OFFSET(#REF!, $AC44 - 1,0,1,1)),"")) ->  | L44: =IF( $AC44 = 0, "", IF( OFFSET(#REF!, $AC44 - 1,0,1,1)<>0, IF(OR($AD44="LUMP", $AD44="LS"), "LUMP", OFFSET(#REF!, $AC44 - 1,0,1,1)),"")) ->  | M44: =IF( $AC44 = 0, "", IF( OFFSET(#REF!, $AC44 - 1,0,1,1)<>0, IF(OR($AD44="LUMP", $AD44="LS"), "LUMP", OFFSET(#REF!, $AC44 - 1,0,1,1)),"")) ->  | N44: =IF( $AC44 = 0, "", IF( OFFSET(#REF!, $AC44 - 1,0,1,1)<>0, IF(OR($AD44="LUMP", $AD44="LS"), "LUMP", OFFSET(#REF!, $AC44 - 1,0,1,1)),"")) ->  | O44: =IF( $AC44 = 0, "", IF( OFFSET(#REF!, $AC44 - 1,0,1,1)<>0, IF(OR($AD44="LUMP", $AD44="LS"), "LUMP", OFFSET(#REF!, $AC44 - 1,0,1,1)),"")) ->  | P44: =IF( $AC44 = 0, "", IF( OFFSET(#REF!, $AC44 - 1,0,1,1)<>0, IF(OR($AD44="LUMP", $AD44="LS"), "LUMP", OFFSET(#REF!, $AC44 - 1,0,1,1)),"")) ->  | Q44: =IF( $AC44 = 0, "", IF( OFFSET(#REF!, $AC44 - 1,0,1,1)<>0, IF(OR($AD44="LUMP", $AD44="LS"), "LUMP", OFFSET(#REF!, $AC44 - 1,0,1,1)),"")) ->  | R44: =IF( $AC44 = 0, "", IF( OFFSET(#REF!, $AC44 - 1,0,1,1)<>0, IF(OR($AD44="LUMP", $AD44="LS"), "LUMP", OFFSET(#REF!, $AC44 - 1,0,1,1)),"")) ->  | S44: =IF( $AC44 = 0, "", IF( OFFSET(#REF!, $AC44 - 1,0,1,1)<>0, IF(OR($AD44="LUMP", $AD44="LS"), "LUMP", OFFSET(#REF!, $AC44 - 1,0,1,1)),"")) ->  | T44: =IF( $AC44 = 0, "", IF( OFFSET(#REF!, $AC44 - 1,0,1,1)<>0, IF(OR($AD44="LUMP", $AD44="LS"), "LUMP", OFFSET(#REF!, $AC44 - 1,0,1,1)),"")) ->  | U44: =IF( $AC44 = 0, "", IF( OFFSET(#REF!, $AC44 - 1,0,1,1)<>0, LEFT(OFFSET(#REF!, $AC44 - 1,0,1,1),3),"")) ->  | V44: =IF( $AC44 = 0, "", IF( OFFSET(#REF!, $AC44 - 1,0,1,1)<>0, IF(LEN(OFFSET(#REF!, $AC44 - 1,0,1,1))=9, RIGHT(OFFSET(#REF!, $AC44 - 1,0,1,1),5), LEFT(RIGHT(OFFSET(#REF!, $AC44 - 1,0,1,1),6), 5) ),"")) ->  | X44: =IF( $AC44 = 0, "", IF( OFFSET(#REF!, $AC44 - 1,0,1,1)<>0,IF(OR(AD44="LUMP", AD44="LS"), "", AD44),"")) ->  | Y44: =IF( $AC44 = 0, "", IF( OFFSET(#REF!, $AC44 - 1,0,1,1)<>0, VLOOKUP( OFFSET(#REF!, $AC44 - 1,0,1,1),[1]Items!$A$2:$E$10001,4,0),"")) ->  | AA44: 42 | AB44: 7 | AC44: 0 | AD44: =IF( $AC44 = 0, "", IF( OFFSET(#REF!, $AC44 - 1,0,1,1)<>0, VLOOKUP( OFFSET(#REF!, $AC44 - 1,0,1,1),[1]Items!$A$2:$E$10001,3,0),"")) -> 
A45: =IF( $AC45 = 0, "", IF( OFFSET(#REF!, $AC45 - 1,0,1,1)<>0, IF(OR($AD45="LUMP", $AD45="LS"), "LUMP", OFFSET(#REF!, $AC45 - 1,0,1,1)),"")) ->  | B45: =IF( $AC45 = 0, "", IF( OFFSET(#REF!, $AC45 - 1,0,1,1)<>0, IF(OR($AD45="LUMP", $AD45="LS"), "LUMP", OFFSET(#REF!, $AC45 - 1,0,1,1)),"")) ->  | C45: =IF( $AC45 = 0, "", IF( OFFSET(#REF!, $AC45 - 1,0,1,1)<>0, IF(OR($AD45="LUMP", $AD45="LS"), "LUMP", OFFSET(#REF!, $AC45 - 1,0,1,1)),"")) ->  | D45: =IF( $AC45 = 0, "", IF( OFFSET(#REF!, $AC45 - 1,0,1,1)<>0, IF(OR($AD45="LUMP", $AD45="LS"), "LUMP", OFFSET(#REF!, $AC45 - 1,0,1,1)),"")) ->  | E45: =IF( $AC45 = 0, "", IF( OFFSET(#REF!, $AC45 - 1,0,1,1)<>0, IF(OR($AD45="LUMP", $AD45="LS"), "LUMP", OFFSET(#REF!, $AC45 - 1,0,1,1)),"")) ->  | F45: =IF( $AC45 = 0, "", IF( OFFSET(#REF!, $AC45 - 1,0,1,1)<>0, IF(OR($AD45="LUMP", $AD45="LS"), "LUMP", OFFSET(#REF!, $AC45 - 1,0,1,1)),"")) ->  | G45: =IF( $AC45 = 0, "", IF( OFFSET(#REF!, $AC45 - 1,0,1,1)<>0, IF(OR($AD45="LUMP", $AD45="LS"), "LUMP", OFFSET(#REF!, $AC45 - 1,0,1,1)),"")) ->  | H45: =IF( $AC45 = 0, "", IF( OFFSET(#REF!, $AC45 - 1,0,1,1)<>0, IF(OR($AD45="LUMP", $AD45="LS"), "LUMP", OFFSET(#REF!, $AC45 - 1,0,1,1)),"")) ->  | I45: =IF( $AC45 = 0, "", IF( OFFSET(#REF!, $AC45 - 1,0,1,1)<>0, IF(OR($AD45="LUMP", $AD45="LS"), "LUMP", OFFSET(#REF!, $AC45 - 1,0,1,1)),"")) ->  | J45: =IF( $AC45 = 0, "", IF( OFFSET(#REF!, $AC45 - 1,0,1,1)<>0, IF(OR($AD45="LUMP", $AD45="LS"), "LUMP", OFFSET(#REF!, $AC45 - 1,0,1,1)),"")) ->  | K45: =IF( $AC45 = 0, "", IF( OFFSET(#REF!, $AC45 - 1,0,1,1)<>0, IF(OR($AD45="LUMP", $AD45="LS"), "LUMP", OFFSET(#REF!, $AC45 - 1,0,1,1)),"")) ->  | L45: =IF( $AC45 = 0, "", IF( OFFSET(#REF!, $AC45 - 1,0,1,1)<>0, IF(OR($AD45="LUMP", $AD45="LS"), "LUMP", OFFSET(#REF!, $AC45 - 1,0,1,1)),"")) ->  | M45: =IF( $AC45 = 0, "", IF( OFFSET(#REF!, $AC45 - 1,0,1,1)<>0, IF(OR($AD45="LUMP", $AD45="LS"), "LUMP", OFFSET(#REF!, $AC45 - 1,0,1,1)),"")) ->  | N45: =IF( $AC45 = 0, "", IF( OFFSET(#REF!, $AC45 - 1,0,1,1)<>0, IF(OR($AD45="LUMP", $AD45="LS"), "LUMP", OFFSET(#REF!, $AC45 - 1,0,1,1)),"")) ->  | O45: =IF( $AC45 = 0, "", IF( OFFSET(#REF!, $AC45 - 1,0,1,1)<>0, IF(OR($AD45="LUMP", $AD45="LS"), "LUMP", OFFSET(#REF!, $AC45 - 1,0,1,1)),"")) ->  | P45: =IF( $AC45 = 0, "", IF( OFFSET(#REF!, $AC45 - 1,0,1,1)<>0, IF(OR($AD45="LUMP", $AD45="LS"), "LUMP", OFFSET(#REF!, $AC45 - 1,0,1,1)),"")) ->  | Q45: =IF( $AC45 = 0, "", IF( OFFSET(#REF!, $AC45 - 1,0,1,1)<>0, IF(OR($AD45="LUMP", $AD45="LS"), "LUMP", OFFSET(#REF!, $AC45 - 1,0,1,1)),"")) ->  | R45: =IF( $AC45 = 0, "", IF( OFFSET(#REF!, $AC45 - 1,0,1,1)<>0, IF(OR($AD45="LUMP", $AD45="LS"), "LUMP", OFFSET(#REF!, $AC45 - 1,0,1,1)),"")) ->  | S45: =IF( $AC45 = 0, "", IF( OFFSET(#REF!, $AC45 - 1,0,1,1)<>0, IF(OR($AD45="LUMP", $AD45="LS"), "LUMP", OFFSET(#REF!, $AC45 - 1,0,1,1)),"")) ->  | T45: =IF( $AC45 = 0, "", IF( OFFSET(#REF!, $AC45 - 1,0,1,1)<>0, IF(OR($AD45="LUMP", $AD45="LS"), "LUMP", OFFSET(#REF!, $AC45 - 1,0,1,1)),"")) ->  | U45: =IF( $AC45 = 0, "", IF( OFFSET(#REF!, $AC45 - 1,0,1,1)<>0, LEFT(OFFSET(#REF!, $AC45 - 1,0,1,1),3),"")) ->  | V45: =IF( $AC45 = 0, "", IF( OFFSET(#REF!, $AC45 - 1,0,1,1)<>0, IF(LEN(OFFSET(#REF!, $AC45 - 1,0,1,1))=9, RIGHT(OFFSET(#REF!, $AC45 - 1,0,1,1),5), LEFT(RIGHT(OFFSET(#REF!, $AC45 - 1,0,1,1),6), 5) ),"")) ->  | X45: =IF( $AC45 = 0, "", IF( OFFSET(#REF!, $AC45 - 1,0,1,1)<>0,IF(OR(AD45="LUMP", AD45="LS"), "", AD45),"")) ->  | Y45: =IF( $AC45 = 0, "", IF( OFFSET(#REF!, $AC45 - 1,0,1,1)<>0, VLOOKUP( OFFSET(#REF!, $AC45 - 1,0,1,1),[1]Items!$A$2:$E$10001,4,0),"")) ->  | AA45: 43 | AB45: 7 | AC45: 36 | AD45: =IF( $AC45 = 0, "", IF( OFFSET(#REF!, $AC45 - 1,0,1,1)<>0, VLOOKUP( OFFSET(#REF!, $AC45 - 1,0,1,1),[1]Items!$A$2:$E$10001,3,0),"")) -> 
A46: =IF( $AC46 = 0, "", IF( OFFSET(#REF!, $AC46 - 1,0,1,1)<>0, IF(OR($AD46="LUMP", $AD46="LS"), "LUMP", OFFSET(#REF!, $AC46 - 1,0,1,1)),"")) ->  | B46: =IF( $AC46 = 0, "", IF( OFFSET(#REF!, $AC46 - 1,0,1,1)<>0, IF(OR($AD46="LUMP", $AD46="LS"), "LUMP", OFFSET(#REF!, $AC46 - 1,0,1,1)),"")) ->  | C46: =IF( $AC46 = 0, "", IF( OFFSET(#REF!, $AC46 - 1,0,1,1)<>0, IF(OR($AD46="LUMP", $AD46="LS"), "LUMP", OFFSET(#REF!, $AC46 - 1,0,1,1)),"")) ->  | D46: =IF( $AC46 = 0, "", IF( OFFSET(#REF!, $AC46 - 1,0,1,1)<>0, IF(OR($AD46="LUMP", $AD46="LS"), "LUMP", OFFSET(#REF!, $AC46 - 1,0,1,1)),"")) ->  | E46: =IF( $AC46 = 0, "", IF( OFFSET(#REF!, $AC46 - 1,0,1,1)<>0, IF(OR($AD46="LUMP", $AD46="LS"), "LUMP", OFFSET(#REF!, $AC46 - 1,0,1,1)),"")) ->  | F46: =IF( $AC46 = 0, "", IF( OFFSET(#REF!, $AC46 - 1,0,1,1)<>0, IF(OR($AD46="LUMP", $AD46="LS"), "LUMP", OFFSET(#REF!, $AC46 - 1,0,1,1)),"")) ->  | G46: =IF( $AC46 = 0, "", IF( OFFSET(#REF!, $AC46 - 1,0,1,1)<>0, IF(OR($AD46="LUMP", $AD46="LS"), "LUMP", OFFSET(#REF!, $AC46 - 1,0,1,1)),"")) ->  | H46: =IF( $AC46 = 0, "", IF( OFFSET(#REF!, $AC46 - 1,0,1,1)<>0, IF(OR($AD46="LUMP", $AD46="LS"), "LUMP", OFFSET(#REF!, $AC46 - 1,0,1,1)),"")) ->  | I46: =IF( $AC46 = 0, "", IF( OFFSET(#REF!, $AC46 - 1,0,1,1)<>0, IF(OR($AD46="LUMP", $AD46="LS"), "LUMP", OFFSET(#REF!, $AC46 - 1,0,1,1)),"")) ->  | J46: =IF( $AC46 = 0, "", IF( OFFSET(#REF!, $AC46 - 1,0,1,1)<>0, IF(OR($AD46="LUMP", $AD46="LS"), "LUMP", OFFSET(#REF!, $AC46 - 1,0,1,1)),"")) ->  | K46: =IF( $AC46 = 0, "", IF( OFFSET(#REF!, $AC46 - 1,0,1,1)<>0, IF(OR($AD46="LUMP", $AD46="LS"), "LUMP", OFFSET(#REF!, $AC46 - 1,0,1,1)),"")) ->  | L46: =IF( $AC46 = 0, "", IF( OFFSET(#REF!, $AC46 - 1,0,1,1)<>0, IF(OR($AD46="LUMP", $AD46="LS"), "LUMP", OFFSET(#REF!, $AC46 - 1,0,1,1)),"")) ->  | M46: =IF( $AC46 = 0, "", IF( OFFSET(#REF!, $AC46 - 1,0,1,1)<>0, IF(OR($AD46="LUMP", $AD46="LS"), "LUMP", OFFSET(#REF!, $AC46 - 1,0,1,1)),"")) ->  | N46: =IF( $AC46 = 0, "", IF( OFFSET(#REF!, $AC46 - 1,0,1,1)<>0, IF(OR($AD46="LUMP", $AD46="LS"), "LUMP", OFFSET(#REF!, $AC46 - 1,0,1,1)),"")) ->  | O46: =IF( $AC46 = 0, "", IF( OFFSET(#REF!, $AC46 - 1,0,1,1)<>0, IF(OR($AD46="LUMP", $AD46="LS"), "LUMP", OFFSET(#REF!, $AC46 - 1,0,1,1)),"")) ->  | P46: =IF( $AC46 = 0, "", IF( OFFSET(#REF!, $AC46 - 1,0,1,1)<>0, IF(OR($AD46="LUMP", $AD46="LS"), "LUMP", OFFSET(#REF!, $AC46 - 1,0,1,1)),"")) ->  | Q46: =IF( $AC46 = 0, "", IF( OFFSET(#REF!, $AC46 - 1,0,1,1)<>0, IF(OR($AD46="LUMP", $AD46="LS"), "LUMP", OFFSET(#REF!, $AC46 - 1,0,1,1)),"")) ->  | R46: =IF( $AC46 = 0, "", IF( OFFSET(#REF!, $AC46 - 1,0,1,1)<>0, IF(OR($AD46="LUMP", $AD46="LS"), "LUMP", OFFSET(#REF!, $AC46 - 1,0,1,1)),"")) ->  | S46: =IF( $AC46 = 0, "", IF( OFFSET(#REF!, $AC46 - 1,0,1,1)<>0, IF(OR($AD46="LUMP", $AD46="LS"), "LUMP", OFFSET(#REF!, $AC46 - 1,0,1,1)),"")) ->  | T46: =IF( $AC46 = 0, "", IF( OFFSET(#REF!, $AC46 - 1,0,1,1)<>0, IF(OR($AD46="LUMP", $AD46="LS"), "LUMP", OFFSET(#REF!, $AC46 - 1,0,1,1)),"")) ->  | U46: =IF( $AC46 = 0, "", IF( OFFSET(#REF!, $AC46 - 1,0,1,1)<>0, LEFT(OFFSET(#REF!, $AC46 - 1,0,1,1),3),"")) ->  | V46: =IF( $AC46 = 0, "", IF( OFFSET(#REF!, $AC46 - 1,0,1,1)<>0, IF(LEN(OFFSET(#REF!, $AC46 - 1,0,1,1))=9, RIGHT(OFFSET(#REF!, $AC46 - 1,0,1,1),5), LEFT(RIGHT(OFFSET(#REF!, $AC46 - 1,0,1,1),6), 5) ),"")) ->  | X46: =IF( $AC46 = 0, "", IF( OFFSET(#REF!, $AC46 - 1,0,1,1)<>0,IF(OR(AD46="LUMP", AD46="LS"), "", AD46),"")) ->  | Y46: =IF( $AC46 = 0, "", IF( OFFSET(#REF!, $AC46 - 1,0,1,1)<>0, VLOOKUP( OFFSET(#REF!, $AC46 - 1,0,1,1),[1]Items!$A$2:$E$10001,4,0),"")) ->  | AA46: 44 | AB46: 7 | AC46: 37 | AD46: =IF( $AC46 = 0, "", IF( OFFSET(#REF!, $AC46 - 1,0,1,1)<>0, VLOOKUP( OFFSET(#REF!, $AC46 - 1,0,1,1),[1]Items!$A$2:$E$10001,3,0),"")) -> 
A47: =IF( $AC47 = 0, "", IF( OFFSET(#REF!, $AC47 - 1,0,1,1)<>0, IF(OR($AD47="LUMP", $AD47="LS"), "LUMP", OFFSET(#REF!, $AC47 - 1,0,1,1)),"")) ->  | B47: =IF( $AC47 = 0, "", IF( OFFSET(#REF!, $AC47 - 1,0,1,1)<>0, IF(OR($AD47="LUMP", $AD47="LS"), "LUMP", OFFSET(#REF!, $AC47 - 1,0,1,1)),"")) ->  | C47: =IF( $AC47 = 0, "", IF( OFFSET(#REF!, $AC47 - 1,0,1,1)<>0, IF(OR($AD47="LUMP", $AD47="LS"), "LUMP", OFFSET(#REF!, $AC47 - 1,0,1,1)),"")) ->  | D47: =IF( $AC47 = 0, "", IF( OFFSET(#REF!, $AC47 - 1,0,1,1)<>0, IF(OR($AD47="LUMP", $AD47="LS"), "LUMP", OFFSET(#REF!, $AC47 - 1,0,1,1)),"")) ->  | E47: =IF( $AC47 = 0, "", IF( OFFSET(#REF!, $AC47 - 1,0,1,1)<>0, IF(OR($AD47="LUMP", $AD47="LS"), "LUMP", OFFSET(#REF!, $AC47 - 1,0,1,1)),"")) ->  | F47: =IF( $AC47 = 0, "", IF( OFFSET(#REF!, $AC47 - 1,0,1,1)<>0, IF(OR($AD47="LUMP", $AD47="LS"), "LUMP", OFFSET(#REF!, $AC47 - 1,0,1,1)),"")) ->  | G47: =IF( $AC47 = 0, "", IF( OFFSET(#REF!, $AC47 - 1,0,1,1)<>0, IF(OR($AD47="LUMP", $AD47="LS"), "LUMP", OFFSET(#REF!, $AC47 - 1,0,1,1)),"")) ->  | H47: =IF( $AC47 = 0, "", IF( OFFSET(#REF!, $AC47 - 1,0,1,1)<>0, IF(OR($AD47="LUMP", $AD47="LS"), "LUMP", OFFSET(#REF!, $AC47 - 1,0,1,1)),"")) ->  | I47: =IF( $AC47 = 0, "", IF( OFFSET(#REF!, $AC47 - 1,0,1,1)<>0, IF(OR($AD47="LUMP", $AD47="LS"), "LUMP", OFFSET(#REF!, $AC47 - 1,0,1,1)),"")) ->  | J47: =IF( $AC47 = 0, "", IF( OFFSET(#REF!, $AC47 - 1,0,1,1)<>0, IF(OR($AD47="LUMP", $AD47="LS"), "LUMP", OFFSET(#REF!, $AC47 - 1,0,1,1)),"")) ->  | K47: =IF( $AC47 = 0, "", IF( OFFSET(#REF!, $AC47 - 1,0,1,1)<>0, IF(OR($AD47="LUMP", $AD47="LS"), "LUMP", OFFSET(#REF!, $AC47 - 1,0,1,1)),"")) ->  | L47: =IF( $AC47 = 0, "", IF( OFFSET(#REF!, $AC47 - 1,0,1,1)<>0, IF(OR($AD47="LUMP", $AD47="LS"), "LUMP", OFFSET(#REF!, $AC47 - 1,0,1,1)),"")) ->  | M47: =IF( $AC47 = 0, "", IF( OFFSET(#REF!, $AC47 - 1,0,1,1)<>0, IF(OR($AD47="LUMP", $AD47="LS"), "LUMP", OFFSET(#REF!, $AC47 - 1,0,1,1)),"")) ->  | N47: =IF( $AC47 = 0, "", IF( OFFSET(#REF!, $AC47 - 1,0,1,1)<>0, IF(OR($AD47="LUMP", $AD47="LS"), "LUMP", OFFSET(#REF!, $AC47 - 1,0,1,1)),"")) ->  | O47: =IF( $AC47 = 0, "", IF( OFFSET(#REF!, $AC47 - 1,0,1,1)<>0, IF(OR($AD47="LUMP", $AD47="LS"), "LUMP", OFFSET(#REF!, $AC47 - 1,0,1,1)),"")) ->  | P47: =IF( $AC47 = 0, "", IF( OFFSET(#REF!, $AC47 - 1,0,1,1)<>0, IF(OR($AD47="LUMP", $AD47="LS"), "LUMP", OFFSET(#REF!, $AC47 - 1,0,1,1)),"")) ->  | Q47: =IF( $AC47 = 0, "", IF( OFFSET(#REF!, $AC47 - 1,0,1,1)<>0, IF(OR($AD47="LUMP", $AD47="LS"), "LUMP", OFFSET(#REF!, $AC47 - 1,0,1,1)),"")) ->  | R47: =IF( $AC47 = 0, "", IF( OFFSET(#REF!, $AC47 - 1,0,1,1)<>0, IF(OR($AD47="LUMP", $AD47="LS"), "LUMP", OFFSET(#REF!, $AC47 - 1,0,1,1)),"")) ->  | S47: =IF( $AC47 = 0, "", IF( OFFSET(#REF!, $AC47 - 1,0,1,1)<>0, IF(OR($AD47="LUMP", $AD47="LS"), "LUMP", OFFSET(#REF!, $AC47 - 1,0,1,1)),"")) ->  | T47: =IF( $AC47 = 0, "", IF( OFFSET(#REF!, $AC47 - 1,0,1,1)<>0, IF(OR($AD47="LUMP", $AD47="LS"), "LUMP", OFFSET(#REF!, $AC47 - 1,0,1,1)),"")) ->  | U47: =IF( $AC47 = 0, "", IF( OFFSET(#REF!, $AC47 - 1,0,1,1)<>0, LEFT(OFFSET(#REF!, $AC47 - 1,0,1,1),3),"")) ->  | V47: =IF( $AC47 = 0, "", IF( OFFSET(#REF!, $AC47 - 1,0,1,1)<>0, IF(LEN(OFFSET(#REF!, $AC47 - 1,0,1,1))=9, RIGHT(OFFSET(#REF!, $AC47 - 1,0,1,1),5), LEFT(RIGHT(OFFSET(#REF!, $AC47 - 1,0,1,1),6), 5) ),"")) ->  | X47: =IF( $AC47 = 0, "", IF( OFFSET(#REF!, $AC47 - 1,0,1,1)<>0,IF(OR(AD47="LUMP", AD47="LS"), "", AD47),"")) ->  | Y47: =IF( $AC47 = 0, "", IF( OFFSET(#REF!, $AC47 - 1,0,1,1)<>0, VLOOKUP( OFFSET(#REF!, $AC47 - 1,0,1,1),[1]Items!$A$2:$E$10001,4,0),"")) ->  | AA47: 45 | AB47: 7 | AC47: 38 | AD47: =IF( $AC47 = 0, "", IF( OFFSET(#REF!, $AC47 - 1,0,1,1)<>0, VLOOKUP( OFFSET(#REF!, $AC47 - 1,0,1,1),[1]Items!$A$2:$E$10001,3,0),"")) -> 
A48: =IF( $AC48 = 0, "", IF( OFFSET(#REF!, $AC48 - 1,0,1,1)<>0, IF(OR($AD48="LUMP", $AD48="LS"), "LUMP", OFFSET(#REF!, $AC48 - 1,0,1,1)),"")) ->  | B48: =IF( $AC48 = 0, "", IF( OFFSET(#REF!, $AC48 - 1,0,1,1)<>0, IF(OR($AD48="LUMP", $AD48="LS"), "LUMP", OFFSET(#REF!, $AC48 - 1,0,1,1)),"")) ->  | C48: =IF( $AC48 = 0, "", IF( OFFSET(#REF!, $AC48 - 1,0,1,1)<>0, IF(OR($AD48="LUMP", $AD48="LS"), "LUMP", OFFSET(#REF!, $AC48 - 1,0,1,1)),"")) ->  | D48: =IF( $AC48 = 0, "", IF( OFFSET(#REF!, $AC48 - 1,0,1,1)<>0, IF(OR($AD48="LUMP", $AD48="LS"), "LUMP", OFFSET(#REF!, $AC48 - 1,0,1,1)),"")) ->  | E48: =IF( $AC48 = 0, "", IF( OFFSET(#REF!, $AC48 - 1,0,1,1)<>0, IF(OR($AD48="LUMP", $AD48="LS"), "LUMP", OFFSET(#REF!, $AC48 - 1,0,1,1)),"")) ->  | F48: =IF( $AC48 = 0, "", IF( OFFSET(#REF!, $AC48 - 1,0,1,1)<>0, IF(OR($AD48="LUMP", $AD48="LS"), "LUMP", OFFSET(#REF!, $AC48 - 1,0,1,1)),"")) ->  | G48: =IF( $AC48 = 0, "", IF( OFFSET(#REF!, $AC48 - 1,0,1,1)<>0, IF(OR($AD48="LUMP", $AD48="LS"), "LUMP", OFFSET(#REF!, $AC48 - 1,0,1,1)),"")) ->  | H48: =IF( $AC48 = 0, "", IF( OFFSET(#REF!, $AC48 - 1,0,1,1)<>0, IF(OR($AD48="LUMP", $AD48="LS"), "LUMP", OFFSET(#REF!, $AC48 - 1,0,1,1)),"")) ->  | I48: =IF( $AC48 = 0, "", IF( OFFSET(#REF!, $AC48 - 1,0,1,1)<>0, IF(OR($AD48="LUMP", $AD48="LS"), "LUMP", OFFSET(#REF!, $AC48 - 1,0,1,1)),"")) ->  | J48: =IF( $AC48 = 0, "", IF( OFFSET(#REF!, $AC48 - 1,0,1,1)<>0, IF(OR($AD48="LUMP", $AD48="LS"), "LUMP", OFFSET(#REF!, $AC48 - 1,0,1,1)),"")) ->  | K48: =IF( $AC48 = 0, "", IF( OFFSET(#REF!, $AC48 - 1,0,1,1)<>0, IF(OR($AD48="LUMP", $AD48="LS"), "LUMP", OFFSET(#REF!, $AC48 - 1,0,1,1)),"")) ->  | L48: =IF( $AC48 = 0, "", IF( OFFSET(#REF!, $AC48 - 1,0,1,1)<>0, IF(OR($AD48="LUMP", $AD48="LS"), "LUMP", OFFSET(#REF!, $AC48 - 1,0,1,1)),"")) ->  | M48: =IF( $AC48 = 0, "", IF( OFFSET(#REF!, $AC48 - 1,0,1,1)<>0, IF(OR($AD48="LUMP", $AD48="LS"), "LUMP", OFFSET(#REF!, $AC48 - 1,0,1,1)),"")) ->  | N48: =IF( $AC48 = 0, "", IF( OFFSET(#REF!, $AC48 - 1,0,1,1)<>0, IF(OR($AD48="LUMP", $AD48="LS"), "LUMP", OFFSET(#REF!, $AC48 - 1,0,1,1)),"")) ->  | O48: =IF( $AC48 = 0, "", IF( OFFSET(#REF!, $AC48 - 1,0,1,1)<>0, IF(OR($AD48="LUMP", $AD48="LS"), "LUMP", OFFSET(#REF!, $AC48 - 1,0,1,1)),"")) ->  | P48: =IF( $AC48 = 0, "", IF( OFFSET(#REF!, $AC48 - 1,0,1,1)<>0, IF(OR($AD48="LUMP", $AD48="LS"), "LUMP", OFFSET(#REF!, $AC48 - 1,0,1,1)),"")) ->  | Q48: =IF( $AC48 = 0, "", IF( OFFSET(#REF!, $AC48 - 1,0,1,1)<>0, IF(OR($AD48="LUMP", $AD48="LS"), "LUMP", OFFSET(#REF!, $AC48 - 1,0,1,1)),"")) ->  | R48: =IF( $AC48 = 0, "", IF( OFFSET(#REF!, $AC48 - 1,0,1,1)<>0, IF(OR($AD48="LUMP", $AD48="LS"), "LUMP", OFFSET(#REF!, $AC48 - 1,0,1,1)),"")) ->  | S48: =IF( $AC48 = 0, "", IF( OFFSET(#REF!, $AC48 - 1,0,1,1)<>0, IF(OR($AD48="LUMP", $AD48="LS"), "LUMP", OFFSET(#REF!, $AC48 - 1,0,1,1)),"")) ->  | T48: =IF( $AC48 = 0, "", IF( OFFSET(#REF!, $AC48 - 1,0,1,1)<>0, IF(OR($AD48="LUMP", $AD48="LS"), "LUMP", OFFSET(#REF!, $AC48 - 1,0,1,1)),"")) ->  | U48: =IF( $AC48 = 0, "", IF( OFFSET(#REF!, $AC48 - 1,0,1,1)<>0, LEFT(OFFSET(#REF!, $AC48 - 1,0,1,1),3),"")) ->  | V48: =IF( $AC48 = 0, "", IF( OFFSET(#REF!, $AC48 - 1,0,1,1)<>0, IF(LEN(OFFSET(#REF!, $AC48 - 1,0,1,1))=9, RIGHT(OFFSET(#REF!, $AC48 - 1,0,1,1),5), LEFT(RIGHT(OFFSET(#REF!, $AC48 - 1,0,1,1),6), 5) ),"")) ->  | X48: =IF( $AC48 = 0, "", IF( OFFSET(#REF!, $AC48 - 1,0,1,1)<>0,IF(OR(AD48="LUMP", AD48="LS"), "", AD48),"")) ->  | Y48: =IF( $AC48 = 0, "", IF( OFFSET(#REF!, $AC48 - 1,0,1,1)<>0, VLOOKUP( OFFSET(#REF!, $AC48 - 1,0,1,1),[1]Items!$A$2:$E$10001,4,0),"")) ->  | AA48: 46 | AB48: 7 | AC48: 39 | AD48: =IF( $AC48 = 0, "", IF( OFFSET(#REF!, $AC48 - 1,0,1,1)<>0, VLOOKUP( OFFSET(#REF!, $AC48 - 1,0,1,1),[1]Items!$A$2:$E$10001,3,0),"")) -> 
A49: =IF( $AC49 = 0, "", IF( OFFSET(#REF!, $AC49 - 1,0,1,1)<>0, IF(OR($AD49="LUMP", $AD49="LS"), "LUMP", OFFSET(#REF!, $AC49 - 1,0,1,1)),"")) ->  | B49: =IF( $AC49 = 0, "", IF( OFFSET(#REF!, $AC49 - 1,0,1,1)<>0, IF(OR($AD49="LUMP", $AD49="LS"), "LUMP", OFFSET(#REF!, $AC49 - 1,0,1,1)),"")) ->  | C49: =IF( $AC49 = 0, "", IF( OFFSET(#REF!, $AC49 - 1,0,1,1)<>0, IF(OR($AD49="LUMP", $AD49="LS"), "LUMP", OFFSET(#REF!, $AC49 - 1,0,1,1)),"")) ->  | D49: =IF( $AC49 = 0, "", IF( OFFSET(#REF!, $AC49 - 1,0,1,1)<>0, IF(OR($AD49="LUMP", $AD49="LS"), "LUMP", OFFSET(#REF!, $AC49 - 1,0,1,1)),"")) ->  | E49: =IF( $AC49 = 0, "", IF( OFFSET(#REF!, $AC49 - 1,0,1,1)<>0, IF(OR($AD49="LUMP", $AD49="LS"), "LUMP", OFFSET(#REF!, $AC49 - 1,0,1,1)),"")) ->  | F49: =IF( $AC49 = 0, "", IF( OFFSET(#REF!, $AC49 - 1,0,1,1)<>0, IF(OR($AD49="LUMP", $AD49="LS"), "LUMP", OFFSET(#REF!, $AC49 - 1,0,1,1)),"")) ->  | G49: =IF( $AC49 = 0, "", IF( OFFSET(#REF!, $AC49 - 1,0,1,1)<>0, IF(OR($AD49="LUMP", $AD49="LS"), "LUMP", OFFSET(#REF!, $AC49 - 1,0,1,1)),"")) ->  | H49: =IF( $AC49 = 0, "", IF( OFFSET(#REF!, $AC49 - 1,0,1,1)<>0, IF(OR($AD49="LUMP", $AD49="LS"), "LUMP", OFFSET(#REF!, $AC49 - 1,0,1,1)),"")) ->  | I49: =IF( $AC49 = 0, "", IF( OFFSET(#REF!, $AC49 - 1,0,1,1)<>0, IF(OR($AD49="LUMP", $AD49="LS"), "LUMP", OFFSET(#REF!, $AC49 - 1,0,1,1)),"")) ->  | J49: =IF( $AC49 = 0, "", IF( OFFSET(#REF!, $AC49 - 1,0,1,1)<>0, IF(OR($AD49="LUMP", $AD49="LS"), "LUMP", OFFSET(#REF!, $AC49 - 1,0,1,1)),"")) ->  | K49: =IF( $AC49 = 0, "", IF( OFFSET(#REF!, $AC49 - 1,0,1,1)<>0, IF(OR($AD49="LUMP", $AD49="LS"), "LUMP", OFFSET(#REF!, $AC49 - 1,0,1,1)),"")) ->  | L49: =IF( $AC49 = 0, "", IF( OFFSET(#REF!, $AC49 - 1,0,1,1)<>0, IF(OR($AD49="LUMP", $AD49="LS"), "LUMP", OFFSET(#REF!, $AC49 - 1,0,1,1)),"")) ->  | M49: =IF( $AC49 = 0, "", IF( OFFSET(#REF!, $AC49 - 1,0,1,1)<>0, IF(OR($AD49="LUMP", $AD49="LS"), "LUMP", OFFSET(#REF!, $AC49 - 1,0,1,1)),"")) ->  | N49: =IF( $AC49 = 0, "", IF( OFFSET(#REF!, $AC49 - 1,0,1,1)<>0, IF(OR($AD49="LUMP", $AD49="LS"), "LUMP", OFFSET(#REF!, $AC49 - 1,0,1,1)),"")) ->  | O49: =IF( $AC49 = 0, "", IF( OFFSET(#REF!, $AC49 - 1,0,1,1)<>0, IF(OR($AD49="LUMP", $AD49="LS"), "LUMP", OFFSET(#REF!, $AC49 - 1,0,1,1)),"")) ->  | P49: =IF( $AC49 = 0, "", IF( OFFSET(#REF!, $AC49 - 1,0,1,1)<>0, IF(OR($AD49="LUMP", $AD49="LS"), "LUMP", OFFSET(#REF!, $AC49 - 1,0,1,1)),"")) ->  | Q49: =IF( $AC49 = 0, "", IF( OFFSET(#REF!, $AC49 - 1,0,1,1)<>0, IF(OR($AD49="LUMP", $AD49="LS"), "LUMP", OFFSET(#REF!, $AC49 - 1,0,1,1)),"")) ->  | R49: =IF( $AC49 = 0, "", IF( OFFSET(#REF!, $AC49 - 1,0,1,1)<>0, IF(OR($AD49="LUMP", $AD49="LS"), "LUMP", OFFSET(#REF!, $AC49 - 1,0,1,1)),"")) ->  | S49: =IF( $AC49 = 0, "", IF( OFFSET(#REF!, $AC49 - 1,0,1,1)<>0, IF(OR($AD49="LUMP", $AD49="LS"), "LUMP", OFFSET(#REF!, $AC49 - 1,0,1,1)),"")) ->  | T49: =IF( $AC49 = 0, "", IF( OFFSET(#REF!, $AC49 - 1,0,1,1)<>0, IF(OR($AD49="LUMP", $AD49="LS"), "LUMP", OFFSET(#REF!, $AC49 - 1,0,1,1)),"")) ->  | U49: =IF( $AC49 = 0, "", IF( OFFSET(#REF!, $AC49 - 1,0,1,1)<>0, LEFT(OFFSET(#REF!, $AC49 - 1,0,1,1),3),"")) ->  | V49: =IF( $AC49 = 0, "", IF( OFFSET(#REF!, $AC49 - 1,0,1,1)<>0, IF(LEN(OFFSET(#REF!, $AC49 - 1,0,1,1))=9, RIGHT(OFFSET(#REF!, $AC49 - 1,0,1,1),5), LEFT(RIGHT(OFFSET(#REF!, $AC49 - 1,0,1,1),6), 5) ),"")) ->  | X49: =IF( $AC49 = 0, "", IF( OFFSET(#REF!, $AC49 - 1,0,1,1)<>0,IF(OR(AD49="LUMP", AD49="LS"), "", AD49),"")) ->  | Y49: =IF( $AC49 = 0, "", IF( OFFSET(#REF!, $AC49 - 1,0,1,1)<>0, VLOOKUP( OFFSET(#REF!, $AC49 - 1,0,1,1),[1]Items!$A$2:$E$10001,4,0),"")) ->  | AA49: 47 | AB49: 7 | AC49: 40 | AD49: =IF( $AC49 = 0, "", IF( OFFSET(#REF!, $AC49 - 1,0,1,1)<>0, VLOOKUP( OFFSET(#REF!, $AC49 - 1,0,1,1),[1]Items!$A$2:$E$10001,3,0),"")) -> 
A50: =IF( $AC50 = 0, "", IF( OFFSET(#REF!, $AC50 - 1,0,1,1)<>0, IF(OR($AD50="LUMP", $AD50="LS"), "LUMP", OFFSET(#REF!, $AC50 - 1,0,1,1)),"")) ->  | B50: =IF( $AC50 = 0, "", IF( OFFSET(#REF!, $AC50 - 1,0,1,1)<>0, IF(OR($AD50="LUMP", $AD50="LS"), "LUMP", OFFSET(#REF!, $AC50 - 1,0,1,1)),"")) ->  | C50: =IF( $AC50 = 0, "", IF( OFFSET(#REF!, $AC50 - 1,0,1,1)<>0, IF(OR($AD50="LUMP", $AD50="LS"), "LUMP", OFFSET(#REF!, $AC50 - 1,0,1,1)),"")) ->  | D50: =IF( $AC50 = 0, "", IF( OFFSET(#REF!, $AC50 - 1,0,1,1)<>0, IF(OR($AD50="LUMP", $AD50="LS"), "LUMP", OFFSET(#REF!, $AC50 - 1,0,1,1)),"")) ->  | E50: =IF( $AC50 = 0, "", IF( OFFSET(#REF!, $AC50 - 1,0,1,1)<>0, IF(OR($AD50="LUMP", $AD50="LS"), "LUMP", OFFSET(#REF!, $AC50 - 1,0,1,1)),"")) ->  | F50: =IF( $AC50 = 0, "", IF( OFFSET(#REF!, $AC50 - 1,0,1,1)<>0, IF(OR($AD50="LUMP", $AD50="LS"), "LUMP", OFFSET(#REF!, $AC50 - 1,0,1,1)),"")) ->  | G50: =IF( $AC50 = 0, "", IF( OFFSET(#REF!, $AC50 - 1,0,1,1)<>0, IF(OR($AD50="LUMP", $AD50="LS"), "LUMP", OFFSET(#REF!, $AC50 - 1,0,1,1)),"")) ->  | H50: =IF( $AC50 = 0, "", IF( OFFSET(#REF!, $AC50 - 1,0,1,1)<>0, IF(OR($AD50="LUMP", $AD50="LS"), "LUMP", OFFSET(#REF!, $AC50 - 1,0,1,1)),"")) ->  | I50: =IF( $AC50 = 0, "", IF( OFFSET(#REF!, $AC50 - 1,0,1,1)<>0, IF(OR($AD50="LUMP", $AD50="LS"), "LUMP", OFFSET(#REF!, $AC50 - 1,0,1,1)),"")) ->  | J50: =IF( $AC50 = 0, "", IF( OFFSET(#REF!, $AC50 - 1,0,1,1)<>0, IF(OR($AD50="LUMP", $AD50="LS"), "LUMP", OFFSET(#REF!, $AC50 - 1,0,1,1)),"")) ->  | K50: =IF( $AC50 = 0, "", IF( OFFSET(#REF!, $AC50 - 1,0,1,1)<>0, IF(OR($AD50="LUMP", $AD50="LS"), "LUMP", OFFSET(#REF!, $AC50 - 1,0,1,1)),"")) ->  | L50: =IF( $AC50 = 0, "", IF( OFFSET(#REF!, $AC50 - 1,0,1,1)<>0, IF(OR($AD50="LUMP", $AD50="LS"), "LUMP", OFFSET(#REF!, $AC50 - 1,0,1,1)),"")) ->  | M50: =IF( $AC50 = 0, "", IF( OFFSET(#REF!, $AC50 - 1,0,1,1)<>0, IF(OR($AD50="LUMP", $AD50="LS"), "LUMP", OFFSET(#REF!, $AC50 - 1,0,1,1)),"")) ->  | N50: =IF( $AC50 = 0, "", IF( OFFSET(#REF!, $AC50 - 1,0,1,1)<>0, IF(OR($AD50="LUMP", $AD50="LS"), "LUMP", OFFSET(#REF!, $AC50 - 1,0,1,1)),"")) ->  | O50: =IF( $AC50 = 0, "", IF( OFFSET(#REF!, $AC50 - 1,0,1,1)<>0, IF(OR($AD50="LUMP", $AD50="LS"), "LUMP", OFFSET(#REF!, $AC50 - 1,0,1,1)),"")) ->  | P50: =IF( $AC50 = 0, "", IF( OFFSET(#REF!, $AC50 - 1,0,1,1)<>0, IF(OR($AD50="LUMP", $AD50="LS"), "LUMP", OFFSET(#REF!, $AC50 - 1,0,1,1)),"")) ->  | Q50: =IF( $AC50 = 0, "", IF( OFFSET(#REF!, $AC50 - 1,0,1,1)<>0, IF(OR($AD50="LUMP", $AD50="LS"), "LUMP", OFFSET(#REF!, $AC50 - 1,0,1,1)),"")) ->  | R50: =IF( $AC50 = 0, "", IF( OFFSET(#REF!, $AC50 - 1,0,1,1)<>0, IF(OR($AD50="LUMP", $AD50="LS"), "LUMP", OFFSET(#REF!, $AC50 - 1,0,1,1)),"")) ->  | S50: =IF( $AC50 = 0, "", IF( OFFSET(#REF!, $AC50 - 1,0,1,1)<>0, IF(OR($AD50="LUMP", $AD50="LS"), "LUMP", OFFSET(#REF!, $AC50 - 1,0,1,1)),"")) ->  | T50: =IF( $AC50 = 0, "", IF( OFFSET(#REF!, $AC50 - 1,0,1,1)<>0, IF(OR($AD50="LUMP", $AD50="LS"), "LUMP", OFFSET(#REF!, $AC50 - 1,0,1,1)),"")) ->  | U50: =IF( $AC50 = 0, "", IF( OFFSET(#REF!, $AC50 - 1,0,1,1)<>0, LEFT(OFFSET(#REF!, $AC50 - 1,0,1,1),3),"")) ->  | V50: =IF( $AC50 = 0, "", IF( OFFSET(#REF!, $AC50 - 1,0,1,1)<>0, IF(LEN(OFFSET(#REF!, $AC50 - 1,0,1,1))=9, RIGHT(OFFSET(#REF!, $AC50 - 1,0,1,1),5), LEFT(RIGHT(OFFSET(#REF!, $AC50 - 1,0,1,1),6), 5) ),"")) ->  | X50: =IF( $AC50 = 0, "", IF( OFFSET(#REF!, $AC50 - 1,0,1,1)<>0,IF(OR(AD50="LUMP", AD50="LS"), "", AD50),"")) ->  | Y50: =IF( $AC50 = 0, "", IF( OFFSET(#REF!, $AC50 - 1,0,1,1)<>0, VLOOKUP( OFFSET(#REF!, $AC50 - 1,0,1,1),[1]Items!$A$2:$E$10001,4,0),"")) ->  | AA50: 48 | AB50: 8 | AC50: 0 | AD50: =IF( $AC50 = 0, "", IF( OFFSET(#REF!, $AC50 - 1,0,1,1)<>0, VLOOKUP( OFFSET(#REF!, $AC50 - 1,0,1,1),[1]Items!$A$2:$E$10001,3,0),"")) -> 
A51: =IF( $AC51 = 0, "", IF( OFFSET(#REF!, $AC51 - 1,0,1,1)<>0, IF(OR($AD51="LUMP", $AD51="LS"), "LUMP", OFFSET(#REF!, $AC51 - 1,0,1,1)),"")) ->  | B51: =IF( $AC51 = 0, "", IF( OFFSET(#REF!, $AC51 - 1,0,1,1)<>0, IF(OR($AD51="LUMP", $AD51="LS"), "LUMP", OFFSET(#REF!, $AC51 - 1,0,1,1)),"")) ->  | C51: =IF( $AC51 = 0, "", IF( OFFSET(#REF!, $AC51 - 1,0,1,1)<>0, IF(OR($AD51="LUMP", $AD51="LS"), "LUMP", OFFSET(#REF!, $AC51 - 1,0,1,1)),"")) ->  | D51: =IF( $AC51 = 0, "", IF( OFFSET(#REF!, $AC51 - 1,0,1,1)<>0, IF(OR($AD51="LUMP", $AD51="LS"), "LUMP", OFFSET(#REF!, $AC51 - 1,0,1,1)),"")) ->  | E51: =IF( $AC51 = 0, "", IF( OFFSET(#REF!, $AC51 - 1,0,1,1)<>0, IF(OR($AD51="LUMP", $AD51="LS"), "LUMP", OFFSET(#REF!, $AC51 - 1,0,1,1)),"")) ->  | F51: =IF( $AC51 = 0, "", IF( OFFSET(#REF!, $AC51 - 1,0,1,1)<>0, IF(OR($AD51="LUMP", $AD51="LS"), "LUMP", OFFSET(#REF!, $AC51 - 1,0,1,1)),"")) ->  | G51: =IF( $AC51 = 0, "", IF( OFFSET(#REF!, $AC51 - 1,0,1,1)<>0, IF(OR($AD51="LUMP", $AD51="LS"), "LUMP", OFFSET(#REF!, $AC51 - 1,0,1,1)),"")) ->  | H51: =IF( $AC51 = 0, "", IF( OFFSET(#REF!, $AC51 - 1,0,1,1)<>0, IF(OR($AD51="LUMP", $AD51="LS"), "LUMP", OFFSET(#REF!, $AC51 - 1,0,1,1)),"")) ->  | I51: =IF( $AC51 = 0, "", IF( OFFSET(#REF!, $AC51 - 1,0,1,1)<>0, IF(OR($AD51="LUMP", $AD51="LS"), "LUMP", OFFSET(#REF!, $AC51 - 1,0,1,1)),"")) ->  | J51: =IF( $AC51 = 0, "", IF( OFFSET(#REF!, $AC51 - 1,0,1,1)<>0, IF(OR($AD51="LUMP", $AD51="LS"), "LUMP", OFFSET(#REF!, $AC51 - 1,0,1,1)),"")) ->  | K51: =IF( $AC51 = 0, "", IF( OFFSET(#REF!, $AC51 - 1,0,1,1)<>0, IF(OR($AD51="LUMP", $AD51="LS"), "LUMP", OFFSET(#REF!, $AC51 - 1,0,1,1)),"")) ->  | L51: =IF( $AC51 = 0, "", IF( OFFSET(#REF!, $AC51 - 1,0,1,1)<>0, IF(OR($AD51="LUMP", $AD51="LS"), "LUMP", OFFSET(#REF!, $AC51 - 1,0,1,1)),"")) ->  | M51: =IF( $AC51 = 0, "", IF( OFFSET(#REF!, $AC51 - 1,0,1,1)<>0, IF(OR($AD51="LUMP", $AD51="LS"), "LUMP", OFFSET(#REF!, $AC51 - 1,0,1,1)),"")) ->  | N51: =IF( $AC51 = 0, "", IF( OFFSET(#REF!, $AC51 - 1,0,1,1)<>0, IF(OR($AD51="LUMP", $AD51="LS"), "LUMP", OFFSET(#REF!, $AC51 - 1,0,1,1)),"")) ->  | O51: =IF( $AC51 = 0, "", IF( OFFSET(#REF!, $AC51 - 1,0,1,1)<>0, IF(OR($AD51="LUMP", $AD51="LS"), "LUMP", OFFSET(#REF!, $AC51 - 1,0,1,1)),"")) ->  | P51: =IF( $AC51 = 0, "", IF( OFFSET(#REF!, $AC51 - 1,0,1,1)<>0, IF(OR($AD51="LUMP", $AD51="LS"), "LUMP", OFFSET(#REF!, $AC51 - 1,0,1,1)),"")) ->  | Q51: =IF( $AC51 = 0, "", IF( OFFSET(#REF!, $AC51 - 1,0,1,1)<>0, IF(OR($AD51="LUMP", $AD51="LS"), "LUMP", OFFSET(#REF!, $AC51 - 1,0,1,1)),"")) ->  | R51: =IF( $AC51 = 0, "", IF( OFFSET(#REF!, $AC51 - 1,0,1,1)<>0, IF(OR($AD51="LUMP", $AD51="LS"), "LUMP", OFFSET(#REF!, $AC51 - 1,0,1,1)),"")) ->  | S51: =IF( $AC51 = 0, "", IF( OFFSET(#REF!, $AC51 - 1,0,1,1)<>0, IF(OR($AD51="LUMP", $AD51="LS"), "LUMP", OFFSET(#REF!, $AC51 - 1,0,1,1)),"")) ->  | T51: =IF( $AC51 = 0, "", IF( OFFSET(#REF!, $AC51 - 1,0,1,1)<>0, IF(OR($AD51="LUMP", $AD51="LS"), "LUMP", OFFSET(#REF!, $AC51 - 1,0,1,1)),"")) ->  | U51: =IF( $AC51 = 0, "", IF( OFFSET(#REF!, $AC51 - 1,0,1,1)<>0, LEFT(OFFSET(#REF!, $AC51 - 1,0,1,1),3),"")) ->  | V51: =IF( $AC51 = 0, "", IF( OFFSET(#REF!, $AC51 - 1,0,1,1)<>0, IF(LEN(OFFSET(#REF!, $AC51 - 1,0,1,1))=9, RIGHT(OFFSET(#REF!, $AC51 - 1,0,1,1),5), LEFT(RIGHT(OFFSET(#REF!, $AC51 - 1,0,1,1),6), 5) ),"")) ->  | X51: =IF( $AC51 = 0, "", IF( OFFSET(#REF!, $AC51 - 1,0,1,1)<>0,IF(OR(AD51="LUMP", AD51="LS"), "", AD51),"")) ->  | Y51: =IF( $AC51 = 0, "", IF( OFFSET(#REF!, $AC51 - 1,0,1,1)<>0, VLOOKUP( OFFSET(#REF!, $AC51 - 1,0,1,1),[1]Items!$A$2:$E$10001,4,0),"")) ->  | AA51: 49 | AB51: 8 | AC51: 41 | AD51: =IF( $AC51 = 0, "", IF( OFFSET(#REF!, $AC51 - 1,0,1,1)<>0, VLOOKUP( OFFSET(#REF!, $AC51 - 1,0,1,1),[1]Items!$A$2:$E$10001,3,0),"")) -> 
A52: =IF( $AC52 = 0, "", IF( OFFSET(#REF!, $AC52 - 1,0,1,1)<>0, IF(OR($AD52="LUMP", $AD52="LS"), "LUMP", OFFSET(#REF!, $AC52 - 1,0,1,1)),"")) ->  | B52: =IF( $AC52 = 0, "", IF( OFFSET(#REF!, $AC52 - 1,0,1,1)<>0, IF(OR($AD52="LUMP", $AD52="LS"), "LUMP", OFFSET(#REF!, $AC52 - 1,0,1,1)),"")) ->  | C52: =IF( $AC52 = 0, "", IF( OFFSET(#REF!, $AC52 - 1,0,1,1)<>0, IF(OR($AD52="LUMP", $AD52="LS"), "LUMP", OFFSET(#REF!, $AC52 - 1,0,1,1)),"")) ->  | D52: =IF( $AC52 = 0, "", IF( OFFSET(#REF!, $AC52 - 1,0,1,1)<>0, IF(OR($AD52="LUMP", $AD52="LS"), "LUMP", OFFSET(#REF!, $AC52 - 1,0,1,1)),"")) ->  | E52: =IF( $AC52 = 0, "", IF( OFFSET(#REF!, $AC52 - 1,0,1,1)<>0, IF(OR($AD52="LUMP", $AD52="LS"), "LUMP", OFFSET(#REF!, $AC52 - 1,0,1,1)),"")) ->  | F52: =IF( $AC52 = 0, "", IF( OFFSET(#REF!, $AC52 - 1,0,1,1)<>0, IF(OR($AD52="LUMP", $AD52="LS"), "LUMP", OFFSET(#REF!, $AC52 - 1,0,1,1)),"")) ->  | G52: =IF( $AC52 = 0, "", IF( OFFSET(#REF!, $AC52 - 1,0,1,1)<>0, IF(OR($AD52="LUMP", $AD52="LS"), "LUMP", OFFSET(#REF!, $AC52 - 1,0,1,1)),"")) ->  | H52: =IF( $AC52 = 0, "", IF( OFFSET(#REF!, $AC52 - 1,0,1,1)<>0, IF(OR($AD52="LUMP", $AD52="LS"), "LUMP", OFFSET(#REF!, $AC52 - 1,0,1,1)),"")) ->  | I52: =IF( $AC52 = 0, "", IF( OFFSET(#REF!, $AC52 - 1,0,1,1)<>0, IF(OR($AD52="LUMP", $AD52="LS"), "LUMP", OFFSET(#REF!, $AC52 - 1,0,1,1)),"")) ->  | J52: =IF( $AC52 = 0, "", IF( OFFSET(#REF!, $AC52 - 1,0,1,1)<>0, IF(OR($AD52="LUMP", $AD52="LS"), "LUMP", OFFSET(#REF!, $AC52 - 1,0,1,1)),"")) ->  | K52: =IF( $AC52 = 0, "", IF( OFFSET(#REF!, $AC52 - 1,0,1,1)<>0, IF(OR($AD52="LUMP", $AD52="LS"), "LUMP", OFFSET(#REF!, $AC52 - 1,0,1,1)),"")) ->  | L52: =IF( $AC52 = 0, "", IF( OFFSET(#REF!, $AC52 - 1,0,1,1)<>0, IF(OR($AD52="LUMP", $AD52="LS"), "LUMP", OFFSET(#REF!, $AC52 - 1,0,1,1)),"")) ->  | M52: =IF( $AC52 = 0, "", IF( OFFSET(#REF!, $AC52 - 1,0,1,1)<>0, IF(OR($AD52="LUMP", $AD52="LS"), "LUMP", OFFSET(#REF!, $AC52 - 1,0,1,1)),"")) ->  | N52: =IF( $AC52 = 0, "", IF( OFFSET(#REF!, $AC52 - 1,0,1,1)<>0, IF(OR($AD52="LUMP", $AD52="LS"), "LUMP", OFFSET(#REF!, $AC52 - 1,0,1,1)),"")) ->  | O52: =IF( $AC52 = 0, "", IF( OFFSET(#REF!, $AC52 - 1,0,1,1)<>0, IF(OR($AD52="LUMP", $AD52="LS"), "LUMP", OFFSET(#REF!, $AC52 - 1,0,1,1)),"")) ->  | P52: =IF( $AC52 = 0, "", IF( OFFSET(#REF!, $AC52 - 1,0,1,1)<>0, IF(OR($AD52="LUMP", $AD52="LS"), "LUMP", OFFSET(#REF!, $AC52 - 1,0,1,1)),"")) ->  | Q52: =IF( $AC52 = 0, "", IF( OFFSET(#REF!, $AC52 - 1,0,1,1)<>0, IF(OR($AD52="LUMP", $AD52="LS"), "LUMP", OFFSET(#REF!, $AC52 - 1,0,1,1)),"")) ->  | R52: =IF( $AC52 = 0, "", IF( OFFSET(#REF!, $AC52 - 1,0,1,1)<>0, IF(OR($AD52="LUMP", $AD52="LS"), "LUMP", OFFSET(#REF!, $AC52 - 1,0,1,1)),"")) ->  | S52: =IF( $AC52 = 0, "", IF( OFFSET(#REF!, $AC52 - 1,0,1,1)<>0, IF(OR($AD52="LUMP", $AD52="LS"), "LUMP", OFFSET(#REF!, $AC52 - 1,0,1,1)),"")) ->  | T52: =IF( $AC52 = 0, "", IF( OFFSET(#REF!, $AC52 - 1,0,1,1)<>0, IF(OR($AD52="LUMP", $AD52="LS"), "LUMP", OFFSET(#REF!, $AC52 - 1,0,1,1)),"")) ->  | U52: =IF( $AC52 = 0, "", IF( OFFSET(#REF!, $AC52 - 1,0,1,1)<>0, LEFT(OFFSET(#REF!, $AC52 - 1,0,1,1),3),"")) ->  | V52: =IF( $AC52 = 0, "", IF( OFFSET(#REF!, $AC52 - 1,0,1,1)<>0, IF(LEN(OFFSET(#REF!, $AC52 - 1,0,1,1))=9, RIGHT(OFFSET(#REF!, $AC52 - 1,0,1,1),5), LEFT(RIGHT(OFFSET(#REF!, $AC52 - 1,0,1,1),6), 5) ),"")) ->  | X52: =IF( $AC52 = 0, "", IF( OFFSET(#REF!, $AC52 - 1,0,1,1)<>0,IF(OR(AD52="LUMP", AD52="LS"), "", AD52),"")) ->  | Y52: =IF( $AC52 = 0, "", IF( OFFSET(#REF!, $AC52 - 1,0,1,1)<>0, VLOOKUP( OFFSET(#REF!, $AC52 - 1,0,1,1),[1]Items!$A$2:$E$10001,4,0),"")) ->  | AA52: 50 | AB52: 8 | AC52: 42 | AD52: =IF( $AC52 = 0, "", IF( OFFSET(#REF!, $AC52 - 1,0,1,1)<>0, VLOOKUP( OFFSET(#REF!, $AC52 - 1,0,1,1),[1]Items!$A$2:$E$10001,3,0),"")) -> 
A53: =IF( $AC53 = 0, "", IF( OFFSET(#REF!, $AC53 - 1,0,1,1)<>0, IF(OR($AD53="LUMP", $AD53="LS"), "LUMP", OFFSET(#REF!, $AC53 - 1,0,1,1)),"")) ->  | B53: =IF( $AC53 = 0, "", IF( OFFSET(#REF!, $AC53 - 1,0,1,1)<>0, IF(OR($AD53="LUMP", $AD53="LS"), "LUMP", OFFSET(#REF!, $AC53 - 1,0,1,1)),"")) ->  | C53: =IF( $AC53 = 0, "", IF( OFFSET(#REF!, $AC53 - 1,0,1,1)<>0, IF(OR($AD53="LUMP", $AD53="LS"), "LUMP", OFFSET(#REF!, $AC53 - 1,0,1,1)),"")) ->  | D53: =IF( $AC53 = 0, "", IF( OFFSET(#REF!, $AC53 - 1,0,1,1)<>0, IF(OR($AD53="LUMP", $AD53="LS"), "LUMP", OFFSET(#REF!, $AC53 - 1,0,1,1)),"")) ->  | E53: =IF( $AC53 = 0, "", IF( OFFSET(#REF!, $AC53 - 1,0,1,1)<>0, IF(OR($AD53="LUMP", $AD53="LS"), "LUMP", OFFSET(#REF!, $AC53 - 1,0,1,1)),"")) ->  | F53: =IF( $AC53 = 0, "", IF( OFFSET(#REF!, $AC53 - 1,0,1,1)<>0, IF(OR($AD53="LUMP", $AD53="LS"), "LUMP", OFFSET(#REF!, $AC53 - 1,0,1,1)),"")) ->  | G53: =IF( $AC53 = 0, "", IF( OFFSET(#REF!, $AC53 - 1,0,1,1)<>0, IF(OR($AD53="LUMP", $AD53="LS"), "LUMP", OFFSET(#REF!, $AC53 - 1,0,1,1)),"")) ->  | H53: =IF( $AC53 = 0, "", IF( OFFSET(#REF!, $AC53 - 1,0,1,1)<>0, IF(OR($AD53="LUMP", $AD53="LS"), "LUMP", OFFSET(#REF!, $AC53 - 1,0,1,1)),"")) ->  | I53: =IF( $AC53 = 0, "", IF( OFFSET(#REF!, $AC53 - 1,0,1,1)<>0, IF(OR($AD53="LUMP", $AD53="LS"), "LUMP", OFFSET(#REF!, $AC53 - 1,0,1,1)),"")) ->  | J53: =IF( $AC53 = 0, "", IF( OFFSET(#REF!, $AC53 - 1,0,1,1)<>0, IF(OR($AD53="LUMP", $AD53="LS"), "LUMP", OFFSET(#REF!, $AC53 - 1,0,1,1)),"")) ->  | K53: =IF( $AC53 = 0, "", IF( OFFSET(#REF!, $AC53 - 1,0,1,1)<>0, IF(OR($AD53="LUMP", $AD53="LS"), "LUMP", OFFSET(#REF!, $AC53 - 1,0,1,1)),"")) ->  | L53: =IF( $AC53 = 0, "", IF( OFFSET(#REF!, $AC53 - 1,0,1,1)<>0, IF(OR($AD53="LUMP", $AD53="LS"), "LUMP", OFFSET(#REF!, $AC53 - 1,0,1,1)),"")) ->  | M53: =IF( $AC53 = 0, "", IF( OFFSET(#REF!, $AC53 - 1,0,1,1)<>0, IF(OR($AD53="LUMP", $AD53="LS"), "LUMP", OFFSET(#REF!, $AC53 - 1,0,1,1)),"")) ->  | N53: =IF( $AC53 = 0, "", IF( OFFSET(#REF!, $AC53 - 1,0,1,1)<>0, IF(OR($AD53="LUMP", $AD53="LS"), "LUMP", OFFSET(#REF!, $AC53 - 1,0,1,1)),"")) ->  | O53: =IF( $AC53 = 0, "", IF( OFFSET(#REF!, $AC53 - 1,0,1,1)<>0, IF(OR($AD53="LUMP", $AD53="LS"), "LUMP", OFFSET(#REF!, $AC53 - 1,0,1,1)),"")) ->  | P53: =IF( $AC53 = 0, "", IF( OFFSET(#REF!, $AC53 - 1,0,1,1)<>0, IF(OR($AD53="LUMP", $AD53="LS"), "LUMP", OFFSET(#REF!, $AC53 - 1,0,1,1)),"")) ->  | Q53: =IF( $AC53 = 0, "", IF( OFFSET(#REF!, $AC53 - 1,0,1,1)<>0, IF(OR($AD53="LUMP", $AD53="LS"), "LUMP", OFFSET(#REF!, $AC53 - 1,0,1,1)),"")) ->  | R53: =IF( $AC53 = 0, "", IF( OFFSET(#REF!, $AC53 - 1,0,1,1)<>0, IF(OR($AD53="LUMP", $AD53="LS"), "LUMP", OFFSET(#REF!, $AC53 - 1,0,1,1)),"")) ->  | S53: =IF( $AC53 = 0, "", IF( OFFSET(#REF!, $AC53 - 1,0,1,1)<>0, IF(OR($AD53="LUMP", $AD53="LS"), "LUMP", OFFSET(#REF!, $AC53 - 1,0,1,1)),"")) ->  | T53: =IF( $AC53 = 0, "", IF( OFFSET(#REF!, $AC53 - 1,0,1,1)<>0, IF(OR($AD53="LUMP", $AD53="LS"), "LUMP", OFFSET(#REF!, $AC53 - 1,0,1,1)),"")) ->  | U53: =IF( $AC53 = 0, "", IF( OFFSET(#REF!, $AC53 - 1,0,1,1)<>0, LEFT(OFFSET(#REF!, $AC53 - 1,0,1,1),3),"")) ->  | V53: =IF( $AC53 = 0, "", IF( OFFSET(#REF!, $AC53 - 1,0,1,1)<>0, IF(LEN(OFFSET(#REF!, $AC53 - 1,0,1,1))=9, RIGHT(OFFSET(#REF!, $AC53 - 1,0,1,1),5), LEFT(RIGHT(OFFSET(#REF!, $AC53 - 1,0,1,1),6), 5) ),"")) ->  | X53: =IF( $AC53 = 0, "", IF( OFFSET(#REF!, $AC53 - 1,0,1,1)<>0,IF(OR(AD53="LUMP", AD53="LS"), "", AD53),"")) ->  | Y53: =IF( $AC53 = 0, "", IF( OFFSET(#REF!, $AC53 - 1,0,1,1)<>0, VLOOKUP( OFFSET(#REF!, $AC53 - 1,0,1,1),[1]Items!$A$2:$E$10001,4,0),"")) ->  | AA53: 51 | AB53: 8 | AC53: 43 | AD53: =IF( $AC53 = 0, "", IF( OFFSET(#REF!, $AC53 - 1,0,1,1)<>0, VLOOKUP( OFFSET(#REF!, $AC53 - 1,0,1,1),[1]Items!$A$2:$E$10001,3,0),"")) -> 
A54: =IF( $AC54 = 0, "", IF( OFFSET(#REF!, $AC54 - 1,0,1,1)<>0, IF(OR($AD54="LUMP", $AD54="LS"), "LUMP", OFFSET(#REF!, $AC54 - 1,0,1,1)),"")) ->  | B54: =IF( $AC54 = 0, "", IF( OFFSET(#REF!, $AC54 - 1,0,1,1)<>0, IF(OR($AD54="LUMP", $AD54="LS"), "LUMP", OFFSET(#REF!, $AC54 - 1,0,1,1)),"")) ->  | C54: =IF( $AC54 = 0, "", IF( OFFSET(#REF!, $AC54 - 1,0,1,1)<>0, IF(OR($AD54="LUMP", $AD54="LS"), "LUMP", OFFSET(#REF!, $AC54 - 1,0,1,1)),"")) ->  | D54: =IF( $AC54 = 0, "", IF( OFFSET(#REF!, $AC54 - 1,0,1,1)<>0, IF(OR($AD54="LUMP", $AD54="LS"), "LUMP", OFFSET(#REF!, $AC54 - 1,0,1,1)),"")) ->  | E54: =IF( $AC54 = 0, "", IF( OFFSET(#REF!, $AC54 - 1,0,1,1)<>0, IF(OR($AD54="LUMP", $AD54="LS"), "LUMP", OFFSET(#REF!, $AC54 - 1,0,1,1)),"")) ->  | F54: =IF( $AC54 = 0, "", IF( OFFSET(#REF!, $AC54 - 1,0,1,1)<>0, IF(OR($AD54="LUMP", $AD54="LS"), "LUMP", OFFSET(#REF!, $AC54 - 1,0,1,1)),"")) ->  | G54: =IF( $AC54 = 0, "", IF( OFFSET(#REF!, $AC54 - 1,0,1,1)<>0, IF(OR($AD54="LUMP", $AD54="LS"), "LUMP", OFFSET(#REF!, $AC54 - 1,0,1,1)),"")) ->  | H54: =IF( $AC54 = 0, "", IF( OFFSET(#REF!, $AC54 - 1,0,1,1)<>0, IF(OR($AD54="LUMP", $AD54="LS"), "LUMP", OFFSET(#REF!, $AC54 - 1,0,1,1)),"")) ->  | I54: =IF( $AC54 = 0, "", IF( OFFSET(#REF!, $AC54 - 1,0,1,1)<>0, IF(OR($AD54="LUMP", $AD54="LS"), "LUMP", OFFSET(#REF!, $AC54 - 1,0,1,1)),"")) ->  | J54: =IF( $AC54 = 0, "", IF( OFFSET(#REF!, $AC54 - 1,0,1,1)<>0, IF(OR($AD54="LUMP", $AD54="LS"), "LUMP", OFFSET(#REF!, $AC54 - 1,0,1,1)),"")) ->  | K54: =IF( $AC54 = 0, "", IF( OFFSET(#REF!, $AC54 - 1,0,1,1)<>0, IF(OR($AD54="LUMP", $AD54="LS"), "LUMP", OFFSET(#REF!, $AC54 - 1,0,1,1)),"")) ->  | L54: =IF( $AC54 = 0, "", IF( OFFSET(#REF!, $AC54 - 1,0,1,1)<>0, IF(OR($AD54="LUMP", $AD54="LS"), "LUMP", OFFSET(#REF!, $AC54 - 1,0,1,1)),"")) ->  | M54: =IF( $AC54 = 0, "", IF( OFFSET(#REF!, $AC54 - 1,0,1,1)<>0, IF(OR($AD54="LUMP", $AD54="LS"), "LUMP", OFFSET(#REF!, $AC54 - 1,0,1,1)),"")) ->  | N54: =IF( $AC54 = 0, "", IF( OFFSET(#REF!, $AC54 - 1,0,1,1)<>0, IF(OR($AD54="LUMP", $AD54="LS"), "LUMP", OFFSET(#REF!, $AC54 - 1,0,1,1)),"")) ->  | O54: =IF( $AC54 = 0, "", IF( OFFSET(#REF!, $AC54 - 1,0,1,1)<>0, IF(OR($AD54="LUMP", $AD54="LS"), "LUMP", OFFSET(#REF!, $AC54 - 1,0,1,1)),"")) ->  | P54: =IF( $AC54 = 0, "", IF( OFFSET(#REF!, $AC54 - 1,0,1,1)<>0, IF(OR($AD54="LUMP", $AD54="LS"), "LUMP", OFFSET(#REF!, $AC54 - 1,0,1,1)),"")) ->  | Q54: =IF( $AC54 = 0, "", IF( OFFSET(#REF!, $AC54 - 1,0,1,1)<>0, IF(OR($AD54="LUMP", $AD54="LS"), "LUMP", OFFSET(#REF!, $AC54 - 1,0,1,1)),"")) ->  | R54: =IF( $AC54 = 0, "", IF( OFFSET(#REF!, $AC54 - 1,0,1,1)<>0, IF(OR($AD54="LUMP", $AD54="LS"), "LUMP", OFFSET(#REF!, $AC54 - 1,0,1,1)),"")) ->  | S54: =IF( $AC54 = 0, "", IF( OFFSET(#REF!, $AC54 - 1,0,1,1)<>0, IF(OR($AD54="LUMP", $AD54="LS"), "LUMP", OFFSET(#REF!, $AC54 - 1,0,1,1)),"")) ->  | T54: =IF( $AC54 = 0, "", IF( OFFSET(#REF!, $AC54 - 1,0,1,1)<>0, IF(OR($AD54="LUMP", $AD54="LS"), "LUMP", OFFSET(#REF!, $AC54 - 1,0,1,1)),"")) ->  | U54: =IF( $AC54 = 0, "", IF( OFFSET(#REF!, $AC54 - 1,0,1,1)<>0, LEFT(OFFSET(#REF!, $AC54 - 1,0,1,1),3),"")) ->  | V54: =IF( $AC54 = 0, "", IF( OFFSET(#REF!, $AC54 - 1,0,1,1)<>0, IF(LEN(OFFSET(#REF!, $AC54 - 1,0,1,1))=9, RIGHT(OFFSET(#REF!, $AC54 - 1,0,1,1),5), LEFT(RIGHT(OFFSET(#REF!, $AC54 - 1,0,1,1),6), 5) ),"")) ->  | X54: =IF( $AC54 = 0, "", IF( OFFSET(#REF!, $AC54 - 1,0,1,1)<>0,IF(OR(AD54="LUMP", AD54="LS"), "", AD54),"")) ->  | Y54: =IF( $AC54 = 0, "", IF( OFFSET(#REF!, $AC54 - 1,0,1,1)<>0, VLOOKUP( OFFSET(#REF!, $AC54 - 1,0,1,1),[1]Items!$A$2:$E$10001,4,0),"")) ->  | AA54: 52 | AB54: 8 | AC54: 44 | AD54: =IF( $AC54 = 0, "", IF( OFFSET(#REF!, $AC54 - 1,0,1,1)<>0, VLOOKUP( OFFSET(#REF!, $AC54 - 1,0,1,1),[1]Items!$A$2:$E$10001,3,0),"")) -> 
A55: =IF( $AC55 = 0, "", IF( OFFSET(#REF!, $AC55 - 1,0,1,1)<>0, IF(OR($AD55="LUMP", $AD55="LS"), "LUMP", OFFSET(#REF!, $AC55 - 1,0,1,1)),"")) ->  | B55: =IF( $AC55 = 0, "", IF( OFFSET(#REF!, $AC55 - 1,0,1,1)<>0, IF(OR($AD55="LUMP", $AD55="LS"), "LUMP", OFFSET(#REF!, $AC55 - 1,0,1,1)),"")) ->  | C55: =IF( $AC55 = 0, "", IF( OFFSET(#REF!, $AC55 - 1,0,1,1)<>0, IF(OR($AD55="LUMP", $AD55="LS"), "LUMP", OFFSET(#REF!, $AC55 - 1,0,1,1)),"")) ->  | D55: =IF( $AC55 = 0, "", IF( OFFSET(#REF!, $AC55 - 1,0,1,1)<>0, IF(OR($AD55="LUMP", $AD55="LS"), "LUMP", OFFSET(#REF!, $AC55 - 1,0,1,1)),"")) ->  | E55: =IF( $AC55 = 0, "", IF( OFFSET(#REF!, $AC55 - 1,0,1,1)<>0, IF(OR($AD55="LUMP", $AD55="LS"), "LUMP", OFFSET(#REF!, $AC55 - 1,0,1,1)),"")) ->  | F55: =IF( $AC55 = 0, "", IF( OFFSET(#REF!, $AC55 - 1,0,1,1)<>0, IF(OR($AD55="LUMP", $AD55="LS"), "LUMP", OFFSET(#REF!, $AC55 - 1,0,1,1)),"")) ->  | G55: =IF( $AC55 = 0, "", IF( OFFSET(#REF!, $AC55 - 1,0,1,1)<>0, IF(OR($AD55="LUMP", $AD55="LS"), "LUMP", OFFSET(#REF!, $AC55 - 1,0,1,1)),"")) ->  | H55: =IF( $AC55 = 0, "", IF( OFFSET(#REF!, $AC55 - 1,0,1,1)<>0, IF(OR($AD55="LUMP", $AD55="LS"), "LUMP", OFFSET(#REF!, $AC55 - 1,0,1,1)),"")) ->  | I55: =IF( $AC55 = 0, "", IF( OFFSET(#REF!, $AC55 - 1,0,1,1)<>0, IF(OR($AD55="LUMP", $AD55="LS"), "LUMP", OFFSET(#REF!, $AC55 - 1,0,1,1)),"")) ->  | J55: =IF( $AC55 = 0, "", IF( OFFSET(#REF!, $AC55 - 1,0,1,1)<>0, IF(OR($AD55="LUMP", $AD55="LS"), "LUMP", OFFSET(#REF!, $AC55 - 1,0,1,1)),"")) ->  | K55: =IF( $AC55 = 0, "", IF( OFFSET(#REF!, $AC55 - 1,0,1,1)<>0, IF(OR($AD55="LUMP", $AD55="LS"), "LUMP", OFFSET(#REF!, $AC55 - 1,0,1,1)),"")) ->  | L55: =IF( $AC55 = 0, "", IF( OFFSET(#REF!, $AC55 - 1,0,1,1)<>0, IF(OR($AD55="LUMP", $AD55="LS"), "LUMP", OFFSET(#REF!, $AC55 - 1,0,1,1)),"")) ->  | M55: =IF( $AC55 = 0, "", IF( OFFSET(#REF!, $AC55 - 1,0,1,1)<>0, IF(OR($AD55="LUMP", $AD55="LS"), "LUMP", OFFSET(#REF!, $AC55 - 1,0,1,1)),"")) ->  | N55: =IF( $AC55 = 0, "", IF( OFFSET(#REF!, $AC55 - 1,0,1,1)<>0, IF(OR($AD55="LUMP", $AD55="LS"), "LUMP", OFFSET(#REF!, $AC55 - 1,0,1,1)),"")) ->  | O55: =IF( $AC55 = 0, "", IF( OFFSET(#REF!, $AC55 - 1,0,1,1)<>0, IF(OR($AD55="LUMP", $AD55="LS"), "LUMP", OFFSET(#REF!, $AC55 - 1,0,1,1)),"")) ->  | P55: =IF( $AC55 = 0, "", IF( OFFSET(#REF!, $AC55 - 1,0,1,1)<>0, IF(OR($AD55="LUMP", $AD55="LS"), "LUMP", OFFSET(#REF!, $AC55 - 1,0,1,1)),"")) ->  | Q55: =IF( $AC55 = 0, "", IF( OFFSET(#REF!, $AC55 - 1,0,1,1)<>0, IF(OR($AD55="LUMP", $AD55="LS"), "LUMP", OFFSET(#REF!, $AC55 - 1,0,1,1)),"")) ->  | R55: =IF( $AC55 = 0, "", IF( OFFSET(#REF!, $AC55 - 1,0,1,1)<>0, IF(OR($AD55="LUMP", $AD55="LS"), "LUMP", OFFSET(#REF!, $AC55 - 1,0,1,1)),"")) ->  | S55: =IF( $AC55 = 0, "", IF( OFFSET(#REF!, $AC55 - 1,0,1,1)<>0, IF(OR($AD55="LUMP", $AD55="LS"), "LUMP", OFFSET(#REF!, $AC55 - 1,0,1,1)),"")) ->  | T55: =IF( $AC55 = 0, "", IF( OFFSET(#REF!, $AC55 - 1,0,1,1)<>0, IF(OR($AD55="LUMP", $AD55="LS"), "LUMP", OFFSET(#REF!, $AC55 - 1,0,1,1)),"")) ->  | U55: =IF( $AC55 = 0, "", IF( OFFSET(#REF!, $AC55 - 1,0,1,1)<>0, LEFT(OFFSET(#REF!, $AC55 - 1,0,1,1),3),"")) ->  | V55: =IF( $AC55 = 0, "", IF( OFFSET(#REF!, $AC55 - 1,0,1,1)<>0, IF(LEN(OFFSET(#REF!, $AC55 - 1,0,1,1))=9, RIGHT(OFFSET(#REF!, $AC55 - 1,0,1,1),5), LEFT(RIGHT(OFFSET(#REF!, $AC55 - 1,0,1,1),6), 5) ),"")) ->  | X55: =IF( $AC55 = 0, "", IF( OFFSET(#REF!, $AC55 - 1,0,1,1)<>0,IF(OR(AD55="LUMP", AD55="LS"), "", AD55),"")) ->  | Y55: =IF( $AC55 = 0, "", IF( OFFSET(#REF!, $AC55 - 1,0,1,1)<>0, VLOOKUP( OFFSET(#REF!, $AC55 - 1,0,1,1),[1]Items!$A$2:$E$10001,4,0),"")) ->  | AA55: 53 | AB55: 8 | AC55: 45 | AD55: =IF( $AC55 = 0, "", IF( OFFSET(#REF!, $AC55 - 1,0,1,1)<>0, VLOOKUP( OFFSET(#REF!, $AC55 - 1,0,1,1),[1]Items!$A$2:$E$10001,3,0),"")) -> 
A56: =IF( $AC56 = 0, "", IF( OFFSET(#REF!, $AC56 - 1,0,1,1)<>0, IF(OR($AD56="LUMP", $AD56="LS"), "LUMP", OFFSET(#REF!, $AC56 - 1,0,1,1)),"")) ->  | B56: =IF( $AC56 = 0, "", IF( OFFSET(#REF!, $AC56 - 1,0,1,1)<>0, IF(OR($AD56="LUMP", $AD56="LS"), "LUMP", OFFSET(#REF!, $AC56 - 1,0,1,1)),"")) ->  | C56: =IF( $AC56 = 0, "", IF( OFFSET(#REF!, $AC56 - 1,0,1,1)<>0, IF(OR($AD56="LUMP", $AD56="LS"), "LUMP", OFFSET(#REF!, $AC56 - 1,0,1,1)),"")) ->  | D56: =IF( $AC56 = 0, "", IF( OFFSET(#REF!, $AC56 - 1,0,1,1)<>0, IF(OR($AD56="LUMP", $AD56="LS"), "LUMP", OFFSET(#REF!, $AC56 - 1,0,1,1)),"")) ->  | E56: =IF( $AC56 = 0, "", IF( OFFSET(#REF!, $AC56 - 1,0,1,1)<>0, IF(OR($AD56="LUMP", $AD56="LS"), "LUMP", OFFSET(#REF!, $AC56 - 1,0,1,1)),"")) ->  | F56: =IF( $AC56 = 0, "", IF( OFFSET(#REF!, $AC56 - 1,0,1,1)<>0, IF(OR($AD56="LUMP", $AD56="LS"), "LUMP", OFFSET(#REF!, $AC56 - 1,0,1,1)),"")) ->  | G56: =IF( $AC56 = 0, "", IF( OFFSET(#REF!, $AC56 - 1,0,1,1)<>0, IF(OR($AD56="LUMP", $AD56="LS"), "LUMP", OFFSET(#REF!, $AC56 - 1,0,1,1)),"")) ->  | H56: =IF( $AC56 = 0, "", IF( OFFSET(#REF!, $AC56 - 1,0,1,1)<>0, IF(OR($AD56="LUMP", $AD56="LS"), "LUMP", OFFSET(#REF!, $AC56 - 1,0,1,1)),"")) ->  | I56: =IF( $AC56 = 0, "", IF( OFFSET(#REF!, $AC56 - 1,0,1,1)<>0, IF(OR($AD56="LUMP", $AD56="LS"), "LUMP", OFFSET(#REF!, $AC56 - 1,0,1,1)),"")) ->  | J56: =IF( $AC56 = 0, "", IF( OFFSET(#REF!, $AC56 - 1,0,1,1)<>0, IF(OR($AD56="LUMP", $AD56="LS"), "LUMP", OFFSET(#REF!, $AC56 - 1,0,1,1)),"")) ->  | K56: =IF( $AC56 = 0, "", IF( OFFSET(#REF!, $AC56 - 1,0,1,1)<>0, IF(OR($AD56="LUMP", $AD56="LS"), "LUMP", OFFSET(#REF!, $AC56 - 1,0,1,1)),"")) ->  | L56: =IF( $AC56 = 0, "", IF( OFFSET(#REF!, $AC56 - 1,0,1,1)<>0, IF(OR($AD56="LUMP", $AD56="LS"), "LUMP", OFFSET(#REF!, $AC56 - 1,0,1,1)),"")) ->  | M56: =IF( $AC56 = 0, "", IF( OFFSET(#REF!, $AC56 - 1,0,1,1)<>0, IF(OR($AD56="LUMP", $AD56="LS"), "LUMP", OFFSET(#REF!, $AC56 - 1,0,1,1)),"")) ->  | N56: =IF( $AC56 = 0, "", IF( OFFSET(#REF!, $AC56 - 1,0,1,1)<>0, IF(OR($AD56="LUMP", $AD56="LS"), "LUMP", OFFSET(#REF!, $AC56 - 1,0,1,1)),"")) ->  | O56: =IF( $AC56 = 0, "", IF( OFFSET(#REF!, $AC56 - 1,0,1,1)<>0, IF(OR($AD56="LUMP", $AD56="LS"), "LUMP", OFFSET(#REF!, $AC56 - 1,0,1,1)),"")) ->  | P56: =IF( $AC56 = 0, "", IF( OFFSET(#REF!, $AC56 - 1,0,1,1)<>0, IF(OR($AD56="LUMP", $AD56="LS"), "LUMP", OFFSET(#REF!, $AC56 - 1,0,1,1)),"")) ->  | Q56: =IF( $AC56 = 0, "", IF( OFFSET(#REF!, $AC56 - 1,0,1,1)<>0, IF(OR($AD56="LUMP", $AD56="LS"), "LUMP", OFFSET(#REF!, $AC56 - 1,0,1,1)),"")) ->  | R56: =IF( $AC56 = 0, "", IF( OFFSET(#REF!, $AC56 - 1,0,1,1)<>0, IF(OR($AD56="LUMP", $AD56="LS"), "LUMP", OFFSET(#REF!, $AC56 - 1,0,1,1)),"")) ->  | S56: =IF( $AC56 = 0, "", IF( OFFSET(#REF!, $AC56 - 1,0,1,1)<>0, IF(OR($AD56="LUMP", $AD56="LS"), "LUMP", OFFSET(#REF!, $AC56 - 1,0,1,1)),"")) ->  | T56: =IF( $AC56 = 0, "", IF( OFFSET(#REF!, $AC56 - 1,0,1,1)<>0, IF(OR($AD56="LUMP", $AD56="LS"), "LUMP", OFFSET(#REF!, $AC56 - 1,0,1,1)),"")) ->  | U56: =IF( $AC56 = 0, "", IF( OFFSET(#REF!, $AC56 - 1,0,1,1)<>0, LEFT(OFFSET(#REF!, $AC56 - 1,0,1,1),3),"")) ->  | V56: =IF( $AC56 = 0, "", IF( OFFSET(#REF!, $AC56 - 1,0,1,1)<>0, IF(LEN(OFFSET(#REF!, $AC56 - 1,0,1,1))=9, RIGHT(OFFSET(#REF!, $AC56 - 1,0,1,1),5), LEFT(RIGHT(OFFSET(#REF!, $AC56 - 1,0,1,1),6), 5) ),"")) ->  | X56: =IF( $AC56 = 0, "", IF( OFFSET(#REF!, $AC56 - 1,0,1,1)<>0,IF(OR(AD56="LUMP", AD56="LS"), "", AD56),"")) ->  | Y56: =IF( $AC56 = 0, "", IF( OFFSET(#REF!, $AC56 - 1,0,1,1)<>0, VLOOKUP( OFFSET(#REF!, $AC56 - 1,0,1,1),[1]Items!$A$2:$E$10001,4,0),"")) ->  | AA56: 54 | AB56: 9 | AC56: 0 | AD56: =IF( $AC56 = 0, "", IF( OFFSET(#REF!, $AC56 - 1,0,1,1)<>0, VLOOKUP( OFFSET(#REF!, $AC56 - 1,0,1,1),[1]Items!$A$2:$E$10001,3,0),"")) -> 
A57: =IF( $AC57 = 0, "", IF( OFFSET(#REF!, $AC57 - 1,0,1,1)<>0, IF(OR($AD57="LUMP", $AD57="LS"), "LUMP", OFFSET(#REF!, $AC57 - 1,0,1,1)),"")) ->  | B57: =IF( $AC57 = 0, "", IF( OFFSET(#REF!, $AC57 - 1,0,1,1)<>0, IF(OR($AD57="LUMP", $AD57="LS"), "LUMP", OFFSET(#REF!, $AC57 - 1,0,1,1)),"")) ->  | C57: =IF( $AC57 = 0, "", IF( OFFSET(#REF!, $AC57 - 1,0,1,1)<>0, IF(OR($AD57="LUMP", $AD57="LS"), "LUMP", OFFSET(#REF!, $AC57 - 1,0,1,1)),"")) ->  | D57: =IF( $AC57 = 0, "", IF( OFFSET(#REF!, $AC57 - 1,0,1,1)<>0, IF(OR($AD57="LUMP", $AD57="LS"), "LUMP", OFFSET(#REF!, $AC57 - 1,0,1,1)),"")) ->  | E57: =IF( $AC57 = 0, "", IF( OFFSET(#REF!, $AC57 - 1,0,1,1)<>0, IF(OR($AD57="LUMP", $AD57="LS"), "LUMP", OFFSET(#REF!, $AC57 - 1,0,1,1)),"")) ->  | F57: =IF( $AC57 = 0, "", IF( OFFSET(#REF!, $AC57 - 1,0,1,1)<>0, IF(OR($AD57="LUMP", $AD57="LS"), "LUMP", OFFSET(#REF!, $AC57 - 1,0,1,1)),"")) ->  | G57: =IF( $AC57 = 0, "", IF( OFFSET(#REF!, $AC57 - 1,0,1,1)<>0, IF(OR($AD57="LUMP", $AD57="LS"), "LUMP", OFFSET(#REF!, $AC57 - 1,0,1,1)),"")) ->  | H57: =IF( $AC57 = 0, "", IF( OFFSET(#REF!, $AC57 - 1,0,1,1)<>0, IF(OR($AD57="LUMP", $AD57="LS"), "LUMP", OFFSET(#REF!, $AC57 - 1,0,1,1)),"")) ->  | I57: =IF( $AC57 = 0, "", IF( OFFSET(#REF!, $AC57 - 1,0,1,1)<>0, IF(OR($AD57="LUMP", $AD57="LS"), "LUMP", OFFSET(#REF!, $AC57 - 1,0,1,1)),"")) ->  | J57: =IF( $AC57 = 0, "", IF( OFFSET(#REF!, $AC57 - 1,0,1,1)<>0, IF(OR($AD57="LUMP", $AD57="LS"), "LUMP", OFFSET(#REF!, $AC57 - 1,0,1,1)),"")) ->  | K57: =IF( $AC57 = 0, "", IF( OFFSET(#REF!, $AC57 - 1,0,1,1)<>0, IF(OR($AD57="LUMP", $AD57="LS"), "LUMP", OFFSET(#REF!, $AC57 - 1,0,1,1)),"")) ->  | L57: =IF( $AC57 = 0, "", IF( OFFSET(#REF!, $AC57 - 1,0,1,1)<>0, IF(OR($AD57="LUMP", $AD57="LS"), "LUMP", OFFSET(#REF!, $AC57 - 1,0,1,1)),"")) ->  | M57: =IF( $AC57 = 0, "", IF( OFFSET(#REF!, $AC57 - 1,0,1,1)<>0, IF(OR($AD57="LUMP", $AD57="LS"), "LUMP", OFFSET(#REF!, $AC57 - 1,0,1,1)),"")) ->  | N57: =IF( $AC57 = 0, "", IF( OFFSET(#REF!, $AC57 - 1,0,1,1)<>0, IF(OR($AD57="LUMP", $AD57="LS"), "LUMP", OFFSET(#REF!, $AC57 - 1,0,1,1)),"")) ->  | O57: =IF( $AC57 = 0, "", IF( OFFSET(#REF!, $AC57 - 1,0,1,1)<>0, IF(OR($AD57="LUMP", $AD57="LS"), "LUMP", OFFSET(#REF!, $AC57 - 1,0,1,1)),"")) ->  | P57: =IF( $AC57 = 0, "", IF( OFFSET(#REF!, $AC57 - 1,0,1,1)<>0, IF(OR($AD57="LUMP", $AD57="LS"), "LUMP", OFFSET(#REF!, $AC57 - 1,0,1,1)),"")) ->  | Q57: =IF( $AC57 = 0, "", IF( OFFSET(#REF!, $AC57 - 1,0,1,1)<>0, IF(OR($AD57="LUMP", $AD57="LS"), "LUMP", OFFSET(#REF!, $AC57 - 1,0,1,1)),"")) ->  | R57: =IF( $AC57 = 0, "", IF( OFFSET(#REF!, $AC57 - 1,0,1,1)<>0, IF(OR($AD57="LUMP", $AD57="LS"), "LUMP", OFFSET(#REF!, $AC57 - 1,0,1,1)),"")) ->  | S57: =IF( $AC57 = 0, "", IF( OFFSET(#REF!, $AC57 - 1,0,1,1)<>0, IF(OR($AD57="LUMP", $AD57="LS"), "LUMP", OFFSET(#REF!, $AC57 - 1,0,1,1)),"")) ->  | T57: =IF( $AC57 = 0, "", IF( OFFSET(#REF!, $AC57 - 1,0,1,1)<>0, IF(OR($AD57="LUMP", $AD57="LS"), "LUMP", OFFSET(#REF!, $AC57 - 1,0,1,1)),"")) ->  | U57: =IF( $AC57 = 0, "", IF( OFFSET(#REF!, $AC57 - 1,0,1,1)<>0, LEFT(OFFSET(#REF!, $AC57 - 1,0,1,1),3),"")) ->  | V57: =IF( $AC57 = 0, "", IF( OFFSET(#REF!, $AC57 - 1,0,1,1)<>0, IF(LEN(OFFSET(#REF!, $AC57 - 1,0,1,1))=9, RIGHT(OFFSET(#REF!, $AC57 - 1,0,1,1),5), LEFT(RIGHT(OFFSET(#REF!, $AC57 - 1,0,1,1),6), 5) ),"")) ->  | X57: =IF( $AC57 = 0, "", IF( OFFSET(#REF!, $AC57 - 1,0,1,1)<>0,IF(OR(AD57="LUMP", AD57="LS"), "", AD57),"")) ->  | Y57: =IF( $AC57 = 0, "", IF( OFFSET(#REF!, $AC57 - 1,0,1,1)<>0, VLOOKUP( OFFSET(#REF!, $AC57 - 1,0,1,1),[1]Items!$A$2:$E$10001,4,0),"")) ->  | AA57: 55 | AB57: 9 | AC57: 46 | AD57: =IF( $AC57 = 0, "", IF( OFFSET(#REF!, $AC57 - 1,0,1,1)<>0, VLOOKUP( OFFSET(#REF!, $AC57 - 1,0,1,1),[1]Items!$A$2:$E$10001,3,0),"")) -> 
A58: =IF( $AC58 = 0, "", IF( OFFSET(#REF!, $AC58 - 1,0,1,1)<>0, IF(OR($AD58="LUMP", $AD58="LS"), "LUMP", OFFSET(#REF!, $AC58 - 1,0,1,1)),"")) ->  | B58: =IF( $AC58 = 0, "", IF( OFFSET(#REF!, $AC58 - 1,0,1,1)<>0, IF(OR($AD58="LUMP", $AD58="LS"), "LUMP", OFFSET(#REF!, $AC58 - 1,0,1,1)),"")) ->  | C58: =IF( $AC58 = 0, "", IF( OFFSET(#REF!, $AC58 - 1,0,1,1)<>0, IF(OR($AD58="LUMP", $AD58="LS"), "LUMP", OFFSET(#REF!, $AC58 - 1,0,1,1)),"")) ->  | D58: =IF( $AC58 = 0, "", IF( OFFSET(#REF!, $AC58 - 1,0,1,1)<>0, IF(OR($AD58="LUMP", $AD58="LS"), "LUMP", OFFSET(#REF!, $AC58 - 1,0,1,1)),"")) ->  | E58: =IF( $AC58 = 0, "", IF( OFFSET(#REF!, $AC58 - 1,0,1,1)<>0, IF(OR($AD58="LUMP", $AD58="LS"), "LUMP", OFFSET(#REF!, $AC58 - 1,0,1,1)),"")) ->  | F58: =IF( $AC58 = 0, "", IF( OFFSET(#REF!, $AC58 - 1,0,1,1)<>0, IF(OR($AD58="LUMP", $AD58="LS"), "LUMP", OFFSET(#REF!, $AC58 - 1,0,1,1)),"")) ->  | G58: =IF( $AC58 = 0, "", IF( OFFSET(#REF!, $AC58 - 1,0,1,1)<>0, IF(OR($AD58="LUMP", $AD58="LS"), "LUMP", OFFSET(#REF!, $AC58 - 1,0,1,1)),"")) ->  | H58: =IF( $AC58 = 0, "", IF( OFFSET(#REF!, $AC58 - 1,0,1,1)<>0, IF(OR($AD58="LUMP", $AD58="LS"), "LUMP", OFFSET(#REF!, $AC58 - 1,0,1,1)),"")) ->  | I58: =IF( $AC58 = 0, "", IF( OFFSET(#REF!, $AC58 - 1,0,1,1)<>0, IF(OR($AD58="LUMP", $AD58="LS"), "LUMP", OFFSET(#REF!, $AC58 - 1,0,1,1)),"")) ->  | J58: =IF( $AC58 = 0, "", IF( OFFSET(#REF!, $AC58 - 1,0,1,1)<>0, IF(OR($AD58="LUMP", $AD58="LS"), "LUMP", OFFSET(#REF!, $AC58 - 1,0,1,1)),"")) ->  | K58: =IF( $AC58 = 0, "", IF( OFFSET(#REF!, $AC58 - 1,0,1,1)<>0, IF(OR($AD58="LUMP", $AD58="LS"), "LUMP", OFFSET(#REF!, $AC58 - 1,0,1,1)),"")) ->  | L58: =IF( $AC58 = 0, "", IF( OFFSET(#REF!, $AC58 - 1,0,1,1)<>0, IF(OR($AD58="LUMP", $AD58="LS"), "LUMP", OFFSET(#REF!, $AC58 - 1,0,1,1)),"")) ->  | M58: =IF( $AC58 = 0, "", IF( OFFSET(#REF!, $AC58 - 1,0,1,1)<>0, IF(OR($AD58="LUMP", $AD58="LS"), "LUMP", OFFSET(#REF!, $AC58 - 1,0,1,1)),"")) ->  | N58: =IF( $AC58 = 0, "", IF( OFFSET(#REF!, $AC58 - 1,0,1,1)<>0, IF(OR($AD58="LUMP", $AD58="LS"), "LUMP", OFFSET(#REF!, $AC58 - 1,0,1,1)),"")) ->  | O58: =IF( $AC58 = 0, "", IF( OFFSET(#REF!, $AC58 - 1,0,1,1)<>0, IF(OR($AD58="LUMP", $AD58="LS"), "LUMP", OFFSET(#REF!, $AC58 - 1,0,1,1)),"")) ->  | P58: =IF( $AC58 = 0, "", IF( OFFSET(#REF!, $AC58 - 1,0,1,1)<>0, IF(OR($AD58="LUMP", $AD58="LS"), "LUMP", OFFSET(#REF!, $AC58 - 1,0,1,1)),"")) ->  | Q58: =IF( $AC58 = 0, "", IF( OFFSET(#REF!, $AC58 - 1,0,1,1)<>0, IF(OR($AD58="LUMP", $AD58="LS"), "LUMP", OFFSET(#REF!, $AC58 - 1,0,1,1)),"")) ->  | R58: =IF( $AC58 = 0, "", IF( OFFSET(#REF!, $AC58 - 1,0,1,1)<>0, IF(OR($AD58="LUMP", $AD58="LS"), "LUMP", OFFSET(#REF!, $AC58 - 1,0,1,1)),"")) ->  | S58: =IF( $AC58 = 0, "", IF( OFFSET(#REF!, $AC58 - 1,0,1,1)<>0, IF(OR($AD58="LUMP", $AD58="LS"), "LUMP", OFFSET(#REF!, $AC58 - 1,0,1,1)),"")) ->  | T58: =IF( $AC58 = 0, "", IF( OFFSET(#REF!, $AC58 - 1,0,1,1)<>0, IF(OR($AD58="LUMP", $AD58="LS"), "LUMP", OFFSET(#REF!, $AC58 - 1,0,1,1)),"")) ->  | U58: =IF( $AC58 = 0, "", IF( OFFSET(#REF!, $AC58 - 1,0,1,1)<>0, LEFT(OFFSET(#REF!, $AC58 - 1,0,1,1),3),"")) ->  | V58: =IF( $AC58 = 0, "", IF( OFFSET(#REF!, $AC58 - 1,0,1,1)<>0, IF(LEN(OFFSET(#REF!, $AC58 - 1,0,1,1))=9, RIGHT(OFFSET(#REF!, $AC58 - 1,0,1,1),5), LEFT(RIGHT(OFFSET(#REF!, $AC58 - 1,0,1,1),6), 5) ),"")) ->  | X58: =IF( $AC58 = 0, "", IF( OFFSET(#REF!, $AC58 - 1,0,1,1)<>0,IF(OR(AD58="LUMP", AD58="LS"), "", AD58),"")) ->  | Y58: =IF( $AC58 = 0, "", IF( OFFSET(#REF!, $AC58 - 1,0,1,1)<>0, VLOOKUP( OFFSET(#REF!, $AC58 - 1,0,1,1),[1]Items!$A$2:$E$10001,4,0),"")) ->  | AA58: 56 | AB58: 9 | AC58: 47 | AD58: =IF( $AC58 = 0, "", IF( OFFSET(#REF!, $AC58 - 1,0,1,1)<>0, VLOOKUP( OFFSET(#REF!, $AC58 - 1,0,1,1),[1]Items!$A$2:$E$10001,3,0),"")) -> 
A59: =IF( $AC59 = 0, "", IF( OFFSET(#REF!, $AC59 - 1,0,1,1)<>0, IF(OR($AD59="LUMP", $AD59="LS"), "LUMP", OFFSET(#REF!, $AC59 - 1,0,1,1)),"")) ->  | B59: =IF( $AC59 = 0, "", IF( OFFSET(#REF!, $AC59 - 1,0,1,1)<>0, IF(OR($AD59="LUMP", $AD59="LS"), "LUMP", OFFSET(#REF!, $AC59 - 1,0,1,1)),"")) ->  | C59: =IF( $AC59 = 0, "", IF( OFFSET(#REF!, $AC59 - 1,0,1,1)<>0, IF(OR($AD59="LUMP", $AD59="LS"), "LUMP", OFFSET(#REF!, $AC59 - 1,0,1,1)),"")) ->  | D59: =IF( $AC59 = 0, "", IF( OFFSET(#REF!, $AC59 - 1,0,1,1)<>0, IF(OR($AD59="LUMP", $AD59="LS"), "LUMP", OFFSET(#REF!, $AC59 - 1,0,1,1)),"")) ->  | E59: =IF( $AC59 = 0, "", IF( OFFSET(#REF!, $AC59 - 1,0,1,1)<>0, IF(OR($AD59="LUMP", $AD59="LS"), "LUMP", OFFSET(#REF!, $AC59 - 1,0,1,1)),"")) ->  | F59: =IF( $AC59 = 0, "", IF( OFFSET(#REF!, $AC59 - 1,0,1,1)<>0, IF(OR($AD59="LUMP", $AD59="LS"), "LUMP", OFFSET(#REF!, $AC59 - 1,0,1,1)),"")) ->  | G59: =IF( $AC59 = 0, "", IF( OFFSET(#REF!, $AC59 - 1,0,1,1)<>0, IF(OR($AD59="LUMP", $AD59="LS"), "LUMP", OFFSET(#REF!, $AC59 - 1,0,1,1)),"")) ->  | H59: =IF( $AC59 = 0, "", IF( OFFSET(#REF!, $AC59 - 1,0,1,1)<>0, IF(OR($AD59="LUMP", $AD59="LS"), "LUMP", OFFSET(#REF!, $AC59 - 1,0,1,1)),"")) ->  | I59: =IF( $AC59 = 0, "", IF( OFFSET(#REF!, $AC59 - 1,0,1,1)<>0, IF(OR($AD59="LUMP", $AD59="LS"), "LUMP", OFFSET(#REF!, $AC59 - 1,0,1,1)),"")) ->  | J59: =IF( $AC59 = 0, "", IF( OFFSET(#REF!, $AC59 - 1,0,1,1)<>0, IF(OR($AD59="LUMP", $AD59="LS"), "LUMP", OFFSET(#REF!, $AC59 - 1,0,1,1)),"")) ->  | K59: =IF( $AC59 = 0, "", IF( OFFSET(#REF!, $AC59 - 1,0,1,1)<>0, IF(OR($AD59="LUMP", $AD59="LS"), "LUMP", OFFSET(#REF!, $AC59 - 1,0,1,1)),"")) ->  | L59: =IF( $AC59 = 0, "", IF( OFFSET(#REF!, $AC59 - 1,0,1,1)<>0, IF(OR($AD59="LUMP", $AD59="LS"), "LUMP", OFFSET(#REF!, $AC59 - 1,0,1,1)),"")) ->  | M59: =IF( $AC59 = 0, "", IF( OFFSET(#REF!, $AC59 - 1,0,1,1)<>0, IF(OR($AD59="LUMP", $AD59="LS"), "LUMP", OFFSET(#REF!, $AC59 - 1,0,1,1)),"")) ->  | N59: =IF( $AC59 = 0, "", IF( OFFSET(#REF!, $AC59 - 1,0,1,1)<>0, IF(OR($AD59="LUMP", $AD59="LS"), "LUMP", OFFSET(#REF!, $AC59 - 1,0,1,1)),"")) ->  | O59: =IF( $AC59 = 0, "", IF( OFFSET(#REF!, $AC59 - 1,0,1,1)<>0, IF(OR($AD59="LUMP", $AD59="LS"), "LUMP", OFFSET(#REF!, $AC59 - 1,0,1,1)),"")) ->  | P59: =IF( $AC59 = 0, "", IF( OFFSET(#REF!, $AC59 - 1,0,1,1)<>0, IF(OR($AD59="LUMP", $AD59="LS"), "LUMP", OFFSET(#REF!, $AC59 - 1,0,1,1)),"")) ->  | Q59: =IF( $AC59 = 0, "", IF( OFFSET(#REF!, $AC59 - 1,0,1,1)<>0, IF(OR($AD59="LUMP", $AD59="LS"), "LUMP", OFFSET(#REF!, $AC59 - 1,0,1,1)),"")) ->  | R59: =IF( $AC59 = 0, "", IF( OFFSET(#REF!, $AC59 - 1,0,1,1)<>0, IF(OR($AD59="LUMP", $AD59="LS"), "LUMP", OFFSET(#REF!, $AC59 - 1,0,1,1)),"")) ->  | S59: =IF( $AC59 = 0, "", IF( OFFSET(#REF!, $AC59 - 1,0,1,1)<>0, IF(OR($AD59="LUMP", $AD59="LS"), "LUMP", OFFSET(#REF!, $AC59 - 1,0,1,1)),"")) ->  | T59: =IF( $AC59 = 0, "", IF( OFFSET(#REF!, $AC59 - 1,0,1,1)<>0, IF(OR($AD59="LUMP", $AD59="LS"), "LUMP", OFFSET(#REF!, $AC59 - 1,0,1,1)),"")) ->  | U59: =IF( $AC59 = 0, "", IF( OFFSET(#REF!, $AC59 - 1,0,1,1)<>0, LEFT(OFFSET(#REF!, $AC59 - 1,0,1,1),3),"")) ->  | V59: =IF( $AC59 = 0, "", IF( OFFSET(#REF!, $AC59 - 1,0,1,1)<>0, IF(LEN(OFFSET(#REF!, $AC59 - 1,0,1,1))=9, RIGHT(OFFSET(#REF!, $AC59 - 1,0,1,1),5), LEFT(RIGHT(OFFSET(#REF!, $AC59 - 1,0,1,1),6), 5) ),"")) ->  | X59: =IF( $AC59 = 0, "", IF( OFFSET(#REF!, $AC59 - 1,0,1,1)<>0,IF(OR(AD59="LUMP", AD59="LS"), "", AD59),"")) ->  | Y59: =IF( $AC59 = 0, "", IF( OFFSET(#REF!, $AC59 - 1,0,1,1)<>0, VLOOKUP( OFFSET(#REF!, $AC59 - 1,0,1,1),[1]Items!$A$2:$E$10001,4,0),"")) ->  | AA59: 57 | AB59: 9 | AC59: 48 | AD59: =IF( $AC59 = 0, "", IF( OFFSET(#REF!, $AC59 - 1,0,1,1)<>0, VLOOKUP( OFFSET(#REF!, $AC59 - 1,0,1,1),[1]Items!$A$2:$E$10001,3,0),"")) -> 
A60: =IF( $AC60 = 0, "", IF( OFFSET(#REF!, $AC60 - 1,0,1,1)<>0, IF(OR($AD60="LUMP", $AD60="LS"), "LUMP", OFFSET(#REF!, $AC60 - 1,0,1,1)),"")) ->  | B60: =IF( $AC60 = 0, "", IF( OFFSET(#REF!, $AC60 - 1,0,1,1)<>0, IF(OR($AD60="LUMP", $AD60="LS"), "LUMP", OFFSET(#REF!, $AC60 - 1,0,1,1)),"")) ->  | C60: =IF( $AC60 = 0, "", IF( OFFSET(#REF!, $AC60 - 1,0,1,1)<>0, IF(OR($AD60="LUMP", $AD60="LS"), "LUMP", OFFSET(#REF!, $AC60 - 1,0,1,1)),"")) ->  | D60: =IF( $AC60 = 0, "", IF( OFFSET(#REF!, $AC60 - 1,0,1,1)<>0, IF(OR($AD60="LUMP", $AD60="LS"), "LUMP", OFFSET(#REF!, $AC60 - 1,0,1,1)),"")) ->  | E60: =IF( $AC60 = 0, "", IF( OFFSET(#REF!, $AC60 - 1,0,1,1)<>0, IF(OR($AD60="LUMP", $AD60="LS"), "LUMP", OFFSET(#REF!, $AC60 - 1,0,1,1)),"")) ->  | F60: =IF( $AC60 = 0, "", IF( OFFSET(#REF!, $AC60 - 1,0,1,1)<>0, IF(OR($AD60="LUMP", $AD60="LS"), "LUMP", OFFSET(#REF!, $AC60 - 1,0,1,1)),"")) ->  | G60: =IF( $AC60 = 0, "", IF( OFFSET(#REF!, $AC60 - 1,0,1,1)<>0, IF(OR($AD60="LUMP", $AD60="LS"), "LUMP", OFFSET(#REF!, $AC60 - 1,0,1,1)),"")) ->  | H60: =IF( $AC60 = 0, "", IF( OFFSET(#REF!, $AC60 - 1,0,1,1)<>0, IF(OR($AD60="LUMP", $AD60="LS"), "LUMP", OFFSET(#REF!, $AC60 - 1,0,1,1)),"")) ->  | I60: =IF( $AC60 = 0, "", IF( OFFSET(#REF!, $AC60 - 1,0,1,1)<>0, IF(OR($AD60="LUMP", $AD60="LS"), "LUMP", OFFSET(#REF!, $AC60 - 1,0,1,1)),"")) ->  | J60: =IF( $AC60 = 0, "", IF( OFFSET(#REF!, $AC60 - 1,0,1,1)<>0, IF(OR($AD60="LUMP", $AD60="LS"), "LUMP", OFFSET(#REF!, $AC60 - 1,0,1,1)),"")) ->  | K60: =IF( $AC60 = 0, "", IF( OFFSET(#REF!, $AC60 - 1,0,1,1)<>0, IF(OR($AD60="LUMP", $AD60="LS"), "LUMP", OFFSET(#REF!, $AC60 - 1,0,1,1)),"")) ->  | L60: =IF( $AC60 = 0, "", IF( OFFSET(#REF!, $AC60 - 1,0,1,1)<>0, IF(OR($AD60="LUMP", $AD60="LS"), "LUMP", OFFSET(#REF!, $AC60 - 1,0,1,1)),"")) ->  | M60: =IF( $AC60 = 0, "", IF( OFFSET(#REF!, $AC60 - 1,0,1,1)<>0, IF(OR($AD60="LUMP", $AD60="LS"), "LUMP", OFFSET(#REF!, $AC60 - 1,0,1,1)),"")) ->  | N60: =IF( $AC60 = 0, "", IF( OFFSET(#REF!, $AC60 - 1,0,1,1)<>0, IF(OR($AD60="LUMP", $AD60="LS"), "LUMP", OFFSET(#REF!, $AC60 - 1,0,1,1)),"")) ->  | O60: =IF( $AC60 = 0, "", IF( OFFSET(#REF!, $AC60 - 1,0,1,1)<>0, IF(OR($AD60="LUMP", $AD60="LS"), "LUMP", OFFSET(#REF!, $AC60 - 1,0,1,1)),"")) ->  | P60: =IF( $AC60 = 0, "", IF( OFFSET(#REF!, $AC60 - 1,0,1,1)<>0, IF(OR($AD60="LUMP", $AD60="LS"), "LUMP", OFFSET(#REF!, $AC60 - 1,0,1,1)),"")) ->  | Q60: =IF( $AC60 = 0, "", IF( OFFSET(#REF!, $AC60 - 1,0,1,1)<>0, IF(OR($AD60="LUMP", $AD60="LS"), "LUMP", OFFSET(#REF!, $AC60 - 1,0,1,1)),"")) ->  | R60: =IF( $AC60 = 0, "", IF( OFFSET(#REF!, $AC60 - 1,0,1,1)<>0, IF(OR($AD60="LUMP", $AD60="LS"), "LUMP", OFFSET(#REF!, $AC60 - 1,0,1,1)),"")) ->  | S60: =IF( $AC60 = 0, "", IF( OFFSET(#REF!, $AC60 - 1,0,1,1)<>0, IF(OR($AD60="LUMP", $AD60="LS"), "LUMP", OFFSET(#REF!, $AC60 - 1,0,1,1)),"")) ->  | T60: =IF( $AC60 = 0, "", IF( OFFSET(#REF!, $AC60 - 1,0,1,1)<>0, IF(OR($AD60="LUMP", $AD60="LS"), "LUMP", OFFSET(#REF!, $AC60 - 1,0,1,1)),"")) ->  | U60: =IF( $AC60 = 0, "", IF( OFFSET(#REF!, $AC60 - 1,0,1,1)<>0, LEFT(OFFSET(#REF!, $AC60 - 1,0,1,1),3),"")) ->  | V60: =IF( $AC60 = 0, "", IF( OFFSET(#REF!, $AC60 - 1,0,1,1)<>0, IF(LEN(OFFSET(#REF!, $AC60 - 1,0,1,1))=9, RIGHT(OFFSET(#REF!, $AC60 - 1,0,1,1),5), LEFT(RIGHT(OFFSET(#REF!, $AC60 - 1,0,1,1),6), 5) ),"")) ->  | X60: =IF( $AC60 = 0, "", IF( OFFSET(#REF!, $AC60 - 1,0,1,1)<>0,IF(OR(AD60="LUMP", AD60="LS"), "", AD60),"")) ->  | Y60: =IF( $AC60 = 0, "", IF( OFFSET(#REF!, $AC60 - 1,0,1,1)<>0, VLOOKUP( OFFSET(#REF!, $AC60 - 1,0,1,1),[1]Items!$A$2:$E$10001,4,0),"")) ->  | AA60: 58 | AB60: 9 | AC60: 49 | AD60: =IF( $AC60 = 0, "", IF( OFFSET(#REF!, $AC60 - 1,0,1,1)<>0, VLOOKUP( OFFSET(#REF!, $AC60 - 1,0,1,1),[1]Items!$A$2:$E$10001,3,0),"")) -> 
A61: =IF( $AC61 = 0, "", IF( OFFSET(#REF!, $AC61 - 1,0,1,1)<>0, IF(OR($AD61="LUMP", $AD61="LS"), "LUMP", OFFSET(#REF!, $AC61 - 1,0,1,1)),"")) ->  | B61: =IF( $AC61 = 0, "", IF( OFFSET(#REF!, $AC61 - 1,0,1,1)<>0, IF(OR($AD61="LUMP", $AD61="LS"), "LUMP", OFFSET(#REF!, $AC61 - 1,0,1,1)),"")) ->  | C61: =IF( $AC61 = 0, "", IF( OFFSET(#REF!, $AC61 - 1,0,1,1)<>0, IF(OR($AD61="LUMP", $AD61="LS"), "LUMP", OFFSET(#REF!, $AC61 - 1,0,1,1)),"")) ->  | D61: =IF( $AC61 = 0, "", IF( OFFSET(#REF!, $AC61 - 1,0,1,1)<>0, IF(OR($AD61="LUMP", $AD61="LS"), "LUMP", OFFSET(#REF!, $AC61 - 1,0,1,1)),"")) ->  | E61: =IF( $AC61 = 0, "", IF( OFFSET(#REF!, $AC61 - 1,0,1,1)<>0, IF(OR($AD61="LUMP", $AD61="LS"), "LUMP", OFFSET(#REF!, $AC61 - 1,0,1,1)),"")) ->  | F61: =IF( $AC61 = 0, "", IF( OFFSET(#REF!, $AC61 - 1,0,1,1)<>0, IF(OR($AD61="LUMP", $AD61="LS"), "LUMP", OFFSET(#REF!, $AC61 - 1,0,1,1)),"")) ->  | G61: =IF( $AC61 = 0, "", IF( OFFSET(#REF!, $AC61 - 1,0,1,1)<>0, IF(OR($AD61="LUMP", $AD61="LS"), "LUMP", OFFSET(#REF!, $AC61 - 1,0,1,1)),"")) ->  | H61: =IF( $AC61 = 0, "", IF( OFFSET(#REF!, $AC61 - 1,0,1,1)<>0, IF(OR($AD61="LUMP", $AD61="LS"), "LUMP", OFFSET(#REF!, $AC61 - 1,0,1,1)),"")) ->  | I61: =IF( $AC61 = 0, "", IF( OFFSET(#REF!, $AC61 - 1,0,1,1)<>0, IF(OR($AD61="LUMP", $AD61="LS"), "LUMP", OFFSET(#REF!, $AC61 - 1,0,1,1)),"")) ->  | J61: =IF( $AC61 = 0, "", IF( OFFSET(#REF!, $AC61 - 1,0,1,1)<>0, IF(OR($AD61="LUMP", $AD61="LS"), "LUMP", OFFSET(#REF!, $AC61 - 1,0,1,1)),"")) ->  | K61: =IF( $AC61 = 0, "", IF( OFFSET(#REF!, $AC61 - 1,0,1,1)<>0, IF(OR($AD61="LUMP", $AD61="LS"), "LUMP", OFFSET(#REF!, $AC61 - 1,0,1,1)),"")) ->  | L61: =IF( $AC61 = 0, "", IF( OFFSET(#REF!, $AC61 - 1,0,1,1)<>0, IF(OR($AD61="LUMP", $AD61="LS"), "LUMP", OFFSET(#REF!, $AC61 - 1,0,1,1)),"")) ->  | M61: =IF( $AC61 = 0, "", IF( OFFSET(#REF!, $AC61 - 1,0,1,1)<>0, IF(OR($AD61="LUMP", $AD61="LS"), "LUMP", OFFSET(#REF!, $AC61 - 1,0,1,1)),"")) ->  | N61: =IF( $AC61 = 0, "", IF( OFFSET(#REF!, $AC61 - 1,0,1,1)<>0, IF(OR($AD61="LUMP", $AD61="LS"), "LUMP", OFFSET(#REF!, $AC61 - 1,0,1,1)),"")) ->  | O61: =IF( $AC61 = 0, "", IF( OFFSET(#REF!, $AC61 - 1,0,1,1)<>0, IF(OR($AD61="LUMP", $AD61="LS"), "LUMP", OFFSET(#REF!, $AC61 - 1,0,1,1)),"")) ->  | P61: =IF( $AC61 = 0, "", IF( OFFSET(#REF!, $AC61 - 1,0,1,1)<>0, IF(OR($AD61="LUMP", $AD61="LS"), "LUMP", OFFSET(#REF!, $AC61 - 1,0,1,1)),"")) ->  | Q61: =IF( $AC61 = 0, "", IF( OFFSET(#REF!, $AC61 - 1,0,1,1)<>0, IF(OR($AD61="LUMP", $AD61="LS"), "LUMP", OFFSET(#REF!, $AC61 - 1,0,1,1)),"")) ->  | R61: =IF( $AC61 = 0, "", IF( OFFSET(#REF!, $AC61 - 1,0,1,1)<>0, IF(OR($AD61="LUMP", $AD61="LS"), "LUMP", OFFSET(#REF!, $AC61 - 1,0,1,1)),"")) ->  | S61: =IF( $AC61 = 0, "", IF( OFFSET(#REF!, $AC61 - 1,0,1,1)<>0, IF(OR($AD61="LUMP", $AD61="LS"), "LUMP", OFFSET(#REF!, $AC61 - 1,0,1,1)),"")) ->  | T61: =IF( $AC61 = 0, "", IF( OFFSET(#REF!, $AC61 - 1,0,1,1)<>0, IF(OR($AD61="LUMP", $AD61="LS"), "LUMP", OFFSET(#REF!, $AC61 - 1,0,1,1)),"")) ->  | U61: =IF( $AC61 = 0, "", IF( OFFSET(#REF!, $AC61 - 1,0,1,1)<>0, LEFT(OFFSET(#REF!, $AC61 - 1,0,1,1),3),"")) ->  | V61: =IF( $AC61 = 0, "", IF( OFFSET(#REF!, $AC61 - 1,0,1,1)<>0, IF(LEN(OFFSET(#REF!, $AC61 - 1,0,1,1))=9, RIGHT(OFFSET(#REF!, $AC61 - 1,0,1,1),5), LEFT(RIGHT(OFFSET(#REF!, $AC61 - 1,0,1,1),6), 5) ),"")) ->  | X61: =IF( $AC61 = 0, "", IF( OFFSET(#REF!, $AC61 - 1,0,1,1)<>0,IF(OR(AD61="LUMP", AD61="LS"), "", AD61),"")) ->  | Y61: =IF( $AC61 = 0, "", IF( OFFSET(#REF!, $AC61 - 1,0,1,1)<>0, VLOOKUP( OFFSET(#REF!, $AC61 - 1,0,1,1),[1]Items!$A$2:$E$10001,4,0),"")) ->  | AA61: 59 | AB61: 9 | AC61: 50 | AD61: =IF( $AC61 = 0, "", IF( OFFSET(#REF!, $AC61 - 1,0,1,1)<>0, VLOOKUP( OFFSET(#REF!, $AC61 - 1,0,1,1),[1]Items!$A$2:$E$10001,3,0),"")) -> 
A62: =IF( $AC62 = 0, "", IF( OFFSET(#REF!, $AC62 - 1,0,1,1)<>0, IF(OR($AD62="LUMP", $AD62="LS"), "LUMP", OFFSET(#REF!, $AC62 - 1,0,1,1)),"")) ->  | B62: =IF( $AC62 = 0, "", IF( OFFSET(#REF!, $AC62 - 1,0,1,1)<>0, IF(OR($AD62="LUMP", $AD62="LS"), "LUMP", OFFSET(#REF!, $AC62 - 1,0,1,1)),"")) ->  | C62: =IF( $AC62 = 0, "", IF( OFFSET(#REF!, $AC62 - 1,0,1,1)<>0, IF(OR($AD62="LUMP", $AD62="LS"), "LUMP", OFFSET(#REF!, $AC62 - 1,0,1,1)),"")) ->  | D62: =IF( $AC62 = 0, "", IF( OFFSET(#REF!, $AC62 - 1,0,1,1)<>0, IF(OR($AD62="LUMP", $AD62="LS"), "LUMP", OFFSET(#REF!, $AC62 - 1,0,1,1)),"")) ->  | E62: =IF( $AC62 = 0, "", IF( OFFSET(#REF!, $AC62 - 1,0,1,1)<>0, IF(OR($AD62="LUMP", $AD62="LS"), "LUMP", OFFSET(#REF!, $AC62 - 1,0,1,1)),"")) ->  | F62: =IF( $AC62 = 0, "", IF( OFFSET(#REF!, $AC62 - 1,0,1,1)<>0, IF(OR($AD62="LUMP", $AD62="LS"), "LUMP", OFFSET(#REF!, $AC62 - 1,0,1,1)),"")) ->  | G62: =IF( $AC62 = 0, "", IF( OFFSET(#REF!, $AC62 - 1,0,1,1)<>0, IF(OR($AD62="LUMP", $AD62="LS"), "LUMP", OFFSET(#REF!, $AC62 - 1,0,1,1)),"")) ->  | H62: =IF( $AC62 = 0, "", IF( OFFSET(#REF!, $AC62 - 1,0,1,1)<>0, IF(OR($AD62="LUMP", $AD62="LS"), "LUMP", OFFSET(#REF!, $AC62 - 1,0,1,1)),"")) ->  | I62: =IF( $AC62 = 0, "", IF( OFFSET(#REF!, $AC62 - 1,0,1,1)<>0, IF(OR($AD62="LUMP", $AD62="LS"), "LUMP", OFFSET(#REF!, $AC62 - 1,0,1,1)),"")) ->  | J62: =IF( $AC62 = 0, "", IF( OFFSET(#REF!, $AC62 - 1,0,1,1)<>0, IF(OR($AD62="LUMP", $AD62="LS"), "LUMP", OFFSET(#REF!, $AC62 - 1,0,1,1)),"")) ->  | K62: =IF( $AC62 = 0, "", IF( OFFSET(#REF!, $AC62 - 1,0,1,1)<>0, IF(OR($AD62="LUMP", $AD62="LS"), "LUMP", OFFSET(#REF!, $AC62 - 1,0,1,1)),"")) ->  | L62: =IF( $AC62 = 0, "", IF( OFFSET(#REF!, $AC62 - 1,0,1,1)<>0, IF(OR($AD62="LUMP", $AD62="LS"), "LUMP", OFFSET(#REF!, $AC62 - 1,0,1,1)),"")) ->  | M62: =IF( $AC62 = 0, "", IF( OFFSET(#REF!, $AC62 - 1,0,1,1)<>0, IF(OR($AD62="LUMP", $AD62="LS"), "LUMP", OFFSET(#REF!, $AC62 - 1,0,1,1)),"")) ->  | N62: =IF( $AC62 = 0, "", IF( OFFSET(#REF!, $AC62 - 1,0,1,1)<>0, IF(OR($AD62="LUMP", $AD62="LS"), "LUMP", OFFSET(#REF!, $AC62 - 1,0,1,1)),"")) ->  | O62: =IF( $AC62 = 0, "", IF( OFFSET(#REF!, $AC62 - 1,0,1,1)<>0, IF(OR($AD62="LUMP", $AD62="LS"), "LUMP", OFFSET(#REF!, $AC62 - 1,0,1,1)),"")) ->  | P62: =IF( $AC62 = 0, "", IF( OFFSET(#REF!, $AC62 - 1,0,1,1)<>0, IF(OR($AD62="LUMP", $AD62="LS"), "LUMP", OFFSET(#REF!, $AC62 - 1,0,1,1)),"")) ->  | Q62: =IF( $AC62 = 0, "", IF( OFFSET(#REF!, $AC62 - 1,0,1,1)<>0, IF(OR($AD62="LUMP", $AD62="LS"), "LUMP", OFFSET(#REF!, $AC62 - 1,0,1,1)),"")) ->  | R62: =IF( $AC62 = 0, "", IF( OFFSET(#REF!, $AC62 - 1,0,1,1)<>0, IF(OR($AD62="LUMP", $AD62="LS"), "LUMP", OFFSET(#REF!, $AC62 - 1,0,1,1)),"")) ->  | S62: =IF( $AC62 = 0, "", IF( OFFSET(#REF!, $AC62 - 1,0,1,1)<>0, IF(OR($AD62="LUMP", $AD62="LS"), "LUMP", OFFSET(#REF!, $AC62 - 1,0,1,1)),"")) ->  | T62: =IF( $AC62 = 0, "", IF( OFFSET(#REF!, $AC62 - 1,0,1,1)<>0, IF(OR($AD62="LUMP", $AD62="LS"), "LUMP", OFFSET(#REF!, $AC62 - 1,0,1,1)),"")) ->  | U62: =IF( $AC62 = 0, "", IF( OFFSET(#REF!, $AC62 - 1,0,1,1)<>0, LEFT(OFFSET(#REF!, $AC62 - 1,0,1,1),3),"")) ->  | V62: =IF( $AC62 = 0, "", IF( OFFSET(#REF!, $AC62 - 1,0,1,1)<>0, IF(LEN(OFFSET(#REF!, $AC62 - 1,0,1,1))=9, RIGHT(OFFSET(#REF!, $AC62 - 1,0,1,1),5), LEFT(RIGHT(OFFSET(#REF!, $AC62 - 1,0,1,1),6), 5) ),"")) ->  | X62: =IF( $AC62 = 0, "", IF( OFFSET(#REF!, $AC62 - 1,0,1,1)<>0,IF(OR(AD62="LUMP", AD62="LS"), "", AD62),"")) ->  | Y62: =IF( $AC62 = 0, "", IF( OFFSET(#REF!, $AC62 - 1,0,1,1)<>0, VLOOKUP( OFFSET(#REF!, $AC62 - 1,0,1,1),[1]Items!$A$2:$E$10001,4,0),"")) ->  | AA62: 60 | AB62: 10 | AC62: 0 | AD62: =IF( $AC62 = 0, "", IF( OFFSET(#REF!, $AC62 - 1,0,1,1)<>0, VLOOKUP( OFFSET(#REF!, $AC62 - 1,0,1,1),[1]Items!$A$2:$E$10001,3,0),"")) -> 
A63: =IF( $AC63 = 0, "", IF( OFFSET(#REF!, $AC63 - 1,0,1,1)<>0, IF(OR($AD63="LUMP", $AD63="LS"), "LUMP", OFFSET(#REF!, $AC63 - 1,0,1,1)),"")) ->  | B63: =IF( $AC63 = 0, "", IF( OFFSET(#REF!, $AC63 - 1,0,1,1)<>0, IF(OR($AD63="LUMP", $AD63="LS"), "LUMP", OFFSET(#REF!, $AC63 - 1,0,1,1)),"")) ->  | C63: =IF( $AC63 = 0, "", IF( OFFSET(#REF!, $AC63 - 1,0,1,1)<>0, IF(OR($AD63="LUMP", $AD63="LS"), "LUMP", OFFSET(#REF!, $AC63 - 1,0,1,1)),"")) ->  | D63: =IF( $AC63 = 0, "", IF( OFFSET(#REF!, $AC63 - 1,0,1,1)<>0, IF(OR($AD63="LUMP", $AD63="LS"), "LUMP", OFFSET(#REF!, $AC63 - 1,0,1,1)),"")) ->  | E63: =IF( $AC63 = 0, "", IF( OFFSET(#REF!, $AC63 - 1,0,1,1)<>0, IF(OR($AD63="LUMP", $AD63="LS"), "LUMP", OFFSET(#REF!, $AC63 - 1,0,1,1)),"")) ->  | F63: =IF( $AC63 = 0, "", IF( OFFSET(#REF!, $AC63 - 1,0,1,1)<>0, IF(OR($AD63="LUMP", $AD63="LS"), "LUMP", OFFSET(#REF!, $AC63 - 1,0,1,1)),"")) ->  | G63: =IF( $AC63 = 0, "", IF( OFFSET(#REF!, $AC63 - 1,0,1,1)<>0, IF(OR($AD63="LUMP", $AD63="LS"), "LUMP", OFFSET(#REF!, $AC63 - 1,0,1,1)),"")) ->  | H63: =IF( $AC63 = 0, "", IF( OFFSET(#REF!, $AC63 - 1,0,1,1)<>0, IF(OR($AD63="LUMP", $AD63="LS"), "LUMP", OFFSET(#REF!, $AC63 - 1,0,1,1)),"")) ->  | I63: =IF( $AC63 = 0, "", IF( OFFSET(#REF!, $AC63 - 1,0,1,1)<>0, IF(OR($AD63="LUMP", $AD63="LS"), "LUMP", OFFSET(#REF!, $AC63 - 1,0,1,1)),"")) ->  | J63: =IF( $AC63 = 0, "", IF( OFFSET(#REF!, $AC63 - 1,0,1,1)<>0, IF(OR($AD63="LUMP", $AD63="LS"), "LUMP", OFFSET(#REF!, $AC63 - 1,0,1,1)),"")) ->  | K63: =IF( $AC63 = 0, "", IF( OFFSET(#REF!, $AC63 - 1,0,1,1)<>0, IF(OR($AD63="LUMP", $AD63="LS"), "LUMP", OFFSET(#REF!, $AC63 - 1,0,1,1)),"")) ->  | L63: =IF( $AC63 = 0, "", IF( OFFSET(#REF!, $AC63 - 1,0,1,1)<>0, IF(OR($AD63="LUMP", $AD63="LS"), "LUMP", OFFSET(#REF!, $AC63 - 1,0,1,1)),"")) ->  | M63: =IF( $AC63 = 0, "", IF( OFFSET(#REF!, $AC63 - 1,0,1,1)<>0, IF(OR($AD63="LUMP", $AD63="LS"), "LUMP", OFFSET(#REF!, $AC63 - 1,0,1,1)),"")) ->  | N63: =IF( $AC63 = 0, "", IF( OFFSET(#REF!, $AC63 - 1,0,1,1)<>0, IF(OR($AD63="LUMP", $AD63="LS"), "LUMP", OFFSET(#REF!, $AC63 - 1,0,1,1)),"")) ->  | O63: =IF( $AC63 = 0, "", IF( OFFSET(#REF!, $AC63 - 1,0,1,1)<>0, IF(OR($AD63="LUMP", $AD63="LS"), "LUMP", OFFSET(#REF!, $AC63 - 1,0,1,1)),"")) ->  | P63: =IF( $AC63 = 0, "", IF( OFFSET(#REF!, $AC63 - 1,0,1,1)<>0, IF(OR($AD63="LUMP", $AD63="LS"), "LUMP", OFFSET(#REF!, $AC63 - 1,0,1,1)),"")) ->  | Q63: =IF( $AC63 = 0, "", IF( OFFSET(#REF!, $AC63 - 1,0,1,1)<>0, IF(OR($AD63="LUMP", $AD63="LS"), "LUMP", OFFSET(#REF!, $AC63 - 1,0,1,1)),"")) ->  | R63: =IF( $AC63 = 0, "", IF( OFFSET(#REF!, $AC63 - 1,0,1,1)<>0, IF(OR($AD63="LUMP", $AD63="LS"), "LUMP", OFFSET(#REF!, $AC63 - 1,0,1,1)),"")) ->  | S63: =IF( $AC63 = 0, "", IF( OFFSET(#REF!, $AC63 - 1,0,1,1)<>0, IF(OR($AD63="LUMP", $AD63="LS"), "LUMP", OFFSET(#REF!, $AC63 - 1,0,1,1)),"")) ->  | T63: =IF( $AC63 = 0, "", IF( OFFSET(#REF!, $AC63 - 1,0,1,1)<>0, IF(OR($AD63="LUMP", $AD63="LS"), "LUMP", OFFSET(#REF!, $AC63 - 1,0,1,1)),"")) ->  | U63: =IF( $AC63 = 0, "", IF( OFFSET(#REF!, $AC63 - 1,0,1,1)<>0, LEFT(OFFSET(#REF!, $AC63 - 1,0,1,1),3),"")) ->  | V63: =IF( $AC63 = 0, "", IF( OFFSET(#REF!, $AC63 - 1,0,1,1)<>0, IF(LEN(OFFSET(#REF!, $AC63 - 1,0,1,1))=9, RIGHT(OFFSET(#REF!, $AC63 - 1,0,1,1),5), LEFT(RIGHT(OFFSET(#REF!, $AC63 - 1,0,1,1),6), 5) ),"")) ->  | X63: =IF( $AC63 = 0, "", IF( OFFSET(#REF!, $AC63 - 1,0,1,1)<>0,IF(OR(AD63="LUMP", AD63="LS"), "", AD63),"")) ->  | Y63: =IF( $AC63 = 0, "", IF( OFFSET(#REF!, $AC63 - 1,0,1,1)<>0, VLOOKUP( OFFSET(#REF!, $AC63 - 1,0,1,1),[1]Items!$A$2:$E$10001,4,0),"")) ->  | AA63: 61 | AB63: 10 | AC63: 51 | AD63: =IF( $AC63 = 0, "", IF( OFFSET(#REF!, $AC63 - 1,0,1,1)<>0, VLOOKUP( OFFSET(#REF!, $AC63 - 1,0,1,1),[1]Items!$A$2:$E$10001,3,0),"")) -> 
A64: =IF( $AC64 = 0, "", IF( OFFSET(#REF!, $AC64 - 1,0,1,1)<>0, IF(OR($AD64="LUMP", $AD64="LS"), "LUMP", OFFSET(#REF!, $AC64 - 1,0,1,1)),"")) ->  | B64: =IF( $AC64 = 0, "", IF( OFFSET(#REF!, $AC64 - 1,0,1,1)<>0, IF(OR($AD64="LUMP", $AD64="LS"), "LUMP", OFFSET(#REF!, $AC64 - 1,0,1,1)),"")) ->  | C64: =IF( $AC64 = 0, "", IF( OFFSET(#REF!, $AC64 - 1,0,1,1)<>0, IF(OR($AD64="LUMP", $AD64="LS"), "LUMP", OFFSET(#REF!, $AC64 - 1,0,1,1)),"")) ->  | D64: =IF( $AC64 = 0, "", IF( OFFSET(#REF!, $AC64 - 1,0,1,1)<>0, IF(OR($AD64="LUMP", $AD64="LS"), "LUMP", OFFSET(#REF!, $AC64 - 1,0,1,1)),"")) ->  | E64: =IF( $AC64 = 0, "", IF( OFFSET(#REF!, $AC64 - 1,0,1,1)<>0, IF(OR($AD64="LUMP", $AD64="LS"), "LUMP", OFFSET(#REF!, $AC64 - 1,0,1,1)),"")) ->  | F64: =IF( $AC64 = 0, "", IF( OFFSET(#REF!, $AC64 - 1,0,1,1)<>0, IF(OR($AD64="LUMP", $AD64="LS"), "LUMP", OFFSET(#REF!, $AC64 - 1,0,1,1)),"")) ->  | G64: =IF( $AC64 = 0, "", IF( OFFSET(#REF!, $AC64 - 1,0,1,1)<>0, IF(OR($AD64="LUMP", $AD64="LS"), "LUMP", OFFSET(#REF!, $AC64 - 1,0,1,1)),"")) ->  | H64: =IF( $AC64 = 0, "", IF( OFFSET(#REF!, $AC64 - 1,0,1,1)<>0, IF(OR($AD64="LUMP", $AD64="LS"), "LUMP", OFFSET(#REF!, $AC64 - 1,0,1,1)),"")) ->  | I64: =IF( $AC64 = 0, "", IF( OFFSET(#REF!, $AC64 - 1,0,1,1)<>0, IF(OR($AD64="LUMP", $AD64="LS"), "LUMP", OFFSET(#REF!, $AC64 - 1,0,1,1)),"")) ->  | J64: =IF( $AC64 = 0, "", IF( OFFSET(#REF!, $AC64 - 1,0,1,1)<>0, IF(OR($AD64="LUMP", $AD64="LS"), "LUMP", OFFSET(#REF!, $AC64 - 1,0,1,1)),"")) ->  | K64: =IF( $AC64 = 0, "", IF( OFFSET(#REF!, $AC64 - 1,0,1,1)<>0, IF(OR($AD64="LUMP", $AD64="LS"), "LUMP", OFFSET(#REF!, $AC64 - 1,0,1,1)),"")) ->  | L64: =IF( $AC64 = 0, "", IF( OFFSET(#REF!, $AC64 - 1,0,1,1)<>0, IF(OR($AD64="LUMP", $AD64="LS"), "LUMP", OFFSET(#REF!, $AC64 - 1,0,1,1)),"")) ->  | M64: =IF( $AC64 = 0, "", IF( OFFSET(#REF!, $AC64 - 1,0,1,1)<>0, IF(OR($AD64="LUMP", $AD64="LS"), "LUMP", OFFSET(#REF!, $AC64 - 1,0,1,1)),"")) ->  | N64: =IF( $AC64 = 0, "", IF( OFFSET(#REF!, $AC64 - 1,0,1,1)<>0, IF(OR($AD64="LUMP", $AD64="LS"), "LUMP", OFFSET(#REF!, $AC64 - 1,0,1,1)),"")) ->  | O64: =IF( $AC64 = 0, "", IF( OFFSET(#REF!, $AC64 - 1,0,1,1)<>0, IF(OR($AD64="LUMP", $AD64="LS"), "LUMP", OFFSET(#REF!, $AC64 - 1,0,1,1)),"")) ->  | P64: =IF( $AC64 = 0, "", IF( OFFSET(#REF!, $AC64 - 1,0,1,1)<>0, IF(OR($AD64="LUMP", $AD64="LS"), "LUMP", OFFSET(#REF!, $AC64 - 1,0,1,1)),"")) ->  | Q64: =IF( $AC64 = 0, "", IF( OFFSET(#REF!, $AC64 - 1,0,1,1)<>0, IF(OR($AD64="LUMP", $AD64="LS"), "LUMP", OFFSET(#REF!, $AC64 - 1,0,1,1)),"")) ->  | R64: =IF( $AC64 = 0, "", IF( OFFSET(#REF!, $AC64 - 1,0,1,1)<>0, IF(OR($AD64="LUMP", $AD64="LS"), "LUMP", OFFSET(#REF!, $AC64 - 1,0,1,1)),"")) ->  | S64: =IF( $AC64 = 0, "", IF( OFFSET(#REF!, $AC64 - 1,0,1,1)<>0, IF(OR($AD64="LUMP", $AD64="LS"), "LUMP", OFFSET(#REF!, $AC64 - 1,0,1,1)),"")) ->  | T64: =IF( $AC64 = 0, "", IF( OFFSET(#REF!, $AC64 - 1,0,1,1)<>0, IF(OR($AD64="LUMP", $AD64="LS"), "LUMP", OFFSET(#REF!, $AC64 - 1,0,1,1)),"")) ->  | U64: =IF( $AC64 = 0, "", IF( OFFSET(#REF!, $AC64 - 1,0,1,1)<>0, LEFT(OFFSET(#REF!, $AC64 - 1,0,1,1),3),"")) ->  | V64: =IF( $AC64 = 0, "", IF( OFFSET(#REF!, $AC64 - 1,0,1,1)<>0, IF(LEN(OFFSET(#REF!, $AC64 - 1,0,1,1))=9, RIGHT(OFFSET(#REF!, $AC64 - 1,0,1,1),5), LEFT(RIGHT(OFFSET(#REF!, $AC64 - 1,0,1,1),6), 5) ),"")) ->  | X64: =IF( $AC64 = 0, "", IF( OFFSET(#REF!, $AC64 - 1,0,1,1)<>0,IF(OR(AD64="LUMP", AD64="LS"), "", AD64),"")) ->  | Y64: =IF( $AC64 = 0, "", IF( OFFSET(#REF!, $AC64 - 1,0,1,1)<>0, VLOOKUP( OFFSET(#REF!, $AC64 - 1,0,1,1),[1]Items!$A$2:$E$10001,4,0),"")) ->  | AA64: 62 | AB64: 10 | AC64: 52 | AD64: =IF( $AC64 = 0, "", IF( OFFSET(#REF!, $AC64 - 1,0,1,1)<>0, VLOOKUP( OFFSET(#REF!, $AC64 - 1,0,1,1),[1]Items!$A$2:$E$10001,3,0),"")) -> 
A65: =IF( $AC65 = 0, "", IF( OFFSET(#REF!, $AC65 - 1,0,1,1)<>0, IF(OR($AD65="LUMP", $AD65="LS"), "LUMP", OFFSET(#REF!, $AC65 - 1,0,1,1)),"")) ->  | B65: =IF( $AC65 = 0, "", IF( OFFSET(#REF!, $AC65 - 1,0,1,1)<>0, IF(OR($AD65="LUMP", $AD65="LS"), "LUMP", OFFSET(#REF!, $AC65 - 1,0,1,1)),"")) ->  | C65: =IF( $AC65 = 0, "", IF( OFFSET(#REF!, $AC65 - 1,0,1,1)<>0, IF(OR($AD65="LUMP", $AD65="LS"), "LUMP", OFFSET(#REF!, $AC65 - 1,0,1,1)),"")) ->  | D65: =IF( $AC65 = 0, "", IF( OFFSET(#REF!, $AC65 - 1,0,1,1)<>0, IF(OR($AD65="LUMP", $AD65="LS"), "LUMP", OFFSET(#REF!, $AC65 - 1,0,1,1)),"")) ->  | E65: =IF( $AC65 = 0, "", IF( OFFSET(#REF!, $AC65 - 1,0,1,1)<>0, IF(OR($AD65="LUMP", $AD65="LS"), "LUMP", OFFSET(#REF!, $AC65 - 1,0,1,1)),"")) ->  | F65: =IF( $AC65 = 0, "", IF( OFFSET(#REF!, $AC65 - 1,0,1,1)<>0, IF(OR($AD65="LUMP", $AD65="LS"), "LUMP", OFFSET(#REF!, $AC65 - 1,0,1,1)),"")) ->  | G65: =IF( $AC65 = 0, "", IF( OFFSET(#REF!, $AC65 - 1,0,1,1)<>0, IF(OR($AD65="LUMP", $AD65="LS"), "LUMP", OFFSET(#REF!, $AC65 - 1,0,1,1)),"")) ->  | H65: =IF( $AC65 = 0, "", IF( OFFSET(#REF!, $AC65 - 1,0,1,1)<>0, IF(OR($AD65="LUMP", $AD65="LS"), "LUMP", OFFSET(#REF!, $AC65 - 1,0,1,1)),"")) ->  | I65: =IF( $AC65 = 0, "", IF( OFFSET(#REF!, $AC65 - 1,0,1,1)<>0, IF(OR($AD65="LUMP", $AD65="LS"), "LUMP", OFFSET(#REF!, $AC65 - 1,0,1,1)),"")) ->  | J65: =IF( $AC65 = 0, "", IF( OFFSET(#REF!, $AC65 - 1,0,1,1)<>0, IF(OR($AD65="LUMP", $AD65="LS"), "LUMP", OFFSET(#REF!, $AC65 - 1,0,1,1)),"")) ->  | K65: =IF( $AC65 = 0, "", IF( OFFSET(#REF!, $AC65 - 1,0,1,1)<>0, IF(OR($AD65="LUMP", $AD65="LS"), "LUMP", OFFSET(#REF!, $AC65 - 1,0,1,1)),"")) ->  | L65: =IF( $AC65 = 0, "", IF( OFFSET(#REF!, $AC65 - 1,0,1,1)<>0, IF(OR($AD65="LUMP", $AD65="LS"), "LUMP", OFFSET(#REF!, $AC65 - 1,0,1,1)),"")) ->  | M65: =IF( $AC65 = 0, "", IF( OFFSET(#REF!, $AC65 - 1,0,1,1)<>0, IF(OR($AD65="LUMP", $AD65="LS"), "LUMP", OFFSET(#REF!, $AC65 - 1,0,1,1)),"")) ->  | N65: =IF( $AC65 = 0, "", IF( OFFSET(#REF!, $AC65 - 1,0,1,1)<>0, IF(OR($AD65="LUMP", $AD65="LS"), "LUMP", OFFSET(#REF!, $AC65 - 1,0,1,1)),"")) ->  | O65: =IF( $AC65 = 0, "", IF( OFFSET(#REF!, $AC65 - 1,0,1,1)<>0, IF(OR($AD65="LUMP", $AD65="LS"), "LUMP", OFFSET(#REF!, $AC65 - 1,0,1,1)),"")) ->  | P65: =IF( $AC65 = 0, "", IF( OFFSET(#REF!, $AC65 - 1,0,1,1)<>0, IF(OR($AD65="LUMP", $AD65="LS"), "LUMP", OFFSET(#REF!, $AC65 - 1,0,1,1)),"")) ->  | Q65: =IF( $AC65 = 0, "", IF( OFFSET(#REF!, $AC65 - 1,0,1,1)<>0, IF(OR($AD65="LUMP", $AD65="LS"), "LUMP", OFFSET(#REF!, $AC65 - 1,0,1,1)),"")) ->  | R65: =IF( $AC65 = 0, "", IF( OFFSET(#REF!, $AC65 - 1,0,1,1)<>0, IF(OR($AD65="LUMP", $AD65="LS"), "LUMP", OFFSET(#REF!, $AC65 - 1,0,1,1)),"")) ->  | S65: =IF( $AC65 = 0, "", IF( OFFSET(#REF!, $AC65 - 1,0,1,1)<>0, IF(OR($AD65="LUMP", $AD65="LS"), "LUMP", OFFSET(#REF!, $AC65 - 1,0,1,1)),"")) ->  | T65: =IF( $AC65 = 0, "", IF( OFFSET(#REF!, $AC65 - 1,0,1,1)<>0, IF(OR($AD65="LUMP", $AD65="LS"), "LUMP", OFFSET(#REF!, $AC65 - 1,0,1,1)),"")) ->  | U65: =IF( $AC65 = 0, "", IF( OFFSET(#REF!, $AC65 - 1,0,1,1)<>0, LEFT(OFFSET(#REF!, $AC65 - 1,0,1,1),3),"")) ->  | V65: =IF( $AC65 = 0, "", IF( OFFSET(#REF!, $AC65 - 1,0,1,1)<>0, IF(LEN(OFFSET(#REF!, $AC65 - 1,0,1,1))=9, RIGHT(OFFSET(#REF!, $AC65 - 1,0,1,1),5), LEFT(RIGHT(OFFSET(#REF!, $AC65 - 1,0,1,1),6), 5) ),"")) ->  | X65: =IF( $AC65 = 0, "", IF( OFFSET(#REF!, $AC65 - 1,0,1,1)<>0,IF(OR(AD65="LUMP", AD65="LS"), "", AD65),"")) ->  | Y65: =IF( $AC65 = 0, "", IF( OFFSET(#REF!, $AC65 - 1,0,1,1)<>0, VLOOKUP( OFFSET(#REF!, $AC65 - 1,0,1,1),[1]Items!$A$2:$E$10001,4,0),"")) ->  | AA65: 63 | AB65: 10 | AC65: 53 | AD65: =IF( $AC65 = 0, "", IF( OFFSET(#REF!, $AC65 - 1,0,1,1)<>0, VLOOKUP( OFFSET(#REF!, $AC65 - 1,0,1,1),[1]Items!$A$2:$E$10001,3,0),"")) -> 
A66: =IF( $AC66 = 0, "", IF( OFFSET(#REF!, $AC66 - 1,0,1,1)<>0, IF(OR($AD66="LUMP", $AD66="LS"), "LUMP", OFFSET(#REF!, $AC66 - 1,0,1,1)),"")) ->  | B66: =IF( $AC66 = 0, "", IF( OFFSET(#REF!, $AC66 - 1,0,1,1)<>0, IF(OR($AD66="LUMP", $AD66="LS"), "LUMP", OFFSET(#REF!, $AC66 - 1,0,1,1)),"")) ->  | C66: =IF( $AC66 = 0, "", IF( OFFSET(#REF!, $AC66 - 1,0,1,1)<>0, IF(OR($AD66="LUMP", $AD66="LS"), "LUMP", OFFSET(#REF!, $AC66 - 1,0,1,1)),"")) ->  | D66: =IF( $AC66 = 0, "", IF( OFFSET(#REF!, $AC66 - 1,0,1,1)<>0, IF(OR($AD66="LUMP", $AD66="LS"), "LUMP", OFFSET(#REF!, $AC66 - 1,0,1,1)),"")) ->  | E66: =IF( $AC66 = 0, "", IF( OFFSET(#REF!, $AC66 - 1,0,1,1)<>0, IF(OR($AD66="LUMP", $AD66="LS"), "LUMP", OFFSET(#REF!, $AC66 - 1,0,1,1)),"")) ->  | F66: =IF( $AC66 = 0, "", IF( OFFSET(#REF!, $AC66 - 1,0,1,1)<>0, IF(OR($AD66="LUMP", $AD66="LS"), "LUMP", OFFSET(#REF!, $AC66 - 1,0,1,1)),"")) ->  | G66: =IF( $AC66 = 0, "", IF( OFFSET(#REF!, $AC66 - 1,0,1,1)<>0, IF(OR($AD66="LUMP", $AD66="LS"), "LUMP", OFFSET(#REF!, $AC66 - 1,0,1,1)),"")) ->  | H66: =IF( $AC66 = 0, "", IF( OFFSET(#REF!, $AC66 - 1,0,1,1)<>0, IF(OR($AD66="LUMP", $AD66="LS"), "LUMP", OFFSET(#REF!, $AC66 - 1,0,1,1)),"")) ->  | I66: =IF( $AC66 = 0, "", IF( OFFSET(#REF!, $AC66 - 1,0,1,1)<>0, IF(OR($AD66="LUMP", $AD66="LS"), "LUMP", OFFSET(#REF!, $AC66 - 1,0,1,1)),"")) ->  | J66: =IF( $AC66 = 0, "", IF( OFFSET(#REF!, $AC66 - 1,0,1,1)<>0, IF(OR($AD66="LUMP", $AD66="LS"), "LUMP", OFFSET(#REF!, $AC66 - 1,0,1,1)),"")) ->  | K66: =IF( $AC66 = 0, "", IF( OFFSET(#REF!, $AC66 - 1,0,1,1)<>0, IF(OR($AD66="LUMP", $AD66="LS"), "LUMP", OFFSET(#REF!, $AC66 - 1,0,1,1)),"")) ->  | L66: =IF( $AC66 = 0, "", IF( OFFSET(#REF!, $AC66 - 1,0,1,1)<>0, IF(OR($AD66="LUMP", $AD66="LS"), "LUMP", OFFSET(#REF!, $AC66 - 1,0,1,1)),"")) ->  | M66: =IF( $AC66 = 0, "", IF( OFFSET(#REF!, $AC66 - 1,0,1,1)<>0, IF(OR($AD66="LUMP", $AD66="LS"), "LUMP", OFFSET(#REF!, $AC66 - 1,0,1,1)),"")) ->  | N66: =IF( $AC66 = 0, "", IF( OFFSET(#REF!, $AC66 - 1,0,1,1)<>0, IF(OR($AD66="LUMP", $AD66="LS"), "LUMP", OFFSET(#REF!, $AC66 - 1,0,1,1)),"")) ->  | O66: =IF( $AC66 = 0, "", IF( OFFSET(#REF!, $AC66 - 1,0,1,1)<>0, IF(OR($AD66="LUMP", $AD66="LS"), "LUMP", OFFSET(#REF!, $AC66 - 1,0,1,1)),"")) ->  | P66: =IF( $AC66 = 0, "", IF( OFFSET(#REF!, $AC66 - 1,0,1,1)<>0, IF(OR($AD66="LUMP", $AD66="LS"), "LUMP", OFFSET(#REF!, $AC66 - 1,0,1,1)),"")) ->  | Q66: =IF( $AC66 = 0, "", IF( OFFSET(#REF!, $AC66 - 1,0,1,1)<>0, IF(OR($AD66="LUMP", $AD66="LS"), "LUMP", OFFSET(#REF!, $AC66 - 1,0,1,1)),"")) ->  | R66: =IF( $AC66 = 0, "", IF( OFFSET(#REF!, $AC66 - 1,0,1,1)<>0, IF(OR($AD66="LUMP", $AD66="LS"), "LUMP", OFFSET(#REF!, $AC66 - 1,0,1,1)),"")) ->  | S66: =IF( $AC66 = 0, "", IF( OFFSET(#REF!, $AC66 - 1,0,1,1)<>0, IF(OR($AD66="LUMP", $AD66="LS"), "LUMP", OFFSET(#REF!, $AC66 - 1,0,1,1)),"")) ->  | T66: =IF( $AC66 = 0, "", IF( OFFSET(#REF!, $AC66 - 1,0,1,1)<>0, IF(OR($AD66="LUMP", $AD66="LS"), "LUMP", OFFSET(#REF!, $AC66 - 1,0,1,1)),"")) ->  | U66: =IF( $AC66 = 0, "", IF( OFFSET(#REF!, $AC66 - 1,0,1,1)<>0, LEFT(OFFSET(#REF!, $AC66 - 1,0,1,1),3),"")) ->  | V66: =IF( $AC66 = 0, "", IF( OFFSET(#REF!, $AC66 - 1,0,1,1)<>0, IF(LEN(OFFSET(#REF!, $AC66 - 1,0,1,1))=9, RIGHT(OFFSET(#REF!, $AC66 - 1,0,1,1),5), LEFT(RIGHT(OFFSET(#REF!, $AC66 - 1,0,1,1),6), 5) ),"")) ->  | X66: =IF( $AC66 = 0, "", IF( OFFSET(#REF!, $AC66 - 1,0,1,1)<>0,IF(OR(AD66="LUMP", AD66="LS"), "", AD66),"")) ->  | Y66: =IF( $AC66 = 0, "", IF( OFFSET(#REF!, $AC66 - 1,0,1,1)<>0, VLOOKUP( OFFSET(#REF!, $AC66 - 1,0,1,1),[1]Items!$A$2:$E$10001,4,0),"")) ->  | AA66: 64 | AB66: 10 | AC66: 54 | AD66: =IF( $AC66 = 0, "", IF( OFFSET(#REF!, $AC66 - 1,0,1,1)<>0, VLOOKUP( OFFSET(#REF!, $AC66 - 1,0,1,1),[1]Items!$A$2:$E$10001,3,0),"")) -> 
A67: =IF( $AC67 = 0, "", IF( OFFSET(#REF!, $AC67 - 1,0,1,1)<>0, IF(OR($AD67="LUMP", $AD67="LS"), "LUMP", OFFSET(#REF!, $AC67 - 1,0,1,1)),"")) ->  | B67: =IF( $AC67 = 0, "", IF( OFFSET(#REF!, $AC67 - 1,0,1,1)<>0, IF(OR($AD67="LUMP", $AD67="LS"), "LUMP", OFFSET(#REF!, $AC67 - 1,0,1,1)),"")) ->  | C67: =IF( $AC67 = 0, "", IF( OFFSET(#REF!, $AC67 - 1,0,1,1)<>0, IF(OR($AD67="LUMP", $AD67="LS"), "LUMP", OFFSET(#REF!, $AC67 - 1,0,1,1)),"")) ->  | D67: =IF( $AC67 = 0, "", IF( OFFSET(#REF!, $AC67 - 1,0,1,1)<>0, IF(OR($AD67="LUMP", $AD67="LS"), "LUMP", OFFSET(#REF!, $AC67 - 1,0,1,1)),"")) ->  | E67: =IF( $AC67 = 0, "", IF( OFFSET(#REF!, $AC67 - 1,0,1,1)<>0, IF(OR($AD67="LUMP", $AD67="LS"), "LUMP", OFFSET(#REF!, $AC67 - 1,0,1,1)),"")) ->  | F67: =IF( $AC67 = 0, "", IF( OFFSET(#REF!, $AC67 - 1,0,1,1)<>0, IF(OR($AD67="LUMP", $AD67="LS"), "LUMP", OFFSET(#REF!, $AC67 - 1,0,1,1)),"")) ->  | G67: =IF( $AC67 = 0, "", IF( OFFSET(#REF!, $AC67 - 1,0,1,1)<>0, IF(OR($AD67="LUMP", $AD67="LS"), "LUMP", OFFSET(#REF!, $AC67 - 1,0,1,1)),"")) ->  | H67: =IF( $AC67 = 0, "", IF( OFFSET(#REF!, $AC67 - 1,0,1,1)<>0, IF(OR($AD67="LUMP", $AD67="LS"), "LUMP", OFFSET(#REF!, $AC67 - 1,0,1,1)),"")) ->  | I67: =IF( $AC67 = 0, "", IF( OFFSET(#REF!, $AC67 - 1,0,1,1)<>0, IF(OR($AD67="LUMP", $AD67="LS"), "LUMP", OFFSET(#REF!, $AC67 - 1,0,1,1)),"")) ->  | J67: =IF( $AC67 = 0, "", IF( OFFSET(#REF!, $AC67 - 1,0,1,1)<>0, IF(OR($AD67="LUMP", $AD67="LS"), "LUMP", OFFSET(#REF!, $AC67 - 1,0,1,1)),"")) ->  | K67: =IF( $AC67 = 0, "", IF( OFFSET(#REF!, $AC67 - 1,0,1,1)<>0, IF(OR($AD67="LUMP", $AD67="LS"), "LUMP", OFFSET(#REF!, $AC67 - 1,0,1,1)),"")) ->  | L67: =IF( $AC67 = 0, "", IF( OFFSET(#REF!, $AC67 - 1,0,1,1)<>0, IF(OR($AD67="LUMP", $AD67="LS"), "LUMP", OFFSET(#REF!, $AC67 - 1,0,1,1)),"")) ->  | M67: =IF( $AC67 = 0, "", IF( OFFSET(#REF!, $AC67 - 1,0,1,1)<>0, IF(OR($AD67="LUMP", $AD67="LS"), "LUMP", OFFSET(#REF!, $AC67 - 1,0,1,1)),"")) ->  | N67: =IF( $AC67 = 0, "", IF( OFFSET(#REF!, $AC67 - 1,0,1,1)<>0, IF(OR($AD67="LUMP", $AD67="LS"), "LUMP", OFFSET(#REF!, $AC67 - 1,0,1,1)),"")) ->  | O67: =IF( $AC67 = 0, "", IF( OFFSET(#REF!, $AC67 - 1,0,1,1)<>0, IF(OR($AD67="LUMP", $AD67="LS"), "LUMP", OFFSET(#REF!, $AC67 - 1,0,1,1)),"")) ->  | P67: =IF( $AC67 = 0, "", IF( OFFSET(#REF!, $AC67 - 1,0,1,1)<>0, IF(OR($AD67="LUMP", $AD67="LS"), "LUMP", OFFSET(#REF!, $AC67 - 1,0,1,1)),"")) ->  | Q67: =IF( $AC67 = 0, "", IF( OFFSET(#REF!, $AC67 - 1,0,1,1)<>0, IF(OR($AD67="LUMP", $AD67="LS"), "LUMP", OFFSET(#REF!, $AC67 - 1,0,1,1)),"")) ->  | R67: =IF( $AC67 = 0, "", IF( OFFSET(#REF!, $AC67 - 1,0,1,1)<>0, IF(OR($AD67="LUMP", $AD67="LS"), "LUMP", OFFSET(#REF!, $AC67 - 1,0,1,1)),"")) ->  | S67: =IF( $AC67 = 0, "", IF( OFFSET(#REF!, $AC67 - 1,0,1,1)<>0, IF(OR($AD67="LUMP", $AD67="LS"), "LUMP", OFFSET(#REF!, $AC67 - 1,0,1,1)),"")) ->  | T67: =IF( $AC67 = 0, "", IF( OFFSET(#REF!, $AC67 - 1,0,1,1)<>0, IF(OR($AD67="LUMP", $AD67="LS"), "LUMP", OFFSET(#REF!, $AC67 - 1,0,1,1)),"")) ->  | U67: =IF( $AC67 = 0, "", IF( OFFSET(#REF!, $AC67 - 1,0,1,1)<>0, LEFT(OFFSET(#REF!, $AC67 - 1,0,1,1),3),"")) ->  | V67: =IF( $AC67 = 0, "", IF( OFFSET(#REF!, $AC67 - 1,0,1,1)<>0, IF(LEN(OFFSET(#REF!, $AC67 - 1,0,1,1))=9, RIGHT(OFFSET(#REF!, $AC67 - 1,0,1,1),5), LEFT(RIGHT(OFFSET(#REF!, $AC67 - 1,0,1,1),6), 5) ),"")) ->  | X67: =IF( $AC67 = 0, "", IF( OFFSET(#REF!, $AC67 - 1,0,1,1)<>0,IF(OR(AD67="LUMP", AD67="LS"), "", AD67),"")) ->  | Y67: =IF( $AC67 = 0, "", IF( OFFSET(#REF!, $AC67 - 1,0,1,1)<>0, VLOOKUP( OFFSET(#REF!, $AC67 - 1,0,1,1),[1]Items!$A$2:$E$10001,4,0),"")) ->  | AA67: 65 | AB67: =INT(AA67/6) -> 10 | AC67: =IF( (AA67 - 6*AB67) = 0, 0, AA67 - AB67 ) -> 55 | AD67: =IF( $AC67 = 0, "", IF( OFFSET(#REF!, $AC67 - 1,0,1,1)<>0, VLOOKUP( OFFSET(#REF!, $AC67 - 1,0,1,1),[1]Items!$A$2:$E$10001,3,0),"")) -> 
A68: =IF( $AC68 = 0, "", IF( OFFSET(#REF!, $AC68 - 1,0,1,1)<>0, IF(OR($AD68="LUMP", $AD68="LS"), "LUMP", OFFSET(#REF!, $AC68 - 1,0,1,1)),"")) ->  | B68: =IF( $AC68 = 0, "", IF( OFFSET(#REF!, $AC68 - 1,0,1,1)<>0, IF(OR($AD68="LUMP", $AD68="LS"), "LUMP", OFFSET(#REF!, $AC68 - 1,0,1,1)),"")) ->  | C68: =IF( $AC68 = 0, "", IF( OFFSET(#REF!, $AC68 - 1,0,1,1)<>0, IF(OR($AD68="LUMP", $AD68="LS"), "LUMP", OFFSET(#REF!, $AC68 - 1,0,1,1)),"")) ->  | D68: =IF( $AC68 = 0, "", IF( OFFSET(#REF!, $AC68 - 1,0,1,1)<>0, IF(OR($AD68="LUMP", $AD68="LS"), "LUMP", OFFSET(#REF!, $AC68 - 1,0,1,1)),"")) ->  | E68: =IF( $AC68 = 0, "", IF( OFFSET(#REF!, $AC68 - 1,0,1,1)<>0, IF(OR($AD68="LUMP", $AD68="LS"), "LUMP", OFFSET(#REF!, $AC68 - 1,0,1,1)),"")) ->  | F68: =IF( $AC68 = 0, "", IF( OFFSET(#REF!, $AC68 - 1,0,1,1)<>0, IF(OR($AD68="LUMP", $AD68="LS"), "LUMP", OFFSET(#REF!, $AC68 - 1,0,1,1)),"")) ->  | G68: =IF( $AC68 = 0, "", IF( OFFSET(#REF!, $AC68 - 1,0,1,1)<>0, IF(OR($AD68="LUMP", $AD68="LS"), "LUMP", OFFSET(#REF!, $AC68 - 1,0,1,1)),"")) ->  | H68: =IF( $AC68 = 0, "", IF( OFFSET(#REF!, $AC68 - 1,0,1,1)<>0, IF(OR($AD68="LUMP", $AD68="LS"), "LUMP", OFFSET(#REF!, $AC68 - 1,0,1,1)),"")) ->  | I68: =IF( $AC68 = 0, "", IF( OFFSET(#REF!, $AC68 - 1,0,1,1)<>0, IF(OR($AD68="LUMP", $AD68="LS"), "LUMP", OFFSET(#REF!, $AC68 - 1,0,1,1)),"")) ->  | J68: =IF( $AC68 = 0, "", IF( OFFSET(#REF!, $AC68 - 1,0,1,1)<>0, IF(OR($AD68="LUMP", $AD68="LS"), "LUMP", OFFSET(#REF!, $AC68 - 1,0,1,1)),"")) ->  | K68: =IF( $AC68 = 0, "", IF( OFFSET(#REF!, $AC68 - 1,0,1,1)<>0, IF(OR($AD68="LUMP", $AD68="LS"), "LUMP", OFFSET(#REF!, $AC68 - 1,0,1,1)),"")) ->  | L68: =IF( $AC68 = 0, "", IF( OFFSET(#REF!, $AC68 - 1,0,1,1)<>0, IF(OR($AD68="LUMP", $AD68="LS"), "LUMP", OFFSET(#REF!, $AC68 - 1,0,1,1)),"")) ->  | M68: =IF( $AC68 = 0, "", IF( OFFSET(#REF!, $AC68 - 1,0,1,1)<>0, IF(OR($AD68="LUMP", $AD68="LS"), "LUMP", OFFSET(#REF!, $AC68 - 1,0,1,1)),"")) ->  | N68: =IF( $AC68 = 0, "", IF( OFFSET(#REF!, $AC68 - 1,0,1,1)<>0, IF(OR($AD68="LUMP", $AD68="LS"), "LUMP", OFFSET(#REF!, $AC68 - 1,0,1,1)),"")) ->  | O68: =IF( $AC68 = 0, "", IF( OFFSET(#REF!, $AC68 - 1,0,1,1)<>0, IF(OR($AD68="LUMP", $AD68="LS"), "LUMP", OFFSET(#REF!, $AC68 - 1,0,1,1)),"")) ->  | P68: =IF( $AC68 = 0, "", IF( OFFSET(#REF!, $AC68 - 1,0,1,1)<>0, IF(OR($AD68="LUMP", $AD68="LS"), "LUMP", OFFSET(#REF!, $AC68 - 1,0,1,1)),"")) ->  | Q68: =IF( $AC68 = 0, "", IF( OFFSET(#REF!, $AC68 - 1,0,1,1)<>0, IF(OR($AD68="LUMP", $AD68="LS"), "LUMP", OFFSET(#REF!, $AC68 - 1,0,1,1)),"")) ->  | R68: =IF( $AC68 = 0, "", IF( OFFSET(#REF!, $AC68 - 1,0,1,1)<>0, IF(OR($AD68="LUMP", $AD68="LS"), "LUMP", OFFSET(#REF!, $AC68 - 1,0,1,1)),"")) ->  | S68: =IF( $AC68 = 0, "", IF( OFFSET(#REF!, $AC68 - 1,0,1,1)<>0, IF(OR($AD68="LUMP", $AD68="LS"), "LUMP", OFFSET(#REF!, $AC68 - 1,0,1,1)),"")) ->  | T68: =IF( $AC68 = 0, "", IF( OFFSET(#REF!, $AC68 - 1,0,1,1)<>0, IF(OR($AD68="LUMP", $AD68="LS"), "LUMP", OFFSET(#REF!, $AC68 - 1,0,1,1)),"")) ->  | U68: =IF( $AC68 = 0, "", IF( OFFSET(#REF!, $AC68 - 1,0,1,1)<>0, LEFT(OFFSET(#REF!, $AC68 - 1,0,1,1),3),"")) ->  | V68: =IF( $AC68 = 0, "", IF( OFFSET(#REF!, $AC68 - 1,0,1,1)<>0, IF(LEN(OFFSET(#REF!, $AC68 - 1,0,1,1))=9, RIGHT(OFFSET(#REF!, $AC68 - 1,0,1,1),5), LEFT(RIGHT(OFFSET(#REF!, $AC68 - 1,0,1,1),6), 5) ),"")) ->  | X68: =IF( $AC68 = 0, "", IF( OFFSET(#REF!, $AC68 - 1,0,1,1)<>0,IF(OR(AD68="LUMP", AD68="LS"), "", AD68),"")) ->  | Y68: =IF( $AC68 = 0, "", IF( OFFSET(#REF!, $AC68 - 1,0,1,1)<>0, VLOOKUP( OFFSET(#REF!, $AC68 - 1,0,1,1),[1]Items!$A$2:$E$10001,4,0),"")) ->  | AA68: =AA67+1 -> 66 | AB68: 11 | AC68: 0 | AD68: =IF( $AC68 = 0, "", IF( OFFSET(#REF!, $AC68 - 1,0,1,1)<>0, VLOOKUP( OFFSET(#REF!, $AC68 - 1,0,1,1),[1]Items!$A$2:$E$10001,3,0),"")) -> 
A69: =IF( $AC69 = 0, "", IF( OFFSET(#REF!, $AC69 - 1,0,1,1)<>0, IF(OR($AD69="LUMP", $AD69="LS"), "LUMP", OFFSET(#REF!, $AC69 - 1,0,1,1)),"")) ->  | B69: =IF( $AC69 = 0, "", IF( OFFSET(#REF!, $AC69 - 1,0,1,1)<>0, IF(OR($AD69="LUMP", $AD69="LS"), "LUMP", OFFSET(#REF!, $AC69 - 1,0,1,1)),"")) ->  | C69: =IF( $AC69 = 0, "", IF( OFFSET(#REF!, $AC69 - 1,0,1,1)<>0, IF(OR($AD69="LUMP", $AD69="LS"), "LUMP", OFFSET(#REF!, $AC69 - 1,0,1,1)),"")) ->  | D69: =IF( $AC69 = 0, "", IF( OFFSET(#REF!, $AC69 - 1,0,1,1)<>0, IF(OR($AD69="LUMP", $AD69="LS"), "LUMP", OFFSET(#REF!, $AC69 - 1,0,1,1)),"")) ->  | E69: =IF( $AC69 = 0, "", IF( OFFSET(#REF!, $AC69 - 1,0,1,1)<>0, IF(OR($AD69="LUMP", $AD69="LS"), "LUMP", OFFSET(#REF!, $AC69 - 1,0,1,1)),"")) ->  | F69: =IF( $AC69 = 0, "", IF( OFFSET(#REF!, $AC69 - 1,0,1,1)<>0, IF(OR($AD69="LUMP", $AD69="LS"), "LUMP", OFFSET(#REF!, $AC69 - 1,0,1,1)),"")) ->  | G69: =IF( $AC69 = 0, "", IF( OFFSET(#REF!, $AC69 - 1,0,1,1)<>0, IF(OR($AD69="LUMP", $AD69="LS"), "LUMP", OFFSET(#REF!, $AC69 - 1,0,1,1)),"")) ->  | H69: =IF( $AC69 = 0, "", IF( OFFSET(#REF!, $AC69 - 1,0,1,1)<>0, IF(OR($AD69="LUMP", $AD69="LS"), "LUMP", OFFSET(#REF!, $AC69 - 1,0,1,1)),"")) ->  | I69: =IF( $AC69 = 0, "", IF( OFFSET(#REF!, $AC69 - 1,0,1,1)<>0, IF(OR($AD69="LUMP", $AD69="LS"), "LUMP", OFFSET(#REF!, $AC69 - 1,0,1,1)),"")) ->  | J69: =IF( $AC69 = 0, "", IF( OFFSET(#REF!, $AC69 - 1,0,1,1)<>0, IF(OR($AD69="LUMP", $AD69="LS"), "LUMP", OFFSET(#REF!, $AC69 - 1,0,1,1)),"")) ->  | K69: =IF( $AC69 = 0, "", IF( OFFSET(#REF!, $AC69 - 1,0,1,1)<>0, IF(OR($AD69="LUMP", $AD69="LS"), "LUMP", OFFSET(#REF!, $AC69 - 1,0,1,1)),"")) ->  | L69: =IF( $AC69 = 0, "", IF( OFFSET(#REF!, $AC69 - 1,0,1,1)<>0, IF(OR($AD69="LUMP", $AD69="LS"), "LUMP", OFFSET(#REF!, $AC69 - 1,0,1,1)),"")) ->  | M69: =IF( $AC69 = 0, "", IF( OFFSET(#REF!, $AC69 - 1,0,1,1)<>0, IF(OR($AD69="LUMP", $AD69="LS"), "LUMP", OFFSET(#REF!, $AC69 - 1,0,1,1)),"")) ->  | N69: =IF( $AC69 = 0, "", IF( OFFSET(#REF!, $AC69 - 1,0,1,1)<>0, IF(OR($AD69="LUMP", $AD69="LS"), "LUMP", OFFSET(#REF!, $AC69 - 1,0,1,1)),"")) ->  | O69: =IF( $AC69 = 0, "", IF( OFFSET(#REF!, $AC69 - 1,0,1,1)<>0, IF(OR($AD69="LUMP", $AD69="LS"), "LUMP", OFFSET(#REF!, $AC69 - 1,0,1,1)),"")) ->  | P69: =IF( $AC69 = 0, "", IF( OFFSET(#REF!, $AC69 - 1,0,1,1)<>0, IF(OR($AD69="LUMP", $AD69="LS"), "LUMP", OFFSET(#REF!, $AC69 - 1,0,1,1)),"")) ->  | Q69: =IF( $AC69 = 0, "", IF( OFFSET(#REF!, $AC69 - 1,0,1,1)<>0, IF(OR($AD69="LUMP", $AD69="LS"), "LUMP", OFFSET(#REF!, $AC69 - 1,0,1,1)),"")) ->  | R69: =IF( $AC69 = 0, "", IF( OFFSET(#REF!, $AC69 - 1,0,1,1)<>0, IF(OR($AD69="LUMP", $AD69="LS"), "LUMP", OFFSET(#REF!, $AC69 - 1,0,1,1)),"")) ->  | S69: =IF( $AC69 = 0, "", IF( OFFSET(#REF!, $AC69 - 1,0,1,1)<>0, IF(OR($AD69="LUMP", $AD69="LS"), "LUMP", OFFSET(#REF!, $AC69 - 1,0,1,1)),"")) ->  | T69: =IF( $AC69 = 0, "", IF( OFFSET(#REF!, $AC69 - 1,0,1,1)<>0, IF(OR($AD69="LUMP", $AD69="LS"), "LUMP", OFFSET(#REF!, $AC69 - 1,0,1,1)),"")) ->  | U69: =IF( $AC69 = 0, "", IF( OFFSET(#REF!, $AC69 - 1,0,1,1)<>0, LEFT(OFFSET(#REF!, $AC69 - 1,0,1,1),3),"")) ->  | V69: =IF( $AC69 = 0, "", IF( OFFSET(#REF!, $AC69 - 1,0,1,1)<>0, IF(LEN(OFFSET(#REF!, $AC69 - 1,0,1,1))=9, RIGHT(OFFSET(#REF!, $AC69 - 1,0,1,1),5), LEFT(RIGHT(OFFSET(#REF!, $AC69 - 1,0,1,1),6), 5) ),"")) ->  | X69: =IF( $AC69 = 0, "", IF( OFFSET(#REF!, $AC69 - 1,0,1,1)<>0,IF(OR(AD69="LUMP", AD69="LS"), "", AD69),"")) ->  | Y69: =IF( $AC69 = 0, "", IF( OFFSET(#REF!, $AC69 - 1,0,1,1)<>0, VLOOKUP( OFFSET(#REF!, $AC69 - 1,0,1,1),[1]Items!$A$2:$E$10001,4,0),"")) ->  | AA69: 67 | AB69: 11 | AC69: 56 | AD69: =IF( $AC69 = 0, "", IF( OFFSET(#REF!, $AC69 - 1,0,1,1)<>0, VLOOKUP( OFFSET(#REF!, $AC69 - 1,0,1,1),[1]Items!$A$2:$E$10001,3,0),"")) -> 
A70: =IF( $AC70 = 0, "", IF( OFFSET(#REF!, $AC70 - 1,0,1,1)<>0, IF(OR($AD70="LUMP", $AD70="LS"), "LUMP", OFFSET(#REF!, $AC70 - 1,0,1,1)),"")) ->  | B70: =IF( $AC70 = 0, "", IF( OFFSET(#REF!, $AC70 - 1,0,1,1)<>0, IF(OR($AD70="LUMP", $AD70="LS"), "LUMP", OFFSET(#REF!, $AC70 - 1,0,1,1)),"")) ->  | C70: =IF( $AC70 = 0, "", IF( OFFSET(#REF!, $AC70 - 1,0,1,1)<>0, IF(OR($AD70="LUMP", $AD70="LS"), "LUMP", OFFSET(#REF!, $AC70 - 1,0,1,1)),"")) ->  | D70: =IF( $AC70 = 0, "", IF( OFFSET(#REF!, $AC70 - 1,0,1,1)<>0, IF(OR($AD70="LUMP", $AD70="LS"), "LUMP", OFFSET(#REF!, $AC70 - 1,0,1,1)),"")) ->  | E70: =IF( $AC70 = 0, "", IF( OFFSET(#REF!, $AC70 - 1,0,1,1)<>0, IF(OR($AD70="LUMP", $AD70="LS"), "LUMP", OFFSET(#REF!, $AC70 - 1,0,1,1)),"")) ->  | F70: =IF( $AC70 = 0, "", IF( OFFSET(#REF!, $AC70 - 1,0,1,1)<>0, IF(OR($AD70="LUMP", $AD70="LS"), "LUMP", OFFSET(#REF!, $AC70 - 1,0,1,1)),"")) ->  | G70: =IF( $AC70 = 0, "", IF( OFFSET(#REF!, $AC70 - 1,0,1,1)<>0, IF(OR($AD70="LUMP", $AD70="LS"), "LUMP", OFFSET(#REF!, $AC70 - 1,0,1,1)),"")) ->  | H70: =IF( $AC70 = 0, "", IF( OFFSET(#REF!, $AC70 - 1,0,1,1)<>0, IF(OR($AD70="LUMP", $AD70="LS"), "LUMP", OFFSET(#REF!, $AC70 - 1,0,1,1)),"")) ->  | I70: =IF( $AC70 = 0, "", IF( OFFSET(#REF!, $AC70 - 1,0,1,1)<>0, IF(OR($AD70="LUMP", $AD70="LS"), "LUMP", OFFSET(#REF!, $AC70 - 1,0,1,1)),"")) ->  | J70: =IF( $AC70 = 0, "", IF( OFFSET(#REF!, $AC70 - 1,0,1,1)<>0, IF(OR($AD70="LUMP", $AD70="LS"), "LUMP", OFFSET(#REF!, $AC70 - 1,0,1,1)),"")) ->  | K70: =IF( $AC70 = 0, "", IF( OFFSET(#REF!, $AC70 - 1,0,1,1)<>0, IF(OR($AD70="LUMP", $AD70="LS"), "LUMP", OFFSET(#REF!, $AC70 - 1,0,1,1)),"")) ->  | L70: =IF( $AC70 = 0, "", IF( OFFSET(#REF!, $AC70 - 1,0,1,1)<>0, IF(OR($AD70="LUMP", $AD70="LS"), "LUMP", OFFSET(#REF!, $AC70 - 1,0,1,1)),"")) ->  | M70: =IF( $AC70 = 0, "", IF( OFFSET(#REF!, $AC70 - 1,0,1,1)<>0, IF(OR($AD70="LUMP", $AD70="LS"), "LUMP", OFFSET(#REF!, $AC70 - 1,0,1,1)),"")) ->  | N70: =IF( $AC70 = 0, "", IF( OFFSET(#REF!, $AC70 - 1,0,1,1)<>0, IF(OR($AD70="LUMP", $AD70="LS"), "LUMP", OFFSET(#REF!, $AC70 - 1,0,1,1)),"")) ->  | O70: =IF( $AC70 = 0, "", IF( OFFSET(#REF!, $AC70 - 1,0,1,1)<>0, IF(OR($AD70="LUMP", $AD70="LS"), "LUMP", OFFSET(#REF!, $AC70 - 1,0,1,1)),"")) ->  | P70: =IF( $AC70 = 0, "", IF( OFFSET(#REF!, $AC70 - 1,0,1,1)<>0, IF(OR($AD70="LUMP", $AD70="LS"), "LUMP", OFFSET(#REF!, $AC70 - 1,0,1,1)),"")) ->  | Q70: =IF( $AC70 = 0, "", IF( OFFSET(#REF!, $AC70 - 1,0,1,1)<>0, IF(OR($AD70="LUMP", $AD70="LS"), "LUMP", OFFSET(#REF!, $AC70 - 1,0,1,1)),"")) ->  | R70: =IF( $AC70 = 0, "", IF( OFFSET(#REF!, $AC70 - 1,0,1,1)<>0, IF(OR($AD70="LUMP", $AD70="LS"), "LUMP", OFFSET(#REF!, $AC70 - 1,0,1,1)),"")) ->  | S70: =IF( $AC70 = 0, "", IF( OFFSET(#REF!, $AC70 - 1,0,1,1)<>0, IF(OR($AD70="LUMP", $AD70="LS"), "LUMP", OFFSET(#REF!, $AC70 - 1,0,1,1)),"")) ->  | T70: =IF( $AC70 = 0, "", IF( OFFSET(#REF!, $AC70 - 1,0,1,1)<>0, IF(OR($AD70="LUMP", $AD70="LS"), "LUMP", OFFSET(#REF!, $AC70 - 1,0,1,1)),"")) ->  | U70: =IF( $AC70 = 0, "", IF( OFFSET(#REF!, $AC70 - 1,0,1,1)<>0, LEFT(OFFSET(#REF!, $AC70 - 1,0,1,1),3),"")) ->  | V70: =IF( $AC70 = 0, "", IF( OFFSET(#REF!, $AC70 - 1,0,1,1)<>0, IF(LEN(OFFSET(#REF!, $AC70 - 1,0,1,1))=9, RIGHT(OFFSET(#REF!, $AC70 - 1,0,1,1),5), LEFT(RIGHT(OFFSET(#REF!, $AC70 - 1,0,1,1),6), 5) ),"")) ->  | W70: =IF(SUM(A70:T70)<>0,SUM(A70:T70),IF(OR(AD70="LUMP", AD70="LS"), "LUMP", "")) ->  | X70: =IF( $AC70 = 0, "", IF( OFFSET(#REF!, $AC70 - 1,0,1,1)<>0,IF(OR(AD70="LUMP", AD70="LS"), "", AD70),"")) ->  | Y70: =IF( $AC70 = 0, "", IF( OFFSET(#REF!, $AC70 - 1,0,1,1)<>0, VLOOKUP( OFFSET(#REF!, $AC70 - 1,0,1,1),[1]Items!$A$2:$E$10001,4,0),"")) ->  | AA70: 68 | AB70: 11 | AC70: 57 | AD70: =IF( $AC70 = 0, "", IF( OFFSET(#REF!, $AC70 - 1,0,1,1)<>0, VLOOKUP( OFFSET(#REF!, $AC70 - 1,0,1,1),[1]Items!$A$2:$E$10001,3,0),"")) -> 
A71: =IF( $AC71 = 0, "", IF( OFFSET(#REF!, $AC71 - 1,0,1,1)<>0, IF(OR($AD71="LUMP", $AD71="LS"), "LUMP", OFFSET(#REF!, $AC71 - 1,0,1,1)),"")) ->  | B71: =IF( $AC71 = 0, "", IF( OFFSET(#REF!, $AC71 - 1,0,1,1)<>0, IF(OR($AD71="LUMP", $AD71="LS"), "LUMP", OFFSET(#REF!, $AC71 - 1,0,1,1)),"")) ->  | C71: =IF( $AC71 = 0, "", IF( OFFSET(#REF!, $AC71 - 1,0,1,1)<>0, IF(OR($AD71="LUMP", $AD71="LS"), "LUMP", OFFSET(#REF!, $AC71 - 1,0,1,1)),"")) ->  | D71: =IF( $AC71 = 0, "", IF( OFFSET(#REF!, $AC71 - 1,0,1,1)<>0, IF(OR($AD71="LUMP", $AD71="LS"), "LUMP", OFFSET(#REF!, $AC71 - 1,0,1,1)),"")) ->  | E71: =IF( $AC71 = 0, "", IF( OFFSET(#REF!, $AC71 - 1,0,1,1)<>0, IF(OR($AD71="LUMP", $AD71="LS"), "LUMP", OFFSET(#REF!, $AC71 - 1,0,1,1)),"")) ->  | F71: =IF( $AC71 = 0, "", IF( OFFSET(#REF!, $AC71 - 1,0,1,1)<>0, IF(OR($AD71="LUMP", $AD71="LS"), "LUMP", OFFSET(#REF!, $AC71 - 1,0,1,1)),"")) ->  | G71: =IF( $AC71 = 0, "", IF( OFFSET(#REF!, $AC71 - 1,0,1,1)<>0, IF(OR($AD71="LUMP", $AD71="LS"), "LUMP", OFFSET(#REF!, $AC71 - 1,0,1,1)),"")) ->  | H71: =IF( $AC71 = 0, "", IF( OFFSET(#REF!, $AC71 - 1,0,1,1)<>0, IF(OR($AD71="LUMP", $AD71="LS"), "LUMP", OFFSET(#REF!, $AC71 - 1,0,1,1)),"")) ->  | I71: =IF( $AC71 = 0, "", IF( OFFSET(#REF!, $AC71 - 1,0,1,1)<>0, IF(OR($AD71="LUMP", $AD71="LS"), "LUMP", OFFSET(#REF!, $AC71 - 1,0,1,1)),"")) ->  | J71: =IF( $AC71 = 0, "", IF( OFFSET(#REF!, $AC71 - 1,0,1,1)<>0, IF(OR($AD71="LUMP", $AD71="LS"), "LUMP", OFFSET(#REF!, $AC71 - 1,0,1,1)),"")) ->  | K71: =IF( $AC71 = 0, "", IF( OFFSET(#REF!, $AC71 - 1,0,1,1)<>0, IF(OR($AD71="LUMP", $AD71="LS"), "LUMP", OFFSET(#REF!, $AC71 - 1,0,1,1)),"")) ->  | L71: =IF( $AC71 = 0, "", IF( OFFSET(#REF!, $AC71 - 1,0,1,1)<>0, IF(OR($AD71="LUMP", $AD71="LS"), "LUMP", OFFSET(#REF!, $AC71 - 1,0,1,1)),"")) ->  | M71: =IF( $AC71 = 0, "", IF( OFFSET(#REF!, $AC71 - 1,0,1,1)<>0, IF(OR($AD71="LUMP", $AD71="LS"), "LUMP", OFFSET(#REF!, $AC71 - 1,0,1,1)),"")) ->  | N71: =IF( $AC71 = 0, "", IF( OFFSET(#REF!, $AC71 - 1,0,1,1)<>0, IF(OR($AD71="LUMP", $AD71="LS"), "LUMP", OFFSET(#REF!, $AC71 - 1,0,1,1)),"")) ->  | O71: =IF( $AC71 = 0, "", IF( OFFSET(#REF!, $AC71 - 1,0,1,1)<>0, IF(OR($AD71="LUMP", $AD71="LS"), "LUMP", OFFSET(#REF!, $AC71 - 1,0,1,1)),"")) ->  | P71: =IF( $AC71 = 0, "", IF( OFFSET(#REF!, $AC71 - 1,0,1,1)<>0, IF(OR($AD71="LUMP", $AD71="LS"), "LUMP", OFFSET(#REF!, $AC71 - 1,0,1,1)),"")) ->  | Q71: =IF( $AC71 = 0, "", IF( OFFSET(#REF!, $AC71 - 1,0,1,1)<>0, IF(OR($AD71="LUMP", $AD71="LS"), "LUMP", OFFSET(#REF!, $AC71 - 1,0,1,1)),"")) ->  | R71: =IF( $AC71 = 0, "", IF( OFFSET(#REF!, $AC71 - 1,0,1,1)<>0, IF(OR($AD71="LUMP", $AD71="LS"), "LUMP", OFFSET(#REF!, $AC71 - 1,0,1,1)),"")) ->  | S71: =IF( $AC71 = 0, "", IF( OFFSET(#REF!, $AC71 - 1,0,1,1)<>0, IF(OR($AD71="LUMP", $AD71="LS"), "LUMP", OFFSET(#REF!, $AC71 - 1,0,1,1)),"")) ->  | T71: =IF( $AC71 = 0, "", IF( OFFSET(#REF!, $AC71 - 1,0,1,1)<>0, IF(OR($AD71="LUMP", $AD71="LS"), "LUMP", OFFSET(#REF!, $AC71 - 1,0,1,1)),"")) ->  | U71: =IF( $AC71 = 0, "", IF( OFFSET(#REF!, $AC71 - 1,0,1,1)<>0, LEFT(OFFSET(#REF!, $AC71 - 1,0,1,1),3),"")) ->  | V71: =IF( $AC71 = 0, "", IF( OFFSET(#REF!, $AC71 - 1,0,1,1)<>0, IF(LEN(OFFSET(#REF!, $AC71 - 1,0,1,1))=9, RIGHT(OFFSET(#REF!, $AC71 - 1,0,1,1),5), LEFT(RIGHT(OFFSET(#REF!, $AC71 - 1,0,1,1),6), 5) ),"")) ->  | W71: =IF(SUM(A71:T71)<>0,SUM(A71:T71),IF(OR(AD71="LUMP", AD71="LS"), "LUMP", "")) ->  | X71: =IF( $AC71 = 0, "", IF( OFFSET(#REF!, $AC71 - 1,0,1,1)<>0,IF(OR(AD71="LUMP", AD71="LS"), "", AD71),"")) ->  | Y71: =IF( $AC71 = 0, "", IF( OFFSET(#REF!, $AC71 - 1,0,1,1)<>0, VLOOKUP( OFFSET(#REF!, $AC71 - 1,0,1,1),[1]Items!$A$2:$E$10001,4,0),"")) ->  | AA71: 69 | AB71: 11 | AC71: 58 | AD71: =IF( $AC71 = 0, "", IF( OFFSET(#REF!, $AC71 - 1,0,1,1)<>0, VLOOKUP( OFFSET(#REF!, $AC71 - 1,0,1,1),[1]Items!$A$2:$E$10001,3,0),"")) -> 
A72: =IF( $AC72 = 0, "", IF( OFFSET(#REF!, $AC72 - 1,0,1,1)<>0, IF(OR($AD72="LUMP", $AD72="LS"), "LUMP", OFFSET(#REF!, $AC72 - 1,0,1,1)),"")) ->  | B72: =IF( $AC72 = 0, "", IF( OFFSET(#REF!, $AC72 - 1,0,1,1)<>0, IF(OR($AD72="LUMP", $AD72="LS"), "LUMP", OFFSET(#REF!, $AC72 - 1,0,1,1)),"")) ->  | C72: =IF( $AC72 = 0, "", IF( OFFSET(#REF!, $AC72 - 1,0,1,1)<>0, IF(OR($AD72="LUMP", $AD72="LS"), "LUMP", OFFSET(#REF!, $AC72 - 1,0,1,1)),"")) ->  | D72: =IF( $AC72 = 0, "", IF( OFFSET(#REF!, $AC72 - 1,0,1,1)<>0, IF(OR($AD72="LUMP", $AD72="LS"), "LUMP", OFFSET(#REF!, $AC72 - 1,0,1,1)),"")) ->  | E72: =IF( $AC72 = 0, "", IF( OFFSET(#REF!, $AC72 - 1,0,1,1)<>0, IF(OR($AD72="LUMP", $AD72="LS"), "LUMP", OFFSET(#REF!, $AC72 - 1,0,1,1)),"")) ->  | F72: =IF( $AC72 = 0, "", IF( OFFSET(#REF!, $AC72 - 1,0,1,1)<>0, IF(OR($AD72="LUMP", $AD72="LS"), "LUMP", OFFSET(#REF!, $AC72 - 1,0,1,1)),"")) ->  | G72: =IF( $AC72 = 0, "", IF( OFFSET(#REF!, $AC72 - 1,0,1,1)<>0, IF(OR($AD72="LUMP", $AD72="LS"), "LUMP", OFFSET(#REF!, $AC72 - 1,0,1,1)),"")) ->  | H72: =IF( $AC72 = 0, "", IF( OFFSET(#REF!, $AC72 - 1,0,1,1)<>0, IF(OR($AD72="LUMP", $AD72="LS"), "LUMP", OFFSET(#REF!, $AC72 - 1,0,1,1)),"")) ->  | I72: =IF( $AC72 = 0, "", IF( OFFSET(#REF!, $AC72 - 1,0,1,1)<>0, IF(OR($AD72="LUMP", $AD72="LS"), "LUMP", OFFSET(#REF!, $AC72 - 1,0,1,1)),"")) ->  | J72: =IF( $AC72 = 0, "", IF( OFFSET(#REF!, $AC72 - 1,0,1,1)<>0, IF(OR($AD72="LUMP", $AD72="LS"), "LUMP", OFFSET(#REF!, $AC72 - 1,0,1,1)),"")) ->  | K72: =IF( $AC72 = 0, "", IF( OFFSET(#REF!, $AC72 - 1,0,1,1)<>0, IF(OR($AD72="LUMP", $AD72="LS"), "LUMP", OFFSET(#REF!, $AC72 - 1,0,1,1)),"")) ->  | L72: =IF( $AC72 = 0, "", IF( OFFSET(#REF!, $AC72 - 1,0,1,1)<>0, IF(OR($AD72="LUMP", $AD72="LS"), "LUMP", OFFSET(#REF!, $AC72 - 1,0,1,1)),"")) ->  | M72: =IF( $AC72 = 0, "", IF( OFFSET(#REF!, $AC72 - 1,0,1,1)<>0, IF(OR($AD72="LUMP", $AD72="LS"), "LUMP", OFFSET(#REF!, $AC72 - 1,0,1,1)),"")) ->  | N72: =IF( $AC72 = 0, "", IF( OFFSET(#REF!, $AC72 - 1,0,1,1)<>0, IF(OR($AD72="LUMP", $AD72="LS"), "LUMP", OFFSET(#REF!, $AC72 - 1,0,1,1)),"")) ->  | O72: =IF( $AC72 = 0, "", IF( OFFSET(#REF!, $AC72 - 1,0,1,1)<>0, IF(OR($AD72="LUMP", $AD72="LS"), "LUMP", OFFSET(#REF!, $AC72 - 1,0,1,1)),"")) ->  | P72: =IF( $AC72 = 0, "", IF( OFFSET(#REF!, $AC72 - 1,0,1,1)<>0, IF(OR($AD72="LUMP", $AD72="LS"), "LUMP", OFFSET(#REF!, $AC72 - 1,0,1,1)),"")) ->  | Q72: =IF( $AC72 = 0, "", IF( OFFSET(#REF!, $AC72 - 1,0,1,1)<>0, IF(OR($AD72="LUMP", $AD72="LS"), "LUMP", OFFSET(#REF!, $AC72 - 1,0,1,1)),"")) ->  | R72: =IF( $AC72 = 0, "", IF( OFFSET(#REF!, $AC72 - 1,0,1,1)<>0, IF(OR($AD72="LUMP", $AD72="LS"), "LUMP", OFFSET(#REF!, $AC72 - 1,0,1,1)),"")) ->  | S72: =IF( $AC72 = 0, "", IF( OFFSET(#REF!, $AC72 - 1,0,1,1)<>0, IF(OR($AD72="LUMP", $AD72="LS"), "LUMP", OFFSET(#REF!, $AC72 - 1,0,1,1)),"")) ->  | T72: =IF( $AC72 = 0, "", IF( OFFSET(#REF!, $AC72 - 1,0,1,1)<>0, IF(OR($AD72="LUMP", $AD72="LS"), "LUMP", OFFSET(#REF!, $AC72 - 1,0,1,1)),"")) ->  | U72: =IF( $AC72 = 0, "", IF( OFFSET(#REF!, $AC72 - 1,0,1,1)<>0, LEFT(OFFSET(#REF!, $AC72 - 1,0,1,1),3),"")) ->  | V72: =IF( $AC72 = 0, "", IF( OFFSET(#REF!, $AC72 - 1,0,1,1)<>0, IF(LEN(OFFSET(#REF!, $AC72 - 1,0,1,1))=9, RIGHT(OFFSET(#REF!, $AC72 - 1,0,1,1),5), LEFT(RIGHT(OFFSET(#REF!, $AC72 - 1,0,1,1),6), 5) ),"")) ->  | W72: =IF(SUM(A72:T72)<>0,SUM(A72:T72),IF(OR(AD72="LUMP", AD72="LS"), "LUMP", "")) ->  | X72: =IF( $AC72 = 0, "", IF( OFFSET(#REF!, $AC72 - 1,0,1,1)<>0,IF(OR(AD72="LUMP", AD72="LS"), "", AD72),"")) ->  | Y72: =IF( $AC72 = 0, "", IF( OFFSET(#REF!, $AC72 - 1,0,1,1)<>0, VLOOKUP( OFFSET(#REF!, $AC72 - 1,0,1,1),[1]Items!$A$2:$E$10001,4,0),"")) ->  | AA72: 70 | AB72: 11 | AC72: 59 | AD72: =IF( $AC72 = 0, "", IF( OFFSET(#REF!, $AC72 - 1,0,1,1)<>0, VLOOKUP( OFFSET(#REF!, $AC72 - 1,0,1,1),[1]Items!$A$2:$E$10001,3,0),"")) -> 
A73: =IF( $AC73 = 0, "", IF( OFFSET(#REF!, $AC73 - 1,0,1,1)<>0, IF(OR($AD73="LUMP", $AD73="LS"), "LUMP", OFFSET(#REF!, $AC73 - 1,0,1,1)),"")) ->  | B73: =IF( $AC73 = 0, "", IF( OFFSET(#REF!, $AC73 - 1,0,1,1)<>0, IF(OR($AD73="LUMP", $AD73="LS"), "LUMP", OFFSET(#REF!, $AC73 - 1,0,1,1)),"")) ->  | C73: =IF( $AC73 = 0, "", IF( OFFSET(#REF!, $AC73 - 1,0,1,1)<>0, IF(OR($AD73="LUMP", $AD73="LS"), "LUMP", OFFSET(#REF!, $AC73 - 1,0,1,1)),"")) ->  | D73: =IF( $AC73 = 0, "", IF( OFFSET(#REF!, $AC73 - 1,0,1,1)<>0, IF(OR($AD73="LUMP", $AD73="LS"), "LUMP", OFFSET(#REF!, $AC73 - 1,0,1,1)),"")) ->  | E73: =IF( $AC73 = 0, "", IF( OFFSET(#REF!, $AC73 - 1,0,1,1)<>0, IF(OR($AD73="LUMP", $AD73="LS"), "LUMP", OFFSET(#REF!, $AC73 - 1,0,1,1)),"")) ->  | F73: =IF( $AC73 = 0, "", IF( OFFSET(#REF!, $AC73 - 1,0,1,1)<>0, IF(OR($AD73="LUMP", $AD73="LS"), "LUMP", OFFSET(#REF!, $AC73 - 1,0,1,1)),"")) ->  | G73: =IF( $AC73 = 0, "", IF( OFFSET(#REF!, $AC73 - 1,0,1,1)<>0, IF(OR($AD73="LUMP", $AD73="LS"), "LUMP", OFFSET(#REF!, $AC73 - 1,0,1,1)),"")) ->  | H73: =IF( $AC73 = 0, "", IF( OFFSET(#REF!, $AC73 - 1,0,1,1)<>0, IF(OR($AD73="LUMP", $AD73="LS"), "LUMP", OFFSET(#REF!, $AC73 - 1,0,1,1)),"")) ->  | I73: =IF( $AC73 = 0, "", IF( OFFSET(#REF!, $AC73 - 1,0,1,1)<>0, IF(OR($AD73="LUMP", $AD73="LS"), "LUMP", OFFSET(#REF!, $AC73 - 1,0,1,1)),"")) ->  | J73: =IF( $AC73 = 0, "", IF( OFFSET(#REF!, $AC73 - 1,0,1,1)<>0, IF(OR($AD73="LUMP", $AD73="LS"), "LUMP", OFFSET(#REF!, $AC73 - 1,0,1,1)),"")) ->  | K73: =IF( $AC73 = 0, "", IF( OFFSET(#REF!, $AC73 - 1,0,1,1)<>0, IF(OR($AD73="LUMP", $AD73="LS"), "LUMP", OFFSET(#REF!, $AC73 - 1,0,1,1)),"")) ->  | L73: =IF( $AC73 = 0, "", IF( OFFSET(#REF!, $AC73 - 1,0,1,1)<>0, IF(OR($AD73="LUMP", $AD73="LS"), "LUMP", OFFSET(#REF!, $AC73 - 1,0,1,1)),"")) ->  | M73: =IF( $AC73 = 0, "", IF( OFFSET(#REF!, $AC73 - 1,0,1,1)<>0, IF(OR($AD73="LUMP", $AD73="LS"), "LUMP", OFFSET(#REF!, $AC73 - 1,0,1,1)),"")) ->  | N73: =IF( $AC73 = 0, "", IF( OFFSET(#REF!, $AC73 - 1,0,1,1)<>0, IF(OR($AD73="LUMP", $AD73="LS"), "LUMP", OFFSET(#REF!, $AC73 - 1,0,1,1)),"")) ->  | O73: =IF( $AC73 = 0, "", IF( OFFSET(#REF!, $AC73 - 1,0,1,1)<>0, IF(OR($AD73="LUMP", $AD73="LS"), "LUMP", OFFSET(#REF!, $AC73 - 1,0,1,1)),"")) ->  | P73: =IF( $AC73 = 0, "", IF( OFFSET(#REF!, $AC73 - 1,0,1,1)<>0, IF(OR($AD73="LUMP", $AD73="LS"), "LUMP", OFFSET(#REF!, $AC73 - 1,0,1,1)),"")) ->  | Q73: =IF( $AC73 = 0, "", IF( OFFSET(#REF!, $AC73 - 1,0,1,1)<>0, IF(OR($AD73="LUMP", $AD73="LS"), "LUMP", OFFSET(#REF!, $AC73 - 1,0,1,1)),"")) ->  | R73: =IF( $AC73 = 0, "", IF( OFFSET(#REF!, $AC73 - 1,0,1,1)<>0, IF(OR($AD73="LUMP", $AD73="LS"), "LUMP", OFFSET(#REF!, $AC73 - 1,0,1,1)),"")) ->  | S73: =IF( $AC73 = 0, "", IF( OFFSET(#REF!, $AC73 - 1,0,1,1)<>0, IF(OR($AD73="LUMP", $AD73="LS"), "LUMP", OFFSET(#REF!, $AC73 - 1,0,1,1)),"")) ->  | T73: =IF( $AC73 = 0, "", IF( OFFSET(#REF!, $AC73 - 1,0,1,1)<>0, IF(OR($AD73="LUMP", $AD73="LS"), "LUMP", OFFSET(#REF!, $AC73 - 1,0,1,1)),"")) ->  | U73: =IF( $AC73 = 0, "", IF( OFFSET(#REF!, $AC73 - 1,0,1,1)<>0, LEFT(OFFSET(#REF!, $AC73 - 1,0,1,1),3),"")) ->  | V73: =IF( $AC73 = 0, "", IF( OFFSET(#REF!, $AC73 - 1,0,1,1)<>0, IF(LEN(OFFSET(#REF!, $AC73 - 1,0,1,1))=9, RIGHT(OFFSET(#REF!, $AC73 - 1,0,1,1),5), LEFT(RIGHT(OFFSET(#REF!, $AC73 - 1,0,1,1),6), 5) ),"")) ->  | W73: =IF(SUM(A73:T73)<>0,SUM(A73:T73),IF(OR(AD73="LUMP", AD73="LS"), "LUMP", "")) ->  | X73: =IF( $AC73 = 0, "", IF( OFFSET(#REF!, $AC73 - 1,0,1,1)<>0,IF(OR(AD73="LUMP", AD73="LS"), "", AD73),"")) ->  | Y73: =IF( $AC73 = 0, "", IF( OFFSET(#REF!, $AC73 - 1,0,1,1)<>0, VLOOKUP( OFFSET(#REF!, $AC73 - 1,0,1,1),[1]Items!$A$2:$E$10001,4,0),"")) ->  | AA73: 71 | AB73: 11 | AC73: 60 | AD73: =IF( $AC73 = 0, "", IF( OFFSET(#REF!, $AC73 - 1,0,1,1)<>0, VLOOKUP( OFFSET(#REF!, $AC73 - 1,0,1,1),[1]Items!$A$2:$E$10001,3,0),"")) -> 
A74: =IF( $AC74 = 0, "", IF( OFFSET(#REF!, $AC74 - 1,0,1,1)<>0, IF(OR($AD74="LUMP", $AD74="LS"), "LUMP", OFFSET(#REF!, $AC74 - 1,0,1,1)),"")) ->  | B74: =IF( $AC74 = 0, "", IF( OFFSET(#REF!, $AC74 - 1,0,1,1)<>0, IF(OR($AD74="LUMP", $AD74="LS"), "LUMP", OFFSET(#REF!, $AC74 - 1,0,1,1)),"")) ->  | C74: =IF( $AC74 = 0, "", IF( OFFSET(#REF!, $AC74 - 1,0,1,1)<>0, IF(OR($AD74="LUMP", $AD74="LS"), "LUMP", OFFSET(#REF!, $AC74 - 1,0,1,1)),"")) ->  | D74: =IF( $AC74 = 0, "", IF( OFFSET(#REF!, $AC74 - 1,0,1,1)<>0, IF(OR($AD74="LUMP", $AD74="LS"), "LUMP", OFFSET(#REF!, $AC74 - 1,0,1,1)),"")) ->  | E74: =IF( $AC74 = 0, "", IF( OFFSET(#REF!, $AC74 - 1,0,1,1)<>0, IF(OR($AD74="LUMP", $AD74="LS"), "LUMP", OFFSET(#REF!, $AC74 - 1,0,1,1)),"")) ->  | F74: =IF( $AC74 = 0, "", IF( OFFSET(#REF!, $AC74 - 1,0,1,1)<>0, IF(OR($AD74="LUMP", $AD74="LS"), "LUMP", OFFSET(#REF!, $AC74 - 1,0,1,1)),"")) ->  | G74: =IF( $AC74 = 0, "", IF( OFFSET(#REF!, $AC74 - 1,0,1,1)<>0, IF(OR($AD74="LUMP", $AD74="LS"), "LUMP", OFFSET(#REF!, $AC74 - 1,0,1,1)),"")) ->  | H74: =IF( $AC74 = 0, "", IF( OFFSET(#REF!, $AC74 - 1,0,1,1)<>0, IF(OR($AD74="LUMP", $AD74="LS"), "LUMP", OFFSET(#REF!, $AC74 - 1,0,1,1)),"")) ->  | I74: =IF( $AC74 = 0, "", IF( OFFSET(#REF!, $AC74 - 1,0,1,1)<>0, IF(OR($AD74="LUMP", $AD74="LS"), "LUMP", OFFSET(#REF!, $AC74 - 1,0,1,1)),"")) ->  | J74: =IF( $AC74 = 0, "", IF( OFFSET(#REF!, $AC74 - 1,0,1,1)<>0, IF(OR($AD74="LUMP", $AD74="LS"), "LUMP", OFFSET(#REF!, $AC74 - 1,0,1,1)),"")) ->  | K74: =IF( $AC74 = 0, "", IF( OFFSET(#REF!, $AC74 - 1,0,1,1)<>0, IF(OR($AD74="LUMP", $AD74="LS"), "LUMP", OFFSET(#REF!, $AC74 - 1,0,1,1)),"")) ->  | L74: =IF( $AC74 = 0, "", IF( OFFSET(#REF!, $AC74 - 1,0,1,1)<>0, IF(OR($AD74="LUMP", $AD74="LS"), "LUMP", OFFSET(#REF!, $AC74 - 1,0,1,1)),"")) ->  | M74: =IF( $AC74 = 0, "", IF( OFFSET(#REF!, $AC74 - 1,0,1,1)<>0, IF(OR($AD74="LUMP", $AD74="LS"), "LUMP", OFFSET(#REF!, $AC74 - 1,0,1,1)),"")) ->  | N74: =IF( $AC74 = 0, "", IF( OFFSET(#REF!, $AC74 - 1,0,1,1)<>0, IF(OR($AD74="LUMP", $AD74="LS"), "LUMP", OFFSET(#REF!, $AC74 - 1,0,1,1)),"")) ->  | O74: =IF( $AC74 = 0, "", IF( OFFSET(#REF!, $AC74 - 1,0,1,1)<>0, IF(OR($AD74="LUMP", $AD74="LS"), "LUMP", OFFSET(#REF!, $AC74 - 1,0,1,1)),"")) ->  | P74: =IF( $AC74 = 0, "", IF( OFFSET(#REF!, $AC74 - 1,0,1,1)<>0, IF(OR($AD74="LUMP", $AD74="LS"), "LUMP", OFFSET(#REF!, $AC74 - 1,0,1,1)),"")) ->  | Q74: =IF( $AC74 = 0, "", IF( OFFSET(#REF!, $AC74 - 1,0,1,1)<>0, IF(OR($AD74="LUMP", $AD74="LS"), "LUMP", OFFSET(#REF!, $AC74 - 1,0,1,1)),"")) ->  | R74: =IF( $AC74 = 0, "", IF( OFFSET(#REF!, $AC74 - 1,0,1,1)<>0, IF(OR($AD74="LUMP", $AD74="LS"), "LUMP", OFFSET(#REF!, $AC74 - 1,0,1,1)),"")) ->  | S74: =IF( $AC74 = 0, "", IF( OFFSET(#REF!, $AC74 - 1,0,1,1)<>0, IF(OR($AD74="LUMP", $AD74="LS"), "LUMP", OFFSET(#REF!, $AC74 - 1,0,1,1)),"")) ->  | T74: =IF( $AC74 = 0, "", IF( OFFSET(#REF!, $AC74 - 1,0,1,1)<>0, IF(OR($AD74="LUMP", $AD74="LS"), "LUMP", OFFSET(#REF!, $AC74 - 1,0,1,1)),"")) ->  | U74: =IF( $AC74 = 0, "", IF( OFFSET(#REF!, $AC74 - 1,0,1,1)<>0, LEFT(OFFSET(#REF!, $AC74 - 1,0,1,1),3),"")) ->  | V74: =IF( $AC74 = 0, "", IF( OFFSET(#REF!, $AC74 - 1,0,1,1)<>0, IF(LEN(OFFSET(#REF!, $AC74 - 1,0,1,1))=9, RIGHT(OFFSET(#REF!, $AC74 - 1,0,1,1),5), LEFT(RIGHT(OFFSET(#REF!, $AC74 - 1,0,1,1),6), 5) ),"")) ->  | W74: =IF(SUM(A74:T74)<>0,SUM(A74:T74),IF(OR(AD74="LUMP", AD74="LS"), "LUMP", "")) ->  | X74: =IF( $AC74 = 0, "", IF( OFFSET(#REF!, $AC74 - 1,0,1,1)<>0,IF(OR(AD74="LUMP", AD74="LS"), "", AD74),"")) ->  | Y74: =IF( $AC74 = 0, "", IF( OFFSET(#REF!, $AC74 - 1,0,1,1)<>0, VLOOKUP( OFFSET(#REF!, $AC74 - 1,0,1,1),[1]Items!$A$2:$E$10001,4,0),"")) ->  | AA74: 72 | AB74: 12 | AC74: 0 | AD74: =IF( $AC74 = 0, "", IF( OFFSET(#REF!, $AC74 - 1,0,1,1)<>0, VLOOKUP( OFFSET(#REF!, $AC74 - 1,0,1,1),[1]Items!$A$2:$E$10001,3,0),"")) -> 
A75: =IF(OFFSET(#REF!,$AA75,0,1,1)<>"",OFFSET(#REF!,$AA75,0,1,1),"") ->  | U75: =IF( $AC75 = 0, "", IF( OFFSET(#REF!, $AC75 - 1,0,1,1)<>0, LEFT(OFFSET(#REF!, $AC75 - 1,0,1,1),3),"")) ->  | V75: =IF( $AC75 = 0, "", IF( OFFSET(#REF!, $AC75 - 1,0,1,1)<>0, IF(LEN(OFFSET(#REF!, $AC75 - 1,0,1,1))=9, RIGHT(OFFSET(#REF!, $AC75 - 1,0,1,1),5), LEFT(RIGHT(OFFSET(#REF!, $AC75 - 1,0,1,1),6), 5) ),"")) ->  | AA75: 73 | AB75: 12 | AC75: 61 | AD75: =IF( $AC75 = 0, "", IF( OFFSET(#REF!, $AC75 - 1,0,1,1)<>0, VLOOKUP( OFFSET(#REF!, $AC75 - 1,0,1,1),[1]Items!$A$2:$E$10001,3,0),"")) -> 

Sheet Sub01
A5: ROUTE | B5: SHEET NO. | C5: STATION | G5: WIDTH | I5: SIDE | J5: LENGTH | K5: AVERAGE WIDTH | L5: SURFACE AREA (CA = CADD Generated Area) | M5: 202 | N5: 441 | P5: 407 | R5: 301 | T5: 304 | V5: 204
M6: DEPTH | N6: 3 | P6: DEPTH | R6: 9 | T6: 6 | V6: DEPTH
M7: PAVEMENT REMOVED, AS PER PLAN | N7: ASPHALT CONCRETE SURFACE COURSE, TYPE 1, (448), PG64-22 | P7: TACK COAT | R7: ASPHALT CONCRETE BASE, PG64-22 | T7: AGGREGATE BASE | V7: SUBGRADE COMPACTION
C9: FROM | E9: TO | G9: FROM | H9: FT | J9: FT | K9: FT | L9: SF | M9: SY | N9: CY | P9: GAL | R9: CY | T9: CY | V9: SY
A11: US-422 | D11: 77598 | F11: 77685 | H11: 56.45 (AVG) | I11: CL | J11: =F11-D11 -> 87 | L11: =J11*56.45 -> 4911.15 | M11: =L11/9 -> 545.6833333 | N11: =L11*N$6/12/27 -> 45.47361111 | P11: =L11/9*0.055*3 -> 90.03775 | R11: =(L11+J11*4/12)*9/12/27 -> 137.2263889 | T11: =(L11+J11*12/12+J11*13/12)*6/12/27 -> 94.3037037 | V11: =(L11+2*J11*18/12)/9 -> 574.6833333
D14: STORM SEWER TRENCH
D15: 77685 | F15: 77723 | I15: CL | L15: 468.1 | M15: =L15/9 -> 52.01111111 | N15: =L15*N$6/12/27 -> 4.334259259 | P15: =L15/9*0.055*3 -> 8.581833333 | R15: =(L15+5*4/12)*9/12/27 -> 13.04907407 | T15: =(L15+5*13/12)*6/12/27 -> 8.76882716 | V15: =(L15+5*18/12)/9 -> 52.84444444
D17: SHOULDER REPLACEMENT
D18: 77717 | F18: 78088 | I18: LT | J18: =F18-D18 -> 371 | L18: 3073.8 | M18: =L18/9 -> 341.5333333 | N18: =L18*N$6/12/27 -> 28.46111111 | P18: =L18/9*0.055*3 -> 56.353 | R18: =(L18+748.5*4/12)*9/12/27 -> 92.31388889 | T18: =(L18+748.5*13/12)*6/12/27 -> 71.93842593 | V18: =(L18+748.5*18/12)/9 -> 466.2833333
A70: SUBTOTAL | M70: =SUM(M11:M69) -> 939.2277778 | N70: =SUM(N11:N69) -> 78.26898148 | P70: =SUM(P11:P69) -> 154.9725833 | R70: =SUM(R11:R69) -> 242.5893519 | T70: =SUM(T11:T69) -> 175.0109568 | V70: =SUM(V11:V69) -> 1093.811111
A71: TOTALS CARRIED TO GENERAL SUMMARY | M71: =ROUND(M70+0.5,0) -> 940 | N71: =ROUND(N70+0.5,0) -> 79 | P71: =ROUND(P70+0.5,0) -> 155 | R71: =ROUND(R70+0.5,0) -> 243 | T71: =ROUND(T70+0.5,0) -> 176 | V71: =ROUND(V70+0.5,0) -> 1094
A72: TOTALS CARRIED TO GRAND TOTAL ON PAGE _____ | M72: =IF(M9<>"", IF( ISERROR(VLOOKUP(M156,#REF!,5,0))=TRUE,"",IF(M9="LUMP", "LUMP", VLOOKUP(M156,#REF!,5,0) ) ), "") ->  | N72: =IF(N9<>"", IF( ISERROR(VLOOKUP(N156,#REF!,5,0))=TRUE,"",IF(N9="LUMP", "LUMP", VLOOKUP(N156,#REF!,5,0) ) ), "") ->  | O72: =IF(O9<>"", IF( ISERROR(VLOOKUP(O156,#REF!,5,0))=TRUE,"",IF(O9="LUMP", "LUMP", VLOOKUP(O156,#REF!,5,0) ) ), "") ->  | P72: =IF(P9<>"", IF( ISERROR(VLOOKUP(P156,#REF!,5,0))=TRUE,"",IF(P9="LUMP", "LUMP", VLOOKUP(P156,#REF!,5,0) ) ), "") ->  | Q72: =IF(Q9<>"", IF( ISERROR(VLOOKUP(Q156,#REF!,5,0))=TRUE,"",IF(Q9="LUMP", "LUMP", VLOOKUP(Q156,#REF!,5,0) ) ), "") ->  | R72: =IF(R9<>"", IF( ISERROR(VLOOKUP(R156,#REF!,5,0))=TRUE,"",IF(R9="LUMP", "LUMP", VLOOKUP(R156,#REF!,5,0) ) ), "") ->  | S72: =IF(S9<>"", IF( ISERROR(VLOOKUP(S156,#REF!,5,0))=TRUE,"",IF(S9="LUMP", "LUMP", VLOOKUP(S156,#REF!,5,0) ) ), "") ->  | T72: =IF(T9<>"", IF( ISERROR(VLOOKUP(T156,#REF!,5,0))=TRUE,"",IF(T9="LUMP", "LUMP", VLOOKUP(T156,#REF!,5,0) ) ), "") ->  | U72: =IF(U9<>"", IF( ISERROR(VLOOKUP(U156,#REF!,5,0))=TRUE,"",IF(U9="LUMP", "LUMP", VLOOKUP(U156,#REF!,5,0) ) ), "") ->  | V72: =IF(V9<>"", IF( ISERROR(VLOOKUP(V156,#REF!,5,0))=TRUE,"",IF(V9="LUMP", "LUMP", VLOOKUP(V156,#REF!,5,0) ) ), "") ->  | W72: =IF(W9<>"", IF( ISERROR(VLOOKUP(W156,#REF!,5,0))=TRUE,"",IF(W9="LUMP", "LUMP", VLOOKUP(W156,#REF!,5,0) ) ), "") ->  | X72: =IF(X9<>"", IF( ISERROR(VLOOKUP(X156,#REF!,5,0))=TRUE,"",IF(X9="LUMP", "LUMP", VLOOKUP(X156,#REF!,5,0) ) ), "") ->  | Y72: =IF(Y9<>"", IF( ISERROR(VLOOKUP(Y156,#REF!,5,0))=TRUE,"",IF(Y9="LUMP", "LUMP", VLOOKUP(Y156,#REF!,5,0) ) ), "") ->  | Z72: =IF(Z9<>"", IF( ISERROR(VLOOKUP(Z156,#REF!,5,0))=TRUE,"",IF(Z9="LUMP", "LUMP", VLOOKUP(Z156,#REF!,5,0) ) ), "") ->  | AA72: =IF(AA9<>"", IF( ISERROR(VLOOKUP(AA156,#REF!,5,0))=TRUE,"",IF(AA9="LUMP", "LUMP", VLOOKUP(AA156,#REF!,5,0) ) ), "") ->  | AB72: =IF(AB9<>"", IF( ISERROR(VLOOKUP(AB156,#REF!,5,0))=TRUE,"",IF(AB9="LUMP", "LUMP", VLOOKUP(AB156,#REF!,5,0) ) ), "") ->  | AC72: =IF(AC9<>"", IF( ISERROR(VLOOKUP(AC156,#REF!,5,0))=TRUE,"",IF(AC9="LUMP", "LUMP", VLOOKUP(AC156,#REF!,5,0) ) ), "") ->  | AD72: =IF(AD9<>"", IF( ISERROR(VLOOKUP(AD156,#REF!,5,0))=TRUE,"",IF(AD9="LUMP", "LUMP", VLOOKUP(AD156,#REF!,5,0) ) ), "") ->  | AE72: =IF(AE9<>"", IF( ISERROR(VLOOKUP(AE156,#REF!,5,0))=TRUE,"",IF(AE9="LUMP", "LUMP", VLOOKUP(AE156,#REF!,5,0) ) ), "") ->  | AF72: =IF(AF9<>"", IF( ISERROR(VLOOKUP(AF156,#REF!,5,0))=TRUE,"",IF(AF9="LUMP", "LUMP", VLOOKUP(AF156,#REF!,5,0) ) ), "") ->  | AG72: =IF(AG9<>"", IF( ISERROR(VLOOKUP(AG156,#REF!,5,0))=TRUE,"",IF(AG9="LUMP", "LUMP", VLOOKUP(AG156,#REF!,5,0) ) ), "") ->  | AH72: =IF(AH9<>"", IF( ISERROR(VLOOKUP(AH156,#REF!,5,0))=TRUE,"",IF(AH9="LUMP", "LUMP", VLOOKUP(AH156,#REF!,5,0) ) ), "") ->  | AI72: =IF(AI9<>"", IF( ISERROR(VLOOKUP(AI156,#REF!,5,0))=TRUE,"",IF(AI9="LUMP", "LUMP", VLOOKUP(AI156,#REF!,5,0) ) ), "") ->  | AJ72: =IF(AJ9<>"", IF( ISERROR(VLOOKUP(AJ156,#REF!,5,0))=TRUE,"",IF(AJ9="LUMP", "LUMP", VLOOKUP(AJ156,#REF!,5,0) ) ), "") ->  | AK72: =IF(AK9<>"", IF( ISERROR(VLOOKUP(AK156,#REF!,5,0))=TRUE,"",IF(AK9="LUMP", "LUMP", VLOOKUP(AK156,#REF!,5,0) ) ), "") ->  | AL72: =IF(AL9<>"", IF( ISERROR(VLOOKUP(AL156,#REF!,5,0))=TRUE,"",IF(AL9="LUMP", "LUMP", VLOOKUP(AL156,#REF!,5,0) ) ), "") ->  | AM72: =IF(AM9<>"", IF( ISERROR(VLOOKUP(AM156,#REF!,5,0))=TRUE,"",IF(AM9="LUMP", "LUMP", VLOOKUP(AM156,#REF!,5,0) ) ), "") ->  | AN72: =IF(AN9<>"", IF( ISERROR(VLOOKUP(AN156,#REF!,5,0))=TRUE,"",IF(AN9="LUMP", "LUMP", VLOOKUP(AN156,#REF!,5,0) ) ), "") ->  | AO72: =IF(AO9<>"", IF( ISERROR(VLOOKUP(AO156,#REF!,5,0))=TRUE,"",IF(AO9="LUMP", "LUMP", VLOOKUP(AO156,#REF!,5,0) ) ), "") ->  | AP72: =IF(AP9<>"", IF( ISERROR(VLOOKUP(AP156,#REF!,5,0))=TRUE,"",IF(AP9="LUMP", "LUMP", VLOOKUP(AP156,#REF!,5,0) ) ), "") -> 
O79: Merge cells in the row below if neccesary to total adjacent columns of the same item. Hide rows 72-79.
A80: =A72 -> TOTALS CARRIED TO GRAND TOTAL ON PAGE _____ | M80: =IF(M71<>"", M71, "") -> 940 | N80: =IF(N71<>"", N71, "") -> 79 | P80: 155 | R80: 243 | T80: 176 | V80: 1094
A108: 202E23001 | B108: 940 | C108: aa
A109: 441E50000 | B109: 79 | C109: dd
A111: 407E10000 | B111: 156 | C111: dd
A113: 301E46000 | B113: 243 | C113: dd
A115: 304E20000 | B115: 176 | C115: dd
A117: 204E10000 | B117: 1094 | C117: aa
M156: aa20223001 | N156: dd44150000 | P156: dd40710000 | R156: dd30146000 | T156: dd30420000 | V156: aa20410000
